Workbook

Sheet RIS
A1: BridgeMania 2017-18 " Vai col tango !!! " | E1: 1 | F1: 2 | G1: 3 | H1: 4 | I1: 5 | J1: 6 | K1: 7 | L1: 8 | M1: 9 | N1: 10 | O1: 11 | P1: 12 | Q1: 13 | R1: 14 | S1: 15 | T1: 16 | U1: 17 | V1: 18 | W1: 19 | X1: 20 | Y1: 21 | Z1: 22 | AA1: 23 | AB1: 24 | AC1: 25 | AD1: 26 | AE1: 27 | AF1: 28 | AG1: 29 | AH1: 30 | AI1: 31 | AJ1: 32 | AK1: 33 | AL1: 34 | AM1: 35 | AN1: 36 | AO1: 37 | AP1: 38 | AQ1: 39 | AR1: 40 | AS1: 41 | AT1: 42 | AU1: 43 | AV1: 44 | AW1: 45 | AX1: 46 | AY1: 47 | AZ1: 48 | BA1: 49 | BB1: 50
A2: ctrl+q | C2: ctrl+s | D2: data | E2: 2017-09-16 | F2: 2017-09-23 | G2: 2017-10-07 | H2: 2017-10-14 | I2: 2017-10-21 | J2: 2017-10-28 | K2: 2017-11-04 | L2: 2017-11-18 | M2: 2017-11-25 | N2: 2017-12-09 | O2: 2017-12-16 | P2: 2018-01-06 | Q2: 2018-01-20 | R2: 2018-01-27 | S2: 2018-02-17 | T2: 2018-02-24 | U2: 2018-03-17 | V2: 2018-03-24 | W2: 2018-04-14 | X2: 2018-04-21 | Y2: 2018-05-05 | Z2: 2018-05-19 | AA2: 2018-05-26 | AB2: 2018-06-09 | AC2: 2018-06-16 | AD2: 2018-06-30 | AE2: 2018-07-07 | AF2: 2018-07-14
B3: selez. cella | D3: luogo | E3: Pre | F3: DeS | G3: Pol | H3: Sim | I3: Sav | J3: Cat | K3: Tor | L3: Bia | M3: Mal | N3: Dej | O3: Ban | P3: DeS | Q3: Pre | R3: Pol | S3: Tor | T3: Cat | U3: Mal | V3: Bia | W3: Sav | X3: Montefalco | Y3: Sim | Z3: DeS | AA3: Pol | AB3: Ban | AC3: Pre | AD3: DeS | AE3: Tor | AF3: Bia
A4: ctrl+r | B4: (riga 6) | C4: ctrl+t | D4: coppie-mani | E4: 11-22 | F4: 12-22 | G4: 7-21 | H4: 11-22 | I4: 9-18 | J4: 8-21 | K4: 8-21 | L4: 10-18 | M4: 9-18 | N4: 11-22 | O4: 8-21 | P4: 8-21 | Q4: 11-22 | R4: 10-18 | S4: 8-21 | T4: 9-18 | U4: 8-21 | V4: 10-18 | W4: 11-22 | X4: 11-33 | Y4: 11-22 | Z4: 11-22 | AA4: 8-21 | AB4: 7-21 | AC4: 8-21 | AD4: 8-21 | AE4: 7-21 | AF4: 7-21
A5: Punteggio | B5: Class. | C5: Coppie | E5: =IF(SUM(E6:E55)=0,"",SUM(E6:E55)) -> 550 | F5: =IF(SUM(F6:F55)=0,"",SUM(F6:F55)) -> 600 | G5: 350 | H5: 550 | I5: 450 | J5: 400 | K5: 400 | L5: 500 | M5: 450 | N5: 550 | O5: 393.6507937 | P5: 400 | Q5: 550 | R5: 497.2222222 | S5: 390.4761905 | T5: 450 | U5: 400 | V5: 500 | W5: 550 | X5: 550 | Y5: 550 | Z5: 550 | AA5: 400 | AB5: 350 | AC5: 400 | AD5: 400 | AE5: 347.6190476 | AF5: 350
A6: =IF(SUM(E6:BB6)=0,0,SUMIF(E6:BB6,">0")/COUNTIF(E6:BB6,">0")) -> 58.24090775 | B6: 1 | C6: Stefania | D6: Massimo | E6: 56.25 | F6: 67.27272727 | H6: 67.04545455 | I6: 58.33333333 | J6: 67.46031746 | L6: 43.75 | M6: 57.40740741 | N6: 51.70454545 | O6: 55.55555556 | P6: 53.17460317 | Q6: 59.09090909 | U6: 56.34920635 | V6: 55.55555556 | W6: 53.97727273 | X6: 56.43939394 | Y6: 74.43181818 | Z6: 61.36363636 | AC6: 53.17460317 | BC6: =IF(B6="","",IF(C6="","","#")) -> # | BF6: 10
A7: 53.57646009 | B7: 2 | C7: Elena | D7: Stefano | E7: 49.43181818 | F7: 56.36363636 | G7: 57.14285714 | H7: 51.13636364 | I7: 47.22222222 | K7: 62.6984127 | L7: 48.61111111 | M7: 47.22222222 | O7: 51.58730159 | Q7: 51.70454545 | R7: 55.55555556 | T7: 44.44444444 | V7: 56.25 | W7: 56.25 | X7: 47.72727273 | Y7: 57.38636364 | Z7: 53.40909091 | AD7: 61.9047619 | AF7: 61.9047619 | BC7: # | BF7: 4
A8: 52.65151515 | B8: 3 | C8: Letizia | D8: Enzo | X8: 52.65151515 | BC8: # | BF8: 16
A9: 52.28398268 | B9: 4 | C9: Barbara | D9: Elio | E9: 54.54545455 | F9: 51.36363636 | G9: 53.57142857 | H9: 40.34090909 | I9: 31.48148148 | J9: 61.9047619 | L9: 63.88888889 | M9: 62.03703704 | N9: 57.38636364 | O9: 40.47619048 | P9: 43.65079365 | Q9: 55.11363636 | R9: 50 | T9: 53.7037037 | V9: 54.86111111 | W9: 41.47727273 | X9: 56.81818182 | Y9: 48.86363636 | Z9: 56.25 | AA9: 47.61904762 | AB9: 53.57142857 | AC9: 61.11111111 | AD9: 51.58730159 | AE9: 57.14285714 | AF9: 58.33333333 | BC9: # | BF9: 2
A10: 52.09522764 | B10: 5 | C10: Manuela | D10: Roberto | E10: 59.65909091 | F10: 50 | H10: 48.29545455 | I10: 64.81481481 | J10: 56.34920635 | L10: 61.11111111 | M10: 54.62962963 | N10: 52.84090909 | P10: 43.65079365 | Q10: 51.70454545 | R10: 45.13888889 | S10: 46.03174603 | T10: 46.2962963 | V10: 74.30555556 | W10: 49.43181818 | Y10: 51.70454545 | Z10: 46.59090909 | AA10: 47.61904762 | AB10: 55.95238095 | AC10: 53.17460317 | AD10: 41.26984127 | AE10: 40.47619048 | AF10: 57.14285714 | BC10: # | BF10: 7
A11: 51.62700818 | B11: 6 | C11: Renata | D11: Sandro | E11: 41.47727273 | F11: 48.18181818 | G11: 48.80952381 | H11: 55.68181818 | I11: 62.96296296 | K11: 58.73015873 | L11: 41.66666667 | M11: 61.11111111 | N11: 55.11363636 | O11: 53.17460317 | P11: 65.87301587 | Q11: 48.86363636 | R11: 65.97222222 | S11: 56.34920635 | T11: 43.51851852 | U11: 48.41269841 | V11: 48.61111111 | W11: 49.43181818 | Y11: 43.18181818 | Z11: 56.25 | AA11: 47.61904762 | AB11: 53.57142857 | AC11: 46.82539683 | AE11: 42.85714286 | AF11: 46.42857143 | BC11: # | BF11: 9
A12: 50 | B12: 7 | C12: Isolde | D12: Gill | AB12: 50 | BC12: # | BF12: 19
A13: 49.49918052 | B13: 8 | C13: Antonella | D13: Dino | E13: 51.70454545 | F13: 34.09090909 | G13: 57.14285714 | H13: 50 | I13: 62.03703704 | J13: 48.41269841 | K13: 42.06349206 | L13: 49.30555556 | N13: 47.15909091 | O13: 48.41269841 | P13: 53.17460317 | Q13: 51.70454545 | R13: 39.58333333 | S13: 50 | T13: 47.22222222 | U13: 41.26984127 | V13: 35.41666667 | W13: 48.29545455 | X13: 54.54545455 | Y13: 51.13636364 | Z13: 46.02272727 | AA13: 50.79365079 | AB13: 52.38095238 | AC13: 50.79365079 | AD13: 57.14285714 | AE13: 67.85714286 | AF13: 48.80952381 | BC13: # | BF13: 1
A14: 49.06505532 | B14: 9 | C14: Tatiana | D14: Julio | E14: 40.90909091 | F14: 38.63636364 | H14: 53.97727273 | I14: 48.14814815 | J14: 36.50793651 | K14: 43.65079365 | L14: 47.91666667 | M14: 44.44444444 | N14: 63.63636364 | O14: 53.96825397 | P14: 43.65079365 | Q14: 46.59090909 | R14: 52.08333333 | S14: 43.65079365 | T14: 58.33333333 | U14: 45.23809524 | V14: 53.47222222 | W14: 56.25 | X14: 44.31818182 | Y14: 52.27272727 | Z14: 43.75 | AA14: 55.55555556 | AC14: 55.55555556 | AD14: 62.6984127 | AE14: 45.23809524 | AF14: 45.23809524 | BC14: # | BF14: 11
A15: 48.19777445 | B15: 10 | C15: Isolde | D15: Cristina | E15: 46.59090909 | F15: 60.45454545 | G15: 48.80952381 | H15: 41.47727273 | J15: 43.65079365 | K15: 63.49206349 | N15: 40.90909091 | O15: 47.61904762 | Q15: 40.90909091 | R15: 40.27777778 | S15: 46.03174603 | U15: 57.14285714 | AA15: 49.20634921 | BC15: # | BF15: 5
A16: 48.05897066 | B16: 11 | C16: Cesarina | D16: Gaetano | E16: 41.47727273 | F16: 55.45454545 | G16: 45.23809524 | H16: 47.15909091 | J16: 44.44444444 | K16: 46.03174603 | L16: 46.52777778 | M16: 41.66666667 | N16: 51.70454545 | P16: 53.17460317 | Q16: 52.84090909 | R16: 47.22222222 | S16: 42.06349206 | T16: 56.48148148 | U16: 42.85714286 | V16: 47.22222222 | W16: 56.81818182 | X16: 56.06060606 | Y16: 44.31818182 | Z16: 50.56818182 | AA16: 53.96825397 | AB16: 48.80952381 | AD16: 38.88888889 | AE16: 58.33333333 | AF16: 32.14285714 | BC16: # | BF16: 3
A17: 46.27823373 | B17: 12 | C17: Olimpia | D17: Sauro | E17: 50 | F17: 45 | H17: 47.15909091 | I17: 41.66666667 | J17: 41.26984127 | K17: 38.0952381 | L17: 48.61111111 | M17: 35.18518519 | N17: 51.70454545 | P17: 43.65079365 | Q17: 44.31818182 | R17: 38.88888889 | S17: 66.66666667 | T17: 47.22222222 | U17: 65.07936508 | V17: 29.86111111 | W17: 56.25 | X17: 47.72727273 | Y17: 39.77272727 | Z17: 53.97727273 | AA17: 47.61904762 | AC17: 42.85714286 | AD17: 52.38095238 | AE17: 35.71428571 | BC17: # | BF17: 8
A18: 45.55913573 | B18: 13 | C18: Lilli | D18: Gianni | E18: 57.95454545 | F18: 55.45454545 | G18: 39.28571429 | H18: 47.72727273 | I18: 33.33333333 | K18: 45.23809524 | L18: 48.61111111 | M18: 46.2962963 | N18: 44.31818182 | O18: 42.85714286 | Q18: 47.15909091 | R18: 62.5 | S18: 39.68253968 | T18: 52.77777778 | U18: 43.65079365 | V18: 44.44444444 | W18: 42.04545455 | X18: 44.6969697 | Y18: 47.72727273 | Z18: 44.31818182 | AB18: 35.71428571 | AC18: 36.50793651 | BC18: # | BF18: 6
A19: 41.78030303 | B19: 14 | C19: A.Maria | D19: Claudio | F19: 37.72727273 | X19: 45.83333333 | BC19: # | BF19: 12
A20: 39.77272727 | B20: 15 | C20: Gill | D20: Cristina | W20: 39.77272727 | BC20: # | BF20: 14
A21: 39.20454545 | B21: 16 | C21: Anna | D21: Benedetto | Y21: 39.20454545 | BC21: # | BF21: 17
A22: 38.65440115 | B22: 17 | C22: Marilena | D22: Sergio | X22: 43.18181818 | AD22: 34.12698413 | BC22: # | BF22: 15
A23: 37.5 | B23: 18 | C23: Daniela | D23: Mauro | Z23: 37.5 | BC23: # | BF23: 18
A24: 33.52272727 | B24: 19 | C24: Claudia | D24: Simonetta | N24: 33.52272727 | BC24: # | BF24: 13
A25: 0 | B25: 20 | BF25: 20
A26: 0 | B26: 21 | BF26: 21
A27: 0 | B27: 22 | BF27: 22
A28: 0 | B28: 23 | BF28: 23
A29: 0 | B29: 24 | BF29: 24
A30: 0 | B30: 25 | BF30: 25
A31: 0 | B31: 26 | BF31: 26
A32: 0 | B32: 27 | BF32: 27
A33: 0 | B33: 28 | BF33: 28
A34: 0 | B34: 29 | BF34: 29
A35: 0 | B35: 30 | BF35: 30
A36: 0 | B36: 31 | BF36: 31
A37: 0 | B37: 32 | BF37: 32
A38: =IF(SUM(E38:BB38)=0,0,SUMIF(E38:BB38,">0")/COUNTIF(E38:BB38,">0")) -> 0 | B38: 33 | BC38: =IF(B38="","",IF(C38="","","#")) ->  | BF38: 33
A39: 0 | B39: 34 | BF39: 34
A40: 0 | B40: 35 | BF40: 35
A41: 0 | B41: 36 | BF41: 36
A42: 0 | B42: 37 | BF42: 37
A43: 0 | B43: 38 | BF43: 38
A44: 0 | B44: 39 | BF44: 39
A45: 0 | B45: 40 | BF45: 40
A46: 0 | B46: 41 | BF46: 41
A47: 0 | B47: 42 | BF47: 42
A48: 0 | B48: 43 | BF48: 43
A49: 0 | B49: 44 | BF49: 44
A50: 0 | B50: 45 | BF50: 45
A51: 0 | B51: 46 | BF51: 46
A52: 0 | B52: 47 | BF52: 47
A53: 0 | B53: 48 | BF53: 48
A54: 0 | B54: 49 | BF54: 49
A55: 0 | B55: 50 | BF55: 50
A58: Punteggi campionato aggiornati delle 11 coppie base (con scarti)
A59: pronti per essere copiati in P (con la macro ctrl+u)
A60: I punteggi (col.A) sono elencati nello stesso ordine (alfabetico) che le coppie corrispondenti hanno nel foglio P
A61: =IF(P!C6="","",INDEX(A$81:A$91,B61)) -> 49.49918052 | B61: =IF(P!C6="","",MATCH(P!B6,$C$81:$C$91,0)) -> 6 | C61: Antonella | D61: Dino
A62: =IF(P!C7="","",INDEX(A$81:A$91,B62)) -> 52.28398268 | B62: =IF(P!C7="","",MATCH(P!B7,$C$81:$C$91,0)) -> 3 | C62: Barbara | D62: Elio
A63: =IF(P!C8="","",INDEX(A$81:A$91,B63)) -> 48.05897066 | B63: =IF(P!C8="","",MATCH(P!B8,$C$81:$C$91,0)) -> 9 | C63: Cesarina | D63: Gaetano
A64: =IF(P!C9="","",INDEX(A$81:A$91,B64)) -> 53.57646009 | B64: =IF(P!C9="","",MATCH(P!B9,$C$81:$C$91,0)) -> 2 | C64: Elena | D64: Stefano
A65: =IF(P!C10="","",INDEX(A$81:A$91,B65)) -> 48.19777445 | B65: =IF(P!C10="","",MATCH(P!B10,$C$81:$C$91,0)) -> 8 | C65: Isolde | D65: Cristina
A66: =IF(P!C11="","",INDEX(A$81:A$91,B66)) -> 45.55913573 | B66: =IF(P!C11="","",MATCH(P!B11,$C$81:$C$91,0)) -> 11 | C66: Lilli | D66: Gianni
A67: =IF(P!C12="","",INDEX(A$81:A$91,B67)) -> 52.09522764 | B67: =IF(P!C12="","",MATCH(P!B12,$C$81:$C$91,0)) -> 4 | C67: Manuela | D67: Roberto
A68: =IF(P!C13="","",INDEX(A$81:A$91,B68)) -> 46.27823373 | B68: =IF(P!C13="","",MATCH(P!B13,$C$81:$C$91,0)) -> 10 | C68: Olimpia | D68: Sauro
A69: =IF(P!C14="","",INDEX(A$81:A$91,B69)) -> 51.62700818 | B69: =IF(P!C14="","",MATCH(P!B14,$C$81:$C$91,0)) -> 5 | C69: Renata | D69: Sandro
A70: =IF(P!C15="","",INDEX(A$81:A$91,B70)) -> 58.24090775 | B70: =IF(P!C15="","",MATCH(P!B15,$C$81:$C$91,0)) -> 1 | C70: Stefania | D70: Massimo
A71: =IF(P!C16="","",INDEX(A$81:A$91,B71)) -> 49.06505532 | B71: =IF(P!C16="","",MATCH(P!B16,$C$81:$C$91,0)) -> 7 | C71: Tatiana | D71: Julio
A76: =A1 -> BridgeMania 2017-18 " Vai col tango !!! " | E76: 1 | F76: 2 | G76: 3 | H76: 4 | I76: 5 | J76: 6 | K76: 7 | L76: 8 | M76: 9 | N76: 10 | O76: 11 | P76: 12 | Q76: 13 | R76: 14 | S76: 15 | T76: 16 | U76: 17 | V76: 18 | W76: 19 | X76: 20 | Y76: 21 | Z76: 22 | AA76: 23 | AB76: 24 | AC76: 25 | AD76: 26 | AE76: 27 | AF76: 28 | AG76: 29 | AH76: 30 | AI76: 31 | AJ76: 32 | AK76: 33 | AL76: 34 | AM76: 35 | AN76: 36 | AO76: 37 | AP76: 38 | AQ76: 39 | AR76: 40 | AS76: 41 | AT76: 42 | AU76: 43 | AV76: 44 | AW76: 45 | AX76: 46 | AY76: 47 | AZ76: 48 | BA76: 49 | BB76: 50
D77: data | E77: =IF(E2="","",E2) -> 2017-09-16 | F77: =IF(F2="","",F2) -> 2017-09-23 | G77: 2017-10-07 | H77: 2017-10-14 | I77: 2017-10-21 | J77: 2017-10-28 | K77: 2017-11-04 | L77: 2017-11-18 | M77: 2017-11-25 | N77: 2017-12-09 | O77: 2017-12-16 | P77: 2018-01-06 | Q77: 2018-01-20 | R77: 2018-01-27 | S77: 2018-02-17 | T77: 2018-02-24 | U77: 2018-03-17 | V77: 2018-03-24 | W77: 2018-04-14 | X77: 2018-04-21 | Y77: 2018-05-05 | Z77: 2018-05-19 | AA77: =IF(AA2="","",AA2) -> 2018-05-26 | AB77: 2018-06-09 | AC77: 2018-06-16 | AD77: 2018-06-30 | AE77: 2018-07-07 | AF77: 2018-07-14
B78: selez. cella | C78: ctrl+c | D78: luogo | E78: =IF(E3="","",E3) -> Pre | F78: =IF(F3="","",F3) -> DeS | G78: Pol | H78: Sim | I78: Sav | J78: Cat | K78: Tor | L78: Bia | M78: Mal | N78: Dej | O78: Ban | P78: DeS | Q78: Pre | R78: Pol | S78: Tor | T78: Cat | U78: Mal | V78: Bia | W78: Sav | X78: Montefalco | Y78: Sim | Z78: DeS | AA78: =IF(AA3="","",AA3) -> Pol | AB78: Ban | AC78: Pre | AD78: DeS | AE78: Tor | AF78: Bia
B79: (riga 81) | D79: coppie-mani | E79: =IF(E4="","",E4) -> 11-22 | F79: =IF(F4="","",F4) -> 12-22 | G79: 7-21 | H79: 11-22 | I79: 9-18 | J79: 8-21 | K79: 8-21 | L79: 10-18 | M79: 9-18 | N79: 11-22 | O79: 8-21 | P79: 8-21 | Q79: 11-22 | R79: 10-18 | S79: 8-21 | T79: 9-18 | U79: 8-21 | V79: 10-18 | W79: 11-22 | X79: 11-33 | Y79: 11-22 | Z79: 11-22 | AA79: =IF(AA4="","",AA4) -> 8-21 | AB79: 7-21 | AC79: 8-21 | AD79: 8-21 | AE79: 7-21 | AF79: 7-21
A80: Punteggio | B80: Class. | C80: Coppie base | E80: =IF(E5="","",E5) -> 550 | F80: 600 | G80: 350 | H80: 550 | I80: 450 | J80: 400 | K80: 400 | L80: 500 | M80: 450 | N80: 550 | O80: 393.6507937 | P80: 400 | Q80: 550 | R80: 497.2222222 | S80: 390.4761905 | T80: 450 | U80: 400 | V80: 500 | W80: 550 | X80: 550 | Y80: 550 | Z80: 550 | AA80: 400 | AB80: 350 | AC80: 400 | AD80: 400 | AE80: 347.6190476 | AF80: 350 | BF80: #coppia base | BG80: presenze
A81: =IF(SUM(E81:BB81)=0,0,AVERAGE(E81:BB81)) -> 58.24090775 | B81: 1 | C81: Stefania | D81: Massimo | E81: 56.25 | F81: 67.27272727 | H81: 67.04545455 | I81: 58.33333333 | J81: 67.46031746 | L81: 43.75 | M81: 57.40740741 | N81: 51.70454545 | O81: 55.55555556 | P81: 53.17460317 | Q81: 59.09090909 | U81: 56.34920635 | V81: 55.55555556 | W81: 53.97727273 | X81: 56.43939394 | Y81: 74.43181818 | Z81: 61.36363636 | AC81: 53.17460317 | BF81: 10 | BG81: =COUNT(E81:BB81) -> 18
A82: 53.57646009 | B82: 2 | C82: Elena | D82: Stefano | E82: 49.43181818 | F82: 56.36363636 | G82: 57.14285714 | H82: 51.13636364 | I82: 47.22222222 | K82: 62.6984127 | L82: 48.61111111 | M82: 47.22222222 | O82: 51.58730159 | Q82: 51.70454545 | R82: 55.55555556 | T82: 44.44444444 | V82: 56.25 | W82: 56.25 | X82: 47.72727273 | Y82: 57.38636364 | Z82: 53.40909091 | AD82: 61.9047619 | AF82: 61.9047619 | BF82: 4 | BG82: 19
A83: 52.28398268 | B83: 3 | C83: Barbara | D83: Elio | E83: 54.54545455 | F83: 51.36363636 | G83: 53.57142857 | H83: 40.34090909 | I83: 31.48148148 | J83: 61.9047619 | L83: 63.88888889 | M83: 62.03703704 | N83: 57.38636364 | O83: 40.47619048 | P83: 43.65079365 | Q83: 55.11363636 | R83: 50 | T83: 53.7037037 | V83: 54.86111111 | W83: 41.47727273 | X83: 56.81818182 | Y83: 48.86363636 | Z83: 56.25 | AA83: 47.61904762 | AB83: 53.57142857 | AC83: 61.11111111 | AD83: 51.58730159 | AE83: 57.14285714 | AF83: 58.33333333 | BF83: 2 | BG83: 25
A84: 52.09522764 | B84: 4 | C84: Manuela | D84: Roberto | E84: 59.65909091 | F84: 50 | H84: 48.29545455 | I84: 64.81481481 | J84: 56.34920635 | L84: 61.11111111 | M84: 54.62962963 | N84: 52.84090909 | P84: 43.65079365 | Q84: 51.70454545 | R84: 45.13888889 | S84: 46.03174603 | T84: 46.2962963 | V84: 74.30555556 | W84: 49.43181818 | Y84: 51.70454545 | Z84: 46.59090909 | AA84: 47.61904762 | AB84: 55.95238095 | AC84: 53.17460317 | AD84: 41.26984127 | AE84: 40.47619048 | AF84: 57.14285714 | BF84: 7 | BG84: 23
A85: 51.62700818 | B85: 5 | C85: Renata | D85: Sandro | E85: 41.47727273 | F85: 48.18181818 | G85: 48.80952381 | H85: 55.68181818 | I85: 62.96296296 | K85: 58.73015873 | L85: 41.66666667 | M85: 61.11111111 | N85: 55.11363636 | O85: 53.17460317 | P85: 65.87301587 | Q85: 48.86363636 | R85: 65.97222222 | S85: 56.34920635 | T85: 43.51851852 | U85: 48.41269841 | V85: 48.61111111 | W85: 49.43181818 | Y85: 43.18181818 | Z85: 56.25 | AA85: 47.61904762 | AB85: 53.57142857 | AC85: 46.82539683 | AE85: 42.85714286 | AF85: 46.42857143 | BF85: 9 | BG85: 25
A86: 49.49918052 | B86: 6 | C86: Antonella | D86: Dino | E86: 51.70454545 | F86: 34.09090909 | G86: 57.14285714 | H86: 50 | I86: 62.03703704 | J86: 48.41269841 | K86: 42.06349206 | L86: 49.30555556 | N86: 47.15909091 | O86: 48.41269841 | P86: 53.17460317 | Q86: 51.70454545 | R86: 39.58333333 | S86: 50 | T86: 47.22222222 | U86: 41.26984127 | V86: 35.41666667 | W86: 48.29545455 | X86: 54.54545455 | Y86: 51.13636364 | Z86: 46.02272727 | AA86: 50.79365079 | AB86: 52.38095238 | AC86: 50.79365079 | AD86: 57.14285714 | AE86: 67.85714286 | AF86: 48.80952381 | BF86: 1 | BG86: 27
A87: 49.06505532 | B87: 7 | C87: Tatiana | D87: Julio | E87: 40.90909091 | F87: 38.63636364 | H87: 53.97727273 | I87: 48.14814815 | J87: 36.50793651 | K87: 43.65079365 | L87: 47.91666667 | M87: 44.44444444 | N87: 63.63636364 | O87: 53.96825397 | P87: 43.65079365 | Q87: 46.59090909 | R87: 52.08333333 | S87: 43.65079365 | T87: 58.33333333 | U87: 45.23809524 | V87: 53.47222222 | W87: 56.25 | X87: 44.31818182 | Y87: 52.27272727 | Z87: 43.75 | AA87: 55.55555556 | AC87: 55.55555556 | AD87: 62.6984127 | AE87: 45.23809524 | AF87: 45.23809524 | BF87: 11 | BG87: 26
A88: 48.19777445 | B88: 8 | C88: Isolde | D88: Cristina | E88: 46.59090909 | F88: 60.45454545 | G88: 48.80952381 | H88: 41.47727273 | J88: 43.65079365 | K88: 63.49206349 | N88: 40.90909091 | O88: 47.61904762 | Q88: 40.90909091 | R88: 40.27777778 | S88: 46.03174603 | U88: 57.14285714 | AA88: 49.20634921 | BF88: 5 | BG88: 13
A89: 48.05897066 | B89: 9 | C89: Cesarina | D89: Gaetano | E89: 41.47727273 | F89: 55.45454545 | G89: 45.23809524 | H89: 47.15909091 | J89: 44.44444444 | K89: 46.03174603 | L89: 46.52777778 | M89: 41.66666667 | N89: 51.70454545 | P89: 53.17460317 | Q89: 52.84090909 | R89: 47.22222222 | S89: 42.06349206 | T89: 56.48148148 | U89: 42.85714286 | V89: 47.22222222 | W89: 56.81818182 | X89: 56.06060606 | Y89: 44.31818182 | Z89: 50.56818182 | AA89: 53.96825397 | AB89: 48.80952381 | AD89: 38.88888889 | AE89: 58.33333333 | AF89: 32.14285714 | BF89: 3 | BG89: 25
A90: 46.27823373 | B90: 10 | C90: Olimpia | D90: Sauro | E90: 50 | F90: 45 | H90: 47.15909091 | I90: 41.66666667 | J90: 41.26984127 | K90: 38.0952381 | L90: 48.61111111 | M90: 35.18518519 | N90: 51.70454545 | P90: 43.65079365 | Q90: 44.31818182 | R90: 38.88888889 | S90: 66.66666667 | T90: 47.22222222 | U90: 65.07936508 | V90: 29.86111111 | W90: 56.25 | X90: 47.72727273 | Y90: 39.77272727 | Z90: 53.97727273 | AA90: 47.61904762 | AC90: 42.85714286 | AD90: 52.38095238 | AE90: 35.71428571 | BF90: 8 | BG90: 24
A91: 45.55913573 | B91: 11 | C91: Lilli | D91: Gianni | E91: 57.95454545 | F91: 55.45454545 | G91: 39.28571429 | H91: 47.72727273 | I91: 33.33333333 | K91: 45.23809524 | L91: 48.61111111 | M91: 46.2962963 | N91: 44.31818182 | O91: 42.85714286 | Q91: 47.15909091 | R91: 62.5 | S91: 39.68253968 | T91: 52.77777778 | U91: 43.65079365 | V91: 44.44444444 | W91: 42.04545455 | X91: 44.6969697 | Y91: 47.72727273 | Z91: 44.31818182 | AB91: 35.71428571 | AC91: 36.50793651 | BF91: 6 | BG91: 22
BF92: 12
BF93: 13
BF94: 14
BF95: 15
BF96: 16
BF97: 17
BF98: 18
BF99: 19
BF100: 20
BF101: 21
BF102: 22
BF103: 23
BF104: 24
BF105: 25
BF106: 26
BF107: 27
BF108: 28
BF109: 29
BF110: 30
BF111: 31
BF112: 32
BF113: 33
BF114: 34
BF115: 35
BF116: 36
BF117: 37
BF118: 38
BF119: 39
BF120: 40
BF121: 41
BF122: 42
BF123: 43
BF124: 44
BF125: 45
BF126: 46
BF127: 47
BF128: 48
BF129: 49
BF130: 50

Sheet CSTD
A1: Data | D1: BridgeMania 2017-18 - Torneo Howell
A2: luogo | D2: Coppie Ctrl+e | E2: Calcola Ctr+f | F2: Duplica Ctrl+g | G2: Clear Ctrl+h
A3: # coppie | C3: =IF(B5="","",COUNT(B5:B25)) ->  | E3: =IF(E5="","",SUMIF(E5:E25,">0")) ->  | F3: =IF(F5="","",SUMIF(F5:F24,">0")) ->  | G3: =IF(G5="","",SUM(G5:G25)) ->  | H3: =IF(H5="","",SUM(H5:H25)) ->  | I3: =SUM(I5:I25) -> 0 | J3: =SUM(J5:J25) -> 0 | K3: =SUM(K5:K25) -> 0 | L3: =SUM(L5:L25) -> 0 | M3: 0 | N3: 0 | O3: 0 | P3: 0 | Q3: 0 | R3: 0 | S3: 0 | T3: 0 | U3: 0 | V3: 0 | W3: 0 | X3: 0 | Y3: 0 | Z3: 0 | AA3: 0 | AB3: 0 | AC3: 0 | AD3: 0 | AE3: 0 | AF3: 0 | AG3: 0 | AH3: 0 | AI3: 0 | AJ3: 0 | AK3: 0 | AL3: 0 | AM3: 0 | AN3: 0 | AO3: 0 | AP3: 0 | AQ3: 0 | AR3: 0 | AS3: 0 | AT3: 0 | AU3: 0 | AV3: 0 | AW3: 0 | AX3: 0
A4: Class. | B4: # | C4: Coppie | E4: Punteggio Serata | G4: Punteggio % | H4: Punteggio Torneo | I4: Penalità (-) | J4: Totale punti mano | K4: 1 | L4: 2 | M4: 3 | N4: 4 | O4: 5 | P4: 6 | Q4: 7 | R4: 8 | S4: 9 | T4: 10 | U4: 11 | V4: 12 | W4: 13 | X4: 14 | Y4: 15 | Z4: 16 | AA4: 17 | AB4: 18 | AC4: 19 | AD4: 20 | AE4: 21 | AF4: 22 | AG4: 23 | AH4: 24 | AI4: 25 | AJ4: 26 | AK4: 27 | AL4: 28 | AM4: 29 | AN4: 30 | AO4: 31 | AP4: 32 | AQ4: 33 | AR4: 34 | AS4: 35 | AT4: 36 | AU4: 37 | AV4: 38 | AW4: 39 | AX4: 40
A5: =IF(J$2="","",IF($E5="","",IF($E5=MAX($E$5:$E$54),1,IF($E5=$E4,$A4,COUNT($E$5:$E5))))) ->  | E5: =IF(J$2="","",IF(G5=0,0,F5+G5)) ->  | G5: =IF(J$2="","",IF($J5=0,0,(H5*$C$3/$J$3)*50)) ->  | H5: =IF(J$2="","",IF(SUM($K5:$AX5)=0,0,SUM($K5:$AX5)+$I5)) ->  | J5: =IF(B5="",0,IF(SUM($K5:$AX5)=0,0,SUM($K5:$AX5))) -> 0
A6: =IF(J$2="","",IF($E6="","",IF($E6=MAX($E$5:$E$54),1,IF($E6=$E5,$A5,COUNT($E$5:$E6))))) ->  | J6: 0
A7: =IF(J$2="","",IF($E7="","",IF($E7=MAX($E$5:$E$54),1,IF($E7=$E6,$A6,COUNT($E$5:$E7))))) ->  | J7: 0
A8: =IF(J$2="","",IF($E8="","",IF($E8=MAX($E$5:$E$54),1,IF($E8=$E7,$A7,COUNT($E$5:$E8))))) ->  | J8: 0
A9: =IF(J$2="","",IF($E9="","",IF($E9=MAX($E$5:$E$54),1,IF($E9=$E8,$A8,COUNT($E$5:$E9))))) ->  | J9: 0
A10: =IF(J$2="","",IF($E10="","",IF($E10=MAX($E$5:$E$54),1,IF($E10=$E9,$A9,COUNT($E$5:$E10))))) ->  | J10: 0
A11: =IF(J$2="","",IF($E11="","",IF($E11=MAX($E$5:$E$54),1,IF($E11=$E10,$A10,COUNT($E$5:$E11))))) ->  | J11: 0
A12: =IF(J$2="","",IF($E12="","",IF($E12=MAX($E$5:$E$54),1,IF($E12=$E11,$A11,COUNT($E$5:$E12))))) ->  | J12: 0
A13: =IF(J$2="","",IF($E13="","",IF($E13=MAX($E$5:$E$54),1,IF($E13=$E12,$A12,COUNT($E$5:$E13))))) ->  | J13: 0
A14: =IF(J$2="","",IF($E14="","",IF($E14=MAX($E$5:$E$54),1,IF($E14=$E13,$A13,COUNT($E$5:$E14))))) ->  | J14: 0
A15: =IF(J$2="","",IF($E15="","",IF($E15=MAX($E$5:$E$54),1,IF($E15=$E14,$A14,COUNT($E$5:$E15))))) ->  | J15: 0
A16: =IF(J$2="","",IF($E16="","",IF($E16=MAX($E$5:$E$54),1,IF($E16=$E15,$A15,COUNT($E$5:$E16))))) ->  | J16: 0
A17: =IF(J$2="","",IF($E17="","",IF($E17=MAX($E$5:$E$54),1,IF($E17=$E16,$A16,COUNT($E$5:$E17))))) ->  | J17: 0
A18: =IF(J$2="","",IF($E18="","",IF($E18=MAX($E$5:$E$54),1,IF($E18=$E17,$A17,COUNT($E$5:$E18))))) ->  | J18: 0
A19: =IF(J$2="","",IF($E19="","",IF($E19=MAX($E$5:$E$54),1,IF($E19=$E18,$A18,COUNT($E$5:$E19))))) ->  | J19: 0
A20: =IF(J$2="","",IF($E20="","",IF($E20=MAX($E$5:$E$54),1,IF($E20=$E19,$A19,COUNT($E$5:$E20))))) ->  | J20: 0
A21: =IF(J$2="","",IF($E21="","",IF($E21=MAX($E$5:$E$54),1,IF($E21=$E20,$A20,COUNT($E$5:$E21))))) ->  | J21: 0
A22: =IF(J$2="","",IF($E22="","",IF($E22=MAX($E$5:$E$54),1,IF($E22=$E21,$A21,COUNT($E$5:$E22))))) ->  | J22: 0
A23: =IF(J$2="","",IF($E23="","",IF($E23=MAX($E$5:$E$54),1,IF($E23=$E22,$A22,COUNT($E$5:$E23))))) ->  | J23: 0
A24: =IF(J$2="","",IF($E24="","",IF($E24=MAX($E$5:$E$54),1,IF($E24=$E23,$A23,COUNT($E$5:$E24))))) ->  | J24: 0
A25: =IF(J$2="","",IF($E25="","",IF($E25=MAX($E$5:$E$54),1,IF($E25=$E24,$A24,COUNT($E$5:$E25))))) ->  | J25: 0
A26: =IF(J$2="","",IF($E26="","",IF($E26=MAX($E$5:$E$54),1,IF($E26=$E25,$A25,COUNT($E$5:$E26))))) ->  | J26: 0
A27: =IF(J$2="","",IF($E27="","",IF($E27=MAX($E$5:$E$54),1,IF($E27=$E26,$A26,COUNT($E$5:$E27))))) ->  | J27: 0
A28: =IF(J$2="","",IF($E28="","",IF($E28=MAX($E$5:$E$54),1,IF($E28=$E27,$A27,COUNT($E$5:$E28))))) ->  | J28: 0
A29: =IF(J$2="","",IF($E29="","",IF($E29=MAX($E$5:$E$54),1,IF($E29=$E28,$A28,COUNT($E$5:$E29))))) ->  | J29: 0
A30: =IF(J$2="","",IF($E30="","",IF($E30=MAX($E$5:$E$54),1,IF($E30=$E29,$A29,COUNT($E$5:$E30))))) ->  | J30: 0
A31: =IF(J$2="","",IF($E31="","",IF($E31=MAX($E$5:$E$54),1,IF($E31=$E30,$A30,COUNT($E$5:$E31))))) ->  | J31: 0
A32: =IF(J$2="","",IF($E32="","",IF($E32=MAX($E$5:$E$54),1,IF($E32=$E31,$A31,COUNT($E$5:$E32))))) ->  | J32: 0
A33: =IF(J$2="","",IF($E33="","",IF($E33=MAX($E$5:$E$54),1,IF($E33=$E32,$A32,COUNT($E$5:$E33))))) ->  | J33: 0
A34: =IF(J$2="","",IF($E34="","",IF($E34=MAX($E$5:$E$54),1,IF($E34=$E33,$A33,COUNT($E$5:$E34))))) ->  | J34: 0
A35: =IF(J$2="","",IF($E35="","",IF($E35=MAX($E$5:$E$54),1,IF($E35=$E34,$A34,COUNT($E$5:$E35))))) ->  | J35: 0
A36: =IF(J$2="","",IF($E36="","",IF($E36=MAX($E$5:$E$54),1,IF($E36=$E35,$A35,COUNT($E$5:$E36))))) ->  | J36: 0
A37: =IF(J$2="","",IF($E37="","",IF($E37=MAX($E$5:$E$54),1,IF($E37=$E36,$A36,COUNT($E$5:$E37))))) ->  | E37: =IF(J$2="","",IF(G37=0,0,F37+G37)) ->  | G37: =IF(J$2="","",IF($J37=0,0,(H37*$C$3/$J$3)*50)) ->  | H37: =IF(J$2="","",IF(SUM($K37:$AX37)=0,0,SUM($K37:$AX37)+$I37)) ->  | J37: =IF(B37="",0,IF(SUM($K37:$AX37)=0,0,SUM($K37:$AX37))) -> 0
A38: =IF(J$2="","",IF($E38="","",IF($E38=MAX($E$5:$E$54),1,IF($E38=$E37,$A37,COUNT($E$5:$E38))))) ->  | J38: 0
A39: =IF(J$2="","",IF($E39="","",IF($E39=MAX($E$5:$E$54),1,IF($E39=$E38,$A38,COUNT($E$5:$E39))))) ->  | J39: 0
A40: =IF(J$2="","",IF($E40="","",IF($E40=MAX($E$5:$E$54),1,IF($E40=$E39,$A39,COUNT($E$5:$E40))))) ->  | J40: 0
A41: =IF(J$2="","",IF($E41="","",IF($E41=MAX($E$5:$E$54),1,IF($E41=$E40,$A40,COUNT($E$5:$E41))))) ->  | J41: 0
A42: =IF(J$2="","",IF($E42="","",IF($E42=MAX($E$5:$E$54),1,IF($E42=$E41,$A41,COUNT($E$5:$E42))))) ->  | J42: 0
A43: =IF(J$2="","",IF($E43="","",IF($E43=MAX($E$5:$E$54),1,IF($E43=$E42,$A42,COUNT($E$5:$E43))))) ->  | J43: 0
A44: =IF(J$2="","",IF($E44="","",IF($E44=MAX($E$5:$E$54),1,IF($E44=$E43,$A43,COUNT($E$5:$E44))))) ->  | J44: 0
A45: =IF(J$2="","",IF($E45="","",IF($E45=MAX($E$5:$E$54),1,IF($E45=$E44,$A44,COUNT($E$5:$E45))))) ->  | J45: 0
A46: =IF(J$2="","",IF($E46="","",IF($E46=MAX($E$5:$E$54),1,IF($E46=$E45,$A45,COUNT($E$5:$E46))))) ->  | J46: 0
A47: =IF(J$2="","",IF($E47="","",IF($E47=MAX($E$5:$E$54),1,IF($E47=$E46,$A46,COUNT($E$5:$E47))))) ->  | J47: 0
A48: =IF(J$2="","",IF($E48="","",IF($E48=MAX($E$5:$E$54),1,IF($E48=$E47,$A47,COUNT($E$5:$E48))))) ->  | J48: 0
A49: =IF(J$2="","",IF($E49="","",IF($E49=MAX($E$5:$E$54),1,IF($E49=$E48,$A48,COUNT($E$5:$E49))))) ->  | J49: 0
A50: =IF(J$2="","",IF($E50="","",IF($E50=MAX($E$5:$E$54),1,IF($E50=$E49,$A49,COUNT($E$5:$E50))))) ->  | J50: 0
A51: =IF(J$2="","",IF($E51="","",IF($E51=MAX($E$5:$E$54),1,IF($E51=$E50,$A50,COUNT($E$5:$E51))))) ->  | J51: 0
A52: =IF(J$2="","",IF($E52="","",IF($E52=MAX($E$5:$E$54),1,IF($E52=$E51,$A51,COUNT($E$5:$E52))))) ->  | J52: 0
A53: =IF(J$2="","",IF($E53="","",IF($E53=MAX($E$5:$E$54),1,IF($E53=$E52,$A52,COUNT($E$5:$E53))))) ->  | J53: 0
A54: =IF(J$2="","",IF($E54="","",IF($E54=MAX($E$5:$E$54),1,IF($E54=$E53,$A53,COUNT($E$5:$E54))))) ->  | J54: 0
D59: punteggi torneo ordinati per # di coppia
B60: # coppia | E60: con zeri | F60: senza zeri | G60: senza zeri
F61: =IF(E61=0,"",E61) ->  | I61: =IF(H61=0,"",H61) -> 
I63: =IF(H63=0,"",H63) -> 
I64: =IF(H64=0,"",H64) -> 
I65: =IF(H65=0,"",H65) -> 
I67: =IF(H67=0,"",H67) -> 
I73: =IF(H73=0,"",H73) -> 
I74: =IF(H74=0,"",H74) -> 
I75: =IF(H75=0,"",H75) -> 
I76: =IF(H76=0,"",H76) -> 
I79: =IF(H79=0,"",H79) -> 
I80: =IF(H80=0,"",H80) -> 
F93: =IF(E93=0,"",E93) -> 
A119: punteggi torneo ordinati per numero standard di coppia base
B120: # coppia | E120: con zeri | F120: senza zeri | G120: senza zeri
B121: 4 | E121: 48.80952381 | F121: =IF(E121=0,"",E121) -> 48.80952381 | G121: 48.80952381 | I121: =IF(H121=0,"",H121) ->  | BF121: 1
B122: 2 | E122: 58.33333333 | F122: 58.33333333 | G122: 58.33333333 | BF122: 2
B123: 3 | E123: 32.14285714 | F123: 32.14285714 | G123: 32.14285714 | I123: =IF(H123=0,"",H123) ->  | BF123: 3
B124: 1 | E124: 61.9047619 | F124: 61.9047619 | G124: 61.9047619 | I124: =IF(H124=0,"",H124) ->  | BF124: 4
E125: 0 | BF125: 5
E126: 0 | BF126: 6
B127: 6 | E127: 57.14285714 | F127: 57.14285714 | G127: 57.14285714 | BF127: 7
E128: 0 | BF128: 8
B129: 7 | E129: 46.42857143 | F129: 46.42857143 | G129: 46.42857143 | I129: =IF(H129=0,"",H129) ->  | BF129: 9
E130: 0 | BF130: 10
B131: 5 | E131: 45.23809524 | F131: 45.23809524 | G131: 45.23809524 | I131: =IF(H131=0,"",H131) ->  | BF131: 11

Sheet P
A1: BridgeMania 2017-18 " Vai col tango !!! " | D1: =IF(RIS!E1="","",RIS!E1) -> 1 | E1: =IF(RIS!F1="","",RIS!F1) -> 2 | F1: =IF(RIS!G1="","",RIS!G1) -> 3 | G1: =IF(RIS!H1="","",RIS!H1) -> 4 | H1: =IF(RIS!I1="","",RIS!I1) -> 5 | I1: =IF(RIS!J1="","",RIS!J1) -> 6 | J1: =IF(RIS!K1="","",RIS!K1) -> 7 | K1: =IF(RIS!L1="","",RIS!L1) -> 8 | L1: =IF(RIS!M1="","",RIS!M1) -> 9 | M1: =IF(RIS!N1="","",RIS!N1) -> 10 | N1: =IF(RIS!O1="","",RIS!O1) -> 11 | O1: =IF(RIS!P1="","",RIS!P1) -> 12 | P1: =IF(RIS!Q1="","",RIS!Q1) -> 13 | Q1: =IF(RIS!R1="","",RIS!R1) -> 14 | R1: =IF(RIS!S1="","",RIS!S1) -> 15 | S1: =IF(RIS!T1="","",RIS!T1) -> 16 | T1: =IF(RIS!U1="","",RIS!U1) -> 17 | U1: =IF(RIS!V1="","",RIS!V1) -> 18 | V1: =IF(RIS!W1="","",RIS!W1) -> 19 | W1: =IF(RIS!X1="","",RIS!X1) -> 20 | X1: =IF(RIS!Y1="","",RIS!Y1) -> 21 | Y1: =IF(RIS!Z1="","",RIS!Z1) -> 22 | Z1: =IF(RIS!AA1="","",RIS!AA1) -> 23 | AA1: =IF(RIS!AB1="","",RIS!AB1) -> 24 | AB1: =IF(RIS!AC1="","",RIS!AC1) -> 25 | AC1: =IF(RIS!AD1="","",RIS!AD1) -> 26 | AD1: =IF(RIS!AE1="","",RIS!AE1) -> 27 | AE1: =IF(RIS!AF1="","",RIS!AF1) -> 28 | AF1: =IF(RIS!AG1="","",RIS!AG1) -> 29 | AG1: =IF(RIS!AH1="","",RIS!AH1) -> 30 | AH1: =IF(RIS!AI1="","",RIS!AI1) -> 31 | AI1: =IF(RIS!AJ1="","",RIS!AJ1) -> 32 | AJ1: =IF(RIS!AK1="","",RIS!AK1) -> 33 | AK1: =IF(RIS!AL1="","",RIS!AL1) -> 34 | AL1: =IF(RIS!AM1="","",RIS!AM1) -> 35 | AM1: =IF(RIS!AN1="","",RIS!AN1) -> 36 | AN1: =IF(RIS!AO1="","",RIS!AO1) -> 37 | AO1: =IF(RIS!AP1="","",RIS!AP1) -> 38 | AP1: =IF(RIS!AQ1="","",RIS!AQ1) -> 39 | AQ1: =IF(RIS!AR1="","",RIS!AR1) -> 40 | AR1: =IF(RIS!AS1="","",RIS!AS1) -> 41 | AS1: =IF(RIS!AT1="","",RIS!AT1) -> 42 | AT1: =IF(RIS!AU1="","",RIS!AU1) -> 43 | AU1: =IF(RIS!AV1="","",RIS!AV1) -> 44 | AV1: =IF(RIS!AW1="","",RIS!AW1) -> 45 | AW1: =IF(RIS!AX1="","",RIS!AX1) -> 46 | AX1: =IF(RIS!AY1="","",RIS!AY1) -> 47 | AY1: =IF(RIS!AZ1="","",RIS!AZ1) -> 48 | AZ1: =IF(RIS!BA1="","",RIS!BA1) -> 49 | BA1: =IF(RIS!BB1="","",RIS!BB1) -> 50
A2: Andamento Punteggi Campionato | C2: data | D2: =IF(RIS!E2="","",RIS!E2) -> 2017-09-16 | E2: =IF(RIS!F2="","",RIS!F2) -> 2017-09-23 | F2: =IF(RIS!G2="","",RIS!G2) -> 2017-10-07 | G2: =IF(RIS!H2="","",RIS!H2) -> 2017-10-14 | H2: =IF(RIS!I2="","",RIS!I2) -> 2017-10-21 | I2: =IF(RIS!J2="","",RIS!J2) -> 2017-10-28 | J2: =IF(RIS!K2="","",RIS!K2) -> 2017-11-04 | K2: =IF(RIS!L2="","",RIS!L2) -> 2017-11-18 | L2: =IF(RIS!M2="","",RIS!M2) -> 2017-11-25 | M2: =IF(RIS!N2="","",RIS!N2) -> 2017-12-09 | N2: =IF(RIS!O2="","",RIS!O2) -> 2017-12-16 | O2: =IF(RIS!P2="","",RIS!P2) -> 2018-01-06 | P2: =IF(RIS!Q2="","",RIS!Q2) -> 2018-01-20 | Q2: =IF(RIS!R2="","",RIS!R2) -> 2018-01-27 | R2: =IF(RIS!S2="","",RIS!S2) -> 2018-02-17 | S2: =IF(RIS!T2="","",RIS!T2) -> 2018-02-24 | T2: =IF(RIS!U2="","",RIS!U2) -> 2018-03-17 | U2: =IF(RIS!V2="","",RIS!V2) -> 2018-03-24 | V2: =IF(RIS!W2="","",RIS!W2) -> 2018-04-14 | W2: =IF(RIS!X2="","",RIS!X2) -> 2018-04-21 | X2: =IF(RIS!Y2="","",RIS!Y2) -> 2018-05-05 | Y2: =IF(RIS!Z2="","",RIS!Z2) -> 2018-05-19 | Z2: =IF(RIS!AA2="","",RIS!AA2) -> 2018-05-26 | AA2: =IF(RIS!AB2="","",RIS!AB2) -> 2018-06-09 | AB2: =IF(RIS!AC2="","",RIS!AC2) -> 2018-06-16 | AC2: =IF(RIS!AD2="","",RIS!AD2) -> 2018-06-30 | AD2: =IF(RIS!AE2="","",RIS!AE2) -> 2018-07-07 | AE2: =IF(RIS!AF2="","",RIS!AF2) -> 2018-07-14 | AF2: =IF(RIS!AG2="","",RIS!AG2) ->  | AG2: =IF(RIS!AH2="","",RIS!AH2) ->  | AH2: =IF(RIS!AI2="","",RIS!AI2) ->  | AI2: =IF(RIS!AJ2="","",RIS!AJ2) ->  | AJ2: =IF(RIS!AK2="","",RIS!AK2) -> 
C3: luogo | D3: =IF(RIS!E3="","",RIS!E3) -> Pre | E3: =IF(RIS!F3="","",RIS!F3) -> DeS | F3: =IF(RIS!G3="","",RIS!G3) -> Pol | G3: =IF(RIS!H3="","",RIS!H3) -> Sim | H3: =IF(RIS!I3="","",RIS!I3) -> Sav | I3: =IF(RIS!J3="","",RIS!J3) -> Cat | J3: =IF(RIS!K3="","",RIS!K3) -> Tor | K3: =IF(RIS!L3="","",RIS!L3) -> Bia | L3: =IF(RIS!M3="","",RIS!M3) -> Mal | M3: =IF(RIS!N3="","",RIS!N3) -> Dej | N3: =IF(RIS!O3="","",RIS!O3) -> Ban | O3: =IF(RIS!P3="","",RIS!P3) -> DeS | P3: =IF(RIS!Q3="","",RIS!Q3) -> Pre | Q3: =IF(RIS!R3="","",RIS!R3) -> Pol | R3: =IF(RIS!S3="","",RIS!S3) -> Tor | S3: =IF(RIS!T3="","",RIS!T3) -> Cat | T3: =IF(RIS!U3="","",RIS!U3) -> Mal | U3: =IF(RIS!V3="","",RIS!V3) -> Bia | V3: =IF(RIS!W3="","",RIS!W3) -> Sav | W3: =IF(RIS!X3="","",RIS!X3) -> Montefalco | X3: =IF(RIS!Y3="","",RIS!Y3) -> Sim | Y3: =IF(RIS!Z3="","",RIS!Z3) -> DeS | Z3: =IF(RIS!AA3="","",RIS!AA3) -> Pol | AA3: =IF(RIS!AB3="","",RIS!AB3) -> Ban | AB3: =IF(RIS!AC3="","",RIS!AC3) -> Pre | AC3: =IF(RIS!AD3="","",RIS!AD3) -> DeS | AD3: =IF(RIS!AE3="","",RIS!AE3) -> Tor | AE3: =IF(RIS!AF3="","",RIS!AF3) -> Bia | AF3: =IF(RIS!AG3="","",RIS!AG3) ->  | AG3: =IF(RIS!AH3="","",RIS!AH3) ->  | AH3: =IF(RIS!AI3="","",RIS!AI3) ->  | AI3: =IF(RIS!AJ3="","",RIS!AJ3) ->  | AJ3: =IF(RIS!AK3="","",RIS!AK3) -> 
A4: ctrl+u | C4: # coppie - mani | D4: =IF(RIS!E4="","",RIS!E4) -> 11-22 | E4: =IF(RIS!F4="","",RIS!F4) -> 12-22 | F4: =IF(RIS!G4="","",RIS!G4) -> 7-21 | G4: =IF(RIS!H4="","",RIS!H4) -> 11-22 | H4: =IF(RIS!I4="","",RIS!I4) -> 9-18 | I4: =IF(RIS!J4="","",RIS!J4) -> 8-21 | J4: =IF(RIS!K4="","",RIS!K4) -> 8-21 | K4: =IF(RIS!L4="","",RIS!L4) -> 10-18 | L4: =IF(RIS!M4="","",RIS!M4) -> 9-18 | M4: =IF(RIS!N4="","",RIS!N4) -> 11-22 | N4: =IF(RIS!O4="","",RIS!O4) -> 8-21 | O4: =IF(RIS!P4="","",RIS!P4) -> 8-21 | P4: =IF(RIS!Q4="","",RIS!Q4) -> 11-22 | Q4: =IF(RIS!R4="","",RIS!R4) -> 10-18 | R4: =IF(RIS!S4="","",RIS!S4) -> 8-21 | S4: =IF(RIS!T4="","",RIS!T4) -> 9-18 | T4: =IF(RIS!U4="","",RIS!U4) -> 8-21 | U4: =IF(RIS!V4="","",RIS!V4) -> 10-18 | V4: =IF(RIS!W4="","",RIS!W4) -> 11-22 | W4: =IF(RIS!X4="","",RIS!X4) -> 11-33 | X4: =IF(RIS!Y4="","",RIS!Y4) -> 11-22 | Y4: =IF(RIS!Z4="","",RIS!Z4) -> 11-22 | Z4: =IF(RIS!AA4="","",RIS!AA4) -> 8-21 | AA4: =IF(RIS!AB4="","",RIS!AB4) -> 7-21 | AB4: =IF(RIS!AC4="","",RIS!AC4) -> 8-21 | AC4: =IF(RIS!AD4="","",RIS!AD4) -> 8-21 | AD4: =IF(RIS!AE4="","",RIS!AE4) -> 7-21 | AE4: =IF(RIS!AF4="","",RIS!AF4) -> 7-21 | AF4: =IF(RIS!AG4="","",RIS!AG4) ->  | AG4: =IF(RIS!AH4="","",RIS!AH4) ->  | AH4: =IF(RIS!AI4="","",RIS!AI4) ->  | AI4: =IF(RIS!AJ4="","",RIS!AJ4) ->  | AJ4: =IF(RIS!AK4="","",RIS!AK4) -> 
B5: Coppie base | D5: andamenti dei punteggi campionato
A6: 1 | B6: Antonella | C6: Dino | D6: 51.70454545 | E6: 42.89772727 | F6: 47.6461039 | G6: 48.23457792 | H6: 50.99506975 | I6: 50.56467452 | J6: 49.35021989 | K6: 49.34463684 | L6: 49.34463684 | M6: 49.10179841 | N6: 49.03288841 | O6: 49.40940793 | P6: 49.60066939 | Q6: 48.83010508 | R6: 48.913669 | S6: 48.80090588 | T6: 48.33021435 | U6: 47.57059389 | V6: 47.61086393 | W6: 47.97584238 | X6: 48.13386845 | Y6: 48.03333791 | Z6: 48.15880668 | AA6: 48.34237823 | AB6: 48.44451459 | AC6: 48.79244829 | AD6: 49.52570578 | AE6: 49.49918052
A7: 2 | B7: Barbara | C7: Elio | D7: 54.54545455 | E7: 52.95454545 | F7: 53.16017316 | G7: 49.95535714 | H7: 46.26058201 | I7: 48.86794533 | J7: 48.86794533 | K7: 51.01379441 | L7: 52.39169974 | M7: 52.94666239 | N7: 51.6996152 | O7: 50.96790415 | P7: 51.31338183 | Q7: 51.21235246 | R7: 51.21235246 | S7: 51.39030612 | T7: 51.39030612 | U7: 51.62169312 | V7: 50.98766685 | W7: 51.33063832 | X7: 51.19358265 | Y7: 51.45970988 | Z7: 51.26767677 | AA7: 51.37737923 | AB7: 51.81982159 | AC7: 51.80971203 | AD7: 52.03192641 | AE7: 52.28398268
A8: 3 | B8: Cesarina | C8: Gaetano | D8: 41.47727273 | E8: 48.46590909 | F8: 47.38997114 | G8: 47.33225108 | H8: 47.33225108 | I8: 46.75468975 | J8: 46.63419913 | K8: 46.61899608 | L8: 45.99995491 | M8: 46.6337983 | N8: 46.6337983 | O8: 47.28787879 | P8: 47.79269972 | Q8: 47.74515993 | R8: 47.30810856 | S8: 47.96334948 | T8: 47.62293571 | U8: 47.59789111 | V8: 48.14026115 | W8: 48.58028032 | X8: 48.35595934 | Y8: 48.46657047 | Z8: 48.7285554 | AA8: 48.73223578 | AB8: 48.73223578 | AC8: 48.30426417 | AD8: 48.72214206 | AE8: 48.05897066
A9: 4 | B9: Elena | C9: Stefano | D9: 49.43181818 | E9: 52.89772727 | F9: 54.31277056 | G9: 53.51866883 | H9: 52.25937951 | I9: 52.25937951 | J9: 53.99921837 | K9: 53.22948877 | L9: 52.47858045 | M9: 52.47858045 | N9: 52.37954946 | O9: 52.37954946 | P9: 52.31204906 | Q9: 52.60691329 | R9: 52.60691329 | S9: 51.92670755 | T9: 51.92670755 | U9: 52.25926851 | V9: 52.54432076 | W9: 52.22318422 | X9: 52.54588294 | Y9: 52.59665988 | Z9: 52.59665988 | AA9: 52.59665988 | AB9: 52.59665988 | AC9: 53.11377666 | AD9: 53.11377666 | AE9: 53.57646009
A10: 5 | B10: Isolde | C10: Cristina | D10: 46.59090909 | E10: 53.52272727 | F10: 51.95165945 | G10: 49.33306277 | H10: 49.33306277 | I10: 48.19660895 | J10: 50.74585137 | K10: 50.74585137 | L10: 50.74585137 | M10: 49.34059988 | N10: 49.12540584 | O10: 49.12540584 | P10: 48.21248196 | Q10: 47.41901154 | R10: 47.2928965 | S10: 47.2928965 | T10: 48.11372655 | U10: 48.11372655 | V10: 48.11372655 | W10: 48.11372655 | X10: 48.11372655 | Y10: 48.11372655 | Z10: 48.19777445 | AA10: 48.19777445 | AB10: 48.19777445 | AC10: 48.19777445 | AD10: 48.19777445 | AE10: 48.19777445
A11: 6 | B11: Lilli | C11: Gianni | D11: 57.95454545 | E11: 56.70454545 | F11: 50.8982684 | G11: 50.10551948 | H11: 46.75108225 | I11: 46.75108225 | J11: 46.49891775 | K11: 46.80065966 | L11: 46.73761424 | M11: 46.46878841 | N11: 46.10762386 | O11: 46.10762386 | P11: 46.20321177 | Q11: 47.56127746 | R11: 46.95522071 | S11: 47.37111764 | T11: 47.12309604 | U11: 46.95568032 | V11: 46.66684351 | W11: 46.55740607 | X11: 46.618978 | Y11: 46.50393819 | Z11: 46.50393819 | AA11: 45.99014522 | AB11: 45.55913573 | AC11: 45.55913573 | AD11: 45.55913573 | AE11: 45.55913573
A12: 7 | B12: Manuela | C12: Roberto | D12: 59.65909091 | E12: 54.82954545 | F12: 54.82954545 | G12: 52.65151515 | H12: 55.69234007 | I12: 55.82371332 | J12: 55.82371332 | K12: 56.70494629 | L12: 56.40847248 | M12: 55.96252706 | N12: 55.96252706 | O12: 54.59455668 | P12: 54.30555556 | Q12: 53.47222222 | R12: 52.85218254 | S12: 52.3478836 | T12: 52.3478836 | U12: 53.91628874 | V12: 53.61732403 | W12: 53.61732403 | X12: 53.49777537 | Y12: 53.09148912 | Z12: 52.78746459 | AA12: 52.95403914 | AB12: 52.96506734 | AC12: 52.40815181 | AD12: 51.86578993 | AE12: 52.09522764
A13: 8 | B13: Olimpia | C13: Sauro | D13: 50 | E13: 47.5 | F13: 47.5 | G13: 47.38636364 | H13: 45.95643939 | I13: 45.01911977 | J13: 43.86513949 | K13: 44.54313544 | L13: 43.37339165 | M13: 44.29907541 | N13: 44.29907541 | O13: 44.23424723 | P13: 44.24187765 | Q13: 43.79579525 | R13: 45.55509306 | S13: 45.67417371 | T13: 46.96785313 | U13: 45.89868176 | V13: 46.50758283 | W13: 46.57534338 | X13: 46.21731095 | Y13: 46.60530904 | Z13: 46.65358231 | AA13: 46.65358231 | AB13: 46.48101688 | AC13: 46.73753581 | AD13: 46.27823373 | AE13: 46.27823373
A14: 9 | B14: Renata | C14: Sandro | D14: 41.47727273 | E14: 44.82954545 | F14: 46.15620491 | G14: 48.53760823 | H14: 51.42267917 | I14: 51.42267917 | J14: 52.64059243 | K14: 51.07288875 | L14: 52.32766655 | M14: 52.63721875 | N14: 52.69095719 | O14: 53.88932616 | P14: 53.47051868 | Q14: 54.43218818 | R14: 54.56911805 | S14: 53.83241142 | T14: 53.49367935 | U14: 53.20646946 | V14: 52.99676661 | W14: 52.99676661 | X14: 52.48019037 | Y14: 52.66868086 | Z14: 52.42822213 | AA14: 52.48018606 | AB14: 52.23432566 | AC14: 52.23432566 | AD14: 51.84360971 | AE14: 51.62700818
A15: 10 | B15: Stefania | C15: Massimo | D15: 56.25 | E15: 61.76136364 | F15: 61.76136364 | G15: 63.52272727 | H15: 62.22537879 | I15: 63.27236652 | J15: 63.27236652 | K15: 60.01863877 | L15: 59.64560572 | M15: 58.65297318 | N15: 58.30881567 | O15: 57.79539442 | P15: 57.91316848 | Q15: 57.91316848 | R15: 57.91316848 | S15: 57.91316848 | T15: 57.7828383 | U15: 57.61150886 | V15: 57.35192057 | W15: 57.29108546 | X15: 58.36238125 | Y15: 58.53892567 | Z15: 58.53892567 | AA15: 58.53892567 | AB15: 58.24090775 | AC15: 58.24090775 | AD15: 58.24090775 | AE15: 58.24090775
A16: 11 | B16: Tatiana | C16: Julio | D16: 40.90909091 | E16: 39.77272727 | F16: 39.77272727 | G16: 44.50757576 | H16: 45.41771886 | I16: 43.63576239 | J16: 43.6382676 | K16: 44.24946746 | L16: 44.27383959 | M16: 46.42523115 | N16: 47.17953343 | O16: 46.8587389 | P16: 46.83641975 | Q16: 47.24002849 | R16: 46.98365457 | S16: 47.74029982 | T16: 47.58391204 | U16: 47.93028322 | V16: 48.39248971 | W16: 48.17805245 | X16: 48.3827862 | Y16: 48.16217733 | Z16: 48.49823998 | AA16: 48.49823998 | AB16: 48.80507978 | AC16: 49.38396865 | AD16: 49.21813372 | AE16: 49.06505532
C17: variazioni dei punteggi campionato
A18: 1 | B18: Antonella | C18: Dino | E18: 42.89772727 | F18: =IF(F6="","",F6-E6) -> 4.748376623 | G18: 0.588474026 | H18: 2.760491823 | I18: -0.4303952221 | J18: -1.214454637 | K18: -0.005583041297 | L18: 0 | M18: -0.2428384373 | N18: -0.06890999947 | O18: 0.3765195242 | P18: 0.1912614602 | Q18: -0.7705643122 | R18: 0.08356392285 | S18: -0.1127631187 | T18: -0.4706915384 | U18: -0.7596204517 | V18: 0.04027003619 | W18: 0.3649784534 | X18: 0.1580260626 | Y18: -0.1005305321 | Z18: 0.1254687672 | AA18: 0.1835715521 | AB18: 0.1021363567 | AC18: 0.3479337021 | AD18: 0.7332574833 | AE18: -0.02652525801 | BB18: =IF(BB7="","",BB7-BA7) -> 
A19: 2 | B19: Barbara | C19: Elio | E19: 52.95454545 | F19: =IF(F7="","",F7-E7) -> 0.2056277056 | G19: -3.204816017 | H19: -3.694775132 | I19: 2.607363316 | J19: 0 | K19: 2.14584908 | L19: 1.377905329 | M19: 0.5549626557 | N19: -1.247047191 | O19: -0.7317110499 | P19: 0.3454776845 | Q19: -0.1010293719 | R19: 0 | S19: 0.1779536601 | T19: 0 | U19: 0.2313869992 | V19: -0.6340262747 | W19: 0.3429714689 | X19: -0.137055664 | Y19: 0.2661272288 | Z19: -0.1920331131 | AA19: 0.1097024668 | AB19: 0.442442358 | AC19: -0.01010956545 | AD19: 0.2222143798 | AE19: 0.2520562771
A20: 3 | B20: Cesarina | C20: Gaetano | E20: 48.46590909 | F20: =IF(F8="","",F8-E8) -> -1.075937951 | G20: -0.05772005772 | H20: 0 | I20: -0.5775613276 | J20: -0.1204906205 | K20: -0.01520305092 | L20: -0.6190411771 | M20: 0.6338433943 | N20: 0 | O20: 0.6540804874 | P20: 0.5048209366 | Q20: -0.04753979186 | R20: -0.4370513746 | S20: 0.6552409231 | T20: -0.3404137749 | U20: -0.02504459275 | V20: 0.5423700415 | W20: 0.4400191614 | X20: -0.2243209736 | Y20: 0.1106111238 | Z20: 0.2619849287 | AA20: 0.003680382468 | AB20: 0 | AC20: -0.4279716039 | AD20: 0.4178778816 | AE20: -0.6631713965
A21: 4 | B21: Elena | C21: Stefano | E21: 52.89772727 | F21: =IF(F9="","",F9-E9) -> 1.41504329 | G21: -0.7941017316 | H21: -1.259289322 | I21: 0 | J21: 1.739838865 | K21: -0.769729609 | L21: -0.7509083179 | M21: 0 | N21: -0.09903098445 | O21: 0 | P21: -0.06750040083 | Q21: 0.2948642267 | R21: 0 | S21: -0.680205737 | T21: 0 | U21: 0.3325609576 | V21: 0.2850522493 | W21: -0.3211365354 | X21: 0.3226987133 | Y21: 0.05077693956 | Z21: 0 | AA21: 0 | AB21: 0 | AC21: 0.5171167794 | AD21: 0 | AE21: 0.4626834342
A22: 5 | B22: Isolde | C22: Cri-Let | E22: 53.52272727 | F22: =IF(F10="","",F10-E10) -> -1.571067821 | G22: -2.618596681 | H22: 0 | I22: -1.136453824 | J22: 2.549242424 | K22: 0 | L22: 0 | M22: -1.405251495 | N22: -0.2151940322 | O22: 0 | P22: -0.9129238817 | Q22: -0.7934704185 | R22: -0.1261150466 | S22: 0 | T22: 0.8208300538 | U22: 0 | V22: 0 | W22: 0 | X22: 0 | Y22: 0 | Z22: 0.08404789655 | AA22: 0 | AB22: 0 | AC22: 0 | AD22: 0 | AE22: 0
A23: 6 | B23: Lilli | C23: Gianni | E23: 56.70454545 | F23: =IF(F11="","",F11-E11) -> -5.806277056 | G23: -0.7927489177 | H23: -3.354437229 | I23: 0 | J23: -0.2521645022 | K23: 0.3017419089 | L23: -0.06304542019 | M23: -0.2688258244 | N23: -0.3611645556 | O23: 0 | P23: 0.09558791377 | Q23: 1.358065686 | R23: -0.6060567519 | S23: 0.4158969338 | T23: -0.2480215992 | U23: -0.1674157247 | V23: -0.28883681 | W23: -0.1094374338 | X23: 0.06157192926 | Y23: -0.1150398091 | Z23: 0 | AA23: -0.5137929751 | AB23: -0.4310094867 | AC23: 0 | AD23: 0 | AE23: 0
A24: 7 | B24: Manuela | C24: Roberto | E24: 54.82954545 | F24: =IF(F12="","",F12-E12) -> 0 | G24: -2.178030303 | H24: 3.040824916 | I24: 0.1313732564 | J24: 0 | K24: 0.8812329646 | L24: -0.2964738084 | M24: -0.4459454236 | N24: 0 | O24: -1.367970378 | P24: -0.2890011223 | Q24: -0.8333333333 | R24: -0.6200396825 | S24: -0.5042989418 | T24: 0 | U24: 1.56840514 | V24: -0.2989647037 | W24: 0 | X24: -0.1195486612 | Y24: -0.4062862519 | Z24: -0.3040245279 | AA24: 0.1665745452 | AB24: 0.01102820182 | AC24: -0.5569155272 | AD24: -0.5423618789 | AE24: 0.2294377047
A25: 8 | B25: Olimpia | C25: Sauro | E25: 47.5 | F25: =IF(F13="","",F13-E13) -> 0 | G25: -0.1136363636 | H25: -1.429924242 | I25: -0.9373196248 | J25: -1.153980279 | K25: 0.6779959459 | L25: -1.169743781 | M25: 0.9256837555 | N25: 0 | O25: -0.06482817594 | P25: 0.007630416721 | Q25: -0.4460823968 | R25: 1.759297801 | S25: 0.1190806548 | T25: 1.293679425 | U25: -1.069171376 | V25: 0.6089010731 | W25: 0.06776054979 | X25: -0.3580324267 | Y25: 0.3879980887 | Z25: 0.04827326554 | AA25: 0 | AB25: -0.1725654296 | AC25: 0.2565189349 | AD25: -0.4593020875 | AE25: 0
A26: 9 | B26: Renata | C26: Sandro | E26: 44.82954545 | F26: =IF(F14="","",F14-E14) -> 1.326659452 | G26: 2.381403319 | H26: 2.885070948 | I26: 0 | J26: 1.21791326 | K26: -1.567703681 | L26: 1.254777795 | M26: 0.3095522019 | N26: 0.05373844263 | O26: 1.198368971 | P26: -0.4188074832 | Q26: 0.9616695033 | R26: 0.1369298691 | S26: -0.7367066355 | T26: -0.3387320627 | U26: -0.2872098966 | V26: -0.2097028486 | W26: 0 | X26: -0.516576233 | Y26: 0.1884904813 | Z26: -0.2404587256 | AA26: 0.05196392913 | AB26: -0.2458604015 | AC26: 0 | AD26: -0.39071595 | AE26: -0.2166015312 | BB26: =IF(BB15="","",BB15-BA15) -> 
A27: 10 | B27: Stefania | C27: Massimo | E27: 61.76136364 | F27: =IF(F15="","",F15-E15) -> 0 | G27: 1.761363636 | H27: -1.297348485 | I27: 1.046987734 | J27: 0 | K27: -3.253727754 | L27: -0.3730330516 | M27: -0.9926325328 | N27: -0.3441575143 | O27: -0.5134212495 | P27: 0.117774061 | Q27: 0 | R27: 0 | S27: 0 | T27: -0.1303301777 | U27: -0.1713294422 | V27: -0.2595882953 | W27: -0.06083510845 | X27: 1.071295795 | Y27: 0.1765444183 | Z27: 0 | AA27: 0 | AB27: -0.2980179165 | AC27: 0 | AD27: 0 | AE27: 0 | BB27: =IF(BB16="","",BB16-BA16) -> 
A28: 11 | B28: Tatiana | C28: Julio | E28: 39.77272727 | F28: =IF(F16="","",F16-E16) -> 0 | G28: 4.734848485 | H28: 0.9101430976 | I28: -1.781956469 | J28: 0.002505210839 | K28: 0.6111998672 | L28: 0.02437212259 | M28: 2.151391561 | N28: 0.7543022821 | O28: -0.3207945253 | P28: -0.02231915111 | Q28: 0.4036087369 | R28: -0.2563739171 | S28: 0.7566452507 | T28: -0.1563877866 | U28: 0.3463711874 | V28: 0.4622064875 | W28: -0.2144372576 | X28: 0.2047337409 | Y28: -0.2206088664 | Z28: 0.3360626467 | AA28: 0 | AB28: 0.3068398078 | AC28: 0.5788888715 | AD28: -0.1658349367 | AE28: -0.1530784031 | BB28: =IF(BB17="","",BB17-BA17) -> 
A141: 48.80952381
A142: 58.33333333
A143: 32.14285714
A144: 61.9047619
A145: 0
A146: 0
A147: 57.14285714
A148: 0
A149: 46.42857143
A150: 0
A151: 45.23809524
A152: 0
A153: 0
A154: 0
A155: 0
A156: 0
A157: 0
A158: 0
A159: 0
A160: 0
A161: 0
A162: 0
A163: 0
A164: 0
A165: 0
A166: 0
A167: 0
A168: 0
A169: 0
A170: 0
A171: 0
A172: 0
A173: 0
A174: 0
A175: 0
A176: 0
A177: 0
A178: 0
A179: 0
A180: 0
A181: 0
A182: 0
A183: 0
A184: 0
A185: 0
A186: 0
A187: 0
A188: 0
A189: 0
A190: 0

Sheet turni
A1: BridgeMania 2017-18 | E1: ctrl+k | H1: ctrl+d | I1: O / I | J1: ctrl+w | L1: BridgeMania 2017-18
A2: 2018-07-07 | L2: 2018-07-14
A3: coppie base | C3: 8 | F3: tornei | L3: coppie base | N3: 11
A4: # | B4: coppie | C4: status | D4: # coppia base | F4: giocati | G4: status code (*) | I4: O / I | J4: indice | L4: # | M4: coppie | N4: status | O4: # coppia base
A5: 1 | B5: tj | C5: O | D5: 11 | F5: =INDEX(RIS!$BG$81:$BG$91,MATCH(D5,RIS!$BF$81:$BF$91,0)) -> 26 | G5: =IF(C5="A",0,IF(C5="I",1,IF(C5="O",2,3))) -> 2 | J5: =IF(I5="O",0,IF(I5="I",(MAX($F$5:$F$15)+1)*10000+A5,F5*10000+G5*100+A5)) -> 260201 | K5: 0 | L5: 1 | M5: rs | N5: =IF(K5="","",IF(K5=0,"O",IF(INT(K5/10000)=MAX(F$5:F$15)+1,"I",IF(COUNT(K$5:K5)<=$N$3,"P","A")))) -> O | O5: 9
A6: 2 | B6: mr | C6: P | D6: 7 | F6: =INDEX(RIS!$BG$81:$BG$91,MATCH(D6,RIS!$BF$81:$BF$91,0)) -> 23 | G6: =IF(C6="A",0,IF(C6="I",1,IF(C6="O",2,3))) -> 3 | J6: =IF(I6="O",0,IF(I6="I",(MAX($F$5:$F$15)+1)*10000+A6,F6*10000+G6*100+A6)) -> 230302 | K6: 180108 | L6: 2 | M6: es | N6: =IF(K6="","",IF(K6=0,"O",IF(INT(K6/10000)=MAX(F$5:F$15)+1,"I",IF(COUNT(K$5:K6)<=$N$3,"P","A")))) -> P | O6: 4
A7: 3 | B7: rs | C7: P | D7: 9 | F7: =INDEX(RIS!$BG$81:$BG$91,MATCH(D7,RIS!$BF$81:$BF$91,0)) -> 25 | G7: 3 | I7: O | J7: 0 | K7: 220302 | L7: 3 | M7: mr | N7: =IF(K7="","",IF(K7=0,"O",IF(INT(K7/10000)=MAX(F$5:F$15)+1,"I",IF(COUNT(K$5:K7)<=$N$3,"P","A")))) -> P | O7: 7
A8: 4 | B8: cg | C8: P | D8: 3 | F8: =INDEX(RIS!$BG$81:$BG$91,MATCH(D8,RIS!$BF$81:$BF$91,0)) -> 25 | G8: 3 | J8: 250304 | K8: 240304 | L8: 4 | M8: cg | N8: =IF(K8="","",IF(K8=0,"O",IF(INT(K8/10000)=MAX(F$5:F$15)+1,"I",IF(COUNT(K$5:K8)<=$N$3,"P","A")))) -> P | O8: 3
A9: 5 | B9: os | C9: P | D9: 8 | F9: =INDEX(RIS!$BG$81:$BG$91,MATCH(D9,RIS!$BF$81:$BF$91,0)) -> 24 | G9: 3 | I9: I | J9: 280005 | K9: 240306 | L9: 5 | M9: be | N9: =IF(K9="","",IF(K9=0,"O",IF(INT(K9/10000)=MAX(F$5:F$15)+1,"I",IF(COUNT(K$5:K9)<=$N$3,"P","A")))) -> P | O9: 2
A10: 6 | B10: be | C10: P | D10: 2 | F10: =INDEX(RIS!$BG$81:$BG$91,MATCH(D10,RIS!$BF$81:$BF$91,0)) -> 25 | G10: 3 | J10: 250306 | K10: 250201 | L10: 6 | M10: tj | N10: =IF(K10="","",IF(K10=0,"O",IF(INT(K10/10000)=MAX(F$5:F$15)+1,"I",IF(COUNT(K$5:K10)<=$N$3,"P","A")))) -> P | O10: 11
A11: 7 | B11: ad | C11: P | D11: 1 | F11: =INDEX(RIS!$BG$81:$BG$91,MATCH(D11,RIS!$BF$81:$BF$91,0)) -> 27 | G11: 3 | J11: 270307 | K11: 260307 | L11: 7 | M11: ad | N11: =IF(K11="","",IF(K11=0,"O",IF(INT(K11/10000)=MAX(F$5:F$15)+1,"I",IF(COUNT(K$5:K11)<=$N$3,"P","A")))) -> P | O11: 1
A12: 8 | B12: es | C12: I | D12: 4 | F12: =INDEX(RIS!$BG$81:$BG$91,MATCH(D12,RIS!$BF$81:$BF$91,0)) -> 19 | G12: 1 | J12: 190108 | K12: 270005 | L12: 8 | M12: os | N12: =IF(K12="","",IF(K12=0,"O",IF(INT(K12/10000)=MAX(F$5:F$15)+1,"I",IF(COUNT(K$5:K12)<=$N$3,"P","A")))) -> P | O12: 8
A13: 9 | B13: sm | C13: I | D13: 10 | F13: =INDEX(RIS!$BG$81:$BG$91,MATCH(D13,RIS!$BF$81:$BF$91,0)) -> 18 | G13: 1 | I13: I | J13: 280009 | K13: 270009 | L13: 9 | M13: sm | N13: =IF(K13="","",IF(K13=0,"O",IF(INT(K13/10000)=MAX(F$5:F$15)+1,"I",IF(COUNT(K$5:K13)<=$N$3,"P","A")))) -> P | O13: 10
A14: 10 | B14: lg | C14: I | D14: 6 | F14: =INDEX(RIS!$BG$81:$BG$91,MATCH(D14,RIS!$BF$81:$BF$91,0)) -> 22 | G14: 1 | I14: I | J14: 280010 | K14: 270010 | L14: 10 | M14: lg | N14: =IF(K14="","",IF(K14=0,"O",IF(INT(K14/10000)=MAX(F$5:F$15)+1,"I",IF(COUNT(K$5:K14)<=$N$3,"P","A")))) -> P | O14: 6
A15: 11 | B15: ic | C15: I | D15: 5 | F15: =INDEX(RIS!$BG$81:$BG$91,MATCH(D15,RIS!$BF$81:$BF$91,0)) -> 13 | G15: 1 | I15: I | J15: 280011 | K15: 270011 | L15: 11 | M15: ic | N15: =IF(K15="","",IF(K15=0,"O",IF(INT(K15/10000)=MAX(F$5:F$15)+1,"I",IF(COUNT(K$5:K15)<=$N$3,"P","A")))) -> P | O15: 5
G16: (*) status code al turno precedente
G17: A = 0 | H17: in lista di attesa | L17: O = | M17: ospitante/organizz.
G18: I = 1 | H18: impossibilitata | L18: P = | M18: partecipante
G19: O = 2 | H19: ospitante/organizzatrice | L19: A = | M19: in lista di attesa
G20: P = 3 | H20: partecipante | L20: I = | M20: impossibilitata
A21: Istruzioni: | L21: ? = | M21: da confermare
A22: Copiare manualmente L1:N15 nelle prime colonne libere dell'area "colonne da A a O" e "righe da 38 in poi" (per avere una memoria delle convocazioni passate)
A24: ctrl+k (solo una volta, per inizializzare l'elaborazione del nuovo turno per il torneo successivo)
A25: ctrl+d (cancella I5:I12)
A26: Per il torneo successivo inserire la data in L2:N2 e il numero delle coppie base partecipanti in N3
A27: Facendo riferimento alla colonna B, in colonna I inserire O per la coppia ospitante e I per le coppie impossibilitate.
A28: ctrl+w (elabora il turno del torneo successivo)
A29: In colonna N si legge lo status delle coppie (O - P - A - I )
A30: Se bisogna cambiare la coppia ospitante O e/o le coppie impossibilitate I e/o il numero delle coppie base partecipanti, digitare ctrl+d e poi inserire ex-novo i dati.
A38: BridgeMania 2017-18 | D38: BridgeMania 2017-18 | G38: BridgeMania 2017-18 | J38: BridgeMania 2017-18 | M38: BridgeMania 2017-18
A39: elenco iniziale | D39: 2017-09-16 | G39: 2017-09-23 | J39: 2017-10-07 | M39: 2017-10-14
A40: coppie base | D40: coppie base | F40: 11 | G40: coppie base | I40: 11 | J40: coppie base | L40: 11 | M40: coppie base | O40: 11
A41: # | B41: coppie | C41: status | D41: # | E41: coppie | F41: status | G41: # | H41: coppie | I41: status | J41: # | K41: coppie | L41: status | M41: # | N41: coppie | O41: status
A42: 1 | B42: ad | C42: O | D42: 1 | E42: os | F42: O | G42: 1 | H42: ad | I42: O | J42: 1 | K42: be | L42: O | M42: 1 | N42: es | O42: O
A43: 2 | B43: cg | C43: P | D43: 2 | E43: ad | F43: P | G43: 2 | H43: os | I43: P | J43: 2 | K43: ad | L43: P | M43: 2 | N43: os | O43: P
A44: 3 | B44: ix | C44: P | D44: 3 | E44: cg | F44: P | G44: 3 | H44: cg | I44: P | J44: 3 | K44: cg | L44: P | M44: 3 | N44: mr | O44: P
A45: 4 | B45: es | C45: P | D45: 4 | E45: ix | F45: P | G45: 4 | H45: ix | I45: P | J45: 4 | K45: ix | L45: P | M45: 4 | N45: sm | O45: P
A46: 5 | B46: os | C46: P | D46: 5 | E46: es | F46: P | G46: 5 | H46: es | I46: P | J46: 5 | K46: es | L46: P | M46: 5 | N46: tj | O46: P
A47: 6 | B47: be | C47: P | D47: 6 | E47: be | F47: P | G47: 6 | H47: be | I47: P | J47: 6 | K47: lg | L47: P | M47: 6 | N47: be | O47: P
A48: 7 | B48: mr | C48: P | D48: 7 | E48: mr | F48: P | G48: 7 | H48: mr | I48: P | J48: 7 | K48: rs | L48: P | M48: 7 | N48: ad | O48: P
A49: 8 | B49: lg | C49: P | D49: 8 | E49: lg | F49: P | G49: 8 | H49: lg | I49: P | J49: 8 | K49: os | L49: I | M49: 8 | N49: cg | O49: P
A50: 9 | B50: rs | C50: P | D50: 9 | E50: rs | F50: P | G50: 9 | H50: rs | I50: P | J50: 9 | K50: mr | L50: I | M50: 9 | N50: ix | O50: P
A51: 10 | B51: sm | C51: P | D51: 10 | E51: sm | F51: P | G51: 10 | H51: sm | I51: P | J51: 10 | K51: sm | L51: I | M51: 10 | N51: lg | O51: P
A52: 11 | B52: tj | C52: P | D52: 11 | E52: tj | F52: P | G52: 11 | H52: tj | I52: P | J52: 11 | K52: tj | L52: I | M52: 11 | N52: rs | O52: P
A54: BridgeMania 2017-18 | D54: BridgeMania 2017-18 | G54: BridgeMania 2017-18 | J54: BridgeMania 2017-18 | M54: BridgeMania 2017-18
A55: 2017-10-21 | D55: 2017-10-28 | G55: 2017-11-04 | J55: 2017-11-18 | M55: 2017-11-25
A56: coppie base | C56: 11 | D56: coppie base | F56: 8 | G56: coppie base | I56: 8 | J56: coppie base | L56: 10 | M56: coppie base | O56: 9
A57: # | B57: coppie | C57: status | D57: # | E57: coppie | F57: status | G57: # | H57: coppie | I57: status | J57: # | K57: coppie | L57: status | M57: # | N57: coppie | O57: status
A58: 1 | B58: sm | C58: O | D58: 1 | E58: cg | F58: O | G58: 1 | H58: tj | I58: O | J58: 1 | K58: rs | L58: O | M58: 1 | N58: lg | O58: O
A59: 2 | B59: os | C59: P | D59: 2 | E59: ix | F59: P | G59: 2 | H59: lg | I59: P | J59: 2 | K59: sm | L59: P | M59: 2 | N59: sm | O59: P
A60: 3 | B60: mr | C60: P | D60: 3 | E60: sm | F60: P | G60: 3 | H60: rs | I60: P | J60: 3 | K60: mr | L60: P | M60: 3 | N60: mr | O60: P
A61: 4 | B61: tj | C61: P | D61: 4 | E61: os | F61: P | G61: 4 | H61: es | I61: P | J61: 4 | K61: be | L61: P | M61: 4 | N61: rs | O61: P
A62: 5 | B62: es | C62: P | D62: 5 | E62: mr | F62: P | G62: 5 | H62: cg | I62: P | J62: 5 | K62: tj | L62: P | M62: 5 | N62: be | O62: P
A63: 6 | B63: be | C63: P | D63: 6 | E63: tj | F63: P | G63: 6 | H63: ix | I63: P | J63: 6 | K63: lg | L63: P | M63: 6 | N63: tj | O63: P
A64: 7 | B64: ad | C64: P | D64: 7 | E64: be | F64: P | G64: 7 | H64: os | I64: P | J64: 7 | K64: es | L64: P | M64: 7 | N64: es | O64: P
A65: 8 | B65: lg | C65: P | D65: 8 | E65: ad | F65: P | G65: 8 | H65: ad | I65: P | J65: 8 | K65: cg | L65: P | M65: 8 | N65: cg | O65: P
A66: 9 | B66: rs | C66: P | D66: 9 | E66: lg | F66: A | G66: 9 | H66: sm | I66: A | J66: 9 | K66: os | L66: P | M66: 9 | N66: os | O66: P
A67: 10 | B67: cg | C67: I | D67: 10 | E67: rs | F67: A | G67: 10 | H67: mr | I67: A | J67: 10 | K67: ad | L67: P | M67: 10 | N67: ad | O67: A
A68: 11 | B68: ix | C68: I | D68: 11 | E68: es | F68: I | G68: 11 | H68: be | I68: A | J68: 11 | K68: ix | L68: I | M68: 11 | N68: ic | O68: I
A70: BridgeMania 2017-18 | D70: BridgeMania 2017-18 | G70: BridgeMania 2017-18 | J70: BridgeMania 2017-18 | M70: BridgeMania 2017-18
A71: 2017-12-09 | D71: 2017-12-16 | G71: 2018-01-06 | J71: 2018-01-20 | M71: 2018-01-27
A72: coppie base | C72: 11 | D72: coppie base | F72: 8 | G72: coppie base | I72: 11 | J72: coppie base | L72: 11 | M72: coppie base | O72: 11
A73: # | B73: coppie | C73: status | D73: # | E73: coppie | F73: status | G73: # | H73: coppie | I73: status | J73: # | K73: coppie | L73: status | M73: # | N73: coppie | O73: status
A74: 1 | B74: mr | C74: O | D74: 1 | E74: ic | F74: O | G74: 1 | H74: ad | I74: O | J74: 1 | K74: os | L74: O | M74: 1 | N74: be | O74: O
A75: 2 | B75: ic | C75: P | D75: 2 | E75: es | F75: P | G75: 2 | H75: mr | I75: P | J75: 2 | K75: ic | L75: P | M75: 2 | N75: ic | O75: P
A76: 3 | B76: sm | C76: P | D76: 3 | E76: sm | F76: P | G76: 3 | H76: sm | I76: P | J76: 3 | K76: mr | L76: P | M76: 3 | N76: mr | O76: P
A77: 4 | B77: ad | C77: P | D77: 4 | E77: cg | F77: P | G77: 4 | H77: cg | I77: P | J77: 4 | K77: es | L77: P | M77: 4 | N77: es | O77: P
A78: 5 | B78: lg | C78: P | D78: 5 | E78: os | F78: P | G78: 5 | H78: os | I78: P | J78: 5 | K78: sm | L78: P | M78: 5 | N78: os | O78: P
A79: 6 | B79: rs | C79: P | D79: 6 | E79: ad | F79: P | G79: 6 | H79: be | I79: P | J79: 6 | K79: cg | L79: P | M79: 6 | N79: cg | O79: P
A80: 7 | B80: be | C80: P | D80: 7 | E80: lg | F80: P | G80: 7 | H80: tj | I80: P | J80: 7 | K80: lg | L80: P | M80: 7 | N80: lg | O80: P
A81: 8 | B81: tj | C81: P | D81: 8 | E81: rs | F81: P | G81: 8 | H81: rs | I81: P | J81: 8 | K81: ad | L81: P | M81: 8 | N81: ad | O81: P
A82: 9 | B82: cg | C82: P | D82: 9 | E82: be | F82: A | G82: 9 | H82: ic | I82: P | J82: 9 | K82: be | L82: P | M82: 9 | N82: tj | O82: P
A83: 10 | B83: os | C83: P | D83: 10 | E83: tj | F83: A | G83: 10 | H83: es | I83: P | J83: 10 | K83: tj | L83: P | M83: 10 | N83: rs | O83: P
A84: 11 | B84: es | C84: I | D84: 11 | E84: mr | F84: I | G84: 11 | H84: lg | I84: P | J84: 11 | K84: rs | L84: P | M84: 11 | N84: sm | O84: I
A86: BridgeMania 2017-18 | D86: BridgeMania 2017-18 | G86: BridgeMania 2017-18 | J86: BridgeMania 2017-18 | M86: BridgeMania 2017-18
A87: 2018-01-17 | D87: 2018-02-24 | G87: 2018-03-17 | J87: 2018-03-24 | M87: 2018-04-14
A88: coppie base | C88: 8 | D88: coppie base | F88: 9 | G88: coppie base | I88: 8 | J88: coppie base | L88: 11 | M88: coppie base | O88: 11
A89: # | B89: coppie | C89: status | D89: # | E89: coppie | F89: status | G89: # | H89: coppie | I89: status | J89: # | K89: coppie | L89: status | M89: # | N89: coppie | O89: status
A90: 1 | B90: tj | C90: O | D90: 1 | E90: cg | F90: O | G90: 1 | H90: lg | I90: O | J90: 1 | K90: rs | L90: O | M90: 1 | N90: sm | O90: O
A91: 2 | B91: ic | C91: P | D91: 2 | E91: es | F91: P | G91: 2 | H91: ic | I91: P | J91: 2 | K91: es | L91: P | M91: 2 | N91: ic | O91: P
A92: 3 | B92: mr | C92: P | D92: 3 | E92: mr | F92: P | G92: 3 | H92: sm | I92: P | J92: 3 | K92: sm | L92: P | M92: 3 | N92: es | O92: P
A93: 4 | B93: os | C93: P | D93: 4 | E93: be | F93: P | G93: 4 | H93: cg | I93: P | J93: 4 | K93: mr | L93: P | M93: 4 | N93: mr | O93: P
A94: 5 | B94: cg | C94: P | D94: 5 | E94: os | F94: P | G94: 5 | H94: os | I94: P | J94: 5 | K94: be | L94: P | M94: 5 | N94: be | O94: P
A95: 6 | B95: lg | C95: P | D95: 6 | E95: lg | F95: P | G95: 6 | H95: tj | I95: P | J95: 6 | K95: lg | L95: P | M95: 6 | N95: lg | O95: P
A96: 7 | B96: ad | C96: P | D96: 7 | E96: tj | F96: P | G96: 7 | H96: ad | I96: P | J96: 7 | K96: cg | L96: P | M96: 7 | N96: cg | O96: P
A97: 8 | B97: rs | C97: P | D97: 8 | E97: ad | F97: P | G97: 8 | H97: rs | I97: P | J97: 8 | K97: os | L97: P | M97: 8 | N97: os | O97: P
A98: 9 | B98: be | C98: A | D98: 9 | E98: rs | F98: P | G98: 9 | H98: es | I98: I | J98: 9 | K98: tj | L98: P | M98: 9 | N98: rs | O98: P
A99: 10 | B99: es | C99: A | D99: 10 | E99: ic | F99: A | G99: 10 | H99: mr | I99: I | J99: 10 | K99: ad | L99: P | M99: 10 | N99: tj | O99: P
A100: 11 | B100: sm | C100: A | D100: 11 | E100: sm | F100: A | G100: 11 | H100: be | I100: I | J100: 11 | K100: ic | L100: I | M100: 11 | N100: ad | O100: P
A102: BridgeMania 2017-18 | D102: BridgeMania 2017-18 | G102: BridgeMania 2017-18 | J102: BridgeMania 2017-18 | M102: BridgeMania 2017-18
A103: 2018-04-21 | D103: 2018-05-05 | G103: 2018-05-19 | J103: 2018-05-26 | M103: 2018-06-09
A104: coppie base | C104: 11 | D104: coppie base | F104: 11 | G104: coppie base | I104: 11 | J104: coppie base | L104: 11 | M104: coppie base | O104: 8
A105: # | B105: coppie | C105: status | D105: # | E105: coppie | F105: status | G105: # | H105: coppie | I105: status | J105: # | K105: coppie | L105: status | M105: # | N105: coppie | O105: status
A106: 1 | B106: tj | C106: O | D106: 1 | E106: es | F106: O | G106: 1 | H106: ad | I106: O | J106: 1 | K106: be | L106: P | M106: 1 | N106: ic | O106: O
A107: 2 | B107: sm | C107: P | D107: 2 | E107: mr | F107: P | G107: 2 | H107: es | I107: P | J107: 2 | K107: ic | L107: P | M107: 2 | N107: mr | O107: P
A108: 3 | B108: es | C108: P | D108: 3 | E108: sm | F108: P | G108: 3 | H108: mr | I108: P | J108: 3 | K108: mr | L108: P | M108: 3 | N108: lg | O108: P
A109: 4 | B109: be | C109: P | D109: 4 | E109: be | F109: P | G109: 4 | H109: sm | I109: P | J109: 4 | K109: rs | L109: P | M109: 4 | N109: be | O109: P
A110: 5 | B110: lg | C110: P | D110: 5 | E110: rs | F110: P | G110: 5 | H110: be | I110: P | J110: 5 | K110: cg | L110: P | M110: 5 | N110: rs | O110: P
A111: 6 | B111: cg | C111: P | D111: 6 | E111: lg | F111: P | G111: 6 | H111: rs | I111: P | J111: 6 | K111: os | L111: P | M111: 6 | N111: cg | O111: P
A112: 7 | B112: os | C112: P | D112: 7 | E112: cg | F112: P | G112: 7 | H112: lg | I112: P | J112: 7 | K112: ad | L112: P | M112: 7 | N112: ad | O112: P
A113: 8 | B113: ad | C113: P | D113: 8 | E113: os | F113: P | G113: 8 | H113: cg | I113: P | J113: 8 | K113: tj | L113: P | M113: 8 | N113: os | O113: I
A114: 9 | B114: ic | C114: I | D114: 9 | E114: tj | F114: P | G114: 9 | H114: os | I114: P | J114: 9 | K114: es | L114: I | M114: 9 | N114: tj | O114: I
A115: 10 | B115: mr | C115: I | D115: 10 | E115: ad | F115: P | G115: 10 | H115: tj | I115: P | J115: 10 | K115: sm | L115: I | M115: 10 | N115: es | O115: I
A116: 11 | B116: rs | C116: I | D116: 11 | E116: ic | F116: I | G116: 11 | H116: ic | I116: I | J116: 11 | K116: lg | L116: I | M116: 11 | N116: sm | O116: I
A118: BridgeMania 2017-18 | D118: BridgeMania 2017-18 | G118: BridgeMania 2017-18
A119: 2018-06-16 | D119: 2018-06-30 | G119: 2018-07-07
A120: coppie base | C120: 11 | D120: coppie base | F120: 11 | G120: coppie base | I120: 8
A121: # | B121: coppie | C121: status | D121: # | E121: coppie | F121: status | G121: # | H121: coppie | I121: status
A122: 1 | B122: os | C122: O | D122: 1 | E122: ad | F122: O | G122: 1 | H122: tj | I122: O
A123: 2 | B123: sm | C123: P | D123: 2 | E123: es | F123: P | G123: 2 | H123: mr | I123: P
A124: 3 | B124: mr | C124: P | D124: 3 | E124: mr | F124: P | G124: 3 | H124: rs | I124: P
A125: 4 | B125: lg | C125: P | D125: 4 | E125: cg | F125: P | G125: 4 | H125: cg | I125: P
A126: 5 | B126: be | C126: P | D126: 5 | E126: os | F126: P | G126: 5 | H126: os | I126: P
A127: 6 | B127: tj | C127: P | D127: 6 | E127: be | F127: P | G127: 6 | H127: be | I127: P
A128: 7 | B128: rs | C128: P | D128: 7 | E128: tj | F128: P | G128: 7 | H128: ad | I128: P
A129: 8 | B129: ad | C129: P | D129: 8 | E129: sm | F129: I | G129: 8 | H129: es | I129: I
A130: 9 | B130: ic | C130: I | D130: 9 | E130: lg | F130: I | G130: 9 | H130: sm | I130: I
A131: 10 | B131: cg | C131: I | D131: 10 | E131: rs | F131: I | G131: 10 | H131: lg | I131: I
A132: 11 | B132: es | C132: I | D132: 11 | E132: ic | F132: I | G132: 11 | H132: ic | I132: I

Sheet 14lug
A1: Data | C1: 2018-07-14 | D1: BridgeMania 2017-18 - Torneo Howell
A2: luogo | C2: Bianchi | D2: Coppie Ctrl+e | E2: Calcola Ctr+f | F2: Duplica Ctrl+g | G2: Clear Ctrl+h | J2: &
A3: # coppie | C3: =IF(B5="","",COUNT(B5:B25)) -> 7 | E3: =IF(E5="","",SUMIF(E5:E25,">0")) -> 350 | F3: =IF(F5="","",SUMIF(F5:F24,">0")) ->  | G3: =IF(G5="","",SUM(G5:G25)) -> 350 | H3: =IF(H5="","",SUM(H5:H25)) -> 294 | I3: =SUM(I5:I25) -> 0 | J3: =SUM(J5:J25) -> 294 | K3: =SUM(K5:K25) -> 14 | L3: =SUM(L5:L25) -> 14 | M3: 14 | N3: 14 | O3: 14 | P3: 14 | Q3: 14 | R3: 14 | S3: 14 | T3: 14 | U3: 14 | V3: 14 | W3: 14 | X3: 14 | Y3: 14 | Z3: 14 | AA3: 14 | AB3: 14 | AC3: 14 | AD3: 14 | AE3: 14 | AF3: 0 | AG3: 0 | AH3: 0 | AI3: 0 | AJ3: 0 | AK3: 0 | AL3: 0 | AM3: 0 | AN3: 0 | AO3: 0 | AP3: 0 | AQ3: 0 | AR3: 0 | AS3: 0 | AT3: 0 | AU3: 0 | AV3: 0 | AW3: 0 | AX3: 0
A4: Class. | B4: # | C4: Coppie | E4: Punteggio Serata | G4: Punteggio % | H4: Punteggio Torneo | I4: Penalità (-) | J4: Totale punti mano | K4: 1 | L4: 2 | M4: 3 | N4: 4 | O4: 5 | P4: 6 | Q4: 7 | R4: 8 | S4: 9 | T4: 10 | U4: 11 | V4: 12 | W4: 13 | X4: 14 | Y4: 15 | Z4: 16 | AA4: 17 | AB4: 18 | AC4: 19 | AD4: 20 | AE4: 21 | AF4: 22 | AG4: 23 | AH4: 24 | AI4: 25 | AJ4: 26 | AK4: 27 | AL4: 28 | AM4: 29 | AN4: 30 | AO4: 31 | AP4: 32 | AQ4: 33 | AR4: 34 | AS4: 35 | AT4: 36 | AU4: 37 | AV4: 38 | AW4: 39 | AX4: 40
A5: =IF(J$2="","",IF($E5="","",IF($E5=MAX($E$5:$E$54),1,IF($E5=$E4,$A4,COUNT($E$5:$E5))))) -> 1 | B5: 1 | C5: Elena | D5: Stefano | E5: =IF(J$2="","",IF(G5=0,0,F5+G5)) -> 61.9047619 | G5: =IF(J$2="","",IF($J5=0,0,(H5*$C$3/$J$3)*50)) -> 61.9047619 | H5: =IF(J$2="","",IF(SUM($K5:$AX5)=0,0,SUM($K5:$AX5)+$I5)) -> 52 | J5: =IF(B5="",0,IF(SUM($K5:$AX5)=0,0,SUM($K5:$AX5))) -> 52 | K5: 2 | L5: 2 | M5: 2 | N5: 3 | O5: 4 | P5: 4 | Q5: 2 | R5: 4 | S5: 4 | T5: 3 | U5: 4 | V5: 4 | W5: 0 | X5: 0 | Y5: 0 | Z5: 1 | AA5: 2 | AB5: 3 | AC5: 4 | AD5: 2 | AE5: 2 | BF5: 4
A6: =IF(J$2="","",IF($E6="","",IF($E6=MAX($E$5:$E$54),1,IF($E6=$E5,$A5,COUNT($E$5:$E6))))) -> 2 | B6: 2 | C6: Barbara | D6: Elio | E6: 58.33333333 | G6: 58.33333333 | H6: 49 | J6: 49 | K6: 2 | L6: 3 | M6: 4 | N6: 2 | O6: 2 | P6: 2 | Q6: 2 | R6: 3 | S6: 3 | T6: 1 | U6: 0 | V6: 0 | W6: 2 | X6: 3 | Y6: 4 | Z6: 3 | AA6: 2 | AB6: 4 | AC6: 1 | AD6: 2 | AE6: 4 | BF6: 2
A7: =IF(J$2="","",IF($E7="","",IF($E7=MAX($E$5:$E$54),1,IF($E7=$E6,$A6,COUNT($E$5:$E7))))) -> 3 | B7: 6 | C7: Manuela | D7: Roberto | E7: 57.14285714 | G7: 57.14285714 | H7: 48 | J7: 48 | K7: 2 | L7: 3 | M7: 2 | N7: 0 | O7: 0 | P7: 1 | Q7: 2 | R7: 3 | S7: 3 | T7: 4 | U7: 3 | V7: 2 | W7: 4 | X7: 4 | Y7: 4 | Z7: 2 | AA7: 2 | AB7: 2 | AC7: 3 | AD7: 2 | AE7: 0 | BF7: 7
A8: =IF(J$2="","",IF($E8="","",IF($E8=MAX($E$5:$E$54),1,IF($E8=$E7,$A7,COUNT($E$5:$E8))))) -> 4 | B8: 4 | C8: Antonella | D8: Dino | E8: 48.80952381 | G8: 48.80952381 | H8: 41 | J8: 41 | K8: 2 | L8: 1 | M8: 0 | N8: 1 | O8: 0 | P8: 0 | Q8: 2 | R8: 1 | S8: 1 | T8: 2 | U8: 2 | V8: 2 | W8: 4 | X8: 3 | Y8: 2 | Z8: 4 | AA8: 2 | AB8: 3 | AC8: 3 | AD8: 2 | AE8: 4 | BF8: 1
A9: =IF(J$2="","",IF($E9="","",IF($E9=MAX($E$5:$E$54),1,IF($E9=$E8,$A8,COUNT($E$5:$E9))))) -> 5 | B9: 7 | C9: Renata | D9: Sandro | E9: 46.42857143 | G9: 46.42857143 | H9: 39 | J9: 39 | K9: 2 | L9: 4 | M9: 4 | N9: 4 | O9: 4 | P9: 3 | Q9: 2 | R9: 0 | S9: 0 | T9: 3 | U9: 1 | V9: 0 | W9: 0 | X9: 1 | Y9: 2 | Z9: 1 | AA9: 2 | AB9: 0 | AC9: 2 | AD9: 2 | AE9: 2 | BF9: 9
A10: =IF(J$2="","",IF($E10="","",IF($E10=MAX($E$5:$E$54),1,IF($E10=$E9,$A9,COUNT($E$5:$E10))))) -> 6 | B10: 5 | C10: Tatiana | D10: Julio | E10: 45.23809524 | G10: 45.23809524 | H10: 38 | J10: 38 | K10: 2 | L10: 1 | M10: 2 | N10: 3 | O10: 2 | P10: 1 | Q10: 2 | R10: 1 | S10: 1 | T10: 1 | U10: 3 | V10: 4 | W10: 2 | X10: 2 | Y10: 2 | Z10: 3 | AA10: 2 | AB10: 1 | AC10: 1 | AD10: 2 | AE10: 0 | BF10: 11
A11: =IF(J$2="","",IF($E11="","",IF($E11=MAX($E$5:$E$54),1,IF($E11=$E10,$A10,COUNT($E$5:$E11))))) -> 7 | B11: 3 | C11: Cesarina | D11: Gaetano | E11: 32.14285714 | G11: 32.14285714 | H11: 27 | J11: 27 | K11: 2 | L11: 0 | M11: 0 | N11: 1 | O11: 2 | P11: 3 | Q11: 2 | R11: 2 | S11: 2 | T11: 0 | U11: 1 | V11: 2 | W11: 2 | X11: 1 | Y11: 0 | Z11: 0 | AA11: 2 | AB11: 1 | AC11: 0 | AD11: 2 | AE11: 2 | BF11: 3
A12: =IF(J$2="","",IF($E12="","",IF($E12=MAX($E$5:$E$54),1,IF($E12=$E11,$A11,COUNT($E$5:$E12))))) -> 8 | E12: 0 | G12: 0 | H12: 0 | J12: 0 | BF12: 5
A13: =IF(J$2="","",IF($E13="","",IF($E13=MAX($E$5:$E$54),1,IF($E13=$E12,$A12,COUNT($E$5:$E13))))) -> 8 | E13: 0 | G13: 0 | H13: 0 | J13: 0 | BF13: 6
A14: =IF(J$2="","",IF($E14="","",IF($E14=MAX($E$5:$E$54),1,IF($E14=$E13,$A13,COUNT($E$5:$E14))))) -> 8 | E14: 0 | G14: 0 | H14: 0 | J14: 0 | BF14: 8
A15: =IF(J$2="","",IF($E15="","",IF($E15=MAX($E$5:$E$54),1,IF($E15=$E14,$A14,COUNT($E$5:$E15))))) -> 8 | E15: 0 | G15: 0 | H15: 0 | J15: 0 | BF15: 10
A16: =IF(J$2="","",IF($E16="","",IF($E16=MAX($E$5:$E$54),1,IF($E16=$E15,$A15,COUNT($E$5:$E16))))) -> 8 | E16: 0 | G16: 0 | H16: 0 | J16: 0 | BF16: 12
A17: =IF(J$2="","",IF($E17="","",IF($E17=MAX($E$5:$E$54),1,IF($E17=$E16,$A16,COUNT($E$5:$E17))))) -> 8 | E17: 0 | G17: 0 | H17: 0 | J17: 0 | BF17: 13
A18: =IF(J$2="","",IF($E18="","",IF($E18=MAX($E$5:$E$54),1,IF($E18=$E17,$A17,COUNT($E$5:$E18))))) -> 8 | E18: 0 | G18: 0 | H18: 0 | J18: 0 | BF18: 14
A19: =IF(J$2="","",IF($E19="","",IF($E19=MAX($E$5:$E$54),1,IF($E19=$E18,$A18,COUNT($E$5:$E19))))) -> 8 | E19: 0 | G19: 0 | H19: 0 | J19: 0 | BF19: 15
A20: =IF(J$2="","",IF($E20="","",IF($E20=MAX($E$5:$E$54),1,IF($E20=$E19,$A19,COUNT($E$5:$E20))))) -> 8 | E20: 0 | G20: 0 | H20: 0 | J20: 0 | BF20: 16
A21: =IF(J$2="","",IF($E21="","",IF($E21=MAX($E$5:$E$54),1,IF($E21=$E20,$A20,COUNT($E$5:$E21))))) -> 8 | E21: 0 | G21: 0 | H21: 0 | J21: 0 | BF21: 17
A22: =IF(J$2="","",IF($E22="","",IF($E22=MAX($E$5:$E$54),1,IF($E22=$E21,$A21,COUNT($E$5:$E22))))) -> 8 | E22: 0 | G22: 0 | H22: 0 | J22: 0 | BF22: 18
A23: =IF(J$2="","",IF($E23="","",IF($E23=MAX($E$5:$E$54),1,IF($E23=$E22,$A22,COUNT($E$5:$E23))))) -> 8 | E23: 0 | G23: 0 | H23: 0 | J23: 0 | BF23: 19
A24: =IF(J$2="","",IF($E24="","",IF($E24=MAX($E$5:$E$54),1,IF($E24=$E23,$A23,COUNT($E$5:$E24))))) -> 8 | E24: 0 | G24: 0 | H24: 0 | J24: 0 | BF24: 20
A25: =IF(J$2="","",IF($E25="","",IF($E25=MAX($E$5:$E$54),1,IF($E25=$E24,$A24,COUNT($E$5:$E25))))) -> 8 | E25: 0 | G25: 0 | H25: 0 | J25: 0 | BF25: 21
A26: =IF(J$2="","",IF($E26="","",IF($E26=MAX($E$5:$E$54),1,IF($E26=$E25,$A25,COUNT($E$5:$E26))))) -> 8 | E26: 0 | G26: 0 | H26: 0 | J26: 0 | BF26: 22
A27: =IF(J$2="","",IF($E27="","",IF($E27=MAX($E$5:$E$54),1,IF($E27=$E26,$A26,COUNT($E$5:$E27))))) -> 8 | E27: 0 | G27: 0 | H27: 0 | J27: 0 | BF27: 23
A28: =IF(J$2="","",IF($E28="","",IF($E28=MAX($E$5:$E$54),1,IF($E28=$E27,$A27,COUNT($E$5:$E28))))) -> 8 | E28: 0 | G28: 0 | H28: 0 | J28: 0 | BF28: 24
A29: =IF(J$2="","",IF($E29="","",IF($E29=MAX($E$5:$E$54),1,IF($E29=$E28,$A28,COUNT($E$5:$E29))))) -> 8 | E29: 0 | G29: 0 | H29: 0 | J29: 0 | BF29: 25
A30: =IF(J$2="","",IF($E30="","",IF($E30=MAX($E$5:$E$54),1,IF($E30=$E29,$A29,COUNT($E$5:$E30))))) -> 8 | E30: 0 | G30: 0 | H30: 0 | J30: 0 | BF30: 26
A31: =IF(J$2="","",IF($E31="","",IF($E31=MAX($E$5:$E$54),1,IF($E31=$E30,$A30,COUNT($E$5:$E31))))) -> 8 | E31: 0 | G31: 0 | H31: 0 | J31: 0 | BF31: 27
A32: =IF(J$2="","",IF($E32="","",IF($E32=MAX($E$5:$E$54),1,IF($E32=$E31,$A31,COUNT($E$5:$E32))))) -> 8 | E32: 0 | G32: 0 | H32: 0 | J32: 0 | BF32: 28
A33: =IF(J$2="","",IF($E33="","",IF($E33=MAX($E$5:$E$54),1,IF($E33=$E32,$A32,COUNT($E$5:$E33))))) -> 8 | E33: 0 | G33: 0 | H33: 0 | J33: 0 | BF33: 29
A34: =IF(J$2="","",IF($E34="","",IF($E34=MAX($E$5:$E$54),1,IF($E34=$E33,$A33,COUNT($E$5:$E34))))) -> 8 | E34: 0 | G34: 0 | H34: 0 | J34: 0 | BF34: 30
A35: =IF(J$2="","",IF($E35="","",IF($E35=MAX($E$5:$E$54),1,IF($E35=$E34,$A34,COUNT($E$5:$E35))))) -> 8 | E35: 0 | G35: 0 | H35: 0 | J35: 0 | BF35: 31
A36: =IF(J$2="","",IF($E36="","",IF($E36=MAX($E$5:$E$54),1,IF($E36=$E35,$A35,COUNT($E$5:$E36))))) -> 8 | E36: 0 | G36: 0 | H36: 0 | J36: 0 | BF36: 32
A37: =IF(J$2="","",IF($E37="","",IF($E37=MAX($E$5:$E$54),1,IF($E37=$E36,$A36,COUNT($E$5:$E37))))) -> 8 | E37: =IF(J$2="","",IF(G37=0,0,F37+G37)) -> 0 | G37: =IF(J$2="","",IF($J37=0,0,(H37*$C$3/$J$3)*50)) -> 0 | H37: =IF(J$2="","",IF(SUM($K37:$AX37)=0,0,SUM($K37:$AX37)+$I37)) -> 0 | J37: =IF(B37="",0,IF(SUM($K37:$AX37)=0,0,SUM($K37:$AX37))) -> 0 | BF37: 33
A38: =IF(J$2="","",IF($E38="","",IF($E38=MAX($E$5:$E$54),1,IF($E38=$E37,$A37,COUNT($E$5:$E38))))) -> 8 | E38: 0 | G38: 0 | H38: 0 | J38: 0 | BF38: 34
A39: =IF(J$2="","",IF($E39="","",IF($E39=MAX($E$5:$E$54),1,IF($E39=$E38,$A38,COUNT($E$5:$E39))))) -> 8 | E39: 0 | G39: 0 | H39: 0 | J39: 0 | BF39: 35
A40: =IF(J$2="","",IF($E40="","",IF($E40=MAX($E$5:$E$54),1,IF($E40=$E39,$A39,COUNT($E$5:$E40))))) -> 8 | E40: 0 | G40: 0 | H40: 0 | J40: 0 | BF40: 36
A41: =IF(J$2="","",IF($E41="","",IF($E41=MAX($E$5:$E$54),1,IF($E41=$E40,$A40,COUNT($E$5:$E41))))) -> 8 | E41: 0 | G41: 0 | H41: 0 | J41: 0 | BF41: 37
A42: =IF(J$2="","",IF($E42="","",IF($E42=MAX($E$5:$E$54),1,IF($E42=$E41,$A41,COUNT($E$5:$E42))))) -> 8 | E42: 0 | G42: 0 | H42: 0 | J42: 0 | BF42: 38
A43: =IF(J$2="","",IF($E43="","",IF($E43=MAX($E$5:$E$54),1,IF($E43=$E42,$A42,COUNT($E$5:$E43))))) -> 8 | E43: 0 | G43: 0 | H43: 0 | J43: 0 | BF43: 39
A44: =IF(J$2="","",IF($E44="","",IF($E44=MAX($E$5:$E$54),1,IF($E44=$E43,$A43,COUNT($E$5:$E44))))) -> 8 | E44: 0 | G44: 0 | H44: 0 | J44: 0 | BF44: 40
A45: =IF(J$2="","",IF($E45="","",IF($E45=MAX($E$5:$E$54),1,IF($E45=$E44,$A44,COUNT($E$5:$E45))))) -> 8 | E45: 0 | G45: 0 | H45: 0 | J45: 0 | BF45: 41
A46: =IF(J$2="","",IF($E46="","",IF($E46=MAX($E$5:$E$54),1,IF($E46=$E45,$A45,COUNT($E$5:$E46))))) -> 8 | E46: 0 | G46: 0 | H46: 0 | J46: 0 | BF46: 42
A47: =IF(J$2="","",IF($E47="","",IF($E47=MAX($E$5:$E$54),1,IF($E47=$E46,$A46,COUNT($E$5:$E47))))) -> 8 | E47: 0 | G47: 0 | H47: 0 | J47: 0 | BF47: 43
A48: =IF(J$2="","",IF($E48="","",IF($E48=MAX($E$5:$E$54),1,IF($E48=$E47,$A47,COUNT($E$5:$E48))))) -> 8 | E48: 0 | G48: 0 | H48: 0 | J48: 0 | BF48: 44
A49: =IF(J$2="","",IF($E49="","",IF($E49=MAX($E$5:$E$54),1,IF($E49=$E48,$A48,COUNT($E$5:$E49))))) -> 8 | E49: 0 | G49: 0 | H49: 0 | J49: 0 | BF49: 45
A50: =IF(J$2="","",IF($E50="","",IF($E50=MAX($E$5:$E$54),1,IF($E50=$E49,$A49,COUNT($E$5:$E50))))) -> 8 | E50: 0 | G50: 0 | H50: 0 | J50: 0 | BF50: 46
A51: =IF(J$2="","",IF($E51="","",IF($E51=MAX($E$5:$E$54),1,IF($E51=$E50,$A50,COUNT($E$5:$E51))))) -> 8 | E51: 0 | G51: 0 | H51: 0 | J51: 0 | BF51: 47
A52: =IF(J$2="","",IF($E52="","",IF($E52=MAX($E$5:$E$54),1,IF($E52=$E51,$A51,COUNT($E$5:$E52))))) -> 8 | E52: 0 | G52: 0 | H52: 0 | J52: 0 | BF52: 48
A53: =IF(J$2="","",IF($E53="","",IF($E53=MAX($E$5:$E$54),1,IF($E53=$E52,$A52,COUNT($E$5:$E53))))) -> 8 | E53: 0 | G53: 0 | H53: 0 | J53: 0 | BF53: 49
A54: =IF(J$2="","",IF($E54="","",IF($E54=MAX($E$5:$E$54),1,IF($E54=$E53,$A53,COUNT($E$5:$E54))))) -> 8 | E54: 0 | G54: 0 | H54: 0 | J54: 0 | BF54: 50
D59: punteggi torneo ordinati per # di coppia
B60: # coppia | E60: con zeri | F60: senza zeri | G60: senza zeri
B61: 1 | E61: 61.9047619 | F61: =IF(E61=0,"",E61) -> 61.9047619 | G61: 61.9047619 | I61: =IF(H61=0,"",H61) ->  | BF61: 4
B62: 2 | E62: 58.33333333 | F62: 58.33333333 | G62: 58.33333333 | BF62: 2
B63: 3 | E63: 32.14285714 | F63: 32.14285714 | G63: 32.14285714 | I63: =IF(H63=0,"",H63) ->  | BF63: 3
B64: 4 | E64: 48.80952381 | F64: 48.80952381 | G64: 48.80952381 | I64: =IF(H64=0,"",H64) ->  | BF64: 1
B65: 5 | E65: 45.23809524 | F65: 45.23809524 | G65: 45.23809524 | I65: =IF(H65=0,"",H65) ->  | BF65: 11
B66: 6 | E66: 57.14285714 | F66: 57.14285714 | G66: 57.14285714 | BF66: 7
B67: 7 | E67: 46.42857143 | F67: 46.42857143 | G67: 46.42857143 | I67: =IF(H67=0,"",H67) ->  | BF67: 9
E68: 0 | BF68: 5
E69: 0 | BF69: 6
E70: 0 | BF70: 8
E71: 0 | BF71: 10
E72: 0 | BF72: 12
E73: 0 | I73: =IF(H73=0,"",H73) ->  | BF73: 13
E74: 0 | I74: =IF(H74=0,"",H74) ->  | BF74: 14
E75: 0 | I75: =IF(H75=0,"",H75) ->  | BF75: 15
E76: 0 | I76: =IF(H76=0,"",H76) ->  | BF76: 16
E77: 0 | BF77: 17
E78: 0 | BF78: 18
E79: 0 | I79: =IF(H79=0,"",H79) ->  | BF79: 19
E80: 0 | I80: =IF(H80=0,"",H80) ->  | BF80: 20
E81: 0 | BF81: 21
E82: 0 | BF82: 22
E83: 0 | BF83: 23
E84: 0 | BF84: 24
E85: 0 | BF85: 25
E86: 0 | BF86: 26
E87: 0 | BF87: 27
E88: 0 | BF88: 28
E89: 0 | BF89: 29
E90: 0 | BF90: 30
E91: 0 | BF91: 31
E92: 0 | BF92: 32
E93: 0 | F93: =IF(E93=0,"",E93) ->  | BF93: 33
E94: 0 | BF94: 34
E95: 0 | BF95: 35
E96: 0 | BF96: 36
E97: 0 | BF97: 37
E98: 0 | BF98: 38
E99: 0 | BF99: 39
E100: 0 | BF100: 40
E101: 0 | BF101: 41
E102: 0 | BF102: 42
E103: 0 | BF103: 43
E104: 0 | BF104: 44
E105: 0 | BF105: 45
E106: 0 | BF106: 46
E107: 0 | BF107: 47
E108: 0 | BF108: 48
E109: 0 | BF109: 49
E110: 0 | BF110: 50
A119: punteggi torneo ordinati per numero standard di coppia base
B120: # coppia | E120: con zeri | F120: senza zeri | G120: senza zeri
B121: 4 | E121: 48.80952381 | F121: =IF(E121=0,"",E121) -> 48.80952381 | G121: 48.80952381 | I121: =IF(H121=0,"",H121) ->  | BF121: 1
B122: 2 | E122: 58.33333333 | F122: 58.33333333 | G122: 58.33333333 | BF122: 2
B123: 3 | E123: 32.14285714 | F123: 32.14285714 | G123: 32.14285714 | I123: =IF(H123=0,"",H123) ->  | BF123: 3
B124: 1 | E124: 61.9047619 | F124: 61.9047619 | G124: 61.9047619 | I124: =IF(H124=0,"",H124) ->  | BF124: 4
E125: 0 | BF125: 5
E126: 0 | BF126: 6
B127: 6 | E127: 57.14285714 | F127: 57.14285714 | G127: 57.14285714 | BF127: 7
E128: 0 | BF128: 8
B129: 7 | E129: 46.42857143 | F129: 46.42857143 | G129: 46.42857143 | I129: =IF(H129=0,"",H129) ->  | BF129: 9
E130: 0 | BF130: 10
B131: 5 | E131: 45.23809524 | F131: 45.23809524 | G131: 45.23809524 | I131: =IF(H131=0,"",H131) ->  | BF131: 11

Sheet 7lug
A1: Data | C1: 2018-07-07 | D1: BridgeMania 2017-18 - Torneo Howell
A2: luogo | C2: Torgovnick | D2: Coppie Ctrl+e | E2: Calcola Ctr+f | F2: Duplica Ctrl+g | G2: Clear Ctrl+h | J2: &
A3: # coppie | C3: =IF(B5="","",COUNT(B5:B25)) -> 7 | E3: =IF(E5="","",SUMIF(E5:E25,">0")) -> 347.6190476 | F3: =IF(F5="","",SUMIF(F5:F24,">0")) ->  | G3: =IF(G5="","",SUM(G5:G25)) -> 347.6190476 | H3: =IF(H5="","",SUM(H5:H25)) -> 292 | I3: =SUM(I5:I25) -> -2 | J3: =SUM(J5:J25) -> 294 | K3: =SUM(K5:K25) -> 14 | L3: =SUM(L5:L25) -> 14 | M3: 14 | N3: 14 | O3: 14 | P3: 14 | Q3: 14 | R3: 14 | S3: 14 | T3: 14 | U3: 14 | V3: 14 | W3: 14 | X3: 14 | Y3: 14 | Z3: 14 | AA3: 14 | AB3: 14 | AC3: 14 | AD3: 14 | AE3: 14 | AF3: 0 | AG3: 0 | AH3: 0 | AI3: 0 | AJ3: 0 | AK3: 0 | AL3: 0 | AM3: 0 | AN3: 0 | AO3: 0 | AP3: 0 | AQ3: 0 | AR3: 0 | AS3: 0 | AT3: 0 | AU3: 0 | AV3: 0 | AW3: 0 | AX3: 0
A4: Class. | B4: # | C4: Coppie | E4: Punteggio Serata | G4: Punteggio % | H4: Punteggio Torneo | I4: Penalità (-) | J4: Totale punti mano | K4: 1 | L4: 2 | M4: 3 | N4: 4 | O4: 5 | P4: 6 | Q4: 7 | R4: 8 | S4: 9 | T4: 10 | U4: 11 | V4: 12 | W4: 13 | X4: 14 | Y4: 15 | Z4: 16 | AA4: 17 | AB4: 18 | AC4: 19 | AD4: 20 | AE4: 21 | AF4: 22 | AG4: 23 | AH4: 24 | AI4: 25 | AJ4: 26 | AK4: 27 | AL4: 28 | AM4: 29 | AN4: 30 | AO4: 31 | AP4: 32 | AQ4: 33 | AR4: 34 | AS4: 35 | AT4: 36 | AU4: 37 | AV4: 38 | AW4: 39 | AX4: 40
A5: =IF(J$2="","",IF($E5="","",IF($E5=MAX($E$5:$E$54),1,IF($E5=$E4,$A4,COUNT($E$5:$E5))))) -> 1 | B5: 7 | C5: Antonella | D5: Dino | E5: =IF(J$2="","",IF(G5=0,0,F5+G5)) -> 67.85714286 | G5: =IF(J$2="","",IF($J5=0,0,(H5*$C$3/$J$3)*50)) -> 67.85714286 | H5: =IF(J$2="","",IF(SUM($K5:$AX5)=0,0,SUM($K5:$AX5)+$I5)) -> 57 | J5: =IF(B5="",0,IF(SUM($K5:$AX5)=0,0,SUM($K5:$AX5))) -> 57 | K5: 4 | L5: 3 | M5: 4 | N5: 2 | O5: 0 | P5: 4 | Q5: 3 | R5: 3 | S5: 3 | T5: 3 | U5: 2 | V5: 4 | W5: 3 | X5: 2 | Y5: 4 | Z5: 4 | AA5: 2 | AB5: 1 | AC5: 2 | AD5: 2 | AE5: 2 | BF5: 1
A6: =IF(J$2="","",IF($E6="","",IF($E6=MAX($E$5:$E$54),1,IF($E6=$E5,$A5,COUNT($E$5:$E6))))) -> 2 | B6: 2 | C6: Cesarina | D6: Gaetano | E6: 58.33333333 | G6: 58.33333333 | H6: 49 | J6: 49 | K6: 3 | L6: 4 | M6: 2 | N6: 2 | O6: 2 | P6: 2 | Q6: 3 | R6: 3 | S6: 0 | T6: 4 | U6: 2 | V6: 3 | W6: 4 | X6: 0 | Y6: 2 | Z6: 0 | AA6: 2 | AB6: 3 | AC6: 2 | AD6: 2 | AE6: 4 | BF6: 3
A7: =IF(J$2="","",IF($E7="","",IF($E7=MAX($E$5:$E$54),1,IF($E7=$E6,$A6,COUNT($E$5:$E7))))) -> 3 | B7: 4 | C7: Barbara | D7: Elio | E7: 57.14285714 | G7: 57.14285714 | H7: 48 | J7: 48 | K7: 1 | L7: 0 | M7: 2 | N7: 4 | O7: 2 | P7: 1 | Q7: 4 | R7: 4 | S7: 1 | T7: 2 | U7: 2 | V7: 2 | W7: 1 | X7: 2 | Y7: 0 | Z7: 2 | AA7: 2 | AB7: 4 | AC7: 4 | AD7: 4 | AE7: 4 | BF7: 2
A8: =IF(J$2="","",IF($E8="","",IF($E8=MAX($E$5:$E$54),1,IF($E8=$E7,$A7,COUNT($E$5:$E8))))) -> 4 | B8: 1 | C8: Tatiana | D8: Julio | E8: 45.23809524 | G8: 45.23809524 | H8: 38 | I8: -1 | J8: 39 | K8: 2 | L8: 2 | M8: 2 | N8: 0 | O8: 2 | P8: 3 | Q8: 1 | R8: 1 | S8: 1 | T8: 0 | U8: 2 | V8: 1 | W8: 1 | X8: 4 | Y8: 4 | Z8: 0 | AA8: 2 | AB8: 1 | AC8: 4 | AD8: 4 | AE8: 2 | BF8: 11
A9: =IF(J$2="","",IF($E9="","",IF($E9=MAX($E$5:$E$54),1,IF($E9=$E8,$A8,COUNT($E$5:$E9))))) -> 5 | B9: 6 | C9: Renata | D9: Sandro | E9: 42.85714286 | G9: 42.85714286 | H9: 36 | J9: 36 | K9: 3 | L9: 1 | M9: 4 | N9: 2 | O9: 4 | P9: 0 | Q9: 0 | R9: 0 | S9: 3 | T9: 1 | U9: 2 | V9: 3 | W9: 3 | X9: 0 | Y9: 0 | Z9: 2 | AA9: 2 | AB9: 2 | AC9: 2 | AD9: 2 | AE9: 0 | BF9: 9
A10: =IF(J$2="","",IF($E10="","",IF($E10=MAX($E$5:$E$54),1,IF($E10=$E9,$A9,COUNT($E$5:$E10))))) -> 6 | B10: 5 | C10: Manuela | D10: Roberto | E10: 40.47619048 | G10: 40.47619048 | H10: 34 | I10: -1 | J10: 35 | K10: 1 | L10: 3 | M10: 0 | N10: 4 | O10: 0 | P10: 3 | Q10: 1 | R10: 1 | S10: 4 | T10: 1 | U10: 2 | V10: 0 | W10: 2 | X10: 2 | Y10: 2 | Z10: 4 | AA10: 2 | AB10: 3 | AC10: 0 | AD10: 0 | AE10: 0 | BF10: 7
A11: =IF(J$2="","",IF($E11="","",IF($E11=MAX($E$5:$E$54),1,IF($E11=$E10,$A10,COUNT($E$5:$E11))))) -> 7 | B11: 3 | C11: Olimpia | D11: Sauro | E11: 35.71428571 | G11: 35.71428571 | H11: 30 | J11: 30 | K11: 0 | L11: 1 | M11: 0 | N11: 0 | O11: 4 | P11: 1 | Q11: 2 | R11: 2 | S11: 2 | T11: 3 | U11: 2 | V11: 1 | W11: 0 | X11: 4 | Y11: 2 | Z11: 2 | AA11: 2 | AB11: 0 | AC11: 0 | AD11: 0 | AE11: 2 | BF11: 8
A12: =IF(J$2="","",IF($E12="","",IF($E12=MAX($E$5:$E$54),1,IF($E12=$E11,$A11,COUNT($E$5:$E12))))) -> 8 | E12: 0 | G12: 0 | H12: 0 | J12: 0 | BF12: 4
A13: =IF(J$2="","",IF($E13="","",IF($E13=MAX($E$5:$E$54),1,IF($E13=$E12,$A12,COUNT($E$5:$E13))))) -> 8 | E13: 0 | G13: 0 | H13: 0 | J13: 0 | BF13: 5
A14: =IF(J$2="","",IF($E14="","",IF($E14=MAX($E$5:$E$54),1,IF($E14=$E13,$A13,COUNT($E$5:$E14))))) -> 8 | E14: 0 | G14: 0 | H14: 0 | J14: 0 | BF14: 6
A15: =IF(J$2="","",IF($E15="","",IF($E15=MAX($E$5:$E$54),1,IF($E15=$E14,$A14,COUNT($E$5:$E15))))) -> 8 | E15: 0 | G15: 0 | H15: 0 | J15: 0 | BF15: 10
A16: =IF(J$2="","",IF($E16="","",IF($E16=MAX($E$5:$E$54),1,IF($E16=$E15,$A15,COUNT($E$5:$E16))))) -> 8 | E16: 0 | G16: 0 | H16: 0 | J16: 0 | BF16: 12
A17: =IF(J$2="","",IF($E17="","",IF($E17=MAX($E$5:$E$54),1,IF($E17=$E16,$A16,COUNT($E$5:$E17))))) -> 8 | E17: 0 | G17: 0 | H17: 0 | J17: 0 | BF17: 13
A18: =IF(J$2="","",IF($E18="","",IF($E18=MAX($E$5:$E$54),1,IF($E18=$E17,$A17,COUNT($E$5:$E18))))) -> 8 | E18: 0 | G18: 0 | H18: 0 | J18: 0 | BF18: 14
A19: =IF(J$2="","",IF($E19="","",IF($E19=MAX($E$5:$E$54),1,IF($E19=$E18,$A18,COUNT($E$5:$E19))))) -> 8 | E19: 0 | G19: 0 | H19: 0 | J19: 0 | BF19: 15
A20: =IF(J$2="","",IF($E20="","",IF($E20=MAX($E$5:$E$54),1,IF($E20=$E19,$A19,COUNT($E$5:$E20))))) -> 8 | E20: 0 | G20: 0 | H20: 0 | J20: 0 | BF20: 16
A21: =IF(J$2="","",IF($E21="","",IF($E21=MAX($E$5:$E$54),1,IF($E21=$E20,$A20,COUNT($E$5:$E21))))) -> 8 | E21: 0 | G21: 0 | H21: 0 | J21: 0 | BF21: 17
A22: =IF(J$2="","",IF($E22="","",IF($E22=MAX($E$5:$E$54),1,IF($E22=$E21,$A21,COUNT($E$5:$E22))))) -> 8 | E22: 0 | G22: 0 | H22: 0 | J22: 0 | BF22: 18
A23: =IF(J$2="","",IF($E23="","",IF($E23=MAX($E$5:$E$54),1,IF($E23=$E22,$A22,COUNT($E$5:$E23))))) -> 8 | E23: 0 | G23: 0 | H23: 0 | J23: 0 | BF23: 19
A24: =IF(J$2="","",IF($E24="","",IF($E24=MAX($E$5:$E$54),1,IF($E24=$E23,$A23,COUNT($E$5:$E24))))) -> 8 | E24: 0 | G24: 0 | H24: 0 | J24: 0 | BF24: 20
A25: =IF(J$2="","",IF($E25="","",IF($E25=MAX($E$5:$E$54),1,IF($E25=$E24,$A24,COUNT($E$5:$E25))))) -> 8 | E25: 0 | G25: 0 | H25: 0 | J25: 0 | BF25: 21
A26: =IF(J$2="","",IF($E26="","",IF($E26=MAX($E$5:$E$54),1,IF($E26=$E25,$A25,COUNT($E$5:$E26))))) -> 8 | E26: 0 | G26: 0 | H26: 0 | J26: 0 | BF26: 22
A27: =IF(J$2="","",IF($E27="","",IF($E27=MAX($E$5:$E$54),1,IF($E27=$E26,$A26,COUNT($E$5:$E27))))) -> 8 | E27: 0 | G27: 0 | H27: 0 | J27: 0 | BF27: 23
A28: =IF(J$2="","",IF($E28="","",IF($E28=MAX($E$5:$E$54),1,IF($E28=$E27,$A27,COUNT($E$5:$E28))))) -> 8 | E28: 0 | G28: 0 | H28: 0 | J28: 0 | BF28: 24
A29: =IF(J$2="","",IF($E29="","",IF($E29=MAX($E$5:$E$54),1,IF($E29=$E28,$A28,COUNT($E$5:$E29))))) -> 8 | E29: 0 | G29: 0 | H29: 0 | J29: 0 | BF29: 25
A30: =IF(J$2="","",IF($E30="","",IF($E30=MAX($E$5:$E$54),1,IF($E30=$E29,$A29,COUNT($E$5:$E30))))) -> 8 | E30: 0 | G30: 0 | H30: 0 | J30: 0 | BF30: 26
A31: =IF(J$2="","",IF($E31="","",IF($E31=MAX($E$5:$E$54),1,IF($E31=$E30,$A30,COUNT($E$5:$E31))))) -> 8 | E31: 0 | G31: 0 | H31: 0 | J31: 0 | BF31: 27
A32: =IF(J$2="","",IF($E32="","",IF($E32=MAX($E$5:$E$54),1,IF($E32=$E31,$A31,COUNT($E$5:$E32))))) -> 8 | E32: 0 | G32: 0 | H32: 0 | J32: 0 | BF32: 28
A33: =IF(J$2="","",IF($E33="","",IF($E33=MAX($E$5:$E$54),1,IF($E33=$E32,$A32,COUNT($E$5:$E33))))) -> 8 | E33: 0 | G33: 0 | H33: 0 | J33: 0 | BF33: 29
A34: =IF(J$2="","",IF($E34="","",IF($E34=MAX($E$5:$E$54),1,IF($E34=$E33,$A33,COUNT($E$5:$E34))))) -> 8 | E34: 0 | G34: 0 | H34: 0 | J34: 0 | BF34: 30
A35: =IF(J$2="","",IF($E35="","",IF($E35=MAX($E$5:$E$54),1,IF($E35=$E34,$A34,COUNT($E$5:$E35))))) -> 8 | E35: 0 | G35: 0 | H35: 0 | J35: 0 | BF35: 31
A36: =IF(J$2="","",IF($E36="","",IF($E36=MAX($E$5:$E$54),1,IF($E36=$E35,$A35,COUNT($E$5:$E36))))) -> 8 | E36: 0 | G36: 0 | H36: 0 | J36: 0 | BF36: 32
A37: =IF(J$2="","",IF($E37="","",IF($E37=MAX($E$5:$E$54),1,IF($E37=$E36,$A36,COUNT($E$5:$E37))))) -> 8 | E37: =IF(J$2="","",IF(G37=0,0,F37+G37)) -> 0 | G37: =IF(J$2="","",IF($J37=0,0,(H37*$C$3/$J$3)*50)) -> 0 | H37: =IF(J$2="","",IF(SUM($K37:$AX37)=0,0,SUM($K37:$AX37)+$I37)) -> 0 | J37: =IF(B37="",0,IF(SUM($K37:$AX37)=0,0,SUM($K37:$AX37))) -> 0 | BF37: 33
A38: =IF(J$2="","",IF($E38="","",IF($E38=MAX($E$5:$E$54),1,IF($E38=$E37,$A37,COUNT($E$5:$E38))))) -> 8 | E38: 0 | G38: 0 | H38: 0 | J38: 0 | BF38: 34
A39: =IF(J$2="","",IF($E39="","",IF($E39=MAX($E$5:$E$54),1,IF($E39=$E38,$A38,COUNT($E$5:$E39))))) -> 8 | E39: 0 | G39: 0 | H39: 0 | J39: 0 | BF39: 35
A40: =IF(J$2="","",IF($E40="","",IF($E40=MAX($E$5:$E$54),1,IF($E40=$E39,$A39,COUNT($E$5:$E40))))) -> 8 | E40: 0 | G40: 0 | H40: 0 | J40: 0 | BF40: 36
A41: =IF(J$2="","",IF($E41="","",IF($E41=MAX($E$5:$E$54),1,IF($E41=$E40,$A40,COUNT($E$5:$E41))))) -> 8 | E41: 0 | G41: 0 | H41: 0 | J41: 0 | BF41: 37
A42: =IF(J$2="","",IF($E42="","",IF($E42=MAX($E$5:$E$54),1,IF($E42=$E41,$A41,COUNT($E$5:$E42))))) -> 8 | E42: 0 | G42: 0 | H42: 0 | J42: 0 | BF42: 38
A43: =IF(J$2="","",IF($E43="","",IF($E43=MAX($E$5:$E$54),1,IF($E43=$E42,$A42,COUNT($E$5:$E43))))) -> 8 | E43: 0 | G43: 0 | H43: 0 | J43: 0 | BF43: 39
A44: =IF(J$2="","",IF($E44="","",IF($E44=MAX($E$5:$E$54),1,IF($E44=$E43,$A43,COUNT($E$5:$E44))))) -> 8 | E44: 0 | G44: 0 | H44: 0 | J44: 0 | BF44: 40
A45: =IF(J$2="","",IF($E45="","",IF($E45=MAX($E$5:$E$54),1,IF($E45=$E44,$A44,COUNT($E$5:$E45))))) -> 8 | E45: 0 | G45: 0 | H45: 0 | J45: 0 | BF45: 41
A46: =IF(J$2="","",IF($E46="","",IF($E46=MAX($E$5:$E$54),1,IF($E46=$E45,$A45,COUNT($E$5:$E46))))) -> 8 | E46: 0 | G46: 0 | H46: 0 | J46: 0 | BF46: 42
A47: =IF(J$2="","",IF($E47="","",IF($E47=MAX($E$5:$E$54),1,IF($E47=$E46,$A46,COUNT($E$5:$E47))))) -> 8 | E47: 0 | G47: 0 | H47: 0 | J47: 0 | BF47: 43
A48: =IF(J$2="","",IF($E48="","",IF($E48=MAX($E$5:$E$54),1,IF($E48=$E47,$A47,COUNT($E$5:$E48))))) -> 8 | E48: 0 | G48: 0 | H48: 0 | J48: 0 | BF48: 44
A49: =IF(J$2="","",IF($E49="","",IF($E49=MAX($E$5:$E$54),1,IF($E49=$E48,$A48,COUNT($E$5:$E49))))) -> 8 | E49: 0 | G49: 0 | H49: 0 | J49: 0 | BF49: 45
A50: =IF(J$2="","",IF($E50="","",IF($E50=MAX($E$5:$E$54),1,IF($E50=$E49,$A49,COUNT($E$5:$E50))))) -> 8 | E50: 0 | G50: 0 | H50: 0 | J50: 0 | BF50: 46
A51: =IF(J$2="","",IF($E51="","",IF($E51=MAX($E$5:$E$54),1,IF($E51=$E50,$A50,COUNT($E$5:$E51))))) -> 8 | E51: 0 | G51: 0 | H51: 0 | J51: 0 | BF51: 47
A52: =IF(J$2="","",IF($E52="","",IF($E52=MAX($E$5:$E$54),1,IF($E52=$E51,$A51,COUNT($E$5:$E52))))) -> 8 | E52: 0 | G52: 0 | H52: 0 | J52: 0 | BF52: 48
A53: =IF(J$2="","",IF($E53="","",IF($E53=MAX($E$5:$E$54),1,IF($E53=$E52,$A52,COUNT($E$5:$E53))))) -> 8 | E53: 0 | G53: 0 | H53: 0 | J53: 0 | BF53: 49
A54: =IF(J$2="","",IF($E54="","",IF($E54=MAX($E$5:$E$54),1,IF($E54=$E53,$A53,COUNT($E$5:$E54))))) -> 8 | E54: 0 | G54: 0 | H54: 0 | J54: 0 | BF54: 50
D59: punteggi torneo ordinati per # di coppia
B60: # coppia | E60: con zeri | F60: senza zeri | G60: senza zeri
B61: 1 | E61: 45.23809524 | F61: =IF(E61=0,"",E61) -> 45.23809524 | G61: 45.23809524 | I61: =IF(H61=0,"",H61) ->  | BF61: 11
B62: 2 | E62: 58.33333333 | F62: 58.33333333 | G62: 58.33333333 | BF62: 3
B63: 3 | E63: 35.71428571 | F63: 35.71428571 | G63: 35.71428571 | I63: =IF(H63=0,"",H63) ->  | BF63: 8
B64: 4 | E64: 57.14285714 | F64: 57.14285714 | G64: 57.14285714 | I64: =IF(H64=0,"",H64) ->  | BF64: 2
B65: 5 | E65: 40.47619048 | F65: 40.47619048 | G65: 40.47619048 | I65: =IF(H65=0,"",H65) ->  | BF65: 7
B66: 6 | E66: 42.85714286 | F66: 42.85714286 | G66: 42.85714286 | BF66: 9
B67: 7 | E67: 67.85714286 | F67: 67.85714286 | G67: 67.85714286 | I67: =IF(H67=0,"",H67) ->  | BF67: 1
E68: 0 | BF68: 4
E69: 0 | BF69: 5
E70: 0 | BF70: 6
E71: 0 | BF71: 10
E72: 0 | BF72: 12
E73: 0 | I73: =IF(H73=0,"",H73) ->  | BF73: 13
E74: 0 | I74: =IF(H74=0,"",H74) ->  | BF74: 14
E75: 0 | I75: =IF(H75=0,"",H75) ->  | BF75: 15
E76: 0 | I76: =IF(H76=0,"",H76) ->  | BF76: 16
E77: 0 | BF77: 17
E78: 0 | BF78: 18
E79: 0 | I79: =IF(H79=0,"",H79) ->  | BF79: 19
E80: 0 | I80: =IF(H80=0,"",H80) ->  | BF80: 20
E81: 0 | BF81: 21
E82: 0 | BF82: 22
E83: 0 | BF83: 23
E84: 0 | BF84: 24
E85: 0 | BF85: 25
E86: 0 | BF86: 26
E87: 0 | BF87: 27
E88: 0 | BF88: 28
E89: 0 | BF89: 29
E90: 0 | BF90: 30
E91: 0 | BF91: 31
E92: 0 | BF92: 32
E93: 0 | F93: =IF(E93=0,"",E93) ->  | BF93: 33
E94: 0 | BF94: 34
E95: 0 | BF95: 35
E96: 0 | BF96: 36
E97: 0 | BF97: 37
E98: 0 | BF98: 38
E99: 0 | BF99: 39
E100: 0 | BF100: 40
E101: 0 | BF101: 41
E102: 0 | BF102: 42
E103: 0 | BF103: 43
E104: 0 | BF104: 44
E105: 0 | BF105: 45
E106: 0 | BF106: 46
E107: 0 | BF107: 47
E108: 0 | BF108: 48
E109: 0 | BF109: 49
E110: 0 | BF110: 50
A119: punteggi torneo ordinati per numero standard di coppia base
B120: # coppia | E120: con zeri | F120: senza zeri | G120: senza zeri
B121: 7 | E121: 67.85714286 | F121: =IF(E121=0,"",E121) -> 67.85714286 | G121: 67.85714286 | I121: =IF(H121=0,"",H121) ->  | BF121: 1
B122: 4 | E122: 57.14285714 | F122: 57.14285714 | G122: 57.14285714 | I122: =IF(H122=0,"",H122) ->  | BF122: 2
B123: 2 | E123: 58.33333333 | F123: 58.33333333 | G123: 58.33333333 | BF123: 3
E124: 0 | BF124: 4
E125: 0 | BF125: 5
E126: 0 | BF126: 6
B127: 5 | E127: 40.47619048 | F127: 40.47619048 | G127: 40.47619048 | I127: =IF(H127=0,"",H127) ->  | BF127: 7
B128: 3 | E128: 35.71428571 | F128: 35.71428571 | G128: 35.71428571 | I128: =IF(H128=0,"",H128) ->  | BF128: 8
B129: 6 | E129: 42.85714286 | F129: 42.85714286 | G129: 42.85714286 | BF129: 9
E130: 0 | BF130: 10
B131: 1 | E131: 45.23809524 | F131: 45.23809524 | G131: 45.23809524 | I131: =IF(H131=0,"",H131) ->  | BF131: 11

Sheet 30giu
A1: Data | C1: 2018-06-30 | D1: BridgeMania 2017-18 - Torneo Howell
A2: luogo | C2: De Sanctis | D2: Coppie Ctrl+e | E2: Calcola Ctr+f | F2: Duplica Ctrl+g | G2: Clear Ctrl+h | J2: &
A3: # coppie | C3: =IF(B5="","",COUNT(B5:B25)) -> 8 | E3: =IF(E5="","",SUMIF(E5:E25,">0")) -> 400 | F3: =IF(F5="","",SUMIF(F5:F24,">0")) ->  | G3: =IF(G5="","",SUM(G5:G25)) -> 400 | H3: =IF(H5="","",SUM(H5:H25)) -> 504 | I3: =SUM(I5:I25) -> 0 | J3: =SUM(J5:J25) -> 504 | K3: =SUM(K5:K25) -> 24 | L3: =SUM(L5:L25) -> 24 | M3: 24 | N3: 24 | O3: 24 | P3: 24 | Q3: 24 | R3: 24 | S3: 24 | T3: 24 | U3: 24 | V3: 24 | W3: 24 | X3: 24 | Y3: 24 | Z3: 24 | AA3: 24 | AB3: 24 | AC3: 24 | AD3: 24 | AE3: 24 | AF3: 0 | AG3: 0 | AH3: 0 | AI3: 0 | AJ3: 0 | AK3: 0 | AL3: 0 | AM3: 0 | AN3: 0 | AO3: 0 | AP3: 0 | AQ3: 0 | AR3: 0 | AS3: 0 | AT3: 0 | AU3: 0 | AV3: 0 | AW3: 0 | AX3: 0
A4: Class. | B4: # | C4: Coppie | E4: Punteggio Serata | G4: Punteggio % | H4: Punteggio Torneo | I4: Penalità (-) | J4: Totale punti mano | K4: 1 | L4: 2 | M4: 3 | N4: 4 | O4: 5 | P4: 6 | Q4: 7 | R4: 8 | S4: 9 | T4: 10 | U4: 11 | V4: 12 | W4: 13 | X4: 14 | Y4: 15 | Z4: 16 | AA4: 17 | AB4: 18 | AC4: 19 | AD4: 20 | AE4: 21 | AF4: 22 | AG4: 23 | AH4: 24 | AI4: 25 | AJ4: 26 | AK4: 27 | AL4: 28 | AM4: 29 | AN4: 30 | AO4: 31 | AP4: 32 | AQ4: 33 | AR4: 34 | AS4: 35 | AT4: 36 | AU4: 37 | AV4: 38 | AW4: 39 | AX4: 40
A5: =IF(J$2="","",IF($E5="","",IF($E5=MAX($E$5:$E$54),1,IF($E5=$E4,$A4,COUNT($E$5:$E5))))) -> 1 | B5: 8 | C5: Tatiana | D5: Julio | E5: =IF(J$2="","",IF(G5=0,0,F5+G5)) -> 62.6984127 | G5: =IF(J$2="","",IF($J5=0,0,(H5*$C$3/$J$3)*50)) -> 62.6984127 | H5: =IF(J$2="","",IF(SUM($K5:$AX5)=0,0,SUM($K5:$AX5)+$I5)) -> 79 | J5: =IF(B5="",0,IF(SUM($K5:$AX5)=0,0,SUM($K5:$AX5))) -> 79 | K5: 1 | L5: 4 | M5: 4 | N5: 6 | O5: 4 | P5: 4 | Q5: 3 | R5: 2 | S5: 0 | T5: 6 | U5: 6 | V5: 3 | W5: 2 | X5: 6 | Y5: 4 | Z5: 4 | AA5: 5 | AB5: 6 | AC5: 1 | AD5: 2 | AE5: 6 | BF5: 11
A6: =IF(J$2="","",IF($E6="","",IF($E6=MAX($E$5:$E$54),1,IF($E6=$E5,$A5,COUNT($E$5:$E6))))) -> 2 | B6: 3 | C6: Elena | D6: Stefano | E6: 61.9047619 | G6: 61.9047619 | H6: 78 | J6: 78 | K6: 6 | L6: 4 | M6: 6 | N6: 4 | O6: 4 | P6: 6 | Q6: 3 | R6: 4 | S6: 6 | T6: 4 | U6: 3 | V6: 3 | W6: 4 | X6: 2 | Y6: 1 | Z6: 2 | AA6: 1 | AB6: 5 | AC6: 5 | AD6: 0 | AE6: 5 | BF6: 4
A7: =IF(J$2="","",IF($E7="","",IF($E7=MAX($E$5:$E$54),1,IF($E7=$E6,$A6,COUNT($E$5:$E7))))) -> 3 | B7: 1 | C7: Antonella | D7: Dino | E7: 57.14285714 | G7: 57.14285714 | H7: 72 | J7: 72 | K7: 5 | L7: 2 | M7: 2 | N7: 5 | O7: 6 | P7: 6 | Q7: 0 | R7: 2 | S7: 2 | T7: 4 | U7: 6 | V7: 3 | W7: 6 | X7: 6 | Y7: 5 | Z7: 0 | AA7: 0 | AB7: 4 | AC7: 1 | AD7: 6 | AE7: 1 | BF7: 1
A8: =IF(J$2="","",IF($E8="","",IF($E8=MAX($E$5:$E$54),1,IF($E8=$E7,$A7,COUNT($E$5:$E8))))) -> 4 | B8: 5 | C8: Olimpia | D8: Sauro | E8: 52.38095238 | G8: 52.38095238 | H8: 66 | J8: 66 | K8: 2 | L8: 2 | M8: 4 | N8: 2 | O8: 2 | P8: 0 | Q8: 6 | R8: 6 | S8: 5 | T8: 2 | U8: 3 | V8: 3 | W8: 4 | X8: 0 | Y8: 2 | Z8: 6 | AA8: 6 | AB8: 2 | AC8: 6 | AD8: 2 | AE8: 1 | BF8: 8
A9: =IF(J$2="","",IF($E9="","",IF($E9=MAX($E$5:$E$54),1,IF($E9=$E8,$A8,COUNT($E$5:$E9))))) -> 5 | B9: 7 | C9: Barbara | D9: Elio | E9: 51.58730159 | G9: 51.58730159 | H9: 65 | J9: 65 | K9: 0 | L9: 2 | M9: 0 | N9: 1 | O9: 4 | P9: 2 | Q9: 6 | R9: 4 | S9: 4 | T9: 4 | U9: 3 | V9: 3 | W9: 6 | X9: 4 | Y9: 6 | Z9: 4 | AA9: 2 | AB9: 1 | AC9: 5 | AD9: 4 | AE9: 0 | BF9: 2
A10: =IF(J$2="","",IF($E10="","",IF($E10=MAX($E$5:$E$54),1,IF($E10=$E9,$A9,COUNT($E$5:$E10))))) -> 6 | B10: 4 | C10: Manuela | D10: Roberto | E10: 41.26984127 | G10: 41.26984127 | H10: 52 | J10: 52 | K10: 5 | L10: 6 | M10: 6 | N10: 1 | O10: 0 | P10: 0 | Q10: 3 | R10: 2 | S10: 5 | T10: 0 | U10: 0 | V10: 3 | W10: 0 | X10: 2 | Y10: 0 | Z10: 4 | AA10: 5 | AB10: 1 | AC10: 0 | AD10: 4 | AE10: 5 | BF10: 7
A11: =IF(J$2="","",IF($E11="","",IF($E11=MAX($E$5:$E$54),1,IF($E11=$E10,$A10,COUNT($E$5:$E11))))) -> 7 | B11: 6 | C11: Cesarina | D11: Gaetano | E11: 38.88888889 | G11: 38.88888889 | H11: 49 | J11: 49 | K11: 4 | L11: 4 | M11: 2 | N11: 5 | O11: 2 | P11: 4 | Q11: 3 | R11: 4 | S11: 1 | T11: 2 | U11: 3 | V11: 3 | W11: 0 | X11: 0 | Y11: 1 | Z11: 2 | AA11: 1 | AB11: 0 | AC11: 2 | AD11: 4 | AE11: 2 | BF11: 3
A12: =IF(J$2="","",IF($E12="","",IF($E12=MAX($E$5:$E$54),1,IF($E12=$E11,$A11,COUNT($E$5:$E12))))) -> 8 | B12: 2 | C12: Marilena | D12: Sergio | E12: 34.12698413 | G12: 34.12698413 | H12: 43 | J12: 43 | K12: 1 | L12: 0 | M12: 0 | N12: 0 | O12: 2 | P12: 2 | Q12: 0 | R12: 0 | S12: 1 | T12: 2 | U12: 0 | V12: 3 | W12: 2 | X12: 4 | Y12: 5 | Z12: 2 | AA12: 4 | AB12: 5 | AC12: 4 | AD12: 2 | AE12: 4 | BF12: 15
A13: =IF(J$2="","",IF($E13="","",IF($E13=MAX($E$5:$E$54),1,IF($E13=$E12,$A12,COUNT($E$5:$E13))))) -> 9 | E13: 0 | G13: 0 | H13: 0 | J13: 0 | BF13: 5
A14: =IF(J$2="","",IF($E14="","",IF($E14=MAX($E$5:$E$54),1,IF($E14=$E13,$A13,COUNT($E$5:$E14))))) -> 9 | E14: 0 | G14: 0 | H14: 0 | J14: 0 | BF14: 6
A15: =IF(J$2="","",IF($E15="","",IF($E15=MAX($E$5:$E$54),1,IF($E15=$E14,$A14,COUNT($E$5:$E15))))) -> 9 | E15: 0 | G15: 0 | H15: 0 | J15: 0 | BF15: 9
A16: =IF(J$2="","",IF($E16="","",IF($E16=MAX($E$5:$E$54),1,IF($E16=$E15,$A15,COUNT($E$5:$E16))))) -> 9 | E16: 0 | G16: 0 | H16: 0 | J16: 0 | BF16: 10
A17: =IF(J$2="","",IF($E17="","",IF($E17=MAX($E$5:$E$54),1,IF($E17=$E16,$A16,COUNT($E$5:$E17))))) -> 9 | E17: 0 | G17: 0 | H17: 0 | J17: 0 | BF17: 12
A18: =IF(J$2="","",IF($E18="","",IF($E18=MAX($E$5:$E$54),1,IF($E18=$E17,$A17,COUNT($E$5:$E18))))) -> 9 | E18: 0 | G18: 0 | H18: 0 | J18: 0 | BF18: 13
A19: =IF(J$2="","",IF($E19="","",IF($E19=MAX($E$5:$E$54),1,IF($E19=$E18,$A18,COUNT($E$5:$E19))))) -> 9 | E19: 0 | G19: 0 | H19: 0 | J19: 0 | BF19: 14
A20: =IF(J$2="","",IF($E20="","",IF($E20=MAX($E$5:$E$54),1,IF($E20=$E19,$A19,COUNT($E$5:$E20))))) -> 9 | E20: 0 | G20: 0 | H20: 0 | J20: 0 | BF20: 16
A21: =IF(J$2="","",IF($E21="","",IF($E21=MAX($E$5:$E$54),1,IF($E21=$E20,$A20,COUNT($E$5:$E21))))) -> 9 | E21: 0 | G21: 0 | H21: 0 | J21: 0 | BF21: 17
A22: =IF(J$2="","",IF($E22="","",IF($E22=MAX($E$5:$E$54),1,IF($E22=$E21,$A21,COUNT($E$5:$E22))))) -> 9 | E22: 0 | G22: 0 | H22: 0 | J22: 0 | BF22: 18
A23: =IF(J$2="","",IF($E23="","",IF($E23=MAX($E$5:$E$54),1,IF($E23=$E22,$A22,COUNT($E$5:$E23))))) -> 9 | E23: 0 | G23: 0 | H23: 0 | J23: 0 | BF23: 19
A24: =IF(J$2="","",IF($E24="","",IF($E24=MAX($E$5:$E$54),1,IF($E24=$E23,$A23,COUNT($E$5:$E24))))) -> 9 | E24: 0 | G24: 0 | H24: 0 | J24: 0 | BF24: 20
A25: =IF(J$2="","",IF($E25="","",IF($E25=MAX($E$5:$E$54),1,IF($E25=$E24,$A24,COUNT($E$5:$E25))))) -> 9 | E25: 0 | G25: 0 | H25: 0 | J25: 0 | BF25: 21
A26: =IF(J$2="","",IF($E26="","",IF($E26=MAX($E$5:$E$54),1,IF($E26=$E25,$A25,COUNT($E$5:$E26))))) -> 9 | E26: 0 | G26: 0 | H26: 0 | J26: 0 | BF26: 22
A27: =IF(J$2="","",IF($E27="","",IF($E27=MAX($E$5:$E$54),1,IF($E27=$E26,$A26,COUNT($E$5:$E27))))) -> 9 | E27: 0 | G27: 0 | H27: 0 | J27: 0 | BF27: 23
A28: =IF(J$2="","",IF($E28="","",IF($E28=MAX($E$5:$E$54),1,IF($E28=$E27,$A27,COUNT($E$5:$E28))))) -> 9 | E28: 0 | G28: 0 | H28: 0 | J28: 0 | BF28: 24
A29: =IF(J$2="","",IF($E29="","",IF($E29=MAX($E$5:$E$54),1,IF($E29=$E28,$A28,COUNT($E$5:$E29))))) -> 9 | E29: 0 | G29: 0 | H29: 0 | J29: 0 | BF29: 25
A30: =IF(J$2="","",IF($E30="","",IF($E30=MAX($E$5:$E$54),1,IF($E30=$E29,$A29,COUNT($E$5:$E30))))) -> 9 | E30: 0 | G30: 0 | H30: 0 | J30: 0 | BF30: 26
A31: =IF(J$2="","",IF($E31="","",IF($E31=MAX($E$5:$E$54),1,IF($E31=$E30,$A30,COUNT($E$5:$E31))))) -> 9 | E31: 0 | G31: 0 | H31: 0 | J31: 0 | BF31: 27
A32: =IF(J$2="","",IF($E32="","",IF($E32=MAX($E$5:$E$54),1,IF($E32=$E31,$A31,COUNT($E$5:$E32))))) -> 9 | E32: 0 | G32: 0 | H32: 0 | J32: 0 | BF32: 28
A33: =IF(J$2="","",IF($E33="","",IF($E33=MAX($E$5:$E$54),1,IF($E33=$E32,$A32,COUNT($E$5:$E33))))) -> 9 | E33: 0 | G33: 0 | H33: 0 | J33: 0 | BF33: 29
A34: =IF(J$2="","",IF($E34="","",IF($E34=MAX($E$5:$E$54),1,IF($E34=$E33,$A33,COUNT($E$5:$E34))))) -> 9 | E34: 0 | G34: 0 | H34: 0 | J34: 0 | BF34: 30
A35: =IF(J$2="","",IF($E35="","",IF($E35=MAX($E$5:$E$54),1,IF($E35=$E34,$A34,COUNT($E$5:$E35))))) -> 9 | E35: 0 | G35: 0 | H35: 0 | J35: 0 | BF35: 31
A36: =IF(J$2="","",IF($E36="","",IF($E36=MAX($E$5:$E$54),1,IF($E36=$E35,$A35,COUNT($E$5:$E36))))) -> 9 | E36: 0 | G36: 0 | H36: 0 | J36: 0 | BF36: 32
A37: =IF(J$2="","",IF($E37="","",IF($E37=MAX($E$5:$E$54),1,IF($E37=$E36,$A36,COUNT($E$5:$E37))))) -> 9 | E37: 0 | G37: 0 | H37: 0 | J37: 0 | BF37: 33
A38: =IF(J$2="","",IF($E38="","",IF($E38=MAX($E$5:$E$54),1,IF($E38=$E37,$A37,COUNT($E$5:$E38))))) -> 9 | E38: 0 | G38: 0 | H38: 0 | J38: 0 | BF38: 34
A39: =IF(J$2="","",IF($E39="","",IF($E39=MAX($E$5:$E$54),1,IF($E39=$E38,$A38,COUNT($E$5:$E39))))) -> 9 | E39: 0 | G39: 0 | H39: 0 | J39: 0 | BF39: 35
A40: =IF(J$2="","",IF($E40="","",IF($E40=MAX($E$5:$E$54),1,IF($E40=$E39,$A39,COUNT($E$5:$E40))))) -> 9 | E40: 0 | G40: 0 | H40: 0 | J40: 0 | BF40: 36
A41: =IF(J$2="","",IF($E41="","",IF($E41=MAX($E$5:$E$54),1,IF($E41=$E40,$A40,COUNT($E$5:$E41))))) -> 9 | E41: 0 | G41: 0 | H41: 0 | J41: 0 | BF41: 37
A42: =IF(J$2="","",IF($E42="","",IF($E42=MAX($E$5:$E$54),1,IF($E42=$E41,$A41,COUNT($E$5:$E42))))) -> 9 | E42: 0 | G42: 0 | H42: 0 | J42: 0 | BF42: 38
A43: =IF(J$2="","",IF($E43="","",IF($E43=MAX($E$5:$E$54),1,IF($E43=$E42,$A42,COUNT($E$5:$E43))))) -> 9 | E43: 0 | G43: 0 | H43: 0 | J43: 0 | BF43: 39
A44: =IF(J$2="","",IF($E44="","",IF($E44=MAX($E$5:$E$54),1,IF($E44=$E43,$A43,COUNT($E$5:$E44))))) -> 9 | E44: 0 | G44: 0 | H44: 0 | J44: 0 | BF44: 40
A45: =IF(J$2="","",IF($E45="","",IF($E45=MAX($E$5:$E$54),1,IF($E45=$E44,$A44,COUNT($E$5:$E45))))) -> 9 | E45: 0 | G45: 0 | H45: 0 | J45: 0 | BF45: 41
A46: =IF(J$2="","",IF($E46="","",IF($E46=MAX($E$5:$E$54),1,IF($E46=$E45,$A45,COUNT($E$5:$E46))))) -> 9 | E46: 0 | G46: 0 | H46: 0 | J46: 0 | BF46: 42
A47: =IF(J$2="","",IF($E47="","",IF($E47=MAX($E$5:$E$54),1,IF($E47=$E46,$A46,COUNT($E$5:$E47))))) -> 9 | E47: 0 | G47: 0 | H47: 0 | J47: 0 | BF47: 43
A48: =IF(J$2="","",IF($E48="","",IF($E48=MAX($E$5:$E$54),1,IF($E48=$E47,$A47,COUNT($E$5:$E48))))) -> 9 | E48: 0 | G48: 0 | H48: 0 | J48: 0 | BF48: 44
A49: =IF(J$2="","",IF($E49="","",IF($E49=MAX($E$5:$E$54),1,IF($E49=$E48,$A48,COUNT($E$5:$E49))))) -> 9 | E49: 0 | G49: 0 | H49: 0 | J49: 0 | BF49: 45
A50: =IF(J$2="","",IF($E50="","",IF($E50=MAX($E$5:$E$54),1,IF($E50=$E49,$A49,COUNT($E$5:$E50))))) -> 9 | E50: 0 | G50: 0 | H50: 0 | J50: 0 | BF50: 46
A51: =IF(J$2="","",IF($E51="","",IF($E51=MAX($E$5:$E$54),1,IF($E51=$E50,$A50,COUNT($E$5:$E51))))) -> 9 | E51: 0 | G51: 0 | H51: 0 | J51: 0 | BF51: 47
A52: =IF(J$2="","",IF($E52="","",IF($E52=MAX($E$5:$E$54),1,IF($E52=$E51,$A51,COUNT($E$5:$E52))))) -> 9 | E52: 0 | G52: 0 | H52: 0 | J52: 0 | BF52: 48
A53: =IF(J$2="","",IF($E53="","",IF($E53=MAX($E$5:$E$54),1,IF($E53=$E52,$A52,COUNT($E$5:$E53))))) -> 9 | E53: 0 | G53: 0 | H53: 0 | J53: 0 | BF53: 49
A54: =IF(J$2="","",IF($E54="","",IF($E54=MAX($E$5:$E$54),1,IF($E54=$E53,$A53,COUNT($E$5:$E54))))) -> 9 | E54: 0 | G54: 0 | H54: 0 | J54: 0 | BF54: 50
D59: punteggi torneo ordinati per # di coppia
B60: # coppia | E60: con zeri | F60: senza zeri | G60: senza zeri
B61: 1 | E61: 57.14285714 | F61: =IF(E61=0,"",E61) -> 57.14285714 | G61: 57.14285714 | I61: =IF(H61=0,"",H61) ->  | BF61: 1
B62: 2 | E62: 34.12698413 | F62: 34.12698413 | G62: 34.12698413 | BF62: 15
B63: 3 | E63: 61.9047619 | F63: 61.9047619 | G63: 61.9047619 | I63: =IF(H63=0,"",H63) ->  | BF63: 4
B64: 4 | E64: 41.26984127 | F64: 41.26984127 | G64: 41.26984127 | I64: =IF(H64=0,"",H64) ->  | BF64: 7
B65: 5 | E65: 52.38095238 | F65: 52.38095238 | G65: 52.38095238 | I65: =IF(H65=0,"",H65) ->  | BF65: 8
B66: 6 | E66: 38.88888889 | F66: 38.88888889 | G66: 38.88888889 | BF66: 3
B67: 7 | E67: 51.58730159 | F67: 51.58730159 | G67: 51.58730159 | I67: =IF(H67=0,"",H67) ->  | BF67: 2
B68: 8 | E68: 62.6984127 | F68: 62.6984127 | G68: 62.6984127 | BF68: 11
E69: 0 | BF69: 5
E70: 0 | BF70: 6
E71: 0 | BF71: 9
E72: 0 | BF72: 10
E73: 0 | I73: =IF(H73=0,"",H73) ->  | BF73: 12
E74: 0 | I74: =IF(H74=0,"",H74) ->  | BF74: 13
E75: 0 | I75: =IF(H75=0,"",H75) ->  | BF75: 14
E76: 0 | I76: =IF(H76=0,"",H76) ->  | BF76: 16
E77: 0 | BF77: 17
E78: 0 | BF78: 18
E79: 0 | I79: =IF(H79=0,"",H79) ->  | BF79: 19
E80: 0 | I80: =IF(H80=0,"",H80) ->  | BF80: 20
E81: 0 | BF81: 21
E82: 0 | BF82: 22
E83: 0 | BF83: 23
E84: 0 | BF84: 24
E85: 0 | BF85: 25
E86: 0 | BF86: 26
E87: 0 | BF87: 27
E88: 0 | BF88: 28
E89: 0 | BF89: 29
E90: 0 | BF90: 30
E91: 0 | BF91: 31
E92: 0 | BF92: 32
E93: 0 | BF93: 33
E94: 0 | BF94: 34
E95: 0 | BF95: 35
E96: 0 | BF96: 36
E97: 0 | BF97: 37
E98: 0 | BF98: 38
E99: 0 | BF99: 39
E100: 0 | BF100: 40
E101: 0 | BF101: 41
E102: 0 | BF102: 42
E103: 0 | BF103: 43
E104: 0 | BF104: 44
E105: 0 | BF105: 45
E106: 0 | BF106: 46
E107: 0 | BF107: 47
E108: 0 | BF108: 48
E109: 0 | BF109: 49
E110: 0 | BF110: 50
A119: punteggi torneo ordinati per numero standard di coppia base
B120: # coppia | E120: con zeri | F120: senza zeri | G120: senza zeri
B121: 1 | E121: 57.14285714 | F121: =IF(E121=0,"",E121) -> 57.14285714 | G121: 57.14285714 | I121: =IF(H121=0,"",H121) ->  | BF121: 1
B122: 7 | E122: 51.58730159 | F122: 51.58730159 | G122: 51.58730159 | I122: =IF(H122=0,"",H122) ->  | BF122: 2
B123: 6 | E123: 38.88888889 | F123: 38.88888889 | G123: 38.88888889 | BF123: 3
B124: 3 | E124: 61.9047619 | F124: 61.9047619 | G124: 61.9047619 | I124: =IF(H124=0,"",H124) ->  | BF124: 4
E125: 0 | BF125: 5
E126: 0 | BF126: 6
B127: 4 | E127: 41.26984127 | F127: 41.26984127 | G127: 41.26984127 | I127: =IF(H127=0,"",H127) ->  | BF127: 7
B128: 5 | E128: 52.38095238 | F128: 52.38095238 | G128: 52.38095238 | I128: =IF(H128=0,"",H128) ->  | BF128: 8
E129: 0 | BF129: 9
E130: 0 | BF130: 10
B131: 8 | E131: 62.6984127 | F131: 62.6984127 | G131: 62.6984127 | BF131: 11

Sheet 16giu
A1: Data | C1: 2018-06-16 | D1: BridgeMania 2017-18 - Torneo Howell
A2: luogo | C2: Presezzi | D2: Coppie Ctrl+e | E2: Calcola Ctr+f | F2: Duplica Ctrl+g | G2: Clear Ctrl+h | J2: &
A3: # coppie | C3: =IF(B5="","",COUNT(B5:B25)) -> 8 | E3: =IF(E5="","",SUMIF(E5:E25,">0")) -> 400 | F3: =IF(F5="","",SUMIF(F5:F24,">0")) ->  | G3: =IF(G5="","",SUM(G5:G25)) -> 400 | H3: =IF(H5="","",SUM(H5:H25)) -> 504 | I3: =SUM(I5:I25) -> 0 | J3: =SUM(J5:J25) -> 504 | K3: =SUM(K5:K25) -> 24 | L3: =SUM(L5:L25) -> 24 | M3: 24 | N3: 24 | O3: 24 | P3: 24 | Q3: 24 | R3: 24 | S3: 24 | T3: 24 | U3: 24 | V3: 24 | W3: 24 | X3: 24 | Y3: 24 | Z3: 24 | AA3: 24 | AB3: 24 | AC3: 24 | AD3: 24 | AE3: 24 | AF3: 0 | AG3: 0 | AH3: 0 | AI3: 0 | AJ3: 0 | AK3: 0 | AL3: 0 | AM3: 0 | AN3: 0 | AO3: 0 | AP3: 0 | AQ3: 0 | AR3: 0 | AS3: 0 | AT3: 0 | AU3: 0 | AV3: 0 | AW3: 0 | AX3: 0
A4: Class. | B4: # | C4: Coppie | E4: Punteggio Serata | G4: Punteggio % | H4: Punteggio Torneo | I4: Penalità (-) | J4: Totale punti mano | K4: 1 | L4: 2 | M4: 3 | N4: 4 | O4: 5 | P4: 6 | Q4: 7 | R4: 8 | S4: 9 | T4: 10 | U4: 11 | V4: 12 | W4: 13 | X4: 14 | Y4: 15 | Z4: 16 | AA4: 17 | AB4: 18 | AC4: 19 | AD4: 20 | AE4: 21 | AF4: 22 | AG4: 23 | AH4: 24 | AI4: 25 | AJ4: 26 | AK4: 27 | AL4: 28 | AM4: 29 | AN4: 30 | AO4: 31 | AP4: 32 | AQ4: 33 | AR4: 34 | AS4: 35 | AT4: 36 | AU4: 37 | AV4: 38 | AW4: 39 | AX4: 40
A5: =IF(J$2="","",IF($E5="","",IF($E5=MAX($E$5:$E$54),1,IF($E5=$E4,$A4,COUNT($E$5:$E5))))) -> 1 | B5: 4 | C5: Barbara | D5: Elio | E5: =IF(J$2="","",IF(G5=0,0,F5+G5)) -> 61.11111111 | G5: =IF(J$2="","",IF($J5=0,0,(H5*$C$3/$J$3)*50)) -> 61.11111111 | H5: =IF(J$2="","",IF(SUM($K5:$AX5)=0,0,SUM($K5:$AX5)+$I5)) -> 77 | J5: =IF(B5="",0,IF(SUM($K5:$AX5)=0,0,SUM($K5:$AX5))) -> 77 | K5: 6 | L5: 4 | M5: 2 | N5: 0 | O5: 5 | P5: 2 | Q5: 5 | R5: 3 | S5: 4 | T5: 4 | U5: 5 | V5: 0 | W5: 2 | X5: 4 | Y5: 5 | Z5: 6 | AA5: 6 | AB5: 3 | AC5: 2 | AD5: 4 | AE5: 5 | BF5: 2
A6: =IF(J$2="","",IF($E6="","",IF($E6=MAX($E$5:$E$54),1,IF($E6=$E5,$A5,COUNT($E$5:$E6))))) -> 2 | B6: 6 | C6: Tatiana | D6: Julio | E6: 55.55555556 | G6: 55.55555556 | H6: 70 | J6: 70 | K6: 6 | L6: 4 | M6: 2 | N6: 2 | O6: 6 | P6: 0 | Q6: 1 | R6: 3 | S6: 2 | T6: 0 | U6: 5 | V6: 2 | W6: 4 | X6: 6 | Y6: 4 | Z6: 4 | AA6: 4 | AB6: 6 | AC6: 5 | AD6: 4 | AE6: 0 | BF6: 11
A7: =IF(J$2="","",IF($E7="","",IF($E7=MAX($E$5:$E$54),1,IF($E7=$E6,$A6,COUNT($E$5:$E7))))) -> 3 | B7: 3 | C7: Stefania | D7: Massimo | E7: 53.17460317 | G7: 53.17460317 | H7: 67 | J7: 67 | K7: 2 | L7: 6 | M7: 0 | N7: 4 | O7: 5 | P7: 2 | Q7: 6 | R7: 3 | S7: 2 | T7: 6 | U7: 1 | V7: 4 | W7: 4 | X7: 2 | Y7: 6 | Z7: 0 | AA7: 0 | AB7: 3 | AC7: 5 | AD7: 4 | AE7: 2 | BF7: 10
A8: =IF(J$2="","",IF($E8="","",IF($E8=MAX($E$5:$E$54),1,IF($E8=$E7,$A7,COUNT($E$5:$E8))))) -> 3 | B8: 7 | C8: Manuela | D8: Roberto | E8: 53.17460317 | G8: 53.17460317 | H8: 67 | J8: 67 | K8: 4 | L8: 0 | M8: 6 | N8: 4 | O8: 0 | P8: 6 | Q8: 4 | R8: 3 | S8: 6 | T8: 1 | U8: 5 | V8: 6 | W8: 4 | X8: 2 | Y8: 1 | Z8: 2 | AA8: 2 | AB8: 6 | AC8: 0 | AD8: 0 | AE8: 5 | BF8: 7
A9: =IF(J$2="","",IF($E9="","",IF($E9=MAX($E$5:$E$54),1,IF($E9=$E8,$A8,COUNT($E$5:$E9))))) -> 5 | B9: 5 | C9: Antonella | D9: Dino | E9: 50.79365079 | G9: 50.79365079 | H9: 64 | J9: 64 | K9: 0 | L9: 2 | M9: 4 | N9: 2 | O9: 1 | P9: 4 | Q9: 5 | R9: 3 | S9: 4 | T9: 5 | U9: 1 | V9: 0 | W9: 6 | X9: 4 | Y9: 5 | Z9: 4 | AA9: 4 | AB9: 3 | AC9: 4 | AD9: 2 | AE9: 1 | BF9: 1
A10: =IF(J$2="","",IF($E10="","",IF($E10=MAX($E$5:$E$54),1,IF($E10=$E9,$A9,COUNT($E$5:$E10))))) -> 6 | B10: 2 | C10: Renata | D10: Sandro | E10: 46.82539683 | G10: 46.82539683 | H10: 59 | J10: 59 | K10: 0 | L10: 2 | M10: 4 | N10: 2 | O10: 4 | P10: 4 | Q10: 1 | R10: 3 | S10: 2 | T10: 5 | U10: 5 | V10: 4 | W10: 2 | X10: 4 | Y10: 0 | Z10: 4 | AA10: 4 | AB10: 0 | AC10: 1 | AD10: 2 | AE10: 6 | BF10: 9
A11: =IF(J$2="","",IF($E11="","",IF($E11=MAX($E$5:$E$54),1,IF($E11=$E10,$A10,COUNT($E$5:$E11))))) -> 7 | B11: 8 | C11: Olimpia | D11: Sauro | E11: 42.85714286 | G11: 42.85714286 | H11: 54 | J11: 54 | K11: 4 | L11: 0 | M11: 6 | N11: 4 | O11: 2 | P11: 2 | Q11: 0 | R11: 3 | S11: 4 | T11: 2 | U11: 1 | V11: 6 | W11: 0 | X11: 2 | Y11: 1 | Z11: 2 | AA11: 2 | AB11: 0 | AC11: 6 | AD11: 6 | AE11: 1 | BF11: 8
A12: =IF(J$2="","",IF($E12="","",IF($E12=MAX($E$5:$E$54),1,IF($E12=$E11,$A11,COUNT($E$5:$E12))))) -> 8 | B12: 1 | C12: Lilli | D12: Gianni | E12: 36.50793651 | G12: 36.50793651 | H12: 46 | J12: 46 | K12: 2 | L12: 6 | M12: 0 | N12: 6 | O12: 1 | P12: 4 | Q12: 2 | R12: 3 | S12: 0 | T12: 1 | U12: 1 | V12: 2 | W12: 2 | X12: 0 | Y12: 2 | Z12: 2 | AA12: 2 | AB12: 3 | AC12: 1 | AD12: 2 | AE12: 4 | BF12: 6
A13: =IF(J$2="","",IF($E13="","",IF($E13=MAX($E$5:$E$54),1,IF($E13=$E12,$A12,COUNT($E$5:$E13))))) -> 9 | E13: 0 | G13: 0 | H13: 0 | J13: 0 | BF13: 3
A14: =IF(J$2="","",IF($E14="","",IF($E14=MAX($E$5:$E$54),1,IF($E14=$E13,$A13,COUNT($E$5:$E14))))) -> 9 | E14: 0 | G14: 0 | H14: 0 | J14: 0 | BF14: 4
A15: =IF(J$2="","",IF($E15="","",IF($E15=MAX($E$5:$E$54),1,IF($E15=$E14,$A14,COUNT($E$5:$E15))))) -> 9 | E15: 0 | G15: 0 | H15: 0 | J15: 0 | BF15: 5
A16: =IF(J$2="","",IF($E16="","",IF($E16=MAX($E$5:$E$54),1,IF($E16=$E15,$A15,COUNT($E$5:$E16))))) -> 9 | E16: 0 | G16: 0 | H16: 0 | J16: 0 | BF16: 12
A17: =IF(J$2="","",IF($E17="","",IF($E17=MAX($E$5:$E$54),1,IF($E17=$E16,$A16,COUNT($E$5:$E17))))) -> 9 | E17: 0 | G17: 0 | H17: 0 | J17: 0 | BF17: 13
A18: =IF(J$2="","",IF($E18="","",IF($E18=MAX($E$5:$E$54),1,IF($E18=$E17,$A17,COUNT($E$5:$E18))))) -> 9 | E18: 0 | G18: 0 | H18: 0 | J18: 0 | BF18: 14
A19: =IF(J$2="","",IF($E19="","",IF($E19=MAX($E$5:$E$54),1,IF($E19=$E18,$A18,COUNT($E$5:$E19))))) -> 9 | E19: 0 | G19: 0 | H19: 0 | J19: 0 | BF19: 15
A20: =IF(J$2="","",IF($E20="","",IF($E20=MAX($E$5:$E$54),1,IF($E20=$E19,$A19,COUNT($E$5:$E20))))) -> 9 | E20: 0 | G20: 0 | H20: 0 | J20: 0 | BF20: 16
A21: =IF(J$2="","",IF($E21="","",IF($E21=MAX($E$5:$E$54),1,IF($E21=$E20,$A20,COUNT($E$5:$E21))))) -> 9 | E21: 0 | G21: 0 | H21: 0 | J21: 0 | BF21: 17
A22: =IF(J$2="","",IF($E22="","",IF($E22=MAX($E$5:$E$54),1,IF($E22=$E21,$A21,COUNT($E$5:$E22))))) -> 9 | E22: 0 | G22: 0 | H22: 0 | J22: 0 | BF22: 18
A23: =IF(J$2="","",IF($E23="","",IF($E23=MAX($E$5:$E$54),1,IF($E23=$E22,$A22,COUNT($E$5:$E23))))) -> 9 | E23: 0 | G23: 0 | H23: 0 | J23: 0 | BF23: 19
A24: =IF(J$2="","",IF($E24="","",IF($E24=MAX($E$5:$E$54),1,IF($E24=$E23,$A23,COUNT($E$5:$E24))))) -> 9 | E24: 0 | G24: 0 | H24: 0 | J24: 0 | BF24: 20
A25: =IF(J$2="","",IF($E25="","",IF($E25=MAX($E$5:$E$54),1,IF($E25=$E24,$A24,COUNT($E$5:$E25))))) -> 9 | E25: 0 | G25: 0 | H25: 0 | J25: 0 | BF25: 21
A26: =IF(J$2="","",IF($E26="","",IF($E26=MAX($E$5:$E$54),1,IF($E26=$E25,$A25,COUNT($E$5:$E26))))) -> 9 | E26: 0 | G26: 0 | H26: 0 | J26: 0 | BF26: 22
A27: =IF(J$2="","",IF($E27="","",IF($E27=MAX($E$5:$E$54),1,IF($E27=$E26,$A26,COUNT($E$5:$E27))))) -> 9 | E27: 0 | G27: 0 | H27: 0 | J27: 0 | BF27: 23
A28: =IF(J$2="","",IF($E28="","",IF($E28=MAX($E$5:$E$54),1,IF($E28=$E27,$A27,COUNT($E$5:$E28))))) -> 9 | E28: 0 | G28: 0 | H28: 0 | J28: 0 | BF28: 24
A29: =IF(J$2="","",IF($E29="","",IF($E29=MAX($E$5:$E$54),1,IF($E29=$E28,$A28,COUNT($E$5:$E29))))) -> 9 | E29: 0 | G29: 0 | H29: 0 | J29: 0 | BF29: 25
A30: =IF(J$2="","",IF($E30="","",IF($E30=MAX($E$5:$E$54),1,IF($E30=$E29,$A29,COUNT($E$5:$E30))))) -> 9 | E30: 0 | G30: 0 | H30: 0 | J30: 0 | BF30: 26
A31: =IF(J$2="","",IF($E31="","",IF($E31=MAX($E$5:$E$54),1,IF($E31=$E30,$A30,COUNT($E$5:$E31))))) -> 9 | E31: 0 | G31: 0 | H31: 0 | J31: 0 | BF31: 27
A32: =IF(J$2="","",IF($E32="","",IF($E32=MAX($E$5:$E$54),1,IF($E32=$E31,$A31,COUNT($E$5:$E32))))) -> 9 | E32: 0 | G32: 0 | H32: 0 | J32: 0 | BF32: 28
A33: =IF(J$2="","",IF($E33="","",IF($E33=MAX($E$5:$E$54),1,IF($E33=$E32,$A32,COUNT($E$5:$E33))))) -> 9 | E33: 0 | G33: 0 | H33: 0 | J33: 0 | BF33: 29
A34: =IF(J$2="","",IF($E34="","",IF($E34=MAX($E$5:$E$54),1,IF($E34=$E33,$A33,COUNT($E$5:$E34))))) -> 9 | E34: 0 | G34: 0 | H34: 0 | J34: 0 | BF34: 30
A35: =IF(J$2="","",IF($E35="","",IF($E35=MAX($E$5:$E$54),1,IF($E35=$E34,$A34,COUNT($E$5:$E35))))) -> 9 | E35: 0 | G35: 0 | H35: 0 | J35: 0 | BF35: 31
A36: =IF(J$2="","",IF($E36="","",IF($E36=MAX($E$5:$E$54),1,IF($E36=$E35,$A35,COUNT($E$5:$E36))))) -> 9 | E36: 0 | G36: 0 | H36: 0 | J36: 0 | BF36: 32
A37: =IF(J$2="","",IF($E37="","",IF($E37=MAX($E$5:$E$54),1,IF($E37=$E36,$A36,COUNT($E$5:$E37))))) -> 9 | E37: =IF(J$2="","",IF(G37=0,0,F37+G37)) -> 0 | G37: =IF(J$2="","",IF($J37=0,0,(H37*$C$3/$J$3)*50)) -> 0 | H37: =IF(J$2="","",IF(SUM($K37:$AX37)=0,0,SUM($K37:$AX37)+$I37)) -> 0 | J37: =IF(B37="",0,IF(SUM($K37:$AX37)=0,0,SUM($K37:$AX37))) -> 0 | BF37: 33
A38: =IF(J$2="","",IF($E38="","",IF($E38=MAX($E$5:$E$54),1,IF($E38=$E37,$A37,COUNT($E$5:$E38))))) -> 9 | E38: 0 | G38: 0 | H38: 0 | J38: 0 | BF38: 34
A39: =IF(J$2="","",IF($E39="","",IF($E39=MAX($E$5:$E$54),1,IF($E39=$E38,$A38,COUNT($E$5:$E39))))) -> 9 | E39: 0 | G39: 0 | H39: 0 | J39: 0 | BF39: 35
A40: =IF(J$2="","",IF($E40="","",IF($E40=MAX($E$5:$E$54),1,IF($E40=$E39,$A39,COUNT($E$5:$E40))))) -> 9 | E40: 0 | G40: 0 | H40: 0 | J40: 0 | BF40: 36
A41: =IF(J$2="","",IF($E41="","",IF($E41=MAX($E$5:$E$54),1,IF($E41=$E40,$A40,COUNT($E$5:$E41))))) -> 9 | E41: 0 | G41: 0 | H41: 0 | J41: 0 | BF41: 37
A42: =IF(J$2="","",IF($E42="","",IF($E42=MAX($E$5:$E$54),1,IF($E42=$E41,$A41,COUNT($E$5:$E42))))) -> 9 | E42: 0 | G42: 0 | H42: 0 | J42: 0 | BF42: 38
A43: =IF(J$2="","",IF($E43="","",IF($E43=MAX($E$5:$E$54),1,IF($E43=$E42,$A42,COUNT($E$5:$E43))))) -> 9 | E43: 0 | G43: 0 | H43: 0 | J43: 0 | BF43: 39
A44: =IF(J$2="","",IF($E44="","",IF($E44=MAX($E$5:$E$54),1,IF($E44=$E43,$A43,COUNT($E$5:$E44))))) -> 9 | E44: 0 | G44: 0 | H44: 0 | J44: 0 | BF44: 40
A45: =IF(J$2="","",IF($E45="","",IF($E45=MAX($E$5:$E$54),1,IF($E45=$E44,$A44,COUNT($E$5:$E45))))) -> 9 | E45: 0 | G45: 0 | H45: 0 | J45: 0 | BF45: 41
A46: =IF(J$2="","",IF($E46="","",IF($E46=MAX($E$5:$E$54),1,IF($E46=$E45,$A45,COUNT($E$5:$E46))))) -> 9 | E46: 0 | G46: 0 | H46: 0 | J46: 0 | BF46: 42
A47: =IF(J$2="","",IF($E47="","",IF($E47=MAX($E$5:$E$54),1,IF($E47=$E46,$A46,COUNT($E$5:$E47))))) -> 9 | E47: 0 | G47: 0 | H47: 0 | J47: 0 | BF47: 43
A48: =IF(J$2="","",IF($E48="","",IF($E48=MAX($E$5:$E$54),1,IF($E48=$E47,$A47,COUNT($E$5:$E48))))) -> 9 | E48: 0 | G48: 0 | H48: 0 | J48: 0 | BF48: 44
A49: =IF(J$2="","",IF($E49="","",IF($E49=MAX($E$5:$E$54),1,IF($E49=$E48,$A48,COUNT($E$5:$E49))))) -> 9 | E49: 0 | G49: 0 | H49: 0 | J49: 0 | BF49: 45
A50: =IF(J$2="","",IF($E50="","",IF($E50=MAX($E$5:$E$54),1,IF($E50=$E49,$A49,COUNT($E$5:$E50))))) -> 9 | E50: 0 | G50: 0 | H50: 0 | J50: 0 | BF50: 46
A51: =IF(J$2="","",IF($E51="","",IF($E51=MAX($E$5:$E$54),1,IF($E51=$E50,$A50,COUNT($E$5:$E51))))) -> 9 | E51: 0 | G51: 0 | H51: 0 | J51: 0 | BF51: 47
A52: =IF(J$2="","",IF($E52="","",IF($E52=MAX($E$5:$E$54),1,IF($E52=$E51,$A51,COUNT($E$5:$E52))))) -> 9 | E52: 0 | G52: 0 | H52: 0 | J52: 0 | BF52: 48
A53: =IF(J$2="","",IF($E53="","",IF($E53=MAX($E$5:$E$54),1,IF($E53=$E52,$A52,COUNT($E$5:$E53))))) -> 9 | E53: 0 | G53: 0 | H53: 0 | J53: 0 | BF53: 49
A54: =IF(J$2="","",IF($E54="","",IF($E54=MAX($E$5:$E$54),1,IF($E54=$E53,$A53,COUNT($E$5:$E54))))) -> 9 | E54: 0 | G54: 0 | H54: 0 | J54: 0 | BF54: 50
D59: punteggi torneo ordinati per # di coppia
B60: # coppia | E60: con zeri | F60: senza zeri | G60: senza zeri
B61: 1 | E61: 36.50793651 | F61: =IF(E61=0,"",E61) -> 36.50793651 | G61: 36.50793651 | I61: =IF(H61=0,"",H61) ->  | BF61: 6
B62: 2 | E62: 46.82539683 | F62: 46.82539683 | G62: 46.82539683 | BF62: 9
B63: 3 | E63: 53.17460317 | F63: 53.17460317 | G63: 53.17460317 | I63: =IF(H63=0,"",H63) ->  | BF63: 10
B64: 4 | E64: 61.11111111 | F64: 61.11111111 | G64: 61.11111111 | I64: =IF(H64=0,"",H64) ->  | BF64: 2
B65: 5 | E65: 50.79365079 | F65: 50.79365079 | G65: 50.79365079 | I65: =IF(H65=0,"",H65) ->  | BF65: 1
B66: 6 | E66: 55.55555556 | F66: 55.55555556 | G66: 55.55555556 | BF66: 11
B67: 7 | E67: 53.17460317 | F67: 53.17460317 | G67: 53.17460317 | I67: =IF(H67=0,"",H67) ->  | BF67: 7
B68: 8 | E68: 42.85714286 | F68: 42.85714286 | G68: 42.85714286 | BF68: 8
E69: 0 | BF69: 3
E70: 0 | BF70: 4
E71: 0 | BF71: 5
E72: 0 | BF72: 12
E73: 0 | I73: =IF(H73=0,"",H73) ->  | BF73: 13
E74: 0 | I74: =IF(H74=0,"",H74) ->  | BF74: 14
E75: 0 | I75: =IF(H75=0,"",H75) ->  | BF75: 15
E76: 0 | I76: =IF(H76=0,"",H76) ->  | BF76: 16
E77: 0 | BF77: 17
E78: 0 | BF78: 18
E79: 0 | I79: =IF(H79=0,"",H79) ->  | BF79: 19
E80: 0 | I80: =IF(H80=0,"",H80) ->  | BF80: 20
E81: 0 | BF81: 21
E82: 0 | BF82: 22
E83: 0 | BF83: 23
E84: 0 | BF84: 24
E85: 0 | BF85: 25
E86: 0 | BF86: 26
E87: 0 | BF87: 27
E88: 0 | BF88: 28
E89: 0 | BF89: 29
E90: 0 | BF90: 30
E91: 0 | BF91: 31
E92: 0 | BF92: 32
E93: 0 | F93: =IF(E93=0,"",E93) ->  | BF93: 33
E94: 0 | BF94: 34
E95: 0 | BF95: 35
E96: 0 | BF96: 36
E97: 0 | BF97: 37
E98: 0 | BF98: 38
E99: 0 | BF99: 39
E100: 0 | BF100: 40
E101: 0 | BF101: 41
E102: 0 | BF102: 42
E103: 0 | BF103: 43
E104: 0 | BF104: 44
E105: 0 | BF105: 45
E106: 0 | BF106: 46
E107: 0 | BF107: 47
E108: 0 | BF108: 48
E109: 0 | BF109: 49
E110: 0 | BF110: 50
A119: punteggi torneo ordinati per numero standard di coppia base
B120: # coppia | E120: con zeri | F120: senza zeri | G120: senza zeri
B121: 5 | E121: 50.79365079 | F121: =IF(E121=0,"",E121) -> 50.79365079 | G121: 50.79365079 | I121: =IF(H121=0,"",H121) ->  | BF121: 1
B122: 4 | E122: 61.11111111 | F122: 61.11111111 | G122: 61.11111111 | I122: =IF(H122=0,"",H122) ->  | BF122: 2
E123: 0 | BF123: 3
E124: 0 | BF124: 4
E125: 0 | BF125: 5
B126: 1 | E126: 36.50793651 | F126: 36.50793651 | G126: 36.50793651 | I126: =IF(H126=0,"",H126) ->  | BF126: 6
B127: 7 | E127: 53.17460317 | F127: 53.17460317 | G127: 53.17460317 | I127: =IF(H127=0,"",H127) ->  | BF127: 7
B128: 8 | E128: 42.85714286 | F128: 42.85714286 | G128: 42.85714286 | BF128: 8
B129: 2 | E129: 46.82539683 | F129: 46.82539683 | G129: 46.82539683 | BF129: 9
B130: 3 | E130: 53.17460317 | F130: 53.17460317 | G130: 53.17460317 | I130: =IF(H130=0,"",H130) ->  | BF130: 10
B131: 6 | E131: 55.55555556 | F131: 55.55555556 | G131: 55.55555556 | BF131: 11

Sheet 9giu
A1: Data | C1: 2018-06-09 | D1: BridgeMania 2017-18 - Torneo Howell
A2: luogo | C2: Bancilhon | D2: Coppie Ctrl+e | E2: Calcola Ctr+f | F2: Duplica Ctrl+g | G2: Clear Ctrl+h | J2: &
A3: # coppie | C3: =IF(B5="","",COUNT(B5:B25)) -> 7 | E3: =IF(E5="","",SUMIF(E5:E25,">0")) -> 350 | F3: =IF(F5="","",SUMIF(F5:F24,">0")) ->  | G3: =IF(G5="","",SUM(G5:G25)) -> 350 | H3: =IF(H5="","",SUM(H5:H25)) -> 294 | I3: =SUM(I5:I25) -> 0 | J3: =SUM(J5:J25) -> 294 | K3: =SUM(K5:K25) -> 14 | L3: =SUM(L5:L25) -> 14 | M3: 14 | N3: 14 | O3: 14 | P3: 14 | Q3: 14 | R3: 14 | S3: 14 | T3: 14 | U3: 14 | V3: 14 | W3: 14 | X3: 14 | Y3: 14 | Z3: 14 | AA3: 14 | AB3: 14 | AC3: 14 | AD3: 14 | AE3: 14 | AF3: 0 | AG3: 0 | AH3: 0 | AI3: 0 | AJ3: 0 | AK3: 0 | AL3: 0 | AM3: 0 | AN3: 0 | AO3: 0 | AP3: 0 | AQ3: 0 | AR3: 0 | AS3: 0 | AT3: 0 | AU3: 0 | AV3: 0 | AW3: 0 | AX3: 0
A4: Class. | B4: # | C4: Coppie | E4: Punteggio Serata | G4: Punteggio % | H4: Punteggio Torneo | I4: Penalità (-) | J4: Totale punti mano | K4: 1 | L4: 2 | M4: 3 | N4: 4 | O4: 5 | P4: 6 | Q4: 7 | R4: 8 | S4: 9 | T4: 10 | U4: 11 | V4: 12 | W4: 13 | X4: 14 | Y4: 15 | Z4: 16 | AA4: 17 | AB4: 18 | AC4: 19 | AD4: 20 | AE4: 21 | AF4: 22 | AG4: 23 | AH4: 24 | AI4: 25 | AJ4: 26 | AK4: 27 | AL4: 28 | AM4: 29 | AN4: 30 | AO4: 31 | AP4: 32 | AQ4: 33 | AR4: 34 | AS4: 35 | AT4: 36 | AU4: 37 | AV4: 38 | AW4: 39 | AX4: 40
A5: =IF(J$2="","",IF($E5="","",IF($E5=MAX($E$5:$E$54),1,IF($E5=$E4,$A4,COUNT($E$5:$E5))))) -> 1 | B5: 5 | C5: Manuela | D5: Roberto | E5: =IF(J$2="","",IF(G5=0,0,F5+G5)) -> 55.95238095 | G5: =IF(J$2="","",IF($J5=0,0,(H5*$C$3/$J$3)*50)) -> 55.95238095 | H5: =IF(J$2="","",IF(SUM($K5:$AX5)=0,0,SUM($K5:$AX5)+$I5)) -> 47 | J5: =IF(B5="",0,IF(SUM($K5:$AX5)=0,0,SUM($K5:$AX5))) -> 47 | K5: 1 | L5: 1 | M5: 4 | N5: 0 | O5: 1 | P5: 4 | Q5: 2 | R5: 3 | S5: 1 | T5: 4 | U5: 4 | V5: 4 | W5: 2 | X5: 2 | Y5: 2 | Z5: 4 | AA5: 4 | AB5: 0 | AC5: 2 | AD5: 0 | AE5: 2 | BF5: 7
A6: =IF(J$2="","",IF($E6="","",IF($E6=MAX($E$5:$E$54),1,IF($E6=$E5,$A5,COUNT($E$5:$E6))))) -> 2 | B6: 3 | C6: Renata | D6: Sandro | E6: 53.57142857 | G6: 53.57142857 | H6: 45 | J6: 45 | K6: 0 | L6: 0 | M6: 4 | N6: 4 | O6: 3 | P6: 0 | Q6: 2 | R6: 2 | S6: 2 | T6: 4 | U6: 4 | V6: 3 | W6: 4 | X6: 3 | Y6: 0 | Z6: 1 | AA6: 1 | AB6: 2 | AC6: 0 | AD6: 2 | AE6: 4 | BF6: 9
A7: =IF(J$2="","",IF($E7="","",IF($E7=MAX($E$5:$E$54),1,IF($E7=$E6,$A6,COUNT($E$5:$E7))))) -> 2 | B7: 4 | C7: Barbara | D7: Elio | E7: 53.57142857 | G7: 53.57142857 | H7: 45 | J7: 45 | K7: 1 | L7: 1 | M7: 2 | N7: 0 | O7: 0 | P7: 4 | Q7: 2 | R7: 3 | S7: 4 | T7: 2 | U7: 2 | V7: 2 | W7: 2 | X7: 4 | Y7: 0 | Z7: 3 | AA7: 3 | AB7: 2 | AC7: 2 | AD7: 4 | AE7: 2 | BF7: 2
A8: =IF(J$2="","",IF($E8="","",IF($E8=MAX($E$5:$E$54),1,IF($E8=$E7,$A7,COUNT($E$5:$E8))))) -> 4 | B8: 2 | C8: Antonella | D8: Dino | E8: 52.38095238 | G8: 52.38095238 | H8: 44 | J8: 44 | K8: 3 | L8: 3 | M8: 2 | N8: 2 | O8: 2 | P8: 2 | Q8: 2 | R8: 1 | S8: 3 | T8: 2 | U8: 2 | V8: 1 | W8: 0 | X8: 1 | Y8: 4 | Z8: 1 | AA8: 1 | AB8: 4 | AC8: 0 | AD8: 4 | AE8: 4 | BF8: 1
A9: =IF(J$2="","",IF($E9="","",IF($E9=MAX($E$5:$E$54),1,IF($E9=$E8,$A8,COUNT($E$5:$E9))))) -> 5 | B9: 7 | C9: Isolde | D9: Gill | E9: 50 | G9: 50 | H9: 42 | J9: 42 | K9: 4 | L9: 4 | M9: 0 | N9: 2 | O9: 3 | P9: 2 | Q9: 2 | R9: 4 | S9: 3 | T9: 0 | U9: 0 | V9: 0 | W9: 2 | X9: 0 | Y9: 4 | Z9: 3 | AA9: 3 | AB9: 0 | AC9: 2 | AD9: 2 | AE9: 2 | BF9: 19
A10: =IF(J$2="","",IF($E10="","",IF($E10=MAX($E$5:$E$54),1,IF($E10=$E9,$A9,COUNT($E$5:$E10))))) -> 6 | B10: 1 | C10: Cesarina | D10: Gaetano | E10: 48.80952381 | G10: 48.80952381 | H10: 41 | J10: 41 | K10: 2 | L10: 2 | M10: 2 | N10: 4 | O10: 4 | P10: 0 | Q10: 2 | R10: 0 | S10: 1 | T10: 2 | U10: 2 | V10: 3 | W10: 4 | X10: 1 | Y10: 2 | Z10: 0 | AA10: 0 | AB10: 4 | AC10: 4 | AD10: 2 | AE10: 0 | BF10: 3
A11: =IF(J$2="","",IF($E11="","",IF($E11=MAX($E$5:$E$54),1,IF($E11=$E10,$A10,COUNT($E$5:$E11))))) -> 7 | B11: 6 | C11: Lilli | D11: Gianni | E11: 35.71428571 | G11: 35.71428571 | H11: 30 | J11: 30 | K11: 3 | L11: 3 | M11: 0 | N11: 2 | O11: 1 | P11: 2 | Q11: 2 | R11: 1 | S11: 0 | T11: 0 | U11: 0 | V11: 1 | W11: 0 | X11: 3 | Y11: 2 | Z11: 2 | AA11: 2 | AB11: 2 | AC11: 4 | AD11: 0 | AE11: 0 | BF11: 6
A12: =IF(J$2="","",IF($E12="","",IF($E12=MAX($E$5:$E$54),1,IF($E12=$E11,$A11,COUNT($E$5:$E12))))) -> 8 | E12: 0 | G12: 0 | H12: 0 | J12: 0 | BF12: 4
A13: =IF(J$2="","",IF($E13="","",IF($E13=MAX($E$5:$E$54),1,IF($E13=$E12,$A12,COUNT($E$5:$E13))))) -> 8 | E13: 0 | G13: 0 | H13: 0 | J13: 0 | BF13: 5
A14: =IF(J$2="","",IF($E14="","",IF($E14=MAX($E$5:$E$54),1,IF($E14=$E13,$A13,COUNT($E$5:$E14))))) -> 8 | E14: 0 | G14: 0 | H14: 0 | J14: 0 | BF14: 8
A15: =IF(J$2="","",IF($E15="","",IF($E15=MAX($E$5:$E$54),1,IF($E15=$E14,$A14,COUNT($E$5:$E15))))) -> 8 | E15: 0 | G15: 0 | H15: 0 | J15: 0 | BF15: 10
A16: =IF(J$2="","",IF($E16="","",IF($E16=MAX($E$5:$E$54),1,IF($E16=$E15,$A15,COUNT($E$5:$E16))))) -> 8 | E16: 0 | G16: 0 | H16: 0 | J16: 0 | BF16: 11
A17: =IF(J$2="","",IF($E17="","",IF($E17=MAX($E$5:$E$54),1,IF($E17=$E16,$A16,COUNT($E$5:$E17))))) -> 8 | E17: 0 | G17: 0 | H17: 0 | J17: 0 | BF17: 12
A18: =IF(J$2="","",IF($E18="","",IF($E18=MAX($E$5:$E$54),1,IF($E18=$E17,$A17,COUNT($E$5:$E18))))) -> 8 | E18: 0 | G18: 0 | H18: 0 | J18: 0 | BF18: 13
A19: =IF(J$2="","",IF($E19="","",IF($E19=MAX($E$5:$E$54),1,IF($E19=$E18,$A18,COUNT($E$5:$E19))))) -> 8 | E19: 0 | G19: 0 | H19: 0 | J19: 0 | BF19: 14
A20: =IF(J$2="","",IF($E20="","",IF($E20=MAX($E$5:$E$54),1,IF($E20=$E19,$A19,COUNT($E$5:$E20))))) -> 8 | E20: 0 | G20: 0 | H20: 0 | J20: 0 | BF20: 15
A21: =IF(J$2="","",IF($E21="","",IF($E21=MAX($E$5:$E$54),1,IF($E21=$E20,$A20,COUNT($E$5:$E21))))) -> 8 | E21: 0 | G21: 0 | H21: 0 | J21: 0 | BF21: 16
A22: =IF(J$2="","",IF($E22="","",IF($E22=MAX($E$5:$E$54),1,IF($E22=$E21,$A21,COUNT($E$5:$E22))))) -> 8 | E22: 0 | G22: 0 | H22: 0 | J22: 0 | BF22: 17
A23: =IF(J$2="","",IF($E23="","",IF($E23=MAX($E$5:$E$54),1,IF($E23=$E22,$A22,COUNT($E$5:$E23))))) -> 8 | E23: 0 | G23: 0 | H23: 0 | J23: 0 | BF23: 18
A24: =IF(J$2="","",IF($E24="","",IF($E24=MAX($E$5:$E$54),1,IF($E24=$E23,$A23,COUNT($E$5:$E24))))) -> 8 | E24: 0 | G24: 0 | H24: 0 | J24: 0 | BF24: 20
A25: =IF(J$2="","",IF($E25="","",IF($E25=MAX($E$5:$E$54),1,IF($E25=$E24,$A24,COUNT($E$5:$E25))))) -> 8 | E25: 0 | G25: 0 | H25: 0 | J25: 0 | BF25: 21
A26: =IF(J$2="","",IF($E26="","",IF($E26=MAX($E$5:$E$54),1,IF($E26=$E25,$A25,COUNT($E$5:$E26))))) -> 8 | E26: 0 | G26: 0 | H26: 0 | J26: 0 | BF26: 22
A27: =IF(J$2="","",IF($E27="","",IF($E27=MAX($E$5:$E$54),1,IF($E27=$E26,$A26,COUNT($E$5:$E27))))) -> 8 | E27: 0 | G27: 0 | H27: 0 | J27: 0 | BF27: 23
A28: =IF(J$2="","",IF($E28="","",IF($E28=MAX($E$5:$E$54),1,IF($E28=$E27,$A27,COUNT($E$5:$E28))))) -> 8 | E28: 0 | G28: 0 | H28: 0 | J28: 0 | BF28: 24
A29: =IF(J$2="","",IF($E29="","",IF($E29=MAX($E$5:$E$54),1,IF($E29=$E28,$A28,COUNT($E$5:$E29))))) -> 8 | E29: 0 | G29: 0 | H29: 0 | J29: 0 | BF29: 25
A30: =IF(J$2="","",IF($E30="","",IF($E30=MAX($E$5:$E$54),1,IF($E30=$E29,$A29,COUNT($E$5:$E30))))) -> 8 | E30: 0 | G30: 0 | H30: 0 | J30: 0 | BF30: 26
A31: =IF(J$2="","",IF($E31="","",IF($E31=MAX($E$5:$E$54),1,IF($E31=$E30,$A30,COUNT($E$5:$E31))))) -> 8 | E31: 0 | G31: 0 | H31: 0 | J31: 0 | BF31: 27
A32: =IF(J$2="","",IF($E32="","",IF($E32=MAX($E$5:$E$54),1,IF($E32=$E31,$A31,COUNT($E$5:$E32))))) -> 8 | E32: 0 | G32: 0 | H32: 0 | J32: 0 | BF32: 28
A33: =IF(J$2="","",IF($E33="","",IF($E33=MAX($E$5:$E$54),1,IF($E33=$E32,$A32,COUNT($E$5:$E33))))) -> 8 | E33: 0 | G33: 0 | H33: 0 | J33: 0 | BF33: 29
A34: =IF(J$2="","",IF($E34="","",IF($E34=MAX($E$5:$E$54),1,IF($E34=$E33,$A33,COUNT($E$5:$E34))))) -> 8 | E34: 0 | G34: 0 | H34: 0 | J34: 0 | BF34: 30
A35: =IF(J$2="","",IF($E35="","",IF($E35=MAX($E$5:$E$54),1,IF($E35=$E34,$A34,COUNT($E$5:$E35))))) -> 8 | E35: 0 | G35: 0 | H35: 0 | J35: 0 | BF35: 31
A36: =IF(J$2="","",IF($E36="","",IF($E36=MAX($E$5:$E$54),1,IF($E36=$E35,$A35,COUNT($E$5:$E36))))) -> 8 | E36: 0 | G36: 0 | H36: 0 | J36: 0 | BF36: 32
A37: =IF(J$2="","",IF($E37="","",IF($E37=MAX($E$5:$E$54),1,IF($E37=$E36,$A36,COUNT($E$5:$E37))))) -> 8 | E37: =IF(J$2="","",IF(G37=0,0,F37+G37)) -> 0 | G37: =IF(J$2="","",IF($J37=0,0,(H37*$C$3/$J$3)*50)) -> 0 | H37: =IF(J$2="","",IF(SUM($K37:$AX37)=0,0,SUM($K37:$AX37)+$I37)) -> 0 | J37: =IF(B37="",0,IF(SUM($K37:$AX37)=0,0,SUM($K37:$AX37))) -> 0 | BF37: 33
A38: =IF(J$2="","",IF($E38="","",IF($E38=MAX($E$5:$E$54),1,IF($E38=$E37,$A37,COUNT($E$5:$E38))))) -> 8 | E38: 0 | G38: 0 | H38: 0 | J38: 0 | BF38: 34
A39: =IF(J$2="","",IF($E39="","",IF($E39=MAX($E$5:$E$54),1,IF($E39=$E38,$A38,COUNT($E$5:$E39))))) -> 8 | E39: 0 | G39: 0 | H39: 0 | J39: 0 | BF39: 35
A40: =IF(J$2="","",IF($E40="","",IF($E40=MAX($E$5:$E$54),1,IF($E40=$E39,$A39,COUNT($E$5:$E40))))) -> 8 | E40: 0 | G40: 0 | H40: 0 | J40: 0 | BF40: 36
A41: =IF(J$2="","",IF($E41="","",IF($E41=MAX($E$5:$E$54),1,IF($E41=$E40,$A40,COUNT($E$5:$E41))))) -> 8 | E41: 0 | G41: 0 | H41: 0 | J41: 0 | BF41: 37
A42: =IF(J$2="","",IF($E42="","",IF($E42=MAX($E$5:$E$54),1,IF($E42=$E41,$A41,COUNT($E$5:$E42))))) -> 8 | E42: 0 | G42: 0 | H42: 0 | J42: 0 | BF42: 38
A43: =IF(J$2="","",IF($E43="","",IF($E43=MAX($E$5:$E$54),1,IF($E43=$E42,$A42,COUNT($E$5:$E43))))) -> 8 | E43: 0 | G43: 0 | H43: 0 | J43: 0 | BF43: 39
A44: =IF(J$2="","",IF($E44="","",IF($E44=MAX($E$5:$E$54),1,IF($E44=$E43,$A43,COUNT($E$5:$E44))))) -> 8 | E44: 0 | G44: 0 | H44: 0 | J44: 0 | BF44: 40
A45: =IF(J$2="","",IF($E45="","",IF($E45=MAX($E$5:$E$54),1,IF($E45=$E44,$A44,COUNT($E$5:$E45))))) -> 8 | E45: 0 | G45: 0 | H45: 0 | J45: 0 | BF45: 41
A46: =IF(J$2="","",IF($E46="","",IF($E46=MAX($E$5:$E$54),1,IF($E46=$E45,$A45,COUNT($E$5:$E46))))) -> 8 | E46: 0 | G46: 0 | H46: 0 | J46: 0 | BF46: 42
A47: =IF(J$2="","",IF($E47="","",IF($E47=MAX($E$5:$E$54),1,IF($E47=$E46,$A46,COUNT($E$5:$E47))))) -> 8 | E47: 0 | G47: 0 | H47: 0 | J47: 0 | BF47: 43
A48: =IF(J$2="","",IF($E48="","",IF($E48=MAX($E$5:$E$54),1,IF($E48=$E47,$A47,COUNT($E$5:$E48))))) -> 8 | E48: 0 | G48: 0 | H48: 0 | J48: 0 | BF48: 44
A49: =IF(J$2="","",IF($E49="","",IF($E49=MAX($E$5:$E$54),1,IF($E49=$E48,$A48,COUNT($E$5:$E49))))) -> 8 | E49: 0 | G49: 0 | H49: 0 | J49: 0 | BF49: 45
A50: =IF(J$2="","",IF($E50="","",IF($E50=MAX($E$5:$E$54),1,IF($E50=$E49,$A49,COUNT($E$5:$E50))))) -> 8 | E50: 0 | G50: 0 | H50: 0 | J50: 0 | BF50: 46
A51: =IF(J$2="","",IF($E51="","",IF($E51=MAX($E$5:$E$54),1,IF($E51=$E50,$A50,COUNT($E$5:$E51))))) -> 8 | E51: 0 | G51: 0 | H51: 0 | J51: 0 | BF51: 47
A52: =IF(J$2="","",IF($E52="","",IF($E52=MAX($E$5:$E$54),1,IF($E52=$E51,$A51,COUNT($E$5:$E52))))) -> 8 | E52: 0 | G52: 0 | H52: 0 | J52: 0 | BF52: 48
A53: =IF(J$2="","",IF($E53="","",IF($E53=MAX($E$5:$E$54),1,IF($E53=$E52,$A52,COUNT($E$5:$E53))))) -> 8 | E53: 0 | G53: 0 | H53: 0 | J53: 0 | BF53: 49
A54: =IF(J$2="","",IF($E54="","",IF($E54=MAX($E$5:$E$54),1,IF($E54=$E53,$A53,COUNT($E$5:$E54))))) -> 8 | E54: 0 | G54: 0 | H54: 0 | J54: 0 | BF54: 50
D59: punteggi torneo ordinati per # di coppia
B60: # coppia | E60: con zeri | F60: senza zeri | G60: senza zeri
B61: 1 | E61: 48.80952381 | F61: =IF(E61=0,"",E61) -> 48.80952381 | G61: 48.80952381 | I61: =IF(H61=0,"",H61) ->  | BF61: 3
B62: 2 | E62: 52.38095238 | F62: 52.38095238 | G62: 52.38095238 | BF62: 1
B63: 3 | E63: 53.57142857 | F63: 53.57142857 | G63: 53.57142857 | I63: =IF(H63=0,"",H63) ->  | BF63: 9
B64: 4 | E64: 53.57142857 | F64: 53.57142857 | G64: 53.57142857 | I64: =IF(H64=0,"",H64) ->  | BF64: 2
B65: 5 | E65: 55.95238095 | F65: 55.95238095 | G65: 55.95238095 | I65: =IF(H65=0,"",H65) ->  | BF65: 7
B66: 6 | E66: 35.71428571 | F66: 35.71428571 | G66: 35.71428571 | BF66: 6
B67: 7 | E67: 50 | F67: 50 | G67: 50 | I67: =IF(H67=0,"",H67) ->  | BF67: 19
E68: 0 | BF68: 4
E69: 0 | BF69: 5
E70: 0 | BF70: 8
E71: 0 | BF71: 10
E72: 0 | BF72: 11
E73: 0 | I73: =IF(H73=0,"",H73) ->  | BF73: 12
E74: 0 | I74: =IF(H74=0,"",H74) ->  | BF74: 13
E75: 0 | I75: =IF(H75=0,"",H75) ->  | BF75: 14
E76: 0 | I76: =IF(H76=0,"",H76) ->  | BF76: 15
E77: 0 | BF77: 16
E78: 0 | BF78: 17
E79: 0 | I79: =IF(H79=0,"",H79) ->  | BF79: 18
E80: 0 | I80: =IF(H80=0,"",H80) ->  | BF80: 20
E81: 0 | BF81: 21
E82: 0 | BF82: 22
E83: 0 | BF83: 23
E84: 0 | BF84: 24
E85: 0 | BF85: 25
E86: 0 | BF86: 26
E87: 0 | BF87: 27
E88: 0 | BF88: 28
E89: 0 | BF89: 29
E90: 0 | BF90: 30
E91: 0 | BF91: 31
E92: 0 | BF92: 32
E93: 0 | F93: =IF(E93=0,"",E93) ->  | BF93: 33
E94: 0 | BF94: 34
E95: 0 | BF95: 35
E96: 0 | BF96: 36
E97: 0 | BF97: 37
E98: 0 | BF98: 38
E99: 0 | BF99: 39
E100: 0 | BF100: 40
E101: 0 | BF101: 41
E102: 0 | BF102: 42
E103: 0 | BF103: 43
E104: 0 | BF104: 44
E105: 0 | BF105: 45
E106: 0 | BF106: 46
E107: 0 | BF107: 47
E108: 0 | BF108: 48
E109: 0 | BF109: 49
E110: 0 | BF110: 50
A119: punteggi torneo ordinati per numero standard di coppia base
B120: # coppia | E120: con zeri | F120: senza zeri | G120: senza zeri
B121: 2 | E121: 52.38095238 | F121: =IF(E121=0,"",E121) -> 52.38095238 | G121: 52.38095238 | BF121: 1
B122: 4 | E122: 53.57142857 | F122: 53.57142857 | G122: 53.57142857 | I122: =IF(H122=0,"",H122) ->  | BF122: 2
B123: 1 | E123: 48.80952381 | F123: 48.80952381 | G123: 48.80952381 | I123: =IF(H123=0,"",H123) ->  | BF123: 3
E124: 0 | BF124: 4
E125: 0 | BF125: 5
B126: 6 | E126: 35.71428571 | F126: 35.71428571 | G126: 35.71428571 | BF126: 6
B127: 5 | E127: 55.95238095 | F127: 55.95238095 | G127: 55.95238095 | I127: =IF(H127=0,"",H127) ->  | BF127: 7
E128: 0 | BF128: 8
B129: 3 | E129: 53.57142857 | F129: 53.57142857 | G129: 53.57142857 | I129: =IF(H129=0,"",H129) ->  | BF129: 9
E130: 0 | BF130: 10
E131: 0 | BF131: 11

Sheet 26mag
A1: Data | C1: 2018-05-26 | D1: BridgeMania 2017-18 - Torneo Howell
A2: luogo | C2: Polichetti | D2: Coppie Ctrl+e | E2: Calcola Ctr+f | F2: Duplica Ctrl+g | G2: Clear Ctrl+h | J2: &
A3: # coppie | C3: =IF(B5="","",COUNT(B5:B25)) -> 8 | E3: =IF(E5="","",SUMIF(E5:E25,">0")) -> 400 | F3: =IF(F5="","",SUMIF(F5:F24,">0")) ->  | G3: =IF(G5="","",SUM(G5:G25)) -> 400 | H3: =IF(H5="","",SUM(H5:H25)) -> 504 | I3: =SUM(I5:I25) -> 0 | J3: =SUM(J5:J25) -> 504 | K3: =SUM(K5:K25) -> 24 | L3: =SUM(L5:L25) -> 24 | M3: 24 | N3: 24 | O3: 24 | P3: 24 | Q3: 24 | R3: 24 | S3: 24 | T3: 24 | U3: 24 | V3: 24 | W3: 24 | X3: 24 | Y3: 24 | Z3: 24 | AA3: 24 | AB3: 24 | AC3: 24 | AD3: 24 | AE3: 24 | AF3: 0 | AG3: 0 | AH3: 0 | AI3: 0 | AJ3: 0 | AK3: 0 | AL3: 0 | AM3: 0 | AN3: 0 | AO3: 0 | AP3: 0 | AQ3: 0 | AR3: 0 | AS3: 0 | AT3: 0 | AU3: 0 | AV3: 0 | AW3: 0 | AX3: 0
A4: Class. | B4: # | C4: Coppie | E4: Punteggio Serata | G4: Punteggio % | H4: Punteggio Torneo | I4: Penalità (-) | J4: Totale punti mano | K4: 1 | L4: 2 | M4: 3 | N4: 4 | O4: 5 | P4: 6 | Q4: 7 | R4: 8 | S4: 9 | T4: 10 | U4: 11 | V4: 12 | W4: 13 | X4: 14 | Y4: 15 | Z4: 16 | AA4: 17 | AB4: 18 | AC4: 19 | AD4: 20 | AE4: 21 | AF4: 22 | AG4: 23 | AH4: 24 | AI4: 25 | AJ4: 26 | AK4: 27 | AL4: 28 | AM4: 29 | AN4: 30 | AO4: 31 | AP4: 32 | AQ4: 33 | AR4: 34 | AS4: 35 | AT4: 36 | AU4: 37 | AV4: 38 | AW4: 39 | AX4: 40
A5: =IF(J$2="","",IF($E5="","",IF($E5=MAX($E$5:$E$54),1,IF($E5=$E4,$A4,COUNT($E$5:$E5))))) -> 1 | B5: 8 | C5: Tatiana | D5: Julio | E5: =IF(J$2="","",IF(G5=0,0,F5+G5)) -> 55.55555556 | G5: =IF(J$2="","",IF($J5=0,0,(H5*$C$3/$J$3)*50)) -> 55.55555556 | H5: =IF(J$2="","",IF(SUM($K5:$AX5)=0,0,SUM($K5:$AX5)+$I5)) -> 70 | J5: =IF(B5="",0,IF(SUM($K5:$AX5)=0,0,SUM($K5:$AX5))) -> 70 | K5: 0 | L5: 3 | M5: 4 | N5: 5 | O5: 2 | P5: 6 | Q5: 4 | R5: 0 | S5: 2 | T5: 2 | U5: 3 | V5: 6 | W5: 6 | X5: 0 | Y5: 0 | Z5: 6 | AA5: 6 | AB5: 3 | AC5: 4 | AD5: 2 | AE5: 6 | BF5: 11
A6: =IF(J$2="","",IF($E6="","",IF($E6=MAX($E$5:$E$54),1,IF($E6=$E5,$A5,COUNT($E$5:$E6))))) -> 2 | B6: 1 | C6: Cesarina | D6: Gaetano | E6: 53.96825397 | G6: 53.96825397 | H6: 68 | J6: 68 | K6: 6 | L6: 3 | M6: 2 | N6: 1 | O6: 2 | P6: 5 | Q6: 4 | R6: 4 | S6: 2 | T6: 6 | U6: 0 | V6: 4 | W6: 4 | X6: 1 | Y6: 4 | Z6: 3 | AA6: 0 | AB6: 5 | AC6: 6 | AD6: 2 | AE6: 4 | BF6: 3
A7: =IF(J$2="","",IF($E7="","",IF($E7=MAX($E$5:$E$54),1,IF($E7=$E6,$A6,COUNT($E$5:$E7))))) -> 3 | B7: 4 | C7: Antonella | D7: Dino | E7: 50.79365079 | G7: 50.79365079 | H7: 64 | J7: 64 | K7: 4 | L7: 0 | M7: 6 | N7: 5 | O7: 4 | P7: 1 | Q7: 4 | R7: 2 | S7: 6 | T7: 4 | U7: 3 | V7: 0 | W7: 4 | X7: 1 | Y7: 0 | Z7: 0 | AA7: 3 | AB7: 3 | AC7: 4 | AD7: 4 | AE7: 6 | BF7: 1
A8: =IF(J$2="","",IF($E8="","",IF($E8=MAX($E$5:$E$54),1,IF($E8=$E7,$A7,COUNT($E$5:$E8))))) -> 4 | B8: 3 | C8: Isolde | D8: Cristina | E8: 49.20634921 | G8: 49.20634921 | H8: 62 | J8: 62 | K8: 4 | L8: 0 | M8: 4 | N8: 2 | O8: 0 | P8: 4 | Q8: 2 | R8: 6 | S8: 4 | T8: 2 | U8: 6 | V8: 2 | W8: 2 | X8: 2 | Y8: 4 | Z8: 6 | AA8: 3 | AB8: 3 | AC8: 0 | AD8: 4 | AE8: 2 | BF8: 5
A9: =IF(J$2="","",IF($E9="","",IF($E9=MAX($E$5:$E$54),1,IF($E9=$E8,$A8,COUNT($E$5:$E9))))) -> 5 | B9: 2 | C9: Manuela | D9: Roberto | E9: 47.61904762 | G9: 47.61904762 | H9: 60 | J9: 60 | K9: 2 | L9: 6 | M9: 0 | N9: 1 | O9: 4 | P9: 0 | Q9: 6 | R9: 0 | S9: 4 | T9: 0 | U9: 6 | V9: 2 | W9: 4 | X9: 4 | Y9: 2 | Z9: 3 | AA9: 3 | AB9: 5 | AC9: 0 | AD9: 6 | AE9: 2 | BF9: 7
A10: =IF(J$2="","",IF($E10="","",IF($E10=MAX($E$5:$E$54),1,IF($E10=$E9,$A9,COUNT($E$5:$E10))))) -> 5 | B10: 5 | C10: Olimpia | D10: Sauro | E10: 47.61904762 | G10: 47.61904762 | H10: 60 | J10: 60 | K10: 0 | L10: 3 | M10: 2 | N10: 4 | O10: 6 | P10: 2 | Q10: 0 | R10: 6 | S10: 2 | T10: 6 | U10: 3 | V10: 0 | W10: 0 | X10: 6 | Y10: 6 | Z10: 3 | AA10: 6 | AB10: 1 | AC10: 2 | AD10: 2 | AE10: 0 | BF10: 8
A11: =IF(J$2="","",IF($E11="","",IF($E11=MAX($E$5:$E$54),1,IF($E11=$E10,$A10,COUNT($E$5:$E11))))) -> 5 | B11: 6 | C11: Barbara | D11: Elio | E11: 47.61904762 | G11: 47.61904762 | H11: 60 | J11: 60 | K11: 6 | L11: 3 | M11: 4 | N11: 6 | O11: 0 | P11: 5 | Q11: 2 | R11: 4 | S11: 0 | T11: 4 | U11: 0 | V11: 4 | W11: 2 | X11: 5 | Y11: 2 | Z11: 0 | AA11: 0 | AB11: 3 | AC11: 6 | AD11: 0 | AE11: 4 | BF11: 2
A12: =IF(J$2="","",IF($E12="","",IF($E12=MAX($E$5:$E$54),1,IF($E12=$E11,$A11,COUNT($E$5:$E12))))) -> 5 | B12: 7 | C12: Renata | D12: Sandro | E12: 47.61904762 | G12: 47.61904762 | H12: 60 | J12: 60 | K12: 2 | L12: 6 | M12: 2 | N12: 0 | O12: 6 | P12: 1 | Q12: 2 | R12: 2 | S12: 4 | T12: 0 | U12: 3 | V12: 6 | W12: 2 | X12: 5 | Y12: 6 | Z12: 3 | AA12: 3 | AB12: 1 | AC12: 2 | AD12: 4 | AE12: 0 | BF12: 9
A13: =IF(J$2="","",IF($E13="","",IF($E13=MAX($E$5:$E$54),1,IF($E13=$E12,$A12,COUNT($E$5:$E13))))) -> 9 | E13: 0 | G13: 0 | H13: 0 | J13: 0 | BF13: 4
A14: =IF(J$2="","",IF($E14="","",IF($E14=MAX($E$5:$E$54),1,IF($E14=$E13,$A13,COUNT($E$5:$E14))))) -> 9 | E14: 0 | G14: 0 | H14: 0 | J14: 0 | BF14: 6
A15: =IF(J$2="","",IF($E15="","",IF($E15=MAX($E$5:$E$54),1,IF($E15=$E14,$A14,COUNT($E$5:$E15))))) -> 9 | E15: 0 | G15: 0 | H15: 0 | J15: 0 | BF15: 10
A16: =IF(J$2="","",IF($E16="","",IF($E16=MAX($E$5:$E$54),1,IF($E16=$E15,$A15,COUNT($E$5:$E16))))) -> 9 | E16: 0 | G16: 0 | H16: 0 | J16: 0 | BF16: 12
A17: =IF(J$2="","",IF($E17="","",IF($E17=MAX($E$5:$E$54),1,IF($E17=$E16,$A16,COUNT($E$5:$E17))))) -> 9 | E17: 0 | G17: 0 | H17: 0 | J17: 0 | BF17: 13
A18: =IF(J$2="","",IF($E18="","",IF($E18=MAX($E$5:$E$54),1,IF($E18=$E17,$A17,COUNT($E$5:$E18))))) -> 9 | E18: 0 | G18: 0 | H18: 0 | J18: 0 | BF18: 14
A19: =IF(J$2="","",IF($E19="","",IF($E19=MAX($E$5:$E$54),1,IF($E19=$E18,$A18,COUNT($E$5:$E19))))) -> 9 | E19: 0 | G19: 0 | H19: 0 | J19: 0 | BF19: 15
A20: =IF(J$2="","",IF($E20="","",IF($E20=MAX($E$5:$E$54),1,IF($E20=$E19,$A19,COUNT($E$5:$E20))))) -> 9 | E20: 0 | G20: 0 | H20: 0 | J20: 0 | BF20: 16
A21: =IF(J$2="","",IF($E21="","",IF($E21=MAX($E$5:$E$54),1,IF($E21=$E20,$A20,COUNT($E$5:$E21))))) -> 9 | E21: 0 | G21: 0 | H21: 0 | J21: 0 | BF21: 17
A22: =IF(J$2="","",IF($E22="","",IF($E22=MAX($E$5:$E$54),1,IF($E22=$E21,$A21,COUNT($E$5:$E22))))) -> 9 | E22: 0 | G22: 0 | H22: 0 | J22: 0 | BF22: 18
A23: =IF(J$2="","",IF($E23="","",IF($E23=MAX($E$5:$E$54),1,IF($E23=$E22,$A22,COUNT($E$5:$E23))))) -> 9 | E23: 0 | G23: 0 | H23: 0 | J23: 0 | BF23: 19
A24: =IF(J$2="","",IF($E24="","",IF($E24=MAX($E$5:$E$54),1,IF($E24=$E23,$A23,COUNT($E$5:$E24))))) -> 9 | E24: 0 | G24: 0 | H24: 0 | J24: 0 | BF24: 20
A25: =IF(J$2="","",IF($E25="","",IF($E25=MAX($E$5:$E$54),1,IF($E25=$E24,$A24,COUNT($E$5:$E25))))) -> 9 | E25: 0 | G25: 0 | H25: 0 | J25: 0 | BF25: 21
A26: =IF(J$2="","",IF($E26="","",IF($E26=MAX($E$5:$E$54),1,IF($E26=$E25,$A25,COUNT($E$5:$E26))))) -> 9 | E26: 0 | G26: 0 | H26: 0 | J26: 0 | BF26: 22
A27: =IF(J$2="","",IF($E27="","",IF($E27=MAX($E$5:$E$54),1,IF($E27=$E26,$A26,COUNT($E$5:$E27))))) -> 9 | E27: 0 | G27: 0 | H27: 0 | J27: 0 | BF27: 23
A28: =IF(J$2="","",IF($E28="","",IF($E28=MAX($E$5:$E$54),1,IF($E28=$E27,$A27,COUNT($E$5:$E28))))) -> 9 | E28: 0 | G28: 0 | H28: 0 | J28: 0 | BF28: 24
A29: =IF(J$2="","",IF($E29="","",IF($E29=MAX($E$5:$E$54),1,IF($E29=$E28,$A28,COUNT($E$5:$E29))))) -> 9 | E29: 0 | G29: 0 | H29: 0 | J29: 0 | BF29: 25
A30: =IF(J$2="","",IF($E30="","",IF($E30=MAX($E$5:$E$54),1,IF($E30=$E29,$A29,COUNT($E$5:$E30))))) -> 9 | E30: 0 | G30: 0 | H30: 0 | J30: 0 | BF30: 26
A31: =IF(J$2="","",IF($E31="","",IF($E31=MAX($E$5:$E$54),1,IF($E31=$E30,$A30,COUNT($E$5:$E31))))) -> 9 | E31: 0 | G31: 0 | H31: 0 | J31: 0 | BF31: 27
A32: =IF(J$2="","",IF($E32="","",IF($E32=MAX($E$5:$E$54),1,IF($E32=$E31,$A31,COUNT($E$5:$E32))))) -> 9 | E32: 0 | G32: 0 | H32: 0 | J32: 0 | BF32: 28
A33: =IF(J$2="","",IF($E33="","",IF($E33=MAX($E$5:$E$54),1,IF($E33=$E32,$A32,COUNT($E$5:$E33))))) -> 9 | E33: 0 | G33: 0 | H33: 0 | J33: 0 | BF33: 29
A34: =IF(J$2="","",IF($E34="","",IF($E34=MAX($E$5:$E$54),1,IF($E34=$E33,$A33,COUNT($E$5:$E34))))) -> 9 | E34: 0 | G34: 0 | H34: 0 | J34: 0 | BF34: 30
A35: =IF(J$2="","",IF($E35="","",IF($E35=MAX($E$5:$E$54),1,IF($E35=$E34,$A34,COUNT($E$5:$E35))))) -> 9 | E35: 0 | G35: 0 | H35: 0 | J35: 0 | BF35: 31
A36: =IF(J$2="","",IF($E36="","",IF($E36=MAX($E$5:$E$54),1,IF($E36=$E35,$A35,COUNT($E$5:$E36))))) -> 9 | E36: 0 | G36: 0 | H36: 0 | J36: 0 | BF36: 32
A37: =IF(J$2="","",IF($E37="","",IF($E37=MAX($E$5:$E$54),1,IF($E37=$E36,$A36,COUNT($E$5:$E37))))) -> 9 | E37: =IF(J$2="","",IF(G37=0,0,F37+G37)) -> 0 | G37: =IF(J$2="","",IF($J37=0,0,(H37*$C$3/$J$3)*50)) -> 0 | H37: =IF(J$2="","",IF(SUM($K37:$AX37)=0,0,SUM($K37:$AX37)+$I37)) -> 0 | J37: =IF(B37="",0,IF(SUM($K37:$AX37)=0,0,SUM($K37:$AX37))) -> 0 | BF37: 33
A38: =IF(J$2="","",IF($E38="","",IF($E38=MAX($E$5:$E$54),1,IF($E38=$E37,$A37,COUNT($E$5:$E38))))) -> 9 | E38: 0 | G38: 0 | H38: 0 | J38: 0 | BF38: 34
A39: =IF(J$2="","",IF($E39="","",IF($E39=MAX($E$5:$E$54),1,IF($E39=$E38,$A38,COUNT($E$5:$E39))))) -> 9 | E39: 0 | G39: 0 | H39: 0 | J39: 0 | BF39: 35
A40: =IF(J$2="","",IF($E40="","",IF($E40=MAX($E$5:$E$54),1,IF($E40=$E39,$A39,COUNT($E$5:$E40))))) -> 9 | E40: 0 | G40: 0 | H40: 0 | J40: 0 | BF40: 36
A41: =IF(J$2="","",IF($E41="","",IF($E41=MAX($E$5:$E$54),1,IF($E41=$E40,$A40,COUNT($E$5:$E41))))) -> 9 | E41: 0 | G41: 0 | H41: 0 | J41: 0 | BF41: 37
A42: =IF(J$2="","",IF($E42="","",IF($E42=MAX($E$5:$E$54),1,IF($E42=$E41,$A41,COUNT($E$5:$E42))))) -> 9 | E42: 0 | G42: 0 | H42: 0 | J42: 0 | BF42: 38
A43: =IF(J$2="","",IF($E43="","",IF($E43=MAX($E$5:$E$54),1,IF($E43=$E42,$A42,COUNT($E$5:$E43))))) -> 9 | E43: 0 | G43: 0 | H43: 0 | J43: 0 | BF43: 39
A44: =IF(J$2="","",IF($E44="","",IF($E44=MAX($E$5:$E$54),1,IF($E44=$E43,$A43,COUNT($E$5:$E44))))) -> 9 | E44: 0 | G44: 0 | H44: 0 | J44: 0 | BF44: 40
A45: =IF(J$2="","",IF($E45="","",IF($E45=MAX($E$5:$E$54),1,IF($E45=$E44,$A44,COUNT($E$5:$E45))))) -> 9 | E45: 0 | G45: 0 | H45: 0 | J45: 0 | BF45: 41
A46: =IF(J$2="","",IF($E46="","",IF($E46=MAX($E$5:$E$54),1,IF($E46=$E45,$A45,COUNT($E$5:$E46))))) -> 9 | E46: 0 | G46: 0 | H46: 0 | J46: 0 | BF46: 42
A47: =IF(J$2="","",IF($E47="","",IF($E47=MAX($E$5:$E$54),1,IF($E47=$E46,$A46,COUNT($E$5:$E47))))) -> 9 | E47: 0 | G47: 0 | H47: 0 | J47: 0 | BF47: 43
A48: =IF(J$2="","",IF($E48="","",IF($E48=MAX($E$5:$E$54),1,IF($E48=$E47,$A47,COUNT($E$5:$E48))))) -> 9 | E48: 0 | G48: 0 | H48: 0 | J48: 0 | BF48: 44
A49: =IF(J$2="","",IF($E49="","",IF($E49=MAX($E$5:$E$54),1,IF($E49=$E48,$A48,COUNT($E$5:$E49))))) -> 9 | E49: 0 | G49: 0 | H49: 0 | J49: 0 | BF49: 45
A50: =IF(J$2="","",IF($E50="","",IF($E50=MAX($E$5:$E$54),1,IF($E50=$E49,$A49,COUNT($E$5:$E50))))) -> 9 | E50: 0 | G50: 0 | H50: 0 | J50: 0 | BF50: 46
A51: =IF(J$2="","",IF($E51="","",IF($E51=MAX($E$5:$E$54),1,IF($E51=$E50,$A50,COUNT($E$5:$E51))))) -> 9 | E51: 0 | G51: 0 | H51: 0 | J51: 0 | BF51: 47
A52: =IF(J$2="","",IF($E52="","",IF($E52=MAX($E$5:$E$54),1,IF($E52=$E51,$A51,COUNT($E$5:$E52))))) -> 9 | E52: 0 | G52: 0 | H52: 0 | J52: 0 | BF52: 48
A53: =IF(J$2="","",IF($E53="","",IF($E53=MAX($E$5:$E$54),1,IF($E53=$E52,$A52,COUNT($E$5:$E53))))) -> 9 | E53: 0 | G53: 0 | H53: 0 | J53: 0 | BF53: 49
A54: =IF(J$2="","",IF($E54="","",IF($E54=MAX($E$5:$E$54),1,IF($E54=$E53,$A53,COUNT($E$5:$E54))))) -> 9 | E54: 0 | G54: 0 | H54: 0 | J54: 0 | BF54: 50
D59: punteggi torneo ordinati per # di coppia
B60: # coppia | E60: con zeri | F60: senza zeri | G60: senza zeri
B61: 1 | E61: 53.96825397 | F61: =IF(E61=0,"",E61) -> 53.96825397 | G61: 53.96825397 | I61: =IF(H61=0,"",H61) ->  | BF61: 3
B62: 2 | E62: 47.61904762 | F62: 47.61904762 | G62: 47.61904762 | BF62: 7
B63: 3 | E63: 49.20634921 | F63: 49.20634921 | G63: 49.20634921 | I63: =IF(H63=0,"",H63) ->  | BF63: 5
B64: 4 | E64: 50.79365079 | F64: 50.79365079 | G64: 50.79365079 | I64: =IF(H64=0,"",H64) ->  | BF64: 1
B65: 5 | E65: 47.61904762 | F65: 47.61904762 | G65: 47.61904762 | I65: =IF(H65=0,"",H65) ->  | BF65: 8
B66: 6 | E66: 47.61904762 | F66: 47.61904762 | G66: 47.61904762 | BF66: 2
B67: 7 | E67: 47.61904762 | F67: 47.61904762 | G67: 47.61904762 | I67: =IF(H67=0,"",H67) ->  | BF67: 9
B68: 8 | E68: 55.55555556 | F68: 55.55555556 | G68: 55.55555556 | BF68: 11
E69: 0 | BF69: 4
E70: 0 | BF70: 6
E71: 0 | BF71: 10
E72: 0 | BF72: 12
E73: 0 | I73: =IF(H73=0,"",H73) ->  | BF73: 13
E74: 0 | I74: =IF(H74=0,"",H74) ->  | BF74: 14
E75: 0 | I75: =IF(H75=0,"",H75) ->  | BF75: 15
E76: 0 | I76: =IF(H76=0,"",H76) ->  | BF76: 16
E77: 0 | BF77: 17
E78: 0 | BF78: 18
E79: 0 | I79: =IF(H79=0,"",H79) ->  | BF79: 19
E80: 0 | I80: =IF(H80=0,"",H80) ->  | BF80: 20
E81: 0 | BF81: 21
E82: 0 | BF82: 22
E83: 0 | BF83: 23
E84: 0 | BF84: 24
E85: 0 | BF85: 25
E86: 0 | BF86: 26
E87: 0 | BF87: 27
E88: 0 | BF88: 28
E89: 0 | BF89: 29
E90: 0 | BF90: 30
E91: 0 | BF91: 31
E92: 0 | BF92: 32
E93: 0 | F93: =IF(E93=0,"",E93) ->  | BF93: 33
E94: 0 | BF94: 34
E95: 0 | BF95: 35
E96: 0 | BF96: 36
E97: 0 | BF97: 37
E98: 0 | BF98: 38
E99: 0 | BF99: 39
E100: 0 | BF100: 40
E101: 0 | BF101: 41
E102: 0 | BF102: 42
E103: 0 | BF103: 43
E104: 0 | BF104: 44
E105: 0 | BF105: 45
E106: 0 | BF106: 46
E107: 0 | BF107: 47
E108: 0 | BF108: 48
E109: 0 | BF109: 49
E110: 0 | BF110: 50
A119: punteggi torneo ordinati per numero standard di coppia base
B120: # coppia | E120: con zeri | F120: senza zeri | G120: senza zeri
B121: 4 | E121: 50.79365079 | F121: =IF(E121=0,"",E121) -> 50.79365079 | G121: 50.79365079 | I121: =IF(H121=0,"",H121) ->  | BF121: 1
B122: 6 | E122: 47.61904762 | F122: 47.61904762 | G122: 47.61904762 | BF122: 2
B123: 1 | E123: 53.96825397 | F123: 53.96825397 | G123: 53.96825397 | I123: =IF(H123=0,"",H123) ->  | BF123: 3
E124: 0 | BF124: 4
B125: 3 | E125: 49.20634921 | F125: 49.20634921 | G125: 49.20634921 | I125: =IF(H125=0,"",H125) ->  | BF125: 5
E126: 0 | BF126: 6
B127: 2 | E127: 47.61904762 | F127: 47.61904762 | G127: 47.61904762 | BF127: 7
B128: 5 | E128: 47.61904762 | F128: 47.61904762 | G128: 47.61904762 | I128: =IF(H128=0,"",H128) ->  | BF128: 8
B129: 7 | E129: 47.61904762 | F129: 47.61904762 | G129: 47.61904762 | I129: =IF(H129=0,"",H129) ->  | BF129: 9
E130: 0 | BF130: 10
B131: 8 | E131: 55.55555556 | F131: 55.55555556 | G131: 55.55555556 | BF131: 11

Sheet 19mag
A1: Data | C1: 2018-05-19 | D1: BridgeMania 2017-18 - Torneo Howell
A2: luogo | C2: De Sanctis | D2: Coppie Ctrl+e | E2: Calcola Ctr+f | F2: Duplica Ctrl+g | G2: Clear Ctrl+h | J2: &
A3: # coppie | C3: =IF(B5="","",COUNT(B5:B25)) -> 11 | E3: =IF(E5="","",SUMIF(E5:E25,">0")) -> 550 | F3: =IF(F5="","",SUMIF(F5:F24,">0")) ->  | G3: =IF(G5="","",SUM(G5:G25)) -> 550 | H3: =IF(H5="","",SUM(H5:H25)) -> 968 | I3: =SUM(I5:I25) -> 0 | J3: =SUM(J5:J25) -> 968 | K3: =SUM(K5:K25) -> 44 | L3: =SUM(L5:L25) -> 44 | M3: 44 | N3: 44 | O3: 44 | P3: 44 | Q3: 44 | R3: 44 | S3: 44 | T3: 44 | U3: 44 | V3: 44 | W3: 44 | X3: 44 | Y3: 44 | Z3: 44 | AA3: 44 | AB3: 44 | AC3: 44 | AD3: 44 | AE3: 44 | AF3: 44 | AG3: 0 | AH3: 0 | AI3: 0 | AJ3: 0 | AK3: 0 | AL3: 0 | AM3: 0 | AN3: 0 | AO3: 0 | AP3: 0 | AQ3: 0 | AR3: 0 | AS3: 0 | AT3: 0 | AU3: 0 | AV3: 0 | AW3: 0 | AX3: 0
A4: Class. | B4: # | C4: Coppie | E4: Punteggio Serata | G4: Punteggio % | H4: Punteggio Torneo | I4: Penalità (-) | J4: Totale punti mano | K4: 1 | L4: 2 | M4: 3 | N4: 4 | O4: 5 | P4: 6 | Q4: 7 | R4: 8 | S4: 9 | T4: 10 | U4: 11 | V4: 12 | W4: 13 | X4: 14 | Y4: 15 | Z4: 16 | AA4: 17 | AB4: 18 | AC4: 19 | AD4: 20 | AE4: 21 | AF4: 22 | AG4: 23 | AH4: 24 | AI4: 25 | AJ4: 26 | AK4: 27 | AL4: 28 | AM4: 29 | AN4: 30 | AO4: 31 | AP4: 32 | AQ4: 33 | AR4: 34 | AS4: 35 | AT4: 36 | AU4: 37 | AV4: 38 | AW4: 39 | AX4: 40
A5: =IF(J$2="","",IF($E5="","",IF($E5=MAX($E$5:$E$54),1,IF($E5=$E4,$A4,COUNT($E$5:$E5))))) -> 1 | B5: 11 | C5: Stefania | D5: Massimo | E5: =IF(J$2="","",IF(G5=0,0,F5+G5)) -> 61.36363636 | G5: =IF(J$2="","",IF($J5=0,0,(H5*$C$3/$J$3)*50)) -> 61.36363636 | H5: =IF(J$2="","",IF(SUM($K5:$AX5)=0,0,SUM($K5:$AX5)+$I5)) -> 108 | J5: =IF(B5="",0,IF(SUM($K5:$AX5)=0,0,SUM($K5:$AX5))) -> 108 | K5: 8 | L5: 4 | M5: 6 | N5: 8 | O5: 8 | P5: 4 | Q5: 6 | R5: 0 | S5: 7 | T5: 0 | U5: 5 | V5: 2 | W5: 6 | X5: 4 | Y5: 4 | Z5: 6 | AA5: 6 | AB5: 5 | AC5: 3 | AD5: 8 | AE5: 4 | AF5: 4 | BF5: 10
A6: =IF(J$2="","",IF($E6="","",IF($E6=MAX($E$5:$E$54),1,IF($E6=$E5,$A5,COUNT($E$5:$E6))))) -> 2 | B6: 2 | C6: Barbara | D6: Elio | E6: 56.25 | G6: 56.25 | H6: 99 | J6: 99 | K6: 0 | L6: 4 | M6: 4 | N6: 4 | O6: 3 | P6: 6 | Q6: 5 | R6: 6 | S6: 4 | T6: 2 | U6: 3 | V6: 6 | W6: 6 | X6: 4 | Y6: 8 | Z6: 3 | AA6: 2 | AB6: 7 | AC6: 8 | AD6: 0 | AE6: 8 | AF6: 6 | BF6: 2
A7: =IF(J$2="","",IF($E7="","",IF($E7=MAX($E$5:$E$54),1,IF($E7=$E6,$A6,COUNT($E$5:$E7))))) -> 2 | B7: 7 | C7: Renata | D7: Sandro | E7: 56.25 | G7: 56.25 | H7: 99 | J7: 99 | K7: 5 | L7: 2 | M7: 6 | N7: 4 | O7: 5 | P7: 8 | Q7: 8 | R7: 2 | S7: 7 | T7: 7 | U7: 5 | V7: 2 | W7: 4 | X7: 4 | Y7: 7 | Z7: 5 | AA7: 2 | AB7: 3 | AC7: 0 | AD7: 8 | AE7: 1 | AF7: 4 | BF7: 9
A8: =IF(J$2="","",IF($E8="","",IF($E8=MAX($E$5:$E$54),1,IF($E8=$E7,$A7,COUNT($E$5:$E8))))) -> 4 | B8: 10 | C8: Olimpia | D8: Sauro | E8: 53.97727273 | G8: 53.97727273 | H8: 95 | J8: 95 | K8: 8 | L8: 2 | M8: 6 | N8: 4 | O8: 3 | P8: 0 | Q8: 3 | R8: 6 | S8: 1 | T8: 8 | U8: 5 | V8: 2 | W8: 8 | X8: 0 | Y8: 7 | Z8: 8 | AA8: 7 | AB8: 0 | AC8: 4 | AD8: 4 | AE8: 1 | AF8: 8 | BF8: 8
A9: =IF(J$2="","",IF($E9="","",IF($E9=MAX($E$5:$E$54),1,IF($E9=$E8,$A8,COUNT($E$5:$E9))))) -> 5 | B9: 5 | C9: Elena | D9: Stefano | E9: 53.40909091 | G9: 53.40909091 | H9: 94 | J9: 94 | K9: 6 | L9: 8 | M9: 2 | N9: 4 | O9: 6 | P9: 2 | Q9: 0 | R9: 2 | S9: 4 | T9: 4 | U9: 3 | V9: 6 | W9: 4 | X9: 8 | Y9: 4 | Z9: 2 | AA9: 6 | AB9: 1 | AC9: 8 | AD9: 6 | AE9: 2 | AF9: 6 | BF9: 4
A10: =IF(J$2="","",IF($E10="","",IF($E10=MAX($E$5:$E$54),1,IF($E10=$E9,$A9,COUNT($E$5:$E10))))) -> 6 | B10: 3 | C10: Cesarina | D10: Gaetano | E10: 50.56818182 | G10: 50.56818182 | H10: 89 | J10: 89 | K10: 0 | L10: 6 | M10: 6 | N10: 0 | O10: 4 | P10: 4 | Q10: 8 | R10: 6 | S10: 1 | T10: 1 | U10: 8 | V10: 1 | W10: 2 | X10: 4 | Y10: 0 | Z10: 5 | AA10: 7 | AB10: 7 | AC10: 3 | AD10: 4 | AE10: 4 | AF10: 8 | BF10: 3
A11: =IF(J$2="","",IF($E11="","",IF($E11=MAX($E$5:$E$54),1,IF($E11=$E10,$A10,COUNT($E$5:$E11))))) -> 7 | B11: 9 | C11: Manuela | D11: Roberto | E11: 46.59090909 | G11: 46.59090909 | H11: 82 | J11: 82 | K11: 5 | L11: 8 | M11: 8 | N11: 4 | O11: 0 | P11: 8 | Q11: 5 | R11: 2 | S11: 8 | T11: 4 | U11: 0 | V11: 7 | W11: 4 | X11: 0 | Y11: 1 | Z11: 3 | AA11: 4 | AB11: 4 | AC11: 5 | AD11: 0 | AE11: 0 | AF11: 2 | BF11: 7
A12: =IF(J$2="","",IF($E12="","",IF($E12=MAX($E$5:$E$54),1,IF($E12=$E11,$A11,COUNT($E$5:$E12))))) -> 8 | B12: 1 | C12: Antonella | D12: Dino | E12: 46.02272727 | G12: 46.02272727 | H12: 81 | J12: 81 | K12: 4 | L12: 4 | M12: 2 | N12: 8 | O12: 2 | P12: 6 | Q12: 0 | R12: 6 | S12: 0 | T12: 4 | U12: 3 | V12: 6 | W12: 2 | X12: 4 | Y12: 6 | Z12: 8 | AA12: 2 | AB12: 3 | AC12: 2 | AD12: 2 | AE12: 7 | AF12: 0 | BF12: 1
A13: =IF(J$2="","",IF($E13="","",IF($E13=MAX($E$5:$E$54),1,IF($E13=$E12,$A12,COUNT($E$5:$E13))))) -> 9 | B13: 6 | C13: Lilli | D13: Gianni | E13: 44.31818182 | G13: 44.31818182 | H13: 78 | J13: 78 | K13: 3 | L13: 6 | M13: 0 | N13: 4 | O13: 0 | P13: 4 | Q13: 3 | R13: 2 | S13: 6 | T13: 1 | U13: 4 | V13: 4 | W13: 8 | X13: 4 | Y13: 1 | Z13: 0 | AA13: 6 | AB13: 5 | AC13: 5 | AD13: 4 | AE13: 6 | AF13: 2 | BF13: 6
A14: =IF(J$2="","",IF($E14="","",IF($E14=MAX($E$5:$E$54),1,IF($E14=$E13,$A13,COUNT($E$5:$E14))))) -> 10 | B14: 8 | C14: Tatiana | D14: Julio | E14: 43.75 | G14: 43.75 | H14: 77 | J14: 77 | K14: 2 | L14: 0 | M14: 2 | N14: 4 | O14: 8 | P14: 0 | Q14: 2 | R14: 8 | S14: 4 | T14: 6 | U14: 3 | V14: 1 | W14: 0 | X14: 4 | Y14: 4 | Z14: 4 | AA14: 1 | AB14: 8 | AC14: 6 | AD14: 6 | AE14: 4 | AF14: 0 | BF14: 11
A15: =IF(J$2="","",IF($E15="","",IF($E15=MAX($E$5:$E$54),1,IF($E15=$E14,$A14,COUNT($E$5:$E15))))) -> 11 | B15: 4 | C15: Daniela | D15: Mauro | E15: 37.5 | G15: 37.5 | H15: 66 | J15: 66 | K15: 3 | L15: 0 | M15: 2 | N15: 0 | O15: 5 | P15: 2 | Q15: 4 | R15: 4 | S15: 2 | T15: 7 | U15: 5 | V15: 7 | W15: 0 | X15: 8 | Y15: 2 | Z15: 0 | AA15: 1 | AB15: 1 | AC15: 0 | AD15: 2 | AE15: 7 | AF15: 4 | BF15: 18
A16: =IF(J$2="","",IF($E16="","",IF($E16=MAX($E$5:$E$54),1,IF($E16=$E15,$A15,COUNT($E$5:$E16))))) -> 12 | E16: 0 | G16: 0 | H16: 0 | J16: 0 | BF16: 5
A17: =IF(J$2="","",IF($E17="","",IF($E17=MAX($E$5:$E$54),1,IF($E17=$E16,$A16,COUNT($E$5:$E17))))) -> 12 | E17: 0 | G17: 0 | H17: 0 | J17: 0 | BF17: 12
A18: =IF(J$2="","",IF($E18="","",IF($E18=MAX($E$5:$E$54),1,IF($E18=$E17,$A17,COUNT($E$5:$E18))))) -> 12 | E18: 0 | G18: 0 | H18: 0 | J18: 0 | BF18: 13
A19: =IF(J$2="","",IF($E19="","",IF($E19=MAX($E$5:$E$54),1,IF($E19=$E18,$A18,COUNT($E$5:$E19))))) -> 12 | E19: 0 | G19: 0 | H19: 0 | J19: 0 | BF19: 14
A20: =IF(J$2="","",IF($E20="","",IF($E20=MAX($E$5:$E$54),1,IF($E20=$E19,$A19,COUNT($E$5:$E20))))) -> 12 | E20: 0 | G20: 0 | H20: 0 | J20: 0 | BF20: 15
A21: =IF(J$2="","",IF($E21="","",IF($E21=MAX($E$5:$E$54),1,IF($E21=$E20,$A20,COUNT($E$5:$E21))))) -> 12 | E21: 0 | G21: 0 | H21: 0 | J21: 0 | BF21: 16
A22: =IF(J$2="","",IF($E22="","",IF($E22=MAX($E$5:$E$54),1,IF($E22=$E21,$A21,COUNT($E$5:$E22))))) -> 12 | E22: 0 | G22: 0 | H22: 0 | J22: 0 | BF22: 17
A23: =IF(J$2="","",IF($E23="","",IF($E23=MAX($E$5:$E$54),1,IF($E23=$E22,$A22,COUNT($E$5:$E23))))) -> 12 | E23: 0 | G23: 0 | H23: 0 | J23: 0 | BF23: 19
A24: =IF(J$2="","",IF($E24="","",IF($E24=MAX($E$5:$E$54),1,IF($E24=$E23,$A23,COUNT($E$5:$E24))))) -> 12 | E24: 0 | G24: 0 | H24: 0 | J24: 0 | BF24: 20
A25: =IF(J$2="","",IF($E25="","",IF($E25=MAX($E$5:$E$54),1,IF($E25=$E24,$A24,COUNT($E$5:$E25))))) -> 12 | E25: 0 | G25: 0 | H25: 0 | J25: 0 | BF25: 21
A26: =IF(J$2="","",IF($E26="","",IF($E26=MAX($E$5:$E$54),1,IF($E26=$E25,$A25,COUNT($E$5:$E26))))) -> 12 | E26: 0 | G26: 0 | H26: 0 | J26: 0 | BF26: 22
A27: =IF(J$2="","",IF($E27="","",IF($E27=MAX($E$5:$E$54),1,IF($E27=$E26,$A26,COUNT($E$5:$E27))))) -> 12 | E27: 0 | G27: 0 | H27: 0 | J27: 0 | BF27: 23
A28: =IF(J$2="","",IF($E28="","",IF($E28=MAX($E$5:$E$54),1,IF($E28=$E27,$A27,COUNT($E$5:$E28))))) -> 12 | E28: 0 | G28: 0 | H28: 0 | J28: 0 | BF28: 24
A29: =IF(J$2="","",IF($E29="","",IF($E29=MAX($E$5:$E$54),1,IF($E29=$E28,$A28,COUNT($E$5:$E29))))) -> 12 | E29: 0 | G29: 0 | H29: 0 | J29: 0 | BF29: 25
A30: =IF(J$2="","",IF($E30="","",IF($E30=MAX($E$5:$E$54),1,IF($E30=$E29,$A29,COUNT($E$5:$E30))))) -> 12 | E30: 0 | G30: 0 | H30: 0 | J30: 0 | BF30: 26
A31: =IF(J$2="","",IF($E31="","",IF($E31=MAX($E$5:$E$54),1,IF($E31=$E30,$A30,COUNT($E$5:$E31))))) -> 12 | E31: 0 | G31: 0 | H31: 0 | J31: 0 | BF31: 27
A32: =IF(J$2="","",IF($E32="","",IF($E32=MAX($E$5:$E$54),1,IF($E32=$E31,$A31,COUNT($E$5:$E32))))) -> 12 | E32: 0 | G32: 0 | H32: 0 | J32: 0 | BF32: 28
A33: =IF(J$2="","",IF($E33="","",IF($E33=MAX($E$5:$E$54),1,IF($E33=$E32,$A32,COUNT($E$5:$E33))))) -> 12 | E33: 0 | G33: 0 | H33: 0 | J33: 0 | BF33: 29
A34: =IF(J$2="","",IF($E34="","",IF($E34=MAX($E$5:$E$54),1,IF($E34=$E33,$A33,COUNT($E$5:$E34))))) -> 12 | E34: 0 | G34: 0 | H34: 0 | J34: 0 | BF34: 30
A35: =IF(J$2="","",IF($E35="","",IF($E35=MAX($E$5:$E$54),1,IF($E35=$E34,$A34,COUNT($E$5:$E35))))) -> 12 | E35: 0 | G35: 0 | H35: 0 | J35: 0 | BF35: 31
A36: =IF(J$2="","",IF($E36="","",IF($E36=MAX($E$5:$E$54),1,IF($E36=$E35,$A35,COUNT($E$5:$E36))))) -> 12 | E36: 0 | G36: 0 | H36: 0 | J36: 0 | BF36: 32
A37: =IF(J$2="","",IF($E37="","",IF($E37=MAX($E$5:$E$54),1,IF($E37=$E36,$A36,COUNT($E$5:$E37))))) -> 12 | E37: =IF(J$2="","",IF(G37=0,0,F37+G37)) -> 0 | G37: =IF(J$2="","",IF($J37=0,0,(H37*$C$3/$J$3)*50)) -> 0 | H37: =IF(J$2="","",IF(SUM($K37:$AX37)=0,0,SUM($K37:$AX37)+$I37)) -> 0 | J37: =IF(B37="",0,IF(SUM($K37:$AX37)=0,0,SUM($K37:$AX37))) -> 0 | BF37: 33
A38: =IF(J$2="","",IF($E38="","",IF($E38=MAX($E$5:$E$54),1,IF($E38=$E37,$A37,COUNT($E$5:$E38))))) -> 12 | E38: 0 | G38: 0 | H38: 0 | J38: 0 | BF38: 34
A39: =IF(J$2="","",IF($E39="","",IF($E39=MAX($E$5:$E$54),1,IF($E39=$E38,$A38,COUNT($E$5:$E39))))) -> 12 | E39: 0 | G39: 0 | H39: 0 | J39: 0 | BF39: 35
A40: =IF(J$2="","",IF($E40="","",IF($E40=MAX($E$5:$E$54),1,IF($E40=$E39,$A39,COUNT($E$5:$E40))))) -> 12 | E40: 0 | G40: 0 | H40: 0 | J40: 0 | BF40: 36
A41: =IF(J$2="","",IF($E41="","",IF($E41=MAX($E$5:$E$54),1,IF($E41=$E40,$A40,COUNT($E$5:$E41))))) -> 12 | E41: 0 | G41: 0 | H41: 0 | J41: 0 | BF41: 37
A42: =IF(J$2="","",IF($E42="","",IF($E42=MAX($E$5:$E$54),1,IF($E42=$E41,$A41,COUNT($E$5:$E42))))) -> 12 | E42: 0 | G42: 0 | H42: 0 | J42: 0 | BF42: 38
A43: =IF(J$2="","",IF($E43="","",IF($E43=MAX($E$5:$E$54),1,IF($E43=$E42,$A42,COUNT($E$5:$E43))))) -> 12 | E43: 0 | G43: 0 | H43: 0 | J43: 0 | BF43: 39
A44: =IF(J$2="","",IF($E44="","",IF($E44=MAX($E$5:$E$54),1,IF($E44=$E43,$A43,COUNT($E$5:$E44))))) -> 12 | E44: 0 | G44: 0 | H44: 0 | J44: 0 | BF44: 40
A45: =IF(J$2="","",IF($E45="","",IF($E45=MAX($E$5:$E$54),1,IF($E45=$E44,$A44,COUNT($E$5:$E45))))) -> 12 | E45: 0 | G45: 0 | H45: 0 | J45: 0 | BF45: 41
A46: =IF(J$2="","",IF($E46="","",IF($E46=MAX($E$5:$E$54),1,IF($E46=$E45,$A45,COUNT($E$5:$E46))))) -> 12 | E46: 0 | G46: 0 | H46: 0 | J46: 0 | BF46: 42
A47: =IF(J$2="","",IF($E47="","",IF($E47=MAX($E$5:$E$54),1,IF($E47=$E46,$A46,COUNT($E$5:$E47))))) -> 12 | E47: 0 | G47: 0 | H47: 0 | J47: 0 | BF47: 43
A48: =IF(J$2="","",IF($E48="","",IF($E48=MAX($E$5:$E$54),1,IF($E48=$E47,$A47,COUNT($E$5:$E48))))) -> 12 | E48: 0 | G48: 0 | H48: 0 | J48: 0 | BF48: 44
A49: =IF(J$2="","",IF($E49="","",IF($E49=MAX($E$5:$E$54),1,IF($E49=$E48,$A48,COUNT($E$5:$E49))))) -> 12 | E49: 0 | G49: 0 | H49: 0 | J49: 0 | BF49: 45
A50: =IF(J$2="","",IF($E50="","",IF($E50=MAX($E$5:$E$54),1,IF($E50=$E49,$A49,COUNT($E$5:$E50))))) -> 12 | E50: 0 | G50: 0 | H50: 0 | J50: 0 | BF50: 46
A51: =IF(J$2="","",IF($E51="","",IF($E51=MAX($E$5:$E$54),1,IF($E51=$E50,$A50,COUNT($E$5:$E51))))) -> 12 | E51: 0 | G51: 0 | H51: 0 | J51: 0 | BF51: 47
A52: =IF(J$2="","",IF($E52="","",IF($E52=MAX($E$5:$E$54),1,IF($E52=$E51,$A51,COUNT($E$5:$E52))))) -> 12 | E52: 0 | G52: 0 | H52: 0 | J52: 0 | BF52: 48
A53: =IF(J$2="","",IF($E53="","",IF($E53=MAX($E$5:$E$54),1,IF($E53=$E52,$A52,COUNT($E$5:$E53))))) -> 12 | E53: 0 | G53: 0 | H53: 0 | J53: 0 | BF53: 49
A54: =IF(J$2="","",IF($E54="","",IF($E54=MAX($E$5:$E$54),1,IF($E54=$E53,$A53,COUNT($E$5:$E54))))) -> 12 | E54: 0 | G54: 0 | H54: 0 | J54: 0 | BF54: 50
D59: punteggi torneo ordinati per # di coppia
B60: # coppia | E60: con zeri | F60: senza zeri | G60: senza zeri
B61: 1 | E61: 46.02272727 | F61: =IF(E61=0,"",E61) -> 46.02272727 | G61: 46.02272727 | I61: =IF(H61=0,"",H61) ->  | BF61: 1
B62: 2 | E62: 56.25 | F62: 56.25 | G62: 56.25 | BF62: 2
B63: 3 | E63: 50.56818182 | F63: 50.56818182 | G63: 50.56818182 | I63: =IF(H63=0,"",H63) ->  | BF63: 3
B64: 4 | E64: 37.5 | F64: 37.5 | G64: 37.5 | I64: =IF(H64=0,"",H64) ->  | BF64: 18
B65: 5 | E65: 53.40909091 | F65: 53.40909091 | G65: 53.40909091 | I65: =IF(H65=0,"",H65) ->  | BF65: 4
B66: 6 | E66: 44.31818182 | F66: 44.31818182 | G66: 44.31818182 | BF66: 6
B67: 7 | E67: 56.25 | F67: 56.25 | G67: 56.25 | I67: =IF(H67=0,"",H67) ->  | BF67: 9
B68: 8 | E68: 43.75 | F68: 43.75 | G68: 43.75 | BF68: 11
B69: 9 | E69: 46.59090909 | F69: 46.59090909 | G69: 46.59090909 | BF69: 7
B70: 10 | E70: 53.97727273 | F70: 53.97727273 | G70: 53.97727273 | BF70: 8
B71: 11 | E71: 61.36363636 | F71: 61.36363636 | G71: 61.36363636 | BF71: 10
E72: 0 | BF72: 5
E73: 0 | I73: =IF(H73=0,"",H73) ->  | BF73: 12
E74: 0 | I74: =IF(H74=0,"",H74) ->  | BF74: 13
E75: 0 | I75: =IF(H75=0,"",H75) ->  | BF75: 14
E76: 0 | I76: =IF(H76=0,"",H76) ->  | BF76: 15
E77: 0 | BF77: 16
E78: 0 | BF78: 17
E79: 0 | I79: =IF(H79=0,"",H79) ->  | BF79: 19
E80: 0 | I80: =IF(H80=0,"",H80) ->  | BF80: 20
E81: 0 | BF81: 21
E82: 0 | BF82: 22
E83: 0 | BF83: 23
E84: 0 | BF84: 24
E85: 0 | BF85: 25
E86: 0 | BF86: 26
E87: 0 | BF87: 27
E88: 0 | BF88: 28
E89: 0 | BF89: 29
E90: 0 | BF90: 30
E91: 0 | BF91: 31
E92: 0 | BF92: 32
E93: 0 | F93: =IF(E93=0,"",E93) ->  | BF93: 33
E94: 0 | BF94: 34
E95: 0 | BF95: 35
E96: 0 | BF96: 36
E97: 0 | BF97: 37
E98: 0 | BF98: 38
E99: 0 | BF99: 39
E100: 0 | BF100: 40
E101: 0 | BF101: 41
E102: 0 | BF102: 42
E103: 0 | BF103: 43
E104: 0 | BF104: 44
E105: 0 | BF105: 45
E106: 0 | BF106: 46
E107: 0 | BF107: 47
E108: 0 | BF108: 48
E109: 0 | BF109: 49
E110: 0 | BF110: 50
A119: punteggi torneo ordinati per numero standard di coppia base
B120: # coppia | E120: con zeri | F120: senza zeri | G120: senza zeri
B121: 1 | E121: 46.02272727 | F121: =IF(E121=0,"",E121) -> 46.02272727 | G121: 46.02272727 | I121: =IF(H121=0,"",H121) ->  | BF121: 1
B122: 2 | E122: 56.25 | F122: 56.25 | G122: 56.25 | BF122: 2
B123: 3 | E123: 50.56818182 | F123: 50.56818182 | G123: 50.56818182 | I123: =IF(H123=0,"",H123) ->  | BF123: 3
B124: 5 | E124: 53.40909091 | F124: 53.40909091 | G124: 53.40909091 | I124: =IF(H124=0,"",H124) ->  | BF124: 4
E125: 0 | BF125: 5
B126: 6 | E126: 44.31818182 | F126: 44.31818182 | G126: 44.31818182 | BF126: 6
B127: 9 | E127: 46.59090909 | F127: 46.59090909 | G127: 46.59090909 | BF127: 7
B128: 10 | E128: 53.97727273 | F128: 53.97727273 | G128: 53.97727273 | BF128: 8
B129: 7 | E129: 56.25 | F129: 56.25 | G129: 56.25 | I129: =IF(H129=0,"",H129) ->  | BF129: 9
B130: 11 | E130: 61.36363636 | F130: 61.36363636 | G130: 61.36363636 | BF130: 10
B131: 8 | E131: 43.75 | F131: 43.75 | G131: 43.75 | BF131: 11

Sheet 5mag
A1: Data | C1: 2018-05-05 | D1: BridgeMania 2017-18 - Torneo Howell
A2: luogo | C2: Simonelli | D2: Coppie Ctrl+e | E2: Calcola Ctr+f | F2: Duplica Ctrl+g | G2: Clear Ctrl+h | J2: &
A3: # coppie | C3: =IF(B5="","",COUNT(B5:B25)) -> 11 | E3: =IF(E5="","",SUMIF(E5:E25,">0")) -> 550 | F3: =IF(F5="","",SUMIF(F5:F24,">0")) ->  | G3: =IF(G5="","",SUM(G5:G25)) -> 550 | H3: =IF(H5="","",SUM(H5:H25)) -> 968 | I3: =SUM(I5:I25) -> 0 | J3: =SUM(J5:J25) -> 968 | K3: =SUM(K5:K25) -> 44 | L3: =SUM(L5:L25) -> 44 | M3: 44 | N3: 44 | O3: 44 | P3: 44 | Q3: 44 | R3: 44 | S3: 44 | T3: 44 | U3: 44 | V3: 44 | W3: 44 | X3: 44 | Y3: 44 | Z3: 44 | AA3: 44 | AB3: 44 | AC3: 44 | AD3: 44 | AE3: 44 | AF3: 44 | AG3: 0 | AH3: 0 | AI3: 0 | AJ3: 0 | AK3: 0 | AL3: 0 | AM3: 0 | AN3: 0 | AO3: 0 | AP3: 0 | AQ3: 0 | AR3: 0 | AS3: 0 | AT3: 0 | AU3: 0 | AV3: 0 | AW3: 0 | AX3: 0
A4: Class. | B4: # | C4: Coppie | E4: Punteggio Serata | G4: Punteggio % | H4: Punteggio Torneo | I4: Penalità (-) | J4: Totale punti mano | K4: 1 | L4: 2 | M4: 3 | N4: 4 | O4: 5 | P4: 6 | Q4: 7 | R4: 8 | S4: 9 | T4: 10 | U4: 11 | V4: 12 | W4: 13 | X4: 14 | Y4: 15 | Z4: 16 | AA4: 17 | AB4: 18 | AC4: 19 | AD4: 20 | AE4: 21 | AF4: 22 | AG4: 23 | AH4: 24 | AI4: 25 | AJ4: 26 | AK4: 27 | AL4: 28 | AM4: 29 | AN4: 30 | AO4: 31 | AP4: 32 | AQ4: 33 | AR4: 34 | AS4: 35 | AT4: 36 | AU4: 37 | AV4: 38 | AW4: 39 | AX4: 40
A5: =IF(J$2="","",IF($E5="","",IF($E5=MAX($E$5:$E$54),1,IF($E5=$E4,$A4,COUNT($E$5:$E5))))) -> 1 | B5: 10 | C5: Stefania | D5: Massimo | E5: =IF(J$2="","",IF(G5=0,0,F5+G5)) -> 74.43181818 | G5: =IF(J$2="","",IF($J5=0,0,(H5*$C$3/$J$3)*50)) -> 74.43181818 | H5: =IF(J$2="","",IF(SUM($K5:$AX5)=0,0,SUM($K5:$AX5)+$I5)) -> 131 | J5: =IF(B5="",0,IF(SUM($K5:$AX5)=0,0,SUM($K5:$AX5))) -> 131 | K5: 8 | L5: 4 | M5: 8 | N5: 7 | O5: 8 | P5: 5 | Q5: 6 | R5: 6 | S5: 4 | T5: 6 | U5: 6 | V5: 7 | W5: 3 | X5: 4 | Y5: 4 | Z5: 8 | AA5: 8 | AB5: 8 | AC5: 4 | AD5: 4 | AE5: 8 | AF5: 5 | BF5: 10
A6: =IF(J$2="","",IF($E6="","",IF($E6=MAX($E$5:$E$54),1,IF($E6=$E5,$A5,COUNT($E$5:$E6))))) -> 2 | B6: 11 | C6: Elena | D6: Stefano | E6: 57.38636364 | G6: 57.38636364 | H6: 101 | J6: 101 | K6: 6 | L6: 1 | M6: 3 | N6: 5 | O6: 6 | P6: 8 | Q6: 4 | R6: 8 | S6: 4 | T6: 2 | U6: 2 | V6: 7 | W6: 3 | X6: 8 | Y6: 0 | Z6: 6 | AA6: 4 | AB6: 7 | AC6: 4 | AD6: 5 | AE6: 4 | AF6: 4 | BF6: 4
A7: =IF(J$2="","",IF($E7="","",IF($E7=MAX($E$5:$E$54),1,IF($E7=$E6,$A6,COUNT($E$5:$E7))))) -> 3 | B7: 9 | C7: Tatiana | D7: Julio | E7: 52.27272727 | G7: 52.27272727 | H7: 92 | J7: 92 | K7: 6 | L7: 7 | M7: 5 | N7: 7 | O7: 2 | P7: 5 | Q7: 2 | R7: 2 | S7: 4 | T7: 0 | U7: 4 | V7: 2 | W7: 8 | X7: 8 | Y7: 6 | Z7: 2 | AA7: 4 | AB7: 4 | AC7: 4 | AD7: 3 | AE7: 4 | AF7: 3 | BF7: 11
A8: =IF(J$2="","",IF($E8="","",IF($E8=MAX($E$5:$E$54),1,IF($E8=$E7,$A7,COUNT($E$5:$E8))))) -> 4 | B8: 3 | C8: Manuela | D8: Roberto | E8: 51.70454545 | G8: 51.70454545 | H8: 91 | J8: 91 | K8: 0 | L8: 4 | M8: 8 | N8: 5 | O8: 4 | P8: 4 | Q8: 2 | R8: 4 | S8: 4 | T8: 2 | U8: 4 | V8: 6 | W8: 5 | X8: 0 | Y8: 6 | Z8: 4 | AA8: 4 | AB8: 6 | AC8: 6 | AD8: 5 | AE8: 2 | AF8: 6 | BF8: 7
A9: =IF(J$2="","",IF($E9="","",IF($E9=MAX($E$5:$E$54),1,IF($E9=$E8,$A8,COUNT($E$5:$E9))))) -> 5 | B9: 7 | C9: Antonella | D9: Dino | E9: 51.13636364 | G9: 51.13636364 | H9: 90 | J9: 90 | K9: 6 | L9: 1 | M9: 6 | N9: 8 | O9: 0 | P9: 3 | Q9: 8 | R9: 7 | S9: 4 | T9: 6 | U9: 8 | V9: 4 | W9: 4 | X9: 4 | Y9: 2 | Z9: 6 | AA9: 4 | AB9: 1 | AC9: 8 | AD9: 0 | AE9: 0 | AF9: 0 | BF9: 1
A10: =IF(J$2="","",IF($E10="","",IF($E10=MAX($E$5:$E$54),1,IF($E10=$E9,$A9,COUNT($E$5:$E10))))) -> 6 | B10: 1 | C10: Barbara | D10: Elio | E10: 48.86363636 | G10: 48.86363636 | H10: 86 | J10: 86 | K10: 4 | L10: 4 | M10: 0 | N10: 3 | O10: 6 | P10: 6 | Q10: 0 | R10: 1 | S10: 4 | T10: 8 | U10: 6 | V10: 1 | W10: 7 | X10: 2 | Y10: 8 | Z10: 8 | AA10: 4 | AB10: 4 | AC10: 0 | AD10: 7 | AE10: 0 | AF10: 3 | BF10: 2
A11: =IF(J$2="","",IF($E11="","",IF($E11=MAX($E$5:$E$54),1,IF($E11=$E10,$A10,COUNT($E$5:$E11))))) -> 7 | B11: 8 | C11: Lilli | D11: Gianni | E11: 47.72727273 | G11: 47.72727273 | H11: 84 | J11: 84 | K11: 2 | L11: 7 | M11: 2 | N11: 0 | O11: 6 | P11: 3 | Q11: 4 | R11: 0 | S11: 0 | T11: 6 | U11: 8 | V11: 8 | W11: 7 | X11: 6 | Y11: 4 | Z11: 4 | AA11: 0 | AB11: 0 | AC11: 8 | AD11: 1 | AE11: 6 | AF11: 2 | BF11: 6
A12: =IF(J$2="","",IF($E12="","",IF($E12=MAX($E$5:$E$54),1,IF($E12=$E11,$A11,COUNT($E$5:$E12))))) -> 8 | B12: 5 | C12: Cesarina | D12: Gaetano | E12: 44.31818182 | G12: 44.31818182 | H12: 78 | J12: 78 | K12: 6 | L12: 1 | M12: 0 | N12: 1 | O12: 2 | P12: 2 | Q12: 6 | R12: 4 | S12: 4 | T12: 4 | U12: 0 | V12: 4 | W12: 0 | X12: 0 | Y12: 8 | Z12: 2 | AA12: 8 | AB12: 7 | AC12: 6 | AD12: 7 | AE12: 6 | AF12: 0 | BF12: 3
A13: =IF(J$2="","",IF($E13="","",IF($E13=MAX($E$5:$E$54),1,IF($E13=$E12,$A12,COUNT($E$5:$E13))))) -> 9 | B13: 6 | C13: Renata | D13: Sandro | E13: 43.18181818 | G13: 43.18181818 | H13: 76 | J13: 76 | K13: 2 | L13: 7 | M13: 3 | N13: 1 | O13: 2 | P13: 0 | Q13: 8 | R13: 1 | S13: 8 | T13: 6 | U13: 4 | V13: 4 | W13: 1 | X13: 2 | Y13: 4 | Z13: 0 | AA13: 4 | AB13: 4 | AC13: 2 | AD13: 3 | AE13: 2 | AF13: 8 | BF13: 9
A14: =IF(J$2="","",IF($E14="","",IF($E14=MAX($E$5:$E$54),1,IF($E14=$E13,$A13,COUNT($E$5:$E14))))) -> 10 | B14: 2 | C14: Olimpia | D14: Sauro | E14: 39.77272727 | G14: 39.77272727 | H14: 70 | J14: 70 | K14: 2 | L14: 7 | M14: 4 | N14: 4 | O14: 2 | P14: 0 | Q14: 0 | R14: 7 | S14: 8 | T14: 2 | U14: 2 | V14: 1 | W14: 1 | X14: 6 | Y14: 2 | Z14: 4 | AA14: 0 | AB14: 1 | AC14: 0 | AD14: 8 | AE14: 4 | AF14: 5 | BF14: 8
A15: =IF(J$2="","",IF($E15="","",IF($E15=MAX($E$5:$E$54),1,IF($E15=$E14,$A14,COUNT($E$5:$E15))))) -> 11 | B15: 4 | C15: Anna | D15: Benedetto | E15: 39.20454545 | G15: 39.20454545 | H15: 69 | J15: 69 | K15: 2 | L15: 1 | M15: 5 | N15: 3 | O15: 6 | P15: 8 | Q15: 4 | R15: 4 | S15: 0 | T15: 2 | U15: 0 | V15: 0 | W15: 5 | X15: 4 | Y15: 0 | Z15: 0 | AA15: 4 | AB15: 2 | AC15: 2 | AD15: 1 | AE15: 8 | AF15: 8 | BF15: 17
A16: =IF(J$2="","",IF($E16="","",IF($E16=MAX($E$5:$E$54),1,IF($E16=$E15,$A15,COUNT($E$5:$E16))))) -> 12 | E16: 0 | G16: 0 | H16: 0 | J16: 0 | BF16: 5
A17: =IF(J$2="","",IF($E17="","",IF($E17=MAX($E$5:$E$54),1,IF($E17=$E16,$A16,COUNT($E$5:$E17))))) -> 12 | E17: 0 | G17: 0 | H17: 0 | J17: 0 | BF17: 12
A18: =IF(J$2="","",IF($E18="","",IF($E18=MAX($E$5:$E$54),1,IF($E18=$E17,$A17,COUNT($E$5:$E18))))) -> 12 | E18: 0 | G18: 0 | H18: 0 | J18: 0 | BF18: 13
A19: =IF(J$2="","",IF($E19="","",IF($E19=MAX($E$5:$E$54),1,IF($E19=$E18,$A18,COUNT($E$5:$E19))))) -> 12 | E19: 0 | G19: 0 | H19: 0 | J19: 0 | BF19: 14
A20: =IF(J$2="","",IF($E20="","",IF($E20=MAX($E$5:$E$54),1,IF($E20=$E19,$A19,COUNT($E$5:$E20))))) -> 12 | E20: 0 | G20: 0 | H20: 0 | J20: 0 | BF20: 15
A21: =IF(J$2="","",IF($E21="","",IF($E21=MAX($E$5:$E$54),1,IF($E21=$E20,$A20,COUNT($E$5:$E21))))) -> 12 | E21: 0 | G21: 0 | H21: 0 | J21: 0 | BF21: 16
A22: =IF(J$2="","",IF($E22="","",IF($E22=MAX($E$5:$E$54),1,IF($E22=$E21,$A21,COUNT($E$5:$E22))))) -> 12 | E22: 0 | G22: 0 | H22: 0 | J22: 0 | BF22: 18
A23: =IF(J$2="","",IF($E23="","",IF($E23=MAX($E$5:$E$54),1,IF($E23=$E22,$A22,COUNT($E$5:$E23))))) -> 12 | E23: 0 | G23: 0 | H23: 0 | J23: 0 | BF23: 19
A24: =IF(J$2="","",IF($E24="","",IF($E24=MAX($E$5:$E$54),1,IF($E24=$E23,$A23,COUNT($E$5:$E24))))) -> 12 | E24: 0 | G24: 0 | H24: 0 | J24: 0 | BF24: 20
A25: =IF(J$2="","",IF($E25="","",IF($E25=MAX($E$5:$E$54),1,IF($E25=$E24,$A24,COUNT($E$5:$E25))))) -> 12 | E25: 0 | G25: 0 | H25: 0 | J25: 0 | BF25: 21
A26: =IF(J$2="","",IF($E26="","",IF($E26=MAX($E$5:$E$54),1,IF($E26=$E25,$A25,COUNT($E$5:$E26))))) -> 12 | E26: 0 | G26: 0 | H26: 0 | J26: 0 | BF26: 22
A27: =IF(J$2="","",IF($E27="","",IF($E27=MAX($E$5:$E$54),1,IF($E27=$E26,$A26,COUNT($E$5:$E27))))) -> 12 | E27: 0 | G27: 0 | H27: 0 | J27: 0 | BF27: 23
A28: =IF(J$2="","",IF($E28="","",IF($E28=MAX($E$5:$E$54),1,IF($E28=$E27,$A27,COUNT($E$5:$E28))))) -> 12 | E28: 0 | G28: 0 | H28: 0 | J28: 0 | BF28: 24
A29: =IF(J$2="","",IF($E29="","",IF($E29=MAX($E$5:$E$54),1,IF($E29=$E28,$A28,COUNT($E$5:$E29))))) -> 12 | E29: 0 | G29: 0 | H29: 0 | J29: 0 | BF29: 25
A30: =IF(J$2="","",IF($E30="","",IF($E30=MAX($E$5:$E$54),1,IF($E30=$E29,$A29,COUNT($E$5:$E30))))) -> 12 | E30: 0 | G30: 0 | H30: 0 | J30: 0 | BF30: 26
A31: =IF(J$2="","",IF($E31="","",IF($E31=MAX($E$5:$E$54),1,IF($E31=$E30,$A30,COUNT($E$5:$E31))))) -> 12 | E31: 0 | G31: 0 | H31: 0 | J31: 0 | BF31: 27
A32: =IF(J$2="","",IF($E32="","",IF($E32=MAX($E$5:$E$54),1,IF($E32=$E31,$A31,COUNT($E$5:$E32))))) -> 12 | E32: 0 | G32: 0 | H32: 0 | J32: 0 | BF32: 28
A33: =IF(J$2="","",IF($E33="","",IF($E33=MAX($E$5:$E$54),1,IF($E33=$E32,$A32,COUNT($E$5:$E33))))) -> 12 | E33: 0 | G33: 0 | H33: 0 | J33: 0 | BF33: 29
A34: =IF(J$2="","",IF($E34="","",IF($E34=MAX($E$5:$E$54),1,IF($E34=$E33,$A33,COUNT($E$5:$E34))))) -> 12 | E34: 0 | G34: 0 | H34: 0 | J34: 0 | BF34: 30
A35: =IF(J$2="","",IF($E35="","",IF($E35=MAX($E$5:$E$54),1,IF($E35=$E34,$A34,COUNT($E$5:$E35))))) -> 12 | E35: 0 | G35: 0 | H35: 0 | J35: 0 | BF35: 31
A36: =IF(J$2="","",IF($E36="","",IF($E36=MAX($E$5:$E$54),1,IF($E36=$E35,$A35,COUNT($E$5:$E36))))) -> 12 | E36: 0 | G36: 0 | H36: 0 | J36: 0 | BF36: 32
A37: =IF(J$2="","",IF($E37="","",IF($E37=MAX($E$5:$E$54),1,IF($E37=$E36,$A36,COUNT($E$5:$E37))))) -> 12 | E37: =IF(J$2="","",IF(G37=0,0,F37+G37)) -> 0 | G37: =IF(J$2="","",IF($J37=0,0,(H37*$C$3/$J$3)*50)) -> 0 | H37: =IF(J$2="","",IF(SUM($K37:$AX37)=0,0,SUM($K37:$AX37)+$I37)) -> 0 | J37: =IF(B37="",0,IF(SUM($K37:$AX37)=0,0,SUM($K37:$AX37))) -> 0 | BF37: 33
A38: =IF(J$2="","",IF($E38="","",IF($E38=MAX($E$5:$E$54),1,IF($E38=$E37,$A37,COUNT($E$5:$E38))))) -> 12 | E38: 0 | G38: 0 | H38: 0 | J38: 0 | BF38: 34
A39: =IF(J$2="","",IF($E39="","",IF($E39=MAX($E$5:$E$54),1,IF($E39=$E38,$A38,COUNT($E$5:$E39))))) -> 12 | E39: 0 | G39: 0 | H39: 0 | J39: 0 | BF39: 35
A40: =IF(J$2="","",IF($E40="","",IF($E40=MAX($E$5:$E$54),1,IF($E40=$E39,$A39,COUNT($E$5:$E40))))) -> 12 | E40: 0 | G40: 0 | H40: 0 | J40: 0 | BF40: 36
A41: =IF(J$2="","",IF($E41="","",IF($E41=MAX($E$5:$E$54),1,IF($E41=$E40,$A40,COUNT($E$5:$E41))))) -> 12 | E41: 0 | G41: 0 | H41: 0 | J41: 0 | BF41: 37
A42: =IF(J$2="","",IF($E42="","",IF($E42=MAX($E$5:$E$54),1,IF($E42=$E41,$A41,COUNT($E$5:$E42))))) -> 12 | E42: 0 | G42: 0 | H42: 0 | J42: 0 | BF42: 38
A43: =IF(J$2="","",IF($E43="","",IF($E43=MAX($E$5:$E$54),1,IF($E43=$E42,$A42,COUNT($E$5:$E43))))) -> 12 | E43: 0 | G43: 0 | H43: 0 | J43: 0 | BF43: 39
A44: =IF(J$2="","",IF($E44="","",IF($E44=MAX($E$5:$E$54),1,IF($E44=$E43,$A43,COUNT($E$5:$E44))))) -> 12 | E44: 0 | G44: 0 | H44: 0 | J44: 0 | BF44: 40
A45: =IF(J$2="","",IF($E45="","",IF($E45=MAX($E$5:$E$54),1,IF($E45=$E44,$A44,COUNT($E$5:$E45))))) -> 12 | E45: 0 | G45: 0 | H45: 0 | J45: 0 | BF45: 41
A46: =IF(J$2="","",IF($E46="","",IF($E46=MAX($E$5:$E$54),1,IF($E46=$E45,$A45,COUNT($E$5:$E46))))) -> 12 | E46: 0 | G46: 0 | H46: 0 | J46: 0 | BF46: 42
A47: =IF(J$2="","",IF($E47="","",IF($E47=MAX($E$5:$E$54),1,IF($E47=$E46,$A46,COUNT($E$5:$E47))))) -> 12 | E47: 0 | G47: 0 | H47: 0 | J47: 0 | BF47: 43
A48: =IF(J$2="","",IF($E48="","",IF($E48=MAX($E$5:$E$54),1,IF($E48=$E47,$A47,COUNT($E$5:$E48))))) -> 12 | E48: 0 | G48: 0 | H48: 0 | J48: 0 | BF48: 44
A49: =IF(J$2="","",IF($E49="","",IF($E49=MAX($E$5:$E$54),1,IF($E49=$E48,$A48,COUNT($E$5:$E49))))) -> 12 | E49: 0 | G49: 0 | H49: 0 | J49: 0 | BF49: 45
A50: =IF(J$2="","",IF($E50="","",IF($E50=MAX($E$5:$E$54),1,IF($E50=$E49,$A49,COUNT($E$5:$E50))))) -> 12 | E50: 0 | G50: 0 | H50: 0 | J50: 0 | BF50: 46
A51: =IF(J$2="","",IF($E51="","",IF($E51=MAX($E$5:$E$54),1,IF($E51=$E50,$A50,COUNT($E$5:$E51))))) -> 12 | E51: 0 | G51: 0 | H51: 0 | J51: 0 | BF51: 47
A52: =IF(J$2="","",IF($E52="","",IF($E52=MAX($E$5:$E$54),1,IF($E52=$E51,$A51,COUNT($E$5:$E52))))) -> 12 | E52: 0 | G52: 0 | H52: 0 | J52: 0 | BF52: 48
A53: =IF(J$2="","",IF($E53="","",IF($E53=MAX($E$5:$E$54),1,IF($E53=$E52,$A52,COUNT($E$5:$E53))))) -> 12 | E53: 0 | G53: 0 | H53: 0 | J53: 0 | BF53: 49
A54: =IF(J$2="","",IF($E54="","",IF($E54=MAX($E$5:$E$54),1,IF($E54=$E53,$A53,COUNT($E$5:$E54))))) -> 12 | E54: 0 | G54: 0 | H54: 0 | J54: 0 | BF54: 50
D59: punteggi torneo ordinati per # di coppia
B60: # coppia | E60: con zeri | F60: senza zeri | G60: senza zeri
B61: 1 | E61: 48.86363636 | F61: =IF(E61=0,"",E61) -> 48.86363636 | G61: 48.86363636 | I61: =IF(H61=0,"",H61) ->  | BF61: 2
B62: 2 | E62: 39.77272727 | F62: 39.77272727 | G62: 39.77272727 | BF62: 8
B63: 3 | E63: 51.70454545 | F63: 51.70454545 | G63: 51.70454545 | I63: =IF(H63=0,"",H63) ->  | BF63: 7
B64: 4 | E64: 39.20454545 | F64: 39.20454545 | G64: 39.20454545 | I64: =IF(H64=0,"",H64) ->  | BF64: 17
B65: 5 | E65: 44.31818182 | F65: 44.31818182 | G65: 44.31818182 | I65: =IF(H65=0,"",H65) ->  | BF65: 3
B66: 6 | E66: 43.18181818 | F66: 43.18181818 | G66: 43.18181818 | BF66: 9
B67: 7 | E67: 51.13636364 | F67: 51.13636364 | G67: 51.13636364 | I67: =IF(H67=0,"",H67) ->  | BF67: 1
B68: 8 | E68: 47.72727273 | F68: 47.72727273 | G68: 47.72727273 | BF68: 6
B69: 9 | E69: 52.27272727 | F69: 52.27272727 | G69: 52.27272727 | BF69: 11
B70: 10 | E70: 74.43181818 | F70: 74.43181818 | G70: 74.43181818 | BF70: 10
B71: 11 | E71: 57.38636364 | F71: 57.38636364 | G71: 57.38636364 | BF71: 4
E72: 0 | BF72: 5
E73: 0 | I73: =IF(H73=0,"",H73) ->  | BF73: 12
E74: 0 | I74: =IF(H74=0,"",H74) ->  | BF74: 13
E75: 0 | I75: =IF(H75=0,"",H75) ->  | BF75: 14
E76: 0 | I76: =IF(H76=0,"",H76) ->  | BF76: 15
E77: 0 | BF77: 16
E78: 0 | BF78: 18
E79: 0 | I79: =IF(H79=0,"",H79) ->  | BF79: 19
E80: 0 | I80: =IF(H80=0,"",H80) ->  | BF80: 20
E81: 0 | BF81: 21
E82: 0 | BF82: 22
E83: 0 | BF83: 23
E84: 0 | BF84: 24
E85: 0 | BF85: 25
E86: 0 | BF86: 26
E87: 0 | BF87: 27
E88: 0 | BF88: 28
E89: 0 | BF89: 29
E90: 0 | BF90: 30
E91: 0 | BF91: 31
E92: 0 | BF92: 32
E93: 0 | F93: =IF(E93=0,"",E93) ->  | BF93: 33
E94: 0 | BF94: 34
E95: 0 | BF95: 35
E96: 0 | BF96: 36
E97: 0 | BF97: 37
E98: 0 | BF98: 38
E99: 0 | BF99: 39
E100: 0 | BF100: 40
E101: 0 | BF101: 41
E102: 0 | BF102: 42
E103: 0 | BF103: 43
E104: 0 | BF104: 44
E105: 0 | BF105: 45
E106: 0 | BF106: 46
E107: 0 | BF107: 47
E108: 0 | BF108: 48
E109: 0 | BF109: 49
E110: 0 | BF110: 50
A119: punteggi torneo ordinati per numero standard di coppia base
B120: # coppia | E120: con zeri | F120: senza zeri | G120: senza zeri
B121: 7 | E121: 51.13636364 | F121: =IF(E121=0,"",E121) -> 51.13636364 | G121: 51.13636364 | I121: =IF(H121=0,"",H121) ->  | BF121: 1
B122: 1 | E122: 48.86363636 | F122: 48.86363636 | G122: 48.86363636 | I122: =IF(H122=0,"",H122) ->  | BF122: 2
B123: 5 | E123: 44.31818182 | F123: 44.31818182 | G123: 44.31818182 | I123: =IF(H123=0,"",H123) ->  | BF123: 3
B124: 11 | E124: 57.38636364 | F124: 57.38636364 | G124: 57.38636364 | BF124: 4
E125: 0 | BF125: 5
B126: 8 | E126: 47.72727273 | F126: 47.72727273 | G126: 47.72727273 | BF126: 6
B127: 3 | E127: 51.70454545 | F127: 51.70454545 | G127: 51.70454545 | I127: =IF(H127=0,"",H127) ->  | BF127: 7
B128: 2 | E128: 39.77272727 | F128: 39.77272727 | G128: 39.77272727 | BF128: 8
B129: 6 | E129: 43.18181818 | F129: 43.18181818 | G129: 43.18181818 | BF129: 9
B130: 10 | E130: 74.43181818 | F130: 74.43181818 | G130: 74.43181818 | BF130: 10
B131: 9 | E131: 52.27272727 | F131: 52.27272727 | G131: 52.27272727 | BF131: 11

Sheet 21apr
A1: Data | C1: 2018-04-21 | D1: BridgeMania 2017-18 - Torneo Howell
A2: luogo | C2: Montefalco | D2: Coppie Ctrl+e | E2: Calcola Ctr+f | F2: Duplica Ctrl+g | G2: Clear Ctrl+h | J2: &
A3: # coppie | C3: =IF(B5="","",COUNT(B5:B25)) -> 11 | E3: =IF(E5="","",SUMIF(E5:E25,">0")) -> 550 | F3: =IF(F5="","",SUMIF(F5:F24,">0")) ->  | G3: =IF(G5="","",SUM(G5:G25)) -> 550 | H3: =IF(H5="","",SUM(H5:H25)) -> 1452 | I3: =SUM(I5:I25) -> 0 | J3: =SUM(J5:J25) -> 1452 | K3: =SUM(K5:K25) -> 44 | L3: =SUM(L5:L25) -> 44 | M3: 44 | N3: 44 | O3: 44 | P3: 44 | Q3: 44 | R3: 44 | S3: 44 | T3: 44 | U3: 44 | V3: 44 | W3: 44 | X3: 44 | Y3: 44 | Z3: 44 | AA3: 44 | AB3: 44 | AC3: 44 | AD3: 44 | AE3: 44 | AF3: 44 | AG3: 44 | AH3: 44 | AI3: 44 | AJ3: 44 | AK3: 44 | AL3: 44 | AM3: 44 | AN3: 44 | AO3: 44 | AP3: 44 | AQ3: 44 | AR3: 0 | AS3: 0 | AT3: 0 | AU3: 0 | AV3: 0 | AW3: 0 | AX3: 0
A4: Class. | B4: # | C4: Coppie | E4: Punteggio Serata | G4: Punteggio % | H4: Punteggio Torneo | I4: Penalità (-) | J4: Totale punti mano | K4: 1 | L4: 2 | M4: 3 | N4: 4 | O4: 5 | P4: 6 | Q4: 7 | R4: 8 | S4: 9 | T4: 10 | U4: 11 | V4: 12 | W4: 13 | X4: 14 | Y4: 15 | Z4: 16 | AA4: 17 | AB4: 18 | AC4: 19 | AD4: 20 | AE4: 21 | AF4: 22 | AG4: 23 | AH4: 24 | AI4: 25 | AJ4: 26 | AK4: 27 | AL4: 28 | AM4: 29 | AN4: 30 | AO4: 31 | AP4: 32 | AQ4: 33 | AR4: 34 | AS4: 35 | AT4: 36 | AU4: 37 | AV4: 38 | AW4: 39 | AX4: 40
A5: =IF(J$2="","",IF($E5="","",IF($E5=MAX($E$5:$E$54),1,IF($E5=$E4,$A4,COUNT($E$5:$E5))))) -> 1 | B5: 5 | C5: Barbara | D5: Elio | E5: =IF(J$2="","",IF(G5=0,0,F5+G5)) -> 56.81818182 | G5: =IF(J$2="","",IF($J5=0,0,(H5*$C$3/$J$3)*50)) -> 56.81818182 | H5: =IF(J$2="","",IF(SUM($K5:$AX5)=0,0,SUM($K5:$AX5)+$I5)) -> 150 | J5: =IF(B5="",0,IF(SUM($K5:$AX5)=0,0,SUM($K5:$AX5))) -> 150 | K5: 8 | L5: 8 | M5: 3 | N5: 5 | O5: 4 | P5: 4 | Q5: 2 | R5: 2 | S5: 0 | T5: 0 | U5: 6 | V5: 6 | W5: 4 | X5: 4 | Y5: 4 | Z5: 3 | AA5: 8 | AB5: 7 | AC5: 8 | AD5: 8 | AE5: 2 | AF5: 0 | AG5: 6 | AH5: 6 | AI5: 8 | AJ5: 4 | AK5: 1 | AL5: 6 | AM5: 6 | AN5: 3 | AO5: 0 | AP5: 6 | AQ5: 8 | BF5: 2
A6: =IF(J$2="","",IF($E6="","",IF($E6=MAX($E$5:$E$54),1,IF($E6=$E5,$A5,COUNT($E$5:$E6))))) -> 2 | B6: 1 | C6: Stefania | D6: Massimo | E6: 56.43939394 | G6: 56.43939394 | H6: 149 | J6: 149 | K6: 4 | L6: 4 | M6: 4 | N6: 3 | O6: 0 | P6: 4 | Q6: 6 | R6: 6 | S6: 8 | T6: 0 | U6: 8 | V6: 8 | W6: 4 | X6: 7 | Y6: 6 | Z6: 3 | AA6: 3 | AB6: 7 | AC6: 6 | AD6: 2 | AE6: 5 | AF6: 2 | AG6: 5 | AH6: 4 | AI6: 2 | AJ6: 4 | AK6: 0 | AL6: 1 | AM6: 8 | AN6: 8 | AO6: 3 | AP6: 8 | AQ6: 6 | BF6: 10
A7: =IF(J$2="","",IF($E7="","",IF($E7=MAX($E$5:$E$54),1,IF($E7=$E6,$A6,COUNT($E$5:$E7))))) -> 3 | B7: 4 | C7: Cesarina | D7: Gaetano | E7: 56.06060606 | G7: 56.06060606 | H7: 148 | J7: 148 | K7: 5 | L7: 6 | M7: 3 | N7: 8 | O7: 8 | P7: 4 | Q7: 6 | R7: 6 | S7: 3 | T7: 4 | U7: 4 | V7: 4 | W7: 2 | X7: 3 | Y7: 6 | Z7: 8 | AA7: 5 | AB7: 6 | AC7: 8 | AD7: 4 | AE7: 3 | AF7: 6 | AG7: 3 | AH7: 4 | AI7: 4 | AJ7: 0 | AK7: 5 | AL7: 2 | AM7: 2 | AN7: 5 | AO7: 6 | AP7: 3 | AQ7: 2 | BF7: 3
A8: =IF(J$2="","",IF($E8="","",IF($E8=MAX($E$5:$E$54),1,IF($E8=$E7,$A7,COUNT($E$5:$E8))))) -> 4 | B8: 6 | C8: Antonella | D8: Dino | E8: 54.54545455 | G8: 54.54545455 | H8: 144 | J8: 144 | K8: 5 | L8: 2 | M8: 8 | N8: 5 | O8: 4 | P8: 4 | Q8: 6 | R8: 6 | S8: 3 | T8: 4 | U8: 6 | V8: 5 | W8: 6 | X8: 5 | Y8: 2 | Z8: 4 | AA8: 4 | AB8: 4 | AC8: 6 | AD8: 8 | AE8: 0 | AF8: 0 | AG8: 0 | AH8: 6 | AI8: 6 | AJ8: 4 | AK8: 8 | AL8: 6 | AM8: 4 | AN8: 3 | AO8: 8 | AP8: 2 | AQ8: 0 | BF8: 1
A9: =IF(J$2="","",IF($E9="","",IF($E9=MAX($E$5:$E$54),1,IF($E9=$E8,$A8,COUNT($E$5:$E9))))) -> 5 | B9: 3 | C9: Letizia | D9: Enzo | E9: 52.65151515 | G9: 52.65151515 | H9: 139 | J9: 139 | K9: 7 | L9: 8 | M9: 5 | N9: 5 | O9: 8 | P9: 4 | Q9: 4 | R9: 4 | S9: 4 | T9: 8 | U9: 2 | V9: 2 | W9: 2 | X9: 1 | Y9: 8 | Z9: 7 | AA9: 3 | AB9: 4 | AC9: 4 | AD9: 2 | AE9: 8 | AF9: 3 | AG9: 3 | AH9: 0 | AI9: 4 | AJ9: 8 | AK9: 3 | AL9: 2 | AM9: 4 | AN9: 5 | AO9: 3 | AP9: 0 | AQ9: 4 | BF9: 16
A10: =IF(J$2="","",IF($E10="","",IF($E10=MAX($E$5:$E$54),1,IF($E10=$E9,$A9,COUNT($E$5:$E10))))) -> 6 | B10: 9 | C10: Olimpia | D10: Sauro | E10: 47.72727273 | G10: 47.72727273 | H10: 126 | J10: 126 | K10: 3 | L10: 2 | M10: 5 | N10: 3 | O10: 4 | P10: 4 | Q10: 8 | R10: 7 | S10: 5 | T10: 6 | U10: 6 | V10: 8 | W10: 4 | X10: 1 | Y10: 2 | Z10: 1 | AA10: 5 | AB10: 4 | AC10: 0 | AD10: 0 | AE10: 6 | AF10: 5 | AG10: 8 | AH10: 0 | AI10: 4 | AJ10: 4 | AK10: 4 | AL10: 1 | AM10: 2 | AN10: 3 | AO10: 8 | AP10: 3 | AQ10: 0 | BF10: 8
A11: =IF(J$2="","",IF($E11="","",IF($E11=MAX($E$5:$E$54),1,IF($E11=$E10,$A10,COUNT($E$5:$E11))))) -> 6 | B11: 11 | C11: Elena | D11: Stefano | E11: 47.72727273 | G11: 47.72727273 | H11: 126 | J11: 126 | K11: 7 | L11: 4 | M11: 5 | N11: 0 | O11: 0 | P11: 4 | Q11: 2 | R11: 2 | S11: 5 | T11: 6 | U11: 2 | V11: 5 | W11: 8 | X11: 0 | Y11: 6 | Z11: 5 | AA11: 5 | AB11: 1 | AC11: 4 | AD11: 6 | AE11: 0 | AF11: 8 | AG11: 2 | AH11: 2 | AI11: 2 | AJ11: 4 | AK11: 1 | AL11: 7 | AM11: 6 | AN11: 5 | AO11: 4 | AP11: 4 | AQ11: 4 | BF11: 4
A12: =IF(J$2="","",IF($E12="","",IF($E12=MAX($E$5:$E$54),1,IF($E12=$E11,$A11,COUNT($E$5:$E12))))) -> 8 | B12: 2 | C12: A.Maria | D12: Claudio | E12: 45.83333333 | G12: 45.83333333 | H12: 121 | J12: 121 | K12: 1 | L12: 4 | M12: 3 | N12: 4 | O12: 4 | P12: 4 | Q12: 2 | R12: 2 | S12: 5 | T12: 4 | U12: 2 | V12: 3 | W12: 0 | X12: 3 | Y12: 2 | Z12: 7 | AA12: 3 | AB12: 0 | AC12: 2 | AD12: 6 | AE12: 3 | AF12: 5 | AG12: 5 | AH12: 8 | AI12: 0 | AJ12: 4 | AK12: 7 | AL12: 2 | AM12: 8 | AN12: 5 | AO12: 0 | AP12: 5 | AQ12: 8 | BF12: 12
A13: =IF(J$2="","",IF($E13="","",IF($E13=MAX($E$5:$E$54),1,IF($E13=$E12,$A12,COUNT($E$5:$E13))))) -> 9 | B13: 10 | C13: Lilli | D13: Gianni | E13: 44.6969697 | G13: 44.6969697 | H13: 118 | J13: 118 | K13: 1 | L13: 0 | M13: 3 | N13: 3 | O13: 4 | P13: 4 | Q13: 6 | R13: 7 | S13: 5 | T13: 2 | U13: 2 | V13: 0 | W13: 0 | X13: 8 | Y13: 2 | Z13: 1 | AA13: 5 | AB13: 8 | AC13: 0 | AD13: 4 | AE13: 5 | AF13: 8 | AG13: 8 | AH13: 2 | AI13: 8 | AJ13: 0 | AK13: 3 | AL13: 4 | AM13: 4 | AN13: 4 | AO13: 5 | AP13: 0 | AQ13: 2 | BF13: 6
A14: =IF(J$2="","",IF($E14="","",IF($E14=MAX($E$5:$E$54),1,IF($E14=$E13,$A13,COUNT($E$5:$E14))))) -> 10 | B14: 7 | C14: Tatiana | D14: Julio | E14: 44.31818182 | G14: 44.31818182 | H14: 117 | J14: 117 | K14: 3 | L14: 6 | M14: 0 | N14: 5 | O14: 4 | P14: 4 | Q14: 2 | R14: 1 | S14: 3 | T14: 8 | U14: 0 | V14: 0 | W14: 6 | X14: 7 | Y14: 0 | Z14: 5 | AA14: 0 | AB14: 1 | AC14: 4 | AD14: 4 | AE14: 4 | AF14: 3 | AG14: 0 | AH14: 8 | AI14: 6 | AJ14: 4 | AK14: 7 | AL14: 6 | AM14: 0 | AN14: 3 | AO14: 2 | AP14: 5 | AQ14: 6 | BF14: 11
A15: =IF(J$2="","",IF($E15="","",IF($E15=MAX($E$5:$E$54),1,IF($E15=$E14,$A14,COUNT($E$5:$E15))))) -> 11 | B15: 8 | C15: Marilena | D15: Sergio | E15: 43.18181818 | G15: 43.18181818 | H15: 114 | J15: 114 | K15: 0 | L15: 0 | M15: 5 | N15: 3 | O15: 4 | P15: 4 | Q15: 0 | R15: 1 | S15: 3 | T15: 2 | U15: 6 | V15: 3 | W15: 8 | X15: 5 | Y15: 6 | Z15: 0 | AA15: 3 | AB15: 2 | AC15: 2 | AD15: 0 | AE15: 8 | AF15: 4 | AG15: 4 | AH15: 4 | AI15: 0 | AJ15: 8 | AK15: 5 | AL15: 7 | AM15: 0 | AN15: 0 | AO15: 5 | AP15: 8 | AQ15: 4 | BF15: 15
A16: =IF(J$2="","",IF($E16="","",IF($E16=MAX($E$5:$E$54),1,IF($E16=$E15,$A15,COUNT($E$5:$E16))))) -> 12 | E16: 0 | G16: 0 | H16: 0 | J16: 0 | BF16: 5
A17: =IF(J$2="","",IF($E17="","",IF($E17=MAX($E$5:$E$54),1,IF($E17=$E16,$A16,COUNT($E$5:$E17))))) -> 12 | E17: 0 | G17: 0 | H17: 0 | J17: 0 | BF17: 7
A18: =IF(J$2="","",IF($E18="","",IF($E18=MAX($E$5:$E$54),1,IF($E18=$E17,$A17,COUNT($E$5:$E18))))) -> 12 | E18: 0 | G18: 0 | H18: 0 | J18: 0 | BF18: 9
A19: =IF(J$2="","",IF($E19="","",IF($E19=MAX($E$5:$E$54),1,IF($E19=$E18,$A18,COUNT($E$5:$E19))))) -> 12 | E19: 0 | G19: 0 | H19: 0 | J19: 0 | BF19: 13
A20: =IF(J$2="","",IF($E20="","",IF($E20=MAX($E$5:$E$54),1,IF($E20=$E19,$A19,COUNT($E$5:$E20))))) -> 12 | E20: 0 | G20: 0 | H20: 0 | J20: 0 | BF20: 14
A21: =IF(J$2="","",IF($E21="","",IF($E21=MAX($E$5:$E$54),1,IF($E21=$E20,$A20,COUNT($E$5:$E21))))) -> 12 | E21: 0 | G21: 0 | H21: 0 | J21: 0 | BF21: 17
A22: =IF(J$2="","",IF($E22="","",IF($E22=MAX($E$5:$E$54),1,IF($E22=$E21,$A21,COUNT($E$5:$E22))))) -> 12 | E22: 0 | G22: 0 | H22: 0 | J22: 0 | BF22: 18
A23: =IF(J$2="","",IF($E23="","",IF($E23=MAX($E$5:$E$54),1,IF($E23=$E22,$A22,COUNT($E$5:$E23))))) -> 12 | E23: 0 | G23: 0 | H23: 0 | J23: 0 | BF23: 19
A24: =IF(J$2="","",IF($E24="","",IF($E24=MAX($E$5:$E$54),1,IF($E24=$E23,$A23,COUNT($E$5:$E24))))) -> 12 | E24: 0 | G24: 0 | H24: 0 | J24: 0 | BF24: 20
A25: =IF(J$2="","",IF($E25="","",IF($E25=MAX($E$5:$E$54),1,IF($E25=$E24,$A24,COUNT($E$5:$E25))))) -> 12 | E25: 0 | G25: 0 | H25: 0 | J25: 0 | BF25: 21
A26: =IF(J$2="","",IF($E26="","",IF($E26=MAX($E$5:$E$54),1,IF($E26=$E25,$A25,COUNT($E$5:$E26))))) -> 12 | E26: 0 | G26: 0 | H26: 0 | J26: 0 | BF26: 22
A27: =IF(J$2="","",IF($E27="","",IF($E27=MAX($E$5:$E$54),1,IF($E27=$E26,$A26,COUNT($E$5:$E27))))) -> 12 | E27: 0 | G27: 0 | H27: 0 | J27: 0 | BF27: 23
A28: =IF(J$2="","",IF($E28="","",IF($E28=MAX($E$5:$E$54),1,IF($E28=$E27,$A27,COUNT($E$5:$E28))))) -> 12 | E28: 0 | G28: 0 | H28: 0 | J28: 0 | BF28: 24
A29: =IF(J$2="","",IF($E29="","",IF($E29=MAX($E$5:$E$54),1,IF($E29=$E28,$A28,COUNT($E$5:$E29))))) -> 12 | E29: 0 | G29: 0 | H29: 0 | J29: 0 | BF29: 25
A30: =IF(J$2="","",IF($E30="","",IF($E30=MAX($E$5:$E$54),1,IF($E30=$E29,$A29,COUNT($E$5:$E30))))) -> 12 | E30: 0 | G30: 0 | H30: 0 | J30: 0 | BF30: 26
A31: =IF(J$2="","",IF($E31="","",IF($E31=MAX($E$5:$E$54),1,IF($E31=$E30,$A30,COUNT($E$5:$E31))))) -> 12 | E31: 0 | G31: 0 | H31: 0 | J31: 0 | BF31: 27
A32: =IF(J$2="","",IF($E32="","",IF($E32=MAX($E$5:$E$54),1,IF($E32=$E31,$A31,COUNT($E$5:$E32))))) -> 12 | E32: 0 | G32: 0 | H32: 0 | J32: 0 | BF32: 28
A33: =IF(J$2="","",IF($E33="","",IF($E33=MAX($E$5:$E$54),1,IF($E33=$E32,$A32,COUNT($E$5:$E33))))) -> 12 | E33: 0 | G33: 0 | H33: 0 | J33: 0 | BF33: 29
A34: =IF(J$2="","",IF($E34="","",IF($E34=MAX($E$5:$E$54),1,IF($E34=$E33,$A33,COUNT($E$5:$E34))))) -> 12 | E34: 0 | G34: 0 | H34: 0 | J34: 0 | BF34: 30
A35: =IF(J$2="","",IF($E35="","",IF($E35=MAX($E$5:$E$54),1,IF($E35=$E34,$A34,COUNT($E$5:$E35))))) -> 12 | E35: 0 | G35: 0 | H35: 0 | J35: 0 | BF35: 31
A36: =IF(J$2="","",IF($E36="","",IF($E36=MAX($E$5:$E$54),1,IF($E36=$E35,$A35,COUNT($E$5:$E36))))) -> 12 | E36: 0 | G36: 0 | H36: 0 | J36: 0 | BF36: 32
A37: =IF(J$2="","",IF($E37="","",IF($E37=MAX($E$5:$E$54),1,IF($E37=$E36,$A36,COUNT($E$5:$E37))))) -> 12 | E37: =IF(J$2="","",IF(G37=0,0,F37+G37)) -> 0 | G37: =IF(J$2="","",IF($J37=0,0,(H37*$C$3/$J$3)*50)) -> 0 | H37: =IF(J$2="","",IF(SUM($K37:$AX37)=0,0,SUM($K37:$AX37)+$I37)) -> 0 | J37: =IF(B37="",0,IF(SUM($K37:$AX37)=0,0,SUM($K37:$AX37))) -> 0 | BF37: 33
A38: =IF(J$2="","",IF($E38="","",IF($E38=MAX($E$5:$E$54),1,IF($E38=$E37,$A37,COUNT($E$5:$E38))))) -> 12 | E38: 0 | G38: 0 | H38: 0 | J38: 0 | BF38: 34
A39: =IF(J$2="","",IF($E39="","",IF($E39=MAX($E$5:$E$54),1,IF($E39=$E38,$A38,COUNT($E$5:$E39))))) -> 12 | E39: 0 | G39: 0 | H39: 0 | J39: 0 | BF39: 35
A40: =IF(J$2="","",IF($E40="","",IF($E40=MAX($E$5:$E$54),1,IF($E40=$E39,$A39,COUNT($E$5:$E40))))) -> 12 | E40: 0 | G40: 0 | H40: 0 | J40: 0 | BF40: 36
A41: =IF(J$2="","",IF($E41="","",IF($E41=MAX($E$5:$E$54),1,IF($E41=$E40,$A40,COUNT($E$5:$E41))))) -> 12 | E41: 0 | G41: 0 | H41: 0 | J41: 0 | BF41: 37
A42: =IF(J$2="","",IF($E42="","",IF($E42=MAX($E$5:$E$54),1,IF($E42=$E41,$A41,COUNT($E$5:$E42))))) -> 12 | E42: 0 | G42: 0 | H42: 0 | J42: 0 | BF42: 38
A43: =IF(J$2="","",IF($E43="","",IF($E43=MAX($E$5:$E$54),1,IF($E43=$E42,$A42,COUNT($E$5:$E43))))) -> 12 | E43: 0 | G43: 0 | H43: 0 | J43: 0 | BF43: 39
A44: =IF(J$2="","",IF($E44="","",IF($E44=MAX($E$5:$E$54),1,IF($E44=$E43,$A43,COUNT($E$5:$E44))))) -> 12 | E44: 0 | G44: 0 | H44: 0 | J44: 0 | BF44: 40
A45: =IF(J$2="","",IF($E45="","",IF($E45=MAX($E$5:$E$54),1,IF($E45=$E44,$A44,COUNT($E$5:$E45))))) -> 12 | E45: 0 | G45: 0 | H45: 0 | J45: 0 | BF45: 41
A46: =IF(J$2="","",IF($E46="","",IF($E46=MAX($E$5:$E$54),1,IF($E46=$E45,$A45,COUNT($E$5:$E46))))) -> 12 | E46: 0 | G46: 0 | H46: 0 | J46: 0 | BF46: 42
A47: =IF(J$2="","",IF($E47="","",IF($E47=MAX($E$5:$E$54),1,IF($E47=$E46,$A46,COUNT($E$5:$E47))))) -> 12 | E47: 0 | G47: 0 | H47: 0 | J47: 0 | BF47: 43
A48: =IF(J$2="","",IF($E48="","",IF($E48=MAX($E$5:$E$54),1,IF($E48=$E47,$A47,COUNT($E$5:$E48))))) -> 12 | E48: 0 | G48: 0 | H48: 0 | J48: 0 | BF48: 44
A49: =IF(J$2="","",IF($E49="","",IF($E49=MAX($E$5:$E$54),1,IF($E49=$E48,$A48,COUNT($E$5:$E49))))) -> 12 | E49: 0 | G49: 0 | H49: 0 | J49: 0 | BF49: 45
A50: =IF(J$2="","",IF($E50="","",IF($E50=MAX($E$5:$E$54),1,IF($E50=$E49,$A49,COUNT($E$5:$E50))))) -> 12 | E50: 0 | G50: 0 | H50: 0 | J50: 0 | BF50: 46
A51: =IF(J$2="","",IF($E51="","",IF($E51=MAX($E$5:$E$54),1,IF($E51=$E50,$A50,COUNT($E$5:$E51))))) -> 12 | E51: 0 | G51: 0 | H51: 0 | J51: 0 | BF51: 47
A52: =IF(J$2="","",IF($E52="","",IF($E52=MAX($E$5:$E$54),1,IF($E52=$E51,$A51,COUNT($E$5:$E52))))) -> 12 | E52: 0 | G52: 0 | H52: 0 | J52: 0 | BF52: 48
A53: =IF(J$2="","",IF($E53="","",IF($E53=MAX($E$5:$E$54),1,IF($E53=$E52,$A52,COUNT($E$5:$E53))))) -> 12 | E53: 0 | G53: 0 | H53: 0 | J53: 0 | BF53: 49
A54: =IF(J$2="","",IF($E54="","",IF($E54=MAX($E$5:$E$54),1,IF($E54=$E53,$A53,COUNT($E$5:$E54))))) -> 12 | E54: 0 | G54: 0 | H54: 0 | J54: 0 | BF54: 50
D59: punteggi torneo ordinati per # di coppia
B60: # coppia | E60: con zeri | F60: senza zeri | G60: senza zeri
B61: 1 | E61: 56.43939394 | F61: =IF(E61=0,"",E61) -> 56.43939394 | G61: 56.43939394 | BF61: 10
B62: 2 | E62: 45.83333333 | F62: 45.83333333 | G62: 45.83333333 | BF62: 12
B63: 3 | E63: 52.65151515 | F63: 52.65151515 | G63: 52.65151515 | I63: =IF(H63=0,"",H63) ->  | BF63: 16
B64: 4 | E64: 56.06060606 | F64: 56.06060606 | G64: 56.06060606 | BF64: 3
B65: 5 | E65: 56.81818182 | F65: 56.81818182 | G65: 56.81818182 | I65: =IF(H65=0,"",H65) ->  | BF65: 2
B66: 6 | E66: 54.54545455 | F66: 54.54545455 | G66: 54.54545455 | I66: =IF(H66=0,"",H66) ->  | BF66: 1
B67: 7 | E67: 44.31818182 | F67: 44.31818182 | G67: 44.31818182 | BF67: 11
B68: 8 | E68: 43.18181818 | F68: 43.18181818 | G68: 43.18181818 | I68: =IF(H68=0,"",H68) ->  | BF68: 15
B69: 9 | E69: 47.72727273 | F69: 47.72727273 | G69: 47.72727273 | BF69: 8
B70: 10 | E70: 44.6969697 | F70: 44.6969697 | G70: 44.6969697 | BF70: 6
B71: 11 | E71: 47.72727273 | F71: 47.72727273 | G71: 47.72727273 | I71: =IF(H71=0,"",H71) ->  | BF71: 4
E72: 0 | BF72: 5
E73: 0 | I73: =IF(H73=0,"",H73) ->  | BF73: 7
E74: 0 | I74: =IF(H74=0,"",H74) ->  | BF74: 9
E75: 0 | I75: =IF(H75=0,"",H75) ->  | BF75: 13
E76: 0 | I76: =IF(H76=0,"",H76) ->  | BF76: 14
E77: 0 | BF77: 17
E78: 0 | BF78: 18
E79: 0 | I79: =IF(H79=0,"",H79) ->  | BF79: 19
E80: 0 | I80: =IF(H80=0,"",H80) ->  | BF80: 20
E81: 0 | BF81: 21
E82: 0 | BF82: 22
E83: 0 | BF83: 23
E84: 0 | BF84: 24
E85: 0 | BF85: 25
E86: 0 | BF86: 26
E87: 0 | BF87: 27
E88: 0 | BF88: 28
E89: 0 | BF89: 29
E90: 0 | BF90: 30
E91: 0 | BF91: 31
E92: 0 | BF92: 32
E93: 0 | F93: =IF(E93=0,"",E93) ->  | BF93: 33
E94: 0 | BF94: 34
E95: 0 | BF95: 35
E96: 0 | BF96: 36
E97: 0 | BF97: 37
E98: 0 | BF98: 38
E99: 0 | BF99: 39
E100: 0 | BF100: 40
E101: 0 | BF101: 41
E102: 0 | BF102: 42
E103: 0 | BF103: 43
E104: 0 | BF104: 44
E105: 0 | BF105: 45
E106: 0 | BF106: 46
E107: 0 | BF107: 47
E108: 0 | BF108: 48
E109: 0 | BF109: 49
E110: 0 | BF110: 50
A119: punteggi torneo ordinati per numero standard di coppia base
B120: # coppia | E120: con zeri | F120: senza zeri | G120: senza zeri
B121: 6 | E121: 54.54545455 | F121: =IF(E121=0,"",E121) -> 54.54545455 | G121: 54.54545455 | I121: =IF(H121=0,"",H121) ->  | BF121: 1
B122: 5 | E122: 56.81818182 | F122: 56.81818182 | G122: 56.81818182 | I122: =IF(H122=0,"",H122) ->  | BF122: 2
B123: 4 | E123: 56.06060606 | F123: 56.06060606 | G123: 56.06060606 | BF123: 3
B124: 11 | E124: 47.72727273 | F124: 47.72727273 | G124: 47.72727273 | I124: =IF(H124=0,"",H124) ->  | BF124: 4
E125: 0 | BF125: 5
B126: 10 | E126: 44.6969697 | F126: 44.6969697 | G126: 44.6969697 | BF126: 6
E127: 0 | I127: =IF(H127=0,"",H127) ->  | BF127: 7
B128: 9 | E128: 47.72727273 | F128: 47.72727273 | G128: 47.72727273 | BF128: 8
E129: 0 | I129: =IF(H129=0,"",H129) ->  | BF129: 9
B130: 1 | E130: 56.43939394 | F130: 56.43939394 | G130: 56.43939394 | BF130: 10
B131: 7 | E131: 44.31818182 | F131: 44.31818182 | G131: 44.31818182 | BF131: 11

Sheet 14apr
A1: Data | C1: 2018-04-14 | D1: BridgeMania 2017-18 - Torneo Howell
A2: luogo | C2: Savoca | D2: Coppie Ctrl+e | E2: Calcola Ctr+f | F2: Duplica Ctrl+g | G2: Clear Ctrl+h | J2: &
A3: # coppie | C3: =IF(B5="","",COUNT(B5:B25)) -> 11 | E3: =IF(E5="","",SUMIF(E5:E25,">0")) -> 550 | F3: =IF(F5="","",SUMIF(F5:F24,">0")) ->  | G3: =IF(G5="","",SUM(G5:G25)) -> 550 | H3: =IF(H5="","",SUM(H5:H25)) -> 968 | I3: =SUM(I5:I25) -> 0 | J3: =SUM(J5:J25) -> 968 | K3: =SUM(K5:K25) -> 44 | L3: =SUM(L5:L25) -> 44 | M3: 44 | N3: 44 | O3: 44 | P3: 44 | Q3: 44 | R3: 44 | S3: 44 | T3: 44 | U3: 44 | V3: 44 | W3: 44 | X3: 44 | Y3: 44 | Z3: 44 | AA3: 44 | AB3: 44 | AC3: 44 | AD3: 44 | AE3: 44 | AF3: 44 | AG3: 0 | AH3: 0 | AI3: 0 | AJ3: 0 | AK3: 0 | AL3: 0 | AM3: 0 | AN3: 0 | AO3: 0 | AP3: 0 | AQ3: 0 | AR3: 0 | AS3: 0 | AT3: 0 | AU3: 0 | AV3: 0 | AW3: 0 | AX3: 0
A4: Class. | B4: # | C4: Coppie | E4: Punteggio Serata | G4: Punteggio % | H4: Punteggio Torneo | I4: Penalità (-) | J4: Totale punti mano | K4: 1 | L4: 2 | M4: 3 | N4: 4 | O4: 5 | P4: 6 | Q4: 7 | R4: 8 | S4: 9 | T4: 10 | U4: 11 | V4: 12 | W4: 13 | X4: 14 | Y4: 15 | Z4: 16 | AA4: 17 | AB4: 18 | AC4: 19 | AD4: 20 | AE4: 21 | AF4: 22 | AG4: 23 | AH4: 24 | AI4: 25 | AJ4: 26 | AK4: 27 | AL4: 28 | AM4: 29 | AN4: 30 | AO4: 31 | AP4: 32 | AQ4: 33 | AR4: 34 | AS4: 35 | AT4: 36 | AU4: 37 | AV4: 38 | AW4: 39 | AX4: 40
A5: =IF(J$2="","",IF($E5="","",IF($E5=MAX($E$5:$E$54),1,IF($E5=$E4,$A4,COUNT($E$5:$E5))))) -> 1 | B5: 5 | C5: Cesarina | D5: Gaetano | E5: =IF(J$2="","",IF(G5=0,0,F5+G5)) -> 56.81818182 | G5: =IF(J$2="","",IF($J5=0,0,(H5*$C$3/$J$3)*50)) -> 56.81818182 | H5: =IF(J$2="","",IF(SUM($K5:$AX5)=0,0,SUM($K5:$AX5)+$I5)) -> 100 | J5: =IF(B5="",0,IF(SUM($K5:$AX5)=0,0,SUM($K5:$AX5))) -> 100 | K5: 4 | L5: 8 | M5: 7 | N5: 3 | O5: 8 | P5: 7 | Q5: 4 | R5: 5 | S5: 4 | T5: 4 | U5: 6 | V5: 4 | W5: 4 | X5: 0 | Y5: 4 | Z5: 7 | AA5: 2 | AB5: 4 | AC5: 4 | AD5: 3 | AE5: 8 | AF5: 0 | BF5: 3
A6: =IF(J$2="","",IF($E6="","",IF($E6=MAX($E$5:$E$54),1,IF($E6=$E5,$A5,COUNT($E$5:$E6))))) -> 2 | B6: 7 | C6: Elena | D6: Stefano | E6: 56.25 | G6: 56.25 | H6: 99 | J6: 99 | K6: 8 | L6: 7 | M6: 3 | N6: 3 | O6: 2 | P6: 8 | Q6: 4 | R6: 5 | S6: 6 | T6: 5 | U6: 2 | V6: 4 | W6: 4 | X6: 4 | Y6: 0 | Z6: 3 | AA6: 2 | AB6: 8 | AC6: 4 | AD6: 3 | AE6: 8 | AF6: 6 | BF6: 4
A7: =IF(J$2="","",IF($E7="","",IF($E7=MAX($E$5:$E$54),1,IF($E7=$E6,$A6,COUNT($E$5:$E7))))) -> 2 | B7: 8 | C7: Tatiana | D7: Julio | E7: 56.25 | G7: 56.25 | H7: 99 | J7: 99 | K7: 4 | L7: 0 | M7: 5 | N7: 5 | O7: 8 | P7: 6 | Q7: 4 | R7: 0 | S7: 6 | T7: 8 | U7: 8 | V7: 6 | W7: 4 | X7: 8 | Y7: 4 | Z7: 4 | AA7: 0 | AB7: 4 | AC7: 4 | AD7: 5 | AE7: 4 | AF7: 2 | BF7: 11
A8: =IF(J$2="","",IF($E8="","",IF($E8=MAX($E$5:$E$54),1,IF($E8=$E7,$A7,COUNT($E$5:$E8))))) -> 2 | B8: 9 | C8: Olimpia | D8: Sauro | E8: 56.25 | G8: 56.25 | H8: 99 | J8: 99 | K8: 2 | L8: 7 | M8: 1 | N8: 8 | O8: 0 | P8: 2 | Q8: 8 | R8: 2 | S8: 6 | T8: 3 | U8: 6 | V8: 0 | W8: 4 | X8: 8 | Y8: 8 | Z8: 5 | AA8: 4 | AB8: 4 | AC8: 4 | AD8: 3 | AE8: 6 | AF8: 8 | BF8: 8
A9: =IF(J$2="","",IF($E9="","",IF($E9=MAX($E$5:$E$54),1,IF($E9=$E8,$A8,COUNT($E$5:$E9))))) -> 5 | B9: 11 | C9: Stefania | D9: Massimo | E9: 53.97727273 | G9: 53.97727273 | H9: 95 | J9: 95 | K9: 0 | L9: 2 | M9: 3 | N9: 7 | O9: 3 | P9: 7 | Q9: 4 | R9: 8 | S9: 8 | T9: 8 | U9: 4 | V9: 6 | W9: 4 | X9: 3 | Y9: 4 | Z9: 1 | AA9: 6 | AB9: 0 | AC9: 4 | AD9: 5 | AE9: 4 | AF9: 4 | BF9: 10
A10: =IF(J$2="","",IF($E10="","",IF($E10=MAX($E$5:$E$54),1,IF($E10=$E9,$A9,COUNT($E$5:$E10))))) -> 6 | B10: 6 | C10: Manuela | D10: Roberto | E10: 49.43181818 | G10: 49.43181818 | H10: 87 | J10: 87 | K10: 0 | L10: 1 | M10: 7 | N10: 0 | O10: 5 | P10: 1 | Q10: 8 | R10: 0 | S10: 6 | T10: 6 | U10: 4 | V10: 4 | W10: 4 | X10: 0 | Y10: 4 | Z10: 5 | AA10: 8 | AB10: 4 | AC10: 4 | AD10: 8 | AE10: 0 | AF10: 8 | BF10: 7
A11: =IF(J$2="","",IF($E11="","",IF($E11=MAX($E$5:$E$54),1,IF($E11=$E10,$A10,COUNT($E$5:$E11))))) -> 6 | B11: 10 | C11: Renata | D11: Sandro | E11: 49.43181818 | G11: 49.43181818 | H11: 87 | J11: 87 | K11: 2 | L11: 4 | M11: 1 | N11: 5 | O11: 6 | P11: 0 | Q11: 0 | R11: 6 | S11: 0 | T11: 0 | U11: 8 | V11: 8 | W11: 4 | X11: 6 | Y11: 4 | Z11: 3 | AA11: 8 | AB11: 4 | AC11: 4 | AD11: 4 | AE11: 6 | AF11: 4 | BF11: 9
A12: =IF(J$2="","",IF($E12="","",IF($E12=MAX($E$5:$E$54),1,IF($E12=$E11,$A11,COUNT($E$5:$E12))))) -> 8 | B12: 3 | C12: Antonella | D12: Dino | E12: 48.29545455 | G12: 48.29545455 | H12: 85 | J12: 85 | K12: 6 | L12: 4 | M12: 0 | N12: 7 | O12: 4 | P12: 4 | Q12: 4 | R12: 3 | S12: 2 | T12: 3 | U12: 2 | V12: 8 | W12: 4 | X12: 5 | Y12: 4 | Z12: 7 | AA12: 4 | AB12: 0 | AC12: 4 | AD12: 0 | AE12: 4 | AF12: 6 | BF12: 1
A13: =IF(J$2="","",IF($E13="","",IF($E13=MAX($E$5:$E$54),1,IF($E13=$E12,$A12,COUNT($E$5:$E13))))) -> 9 | B13: 2 | C13: Lilli | D13: Gianni | E13: 42.04545455 | G13: 42.04545455 | H13: 74 | J13: 74 | K13: 8 | L13: 6 | M13: 4 | N13: 4 | O13: 3 | P13: 4 | Q13: 0 | R13: 8 | S13: 2 | T13: 0 | U13: 0 | V13: 0 | W13: 4 | X13: 5 | Y13: 4 | Z13: 1 | AA13: 6 | AB13: 4 | AC13: 4 | AD13: 5 | AE13: 2 | AF13: 0 | BF13: 6
A14: =IF(J$2="","",IF($E14="","",IF($E14=MAX($E$5:$E$54),1,IF($E14=$E13,$A13,COUNT($E$5:$E14))))) -> 10 | B14: 4 | C14: Barbara | D14: Elio | E14: 41.47727273 | G14: 41.47727273 | H14: 73 | J14: 73 | K14: 6 | L14: 1 | M14: 5 | N14: 1 | O14: 5 | P14: 4 | Q14: 4 | R14: 4 | S14: 2 | T14: 2 | U14: 0 | V14: 2 | W14: 4 | X14: 2 | Y14: 8 | Z14: 0 | AA14: 4 | AB14: 8 | AC14: 4 | AD14: 5 | AE14: 0 | AF14: 2 | BF14: 2
A15: =IF(J$2="","",IF($E15="","",IF($E15=MAX($E$5:$E$54),1,IF($E15=$E14,$A14,COUNT($E$5:$E15))))) -> 11 | B15: 1 | C15: Gill | D15: Cristina | E15: 39.77272727 | G15: 39.77272727 | H15: 70 | J15: 70 | K15: 4 | L15: 4 | M15: 8 | N15: 1 | O15: 0 | P15: 1 | Q15: 4 | R15: 3 | S15: 2 | T15: 5 | U15: 4 | V15: 2 | W15: 4 | X15: 3 | Y15: 0 | Z15: 8 | AA15: 0 | AB15: 4 | AC15: 4 | AD15: 3 | AE15: 2 | AF15: 4 | BF15: 14
A16: =IF(J$2="","",IF($E16="","",IF($E16=MAX($E$5:$E$54),1,IF($E16=$E15,$A15,COUNT($E$5:$E16))))) -> 12 | E16: 0 | G16: 0 | H16: 0 | J16: 0 | BF16: 5
A17: =IF(J$2="","",IF($E17="","",IF($E17=MAX($E$5:$E$54),1,IF($E17=$E16,$A16,COUNT($E$5:$E17))))) -> 12 | E17: 0 | G17: 0 | H17: 0 | J17: 0 | BF17: 12
A18: =IF(J$2="","",IF($E18="","",IF($E18=MAX($E$5:$E$54),1,IF($E18=$E17,$A17,COUNT($E$5:$E18))))) -> 12 | E18: 0 | G18: 0 | H18: 0 | J18: 0 | BF18: 13
A19: =IF(J$2="","",IF($E19="","",IF($E19=MAX($E$5:$E$54),1,IF($E19=$E18,$A18,COUNT($E$5:$E19))))) -> 12 | E19: 0 | G19: 0 | H19: 0 | J19: 0 | BF19: 15
A20: =IF(J$2="","",IF($E20="","",IF($E20=MAX($E$5:$E$54),1,IF($E20=$E19,$A19,COUNT($E$5:$E20))))) -> 12 | E20: 0 | G20: 0 | H20: 0 | J20: 0 | BF20: 16
A21: =IF(J$2="","",IF($E21="","",IF($E21=MAX($E$5:$E$54),1,IF($E21=$E20,$A20,COUNT($E$5:$E21))))) -> 12 | E21: 0 | G21: 0 | H21: 0 | J21: 0 | BF21: 17
A22: =IF(J$2="","",IF($E22="","",IF($E22=MAX($E$5:$E$54),1,IF($E22=$E21,$A21,COUNT($E$5:$E22))))) -> 12 | E22: 0 | G22: 0 | H22: 0 | J22: 0 | BF22: 18
A23: =IF(J$2="","",IF($E23="","",IF($E23=MAX($E$5:$E$54),1,IF($E23=$E22,$A22,COUNT($E$5:$E23))))) -> 12 | E23: 0 | G23: 0 | H23: 0 | J23: 0 | BF23: 19
A24: =IF(J$2="","",IF($E24="","",IF($E24=MAX($E$5:$E$54),1,IF($E24=$E23,$A23,COUNT($E$5:$E24))))) -> 12 | E24: 0 | G24: 0 | H24: 0 | J24: 0 | BF24: 20
A25: =IF(J$2="","",IF($E25="","",IF($E25=MAX($E$5:$E$54),1,IF($E25=$E24,$A24,COUNT($E$5:$E25))))) -> 12 | E25: 0 | G25: 0 | H25: 0 | J25: 0 | BF25: 21
A26: =IF(J$2="","",IF($E26="","",IF($E26=MAX($E$5:$E$54),1,IF($E26=$E25,$A25,COUNT($E$5:$E26))))) -> 12 | E26: 0 | G26: 0 | H26: 0 | J26: 0 | BF26: 22
A27: =IF(J$2="","",IF($E27="","",IF($E27=MAX($E$5:$E$54),1,IF($E27=$E26,$A26,COUNT($E$5:$E27))))) -> 12 | E27: 0 | G27: 0 | H27: 0 | J27: 0 | BF27: 23
A28: =IF(J$2="","",IF($E28="","",IF($E28=MAX($E$5:$E$54),1,IF($E28=$E27,$A27,COUNT($E$5:$E28))))) -> 12 | E28: 0 | G28: 0 | H28: 0 | J28: 0 | BF28: 24
A29: =IF(J$2="","",IF($E29="","",IF($E29=MAX($E$5:$E$54),1,IF($E29=$E28,$A28,COUNT($E$5:$E29))))) -> 12 | E29: 0 | G29: 0 | H29: 0 | J29: 0 | BF29: 25
A30: =IF(J$2="","",IF($E30="","",IF($E30=MAX($E$5:$E$54),1,IF($E30=$E29,$A29,COUNT($E$5:$E30))))) -> 12 | E30: 0 | G30: 0 | H30: 0 | J30: 0 | BF30: 26
A31: =IF(J$2="","",IF($E31="","",IF($E31=MAX($E$5:$E$54),1,IF($E31=$E30,$A30,COUNT($E$5:$E31))))) -> 12 | E31: 0 | G31: 0 | H31: 0 | J31: 0 | BF31: 27
A32: =IF(J$2="","",IF($E32="","",IF($E32=MAX($E$5:$E$54),1,IF($E32=$E31,$A31,COUNT($E$5:$E32))))) -> 12 | E32: 0 | G32: 0 | H32: 0 | J32: 0 | BF32: 28
A33: =IF(J$2="","",IF($E33="","",IF($E33=MAX($E$5:$E$54),1,IF($E33=$E32,$A32,COUNT($E$5:$E33))))) -> 12 | E33: 0 | G33: 0 | H33: 0 | J33: 0 | BF33: 29
A34: =IF(J$2="","",IF($E34="","",IF($E34=MAX($E$5:$E$54),1,IF($E34=$E33,$A33,COUNT($E$5:$E34))))) -> 12 | E34: 0 | G34: 0 | H34: 0 | J34: 0 | BF34: 30
A35: =IF(J$2="","",IF($E35="","",IF($E35=MAX($E$5:$E$54),1,IF($E35=$E34,$A34,COUNT($E$5:$E35))))) -> 12 | E35: 0 | G35: 0 | H35: 0 | J35: 0 | BF35: 31
A36: =IF(J$2="","",IF($E36="","",IF($E36=MAX($E$5:$E$54),1,IF($E36=$E35,$A35,COUNT($E$5:$E36))))) -> 12 | E36: 0 | G36: 0 | H36: 0 | J36: 0 | BF36: 32
A37: =IF(J$2="","",IF($E37="","",IF($E37=MAX($E$5:$E$54),1,IF($E37=$E36,$A36,COUNT($E$5:$E37))))) -> 12 | E37: =IF(J$2="","",IF(G37=0,0,F37+G37)) -> 0 | G37: =IF(J$2="","",IF($J37=0,0,(H37*$C$3/$J$3)*50)) -> 0 | H37: =IF(J$2="","",IF(SUM($K37:$AX37)=0,0,SUM($K37:$AX37)+$I37)) -> 0 | J37: =IF(B37="",0,IF(SUM($K37:$AX37)=0,0,SUM($K37:$AX37))) -> 0 | BF37: 33
A38: =IF(J$2="","",IF($E38="","",IF($E38=MAX($E$5:$E$54),1,IF($E38=$E37,$A37,COUNT($E$5:$E38))))) -> 12 | E38: 0 | G38: 0 | H38: 0 | J38: 0 | BF38: 34
A39: =IF(J$2="","",IF($E39="","",IF($E39=MAX($E$5:$E$54),1,IF($E39=$E38,$A38,COUNT($E$5:$E39))))) -> 12 | E39: 0 | G39: 0 | H39: 0 | J39: 0 | BF39: 35
A40: =IF(J$2="","",IF($E40="","",IF($E40=MAX($E$5:$E$54),1,IF($E40=$E39,$A39,COUNT($E$5:$E40))))) -> 12 | E40: 0 | G40: 0 | H40: 0 | J40: 0 | BF40: 36
A41: =IF(J$2="","",IF($E41="","",IF($E41=MAX($E$5:$E$54),1,IF($E41=$E40,$A40,COUNT($E$5:$E41))))) -> 12 | E41: 0 | G41: 0 | H41: 0 | J41: 0 | BF41: 37
A42: =IF(J$2="","",IF($E42="","",IF($E42=MAX($E$5:$E$54),1,IF($E42=$E41,$A41,COUNT($E$5:$E42))))) -> 12 | E42: 0 | G42: 0 | H42: 0 | J42: 0 | BF42: 38
A43: =IF(J$2="","",IF($E43="","",IF($E43=MAX($E$5:$E$54),1,IF($E43=$E42,$A42,COUNT($E$5:$E43))))) -> 12 | E43: 0 | G43: 0 | H43: 0 | J43: 0 | BF43: 39
A44: =IF(J$2="","",IF($E44="","",IF($E44=MAX($E$5:$E$54),1,IF($E44=$E43,$A43,COUNT($E$5:$E44))))) -> 12 | E44: 0 | G44: 0 | H44: 0 | J44: 0 | BF44: 40
A45: =IF(J$2="","",IF($E45="","",IF($E45=MAX($E$5:$E$54),1,IF($E45=$E44,$A44,COUNT($E$5:$E45))))) -> 12 | E45: 0 | G45: 0 | H45: 0 | J45: 0 | BF45: 41
A46: =IF(J$2="","",IF($E46="","",IF($E46=MAX($E$5:$E$54),1,IF($E46=$E45,$A45,COUNT($E$5:$E46))))) -> 12 | E46: 0 | G46: 0 | H46: 0 | J46: 0 | BF46: 42
A47: =IF(J$2="","",IF($E47="","",IF($E47=MAX($E$5:$E$54),1,IF($E47=$E46,$A46,COUNT($E$5:$E47))))) -> 12 | E47: 0 | G47: 0 | H47: 0 | J47: 0 | BF47: 43
A48: =IF(J$2="","",IF($E48="","",IF($E48=MAX($E$5:$E$54),1,IF($E48=$E47,$A47,COUNT($E$5:$E48))))) -> 12 | E48: 0 | G48: 0 | H48: 0 | J48: 0 | BF48: 44
A49: =IF(J$2="","",IF($E49="","",IF($E49=MAX($E$5:$E$54),1,IF($E49=$E48,$A48,COUNT($E$5:$E49))))) -> 12 | E49: 0 | G49: 0 | H49: 0 | J49: 0 | BF49: 45
A50: =IF(J$2="","",IF($E50="","",IF($E50=MAX($E$5:$E$54),1,IF($E50=$E49,$A49,COUNT($E$5:$E50))))) -> 12 | E50: 0 | G50: 0 | H50: 0 | J50: 0 | BF50: 46
A51: =IF(J$2="","",IF($E51="","",IF($E51=MAX($E$5:$E$54),1,IF($E51=$E50,$A50,COUNT($E$5:$E51))))) -> 12 | E51: 0 | G51: 0 | H51: 0 | J51: 0 | BF51: 47
A52: =IF(J$2="","",IF($E52="","",IF($E52=MAX($E$5:$E$54),1,IF($E52=$E51,$A51,COUNT($E$5:$E52))))) -> 12 | E52: 0 | G52: 0 | H52: 0 | J52: 0 | BF52: 48
A53: =IF(J$2="","",IF($E53="","",IF($E53=MAX($E$5:$E$54),1,IF($E53=$E52,$A52,COUNT($E$5:$E53))))) -> 12 | E53: 0 | G53: 0 | H53: 0 | J53: 0 | BF53: 49
A54: =IF(J$2="","",IF($E54="","",IF($E54=MAX($E$5:$E$54),1,IF($E54=$E53,$A53,COUNT($E$5:$E54))))) -> 12 | E54: 0 | G54: 0 | H54: 0 | J54: 0 | BF54: 50
D59: punteggi torneo ordinati per # di coppia
B60: # coppia | E60: con zeri | F60: senza zeri | G60: senza zeri
B61: 1 | E61: 39.77272727 | F61: =IF(E61=0,"",E61) -> 39.77272727 | G61: 39.77272727 | BF61: 14
B62: 2 | E62: 42.04545455 | F62: 42.04545455 | G62: 42.04545455 | BF62: 6
B63: 3 | E63: 48.29545455 | F63: 48.29545455 | G63: 48.29545455 | I63: =IF(H63=0,"",H63) ->  | BF63: 1
B64: 4 | E64: 41.47727273 | F64: 41.47727273 | G64: 41.47727273 | BF64: 2
B65: 5 | E65: 56.81818182 | F65: 56.81818182 | G65: 56.81818182 | I65: =IF(H65=0,"",H65) ->  | BF65: 3
B66: 6 | E66: 49.43181818 | F66: 49.43181818 | G66: 49.43181818 | I66: =IF(H66=0,"",H66) ->  | BF66: 7
B67: 7 | E67: 56.25 | F67: 56.25 | G67: 56.25 | BF67: 4
B68: 8 | E68: 56.25 | F68: 56.25 | G68: 56.25 | I68: =IF(H68=0,"",H68) ->  | BF68: 11
B69: 9 | E69: 56.25 | F69: 56.25 | G69: 56.25 | BF69: 8
B70: 10 | E70: 49.43181818 | F70: 49.43181818 | G70: 49.43181818 | BF70: 9
B71: 11 | E71: 53.97727273 | F71: 53.97727273 | G71: 53.97727273 | I71: =IF(H71=0,"",H71) ->  | BF71: 10
E72: 0 | BF72: 5
E73: 0 | I73: =IF(H73=0,"",H73) ->  | BF73: 12
E74: 0 | I74: =IF(H74=0,"",H74) ->  | BF74: 13
E75: 0 | I75: =IF(H75=0,"",H75) ->  | BF75: 15
E76: 0 | I76: =IF(H76=0,"",H76) ->  | BF76: 16
E77: 0 | BF77: 17
E78: 0 | BF78: 18
E79: 0 | I79: =IF(H79=0,"",H79) ->  | BF79: 19
E80: 0 | I80: =IF(H80=0,"",H80) ->  | BF80: 20
E81: 0 | BF81: 21
E82: 0 | BF82: 22
E83: 0 | BF83: 23
E84: 0 | BF84: 24
E85: 0 | BF85: 25
E86: 0 | BF86: 26
E87: 0 | BF87: 27
E88: 0 | BF88: 28
E89: 0 | BF89: 29
E90: 0 | BF90: 30
E91: 0 | BF91: 31
E92: 0 | BF92: 32
E93: 0 | F93: =IF(E93=0,"",E93) ->  | BF93: 33
E94: 0 | BF94: 34
E95: 0 | BF95: 35
E96: 0 | BF96: 36
E97: 0 | BF97: 37
E98: 0 | BF98: 38
E99: 0 | BF99: 39
E100: 0 | BF100: 40
E101: 0 | BF101: 41
E102: 0 | BF102: 42
E103: 0 | BF103: 43
E104: 0 | BF104: 44
E105: 0 | BF105: 45
E106: 0 | BF106: 46
E107: 0 | BF107: 47
E108: 0 | BF108: 48
E109: 0 | BF109: 49
E110: 0 | BF110: 50
A119: punteggi torneo ordinati per numero standard di coppia base
B120: # coppia | E120: con zeri | F120: senza zeri | G120: senza zeri
B121: 3 | E121: 48.29545455 | F121: =IF(E121=0,"",E121) -> 48.29545455 | G121: 48.29545455 | I121: =IF(H121=0,"",H121) ->  | BF121: 1
B122: 4 | E122: 41.47727273 | F122: 41.47727273 | G122: 41.47727273 | BF122: 2
B123: 5 | E123: 56.81818182 | F123: 56.81818182 | G123: 56.81818182 | I123: =IF(H123=0,"",H123) ->  | BF123: 3
B124: 7 | E124: 56.25 | F124: 56.25 | G124: 56.25 | BF124: 4
E125: 0 | BF125: 5
B126: 2 | E126: 42.04545455 | F126: 42.04545455 | G126: 42.04545455 | BF126: 6
B127: 6 | E127: 49.43181818 | F127: 49.43181818 | G127: 49.43181818 | I127: =IF(H127=0,"",H127) ->  | BF127: 7
B128: 9 | E128: 56.25 | F128: 56.25 | G128: 56.25 | BF128: 8
B129: 10 | E129: 49.43181818 | F129: 49.43181818 | G129: 49.43181818 | BF129: 9
B130: 11 | E130: 53.97727273 | F130: 53.97727273 | G130: 53.97727273 | I130: =IF(H130=0,"",H130) ->  | BF130: 10
B131: 8 | E131: 56.25 | F131: 56.25 | G131: 56.25 | I131: =IF(H131=0,"",H131) ->  | BF131: 11

Sheet 24mar
A1: Data | C1: 2018-03-24 | D1: BridgeMania 2017-18 - Torneo Howell
A2: luogo | C2: Bianchi | D2: Coppie Ctrl+e | E2: Calcola Ctr+f | F2: Duplica Ctrl+g | G2: Clear Ctrl+h | J2: &
A3: # coppie | C3: =IF(B5="","",COUNT(B5:B25)) -> 10 | E3: =IF(E5="","",SUMIF(E5:E25,">0")) -> 500 | F3: =IF(F5="","",SUMIF(F5:F24,">0")) ->  | G3: =IF(G5="","",SUM(G5:G25)) -> 500 | H3: =IF(H5="","",SUM(H5:H25)) -> 720 | I3: =SUM(I5:I25) -> 0 | J3: =SUM(J5:J25) -> 720 | K3: =SUM(K5:K25) -> 40 | L3: =SUM(L5:L25) -> 40 | M3: 40 | N3: 40 | O3: 40 | P3: 40 | Q3: 40 | R3: 40 | S3: 40 | T3: 40 | U3: 40 | V3: 40 | W3: 40 | X3: 40 | Y3: 40 | Z3: 40 | AA3: 40 | AB3: 40 | AC3: 0 | AD3: 0 | AE3: 0 | AF3: 0 | AG3: 0 | AH3: 0 | AI3: 0 | AJ3: 0 | AK3: 0 | AL3: 0 | AM3: 0 | AN3: 0 | AO3: 0 | AP3: 0 | AQ3: 0 | AR3: 0 | AS3: 0 | AT3: 0 | AU3: 0 | AV3: 0 | AW3: 0 | AX3: 0
A4: Class. | B4: # | C4: Coppie | E4: Punteggio Serata | G4: Punteggio % | H4: Punteggio Torneo | I4: Penalità (-) | J4: Totale punti mano | K4: 1 | L4: 2 | M4: 3 | N4: 4 | O4: 5 | P4: 6 | Q4: 7 | R4: 8 | S4: 9 | T4: 10 | U4: 11 | V4: 12 | W4: 13 | X4: 14 | Y4: 15 | Z4: 16 | AA4: 17 | AB4: 18 | AC4: 19 | AD4: 20 | AE4: 21 | AF4: 22 | AG4: 23 | AH4: 24 | AI4: 25 | AJ4: 26 | AK4: 27 | AL4: 28 | AM4: 29 | AN4: 30 | AO4: 31 | AP4: 32 | AQ4: 33 | AR4: 34 | AS4: 35 | AT4: 36 | AU4: 37 | AV4: 38 | AW4: 39 | AX4: 40
A5: =IF(J$2="","",IF($E5="","",IF($E5=MAX($E$5:$E$54),1,IF($E5=$E4,$A4,COUNT($E$5:$E5))))) -> 1 | B5: 2 | C5: Manuela | D5: Roberto | E5: =IF(J$2="","",IF(G5=0,0,F5+G5)) -> 74.30555556 | G5: =IF(J$2="","",IF($J5=0,0,(H5*$C$3/$J$3)*50)) -> 74.30555556 | H5: =IF(J$2="","",IF(SUM($K5:$AX5)=0,0,SUM($K5:$AX5)+$I5)) -> 107 | J5: =IF(B5="",0,IF(SUM($K5:$AX5)=0,0,SUM($K5:$AX5))) -> 107 | K5: 7 | L5: 6 | M5: 6 | N5: 7 | O5: 8 | P5: 5 | Q5: 8 | R5: 4 | S5: 8 | T5: 8 | U5: 5 | V5: 6 | W5: 6 | X5: 7 | Y5: 2 | Z5: 6 | AA5: 6 | AB5: 2 | BF5: 7
A6: =IF(J$2="","",IF($E6="","",IF($E6=MAX($E$5:$E$54),1,IF($E6=$E5,$A5,COUNT($E$5:$E6))))) -> 2 | B6: 4 | C6: Elena | D6: Stefano | E6: 56.25 | G6: 56.25 | H6: 81 | J6: 81 | K6: 6 | L6: 5 | M6: 4 | N6: 6 | O6: 2 | P6: 0 | Q6: 4 | R6: 7 | S6: 0 | T6: 4 | U6: 3 | V6: 2 | W6: 7 | X6: 8 | Y6: 0 | Z6: 7 | AA6: 8 | AB6: 8 | BF6: 4
A7: =IF(J$2="","",IF($E7="","",IF($E7=MAX($E$5:$E$54),1,IF($E7=$E6,$A6,COUNT($E$5:$E7))))) -> 3 | B7: 9 | C7: Stefania | D7: Massimo | E7: 55.55555556 | G7: 55.55555556 | H7: 80 | J7: 80 | K7: 6 | L7: 0 | M7: 8 | N7: 4 | O7: 6 | P7: 8 | Q7: 0 | R7: 4 | S7: 5 | T7: 4 | U7: 3 | V7: 4 | W7: 1 | X7: 3 | Y7: 8 | Z7: 7 | AA7: 5 | AB7: 4 | BF7: 10
A8: =IF(J$2="","",IF($E8="","",IF($E8=MAX($E$5:$E$54),1,IF($E8=$E7,$A7,COUNT($E$5:$E8))))) -> 4 | B8: 8 | C8: Barbara | D8: Elio | E8: 54.86111111 | G8: 54.86111111 | H8: 79 | J8: 79 | K8: 6 | L8: 8 | M8: 0 | N8: 7 | O8: 7 | P8: 7 | Q8: 4 | R8: 6 | S8: 3 | T8: 4 | U8: 0 | V8: 8 | W8: 1 | X8: 0 | Y8: 6 | Z8: 4 | AA8: 2 | AB8: 6 | BF8: 2
A9: =IF(J$2="","",IF($E9="","",IF($E9=MAX($E$5:$E$54),1,IF($E9=$E8,$A8,COUNT($E$5:$E9))))) -> 5 | B9: 6 | C9: Tatiana | D9: Julio | E9: 53.47222222 | G9: 53.47222222 | H9: 77 | J9: 77 | K9: 2 | L9: 0 | M9: 6 | N9: 8 | O9: 1 | P9: 5 | Q9: 8 | R9: 1 | S9: 0 | T9: 0 | U9: 3 | V9: 6 | W9: 7 | X9: 5 | Y9: 8 | Z9: 1 | AA9: 8 | AB9: 8 | BF9: 11
A10: =IF(J$2="","",IF($E10="","",IF($E10=MAX($E$5:$E$54),1,IF($E10=$E9,$A9,COUNT($E$5:$E10))))) -> 6 | B10: 10 | C10: Renata | D10: Sandro | E10: 48.61111111 | G10: 48.61111111 | H10: 70 | J10: 70 | K10: 7 | L10: 3 | M10: 2 | N10: 1 | O10: 4 | P10: 7 | Q10: 4 | R10: 1 | S10: 2 | T10: 8 | U10: 5 | V10: 2 | W10: 8 | X10: 3 | Y10: 2 | Z10: 4 | AA10: 3 | AB10: 4 | BF10: 9
A11: =IF(J$2="","",IF($E11="","",IF($E11=MAX($E$5:$E$54),1,IF($E11=$E10,$A10,COUNT($E$5:$E11))))) -> 7 | B11: 3 | C11: Cesarina | D11: Gaetano | E11: 47.22222222 | G11: 47.22222222 | H11: 68 | J11: 68 | K11: 2 | L11: 8 | M11: 8 | N11: 1 | O11: 4 | P11: 1 | Q11: 0 | R11: 7 | S11: 3 | T11: 4 | U11: 3 | V11: 8 | W11: 4 | X11: 7 | Y11: 6 | Z11: 2 | AA11: 0 | AB11: 0 | BF11: 3
A12: =IF(J$2="","",IF($E12="","",IF($E12=MAX($E$5:$E$54),1,IF($E12=$E11,$A11,COUNT($E$5:$E12))))) -> 8 | B12: 7 | C12: Lilli | D12: Gianni | E12: 44.44444444 | G12: 44.44444444 | H12: 64 | J12: 64 | K12: 1 | L12: 2 | M12: 0 | N12: 4 | O12: 7 | P12: 3 | Q12: 4 | R12: 2 | S12: 8 | T12: 4 | U12: 5 | V12: 0 | W12: 0 | X12: 5 | Y12: 4 | Z12: 8 | AA12: 5 | AB12: 2 | BF12: 6
A13: =IF(J$2="","",IF($E13="","",IF($E13=MAX($E$5:$E$54),1,IF($E13=$E12,$A12,COUNT($E$5:$E13))))) -> 9 | B13: 5 | C13: Antonella | D13: Dino | E13: 35.41666667 | G13: 35.41666667 | H13: 51 | J13: 51 | K13: 2 | L13: 3 | M13: 2 | N13: 0 | O13: 0 | P13: 3 | Q13: 4 | R13: 8 | S13: 6 | T13: 0 | U13: 8 | V13: 0 | W13: 4 | X13: 1 | Y13: 0 | Z13: 1 | AA13: 3 | AB13: 6 | BF13: 1
A14: =IF(J$2="","",IF($E14="","",IF($E14=MAX($E$5:$E$54),1,IF($E14=$E13,$A13,COUNT($E$5:$E14))))) -> 10 | B14: 1 | C14: Olimpia | D14: Sauro | E14: 29.86111111 | G14: 29.86111111 | H14: 43 | J14: 43 | K14: 1 | L14: 5 | M14: 4 | N14: 2 | O14: 1 | P14: 1 | Q14: 4 | R14: 0 | S14: 5 | T14: 4 | U14: 5 | V14: 4 | W14: 2 | X14: 1 | Y14: 4 | Z14: 0 | AA14: 0 | AB14: 0 | BF14: 8
A15: =IF(J$2="","",IF($E15="","",IF($E15=MAX($E$5:$E$54),1,IF($E15=$E14,$A14,COUNT($E$5:$E15))))) -> 11 | E15: 0 | G15: 0 | H15: 0 | J15: 0 | BF15: 5
A16: =IF(J$2="","",IF($E16="","",IF($E16=MAX($E$5:$E$54),1,IF($E16=$E15,$A15,COUNT($E$5:$E16))))) -> 11 | E16: 0 | G16: 0 | H16: 0 | J16: 0 | BF16: 12
A17: =IF(J$2="","",IF($E17="","",IF($E17=MAX($E$5:$E$54),1,IF($E17=$E16,$A16,COUNT($E$5:$E17))))) -> 11 | E17: 0 | G17: 0 | H17: 0 | J17: 0 | BF17: 13
A18: =IF(J$2="","",IF($E18="","",IF($E18=MAX($E$5:$E$54),1,IF($E18=$E17,$A17,COUNT($E$5:$E18))))) -> 11 | E18: 0 | G18: 0 | H18: 0 | J18: 0 | BF18: 14
A19: =IF(J$2="","",IF($E19="","",IF($E19=MAX($E$5:$E$54),1,IF($E19=$E18,$A18,COUNT($E$5:$E19))))) -> 11 | E19: 0 | G19: 0 | H19: 0 | J19: 0 | BF19: 15
A20: =IF(J$2="","",IF($E20="","",IF($E20=MAX($E$5:$E$54),1,IF($E20=$E19,$A19,COUNT($E$5:$E20))))) -> 11 | E20: 0 | G20: 0 | H20: 0 | J20: 0 | BF20: 16
A21: =IF(J$2="","",IF($E21="","",IF($E21=MAX($E$5:$E$54),1,IF($E21=$E20,$A20,COUNT($E$5:$E21))))) -> 11 | E21: 0 | G21: 0 | H21: 0 | J21: 0 | BF21: 17
A22: =IF(J$2="","",IF($E22="","",IF($E22=MAX($E$5:$E$54),1,IF($E22=$E21,$A21,COUNT($E$5:$E22))))) -> 11 | E22: 0 | G22: 0 | H22: 0 | J22: 0 | BF22: 18
A23: =IF(J$2="","",IF($E23="","",IF($E23=MAX($E$5:$E$54),1,IF($E23=$E22,$A22,COUNT($E$5:$E23))))) -> 11 | E23: 0 | G23: 0 | H23: 0 | J23: 0 | BF23: 19
A24: =IF(J$2="","",IF($E24="","",IF($E24=MAX($E$5:$E$54),1,IF($E24=$E23,$A23,COUNT($E$5:$E24))))) -> 11 | E24: 0 | G24: 0 | H24: 0 | J24: 0 | BF24: 20
A25: =IF(J$2="","",IF($E25="","",IF($E25=MAX($E$5:$E$54),1,IF($E25=$E24,$A24,COUNT($E$5:$E25))))) -> 11 | E25: 0 | G25: 0 | H25: 0 | J25: 0 | BF25: 21
A26: =IF(J$2="","",IF($E26="","",IF($E26=MAX($E$5:$E$54),1,IF($E26=$E25,$A25,COUNT($E$5:$E26))))) -> 11 | E26: 0 | G26: 0 | H26: 0 | J26: 0 | BF26: 22
A27: =IF(J$2="","",IF($E27="","",IF($E27=MAX($E$5:$E$54),1,IF($E27=$E26,$A26,COUNT($E$5:$E27))))) -> 11 | E27: 0 | G27: 0 | H27: 0 | J27: 0 | BF27: 23
A28: =IF(J$2="","",IF($E28="","",IF($E28=MAX($E$5:$E$54),1,IF($E28=$E27,$A27,COUNT($E$5:$E28))))) -> 11 | E28: 0 | G28: 0 | H28: 0 | J28: 0 | BF28: 24
A29: =IF(J$2="","",IF($E29="","",IF($E29=MAX($E$5:$E$54),1,IF($E29=$E28,$A28,COUNT($E$5:$E29))))) -> 11 | E29: 0 | G29: 0 | H29: 0 | J29: 0 | BF29: 25
A30: =IF(J$2="","",IF($E30="","",IF($E30=MAX($E$5:$E$54),1,IF($E30=$E29,$A29,COUNT($E$5:$E30))))) -> 11 | E30: 0 | G30: 0 | H30: 0 | J30: 0 | BF30: 26
A31: =IF(J$2="","",IF($E31="","",IF($E31=MAX($E$5:$E$54),1,IF($E31=$E30,$A30,COUNT($E$5:$E31))))) -> 11 | E31: 0 | G31: 0 | H31: 0 | J31: 0 | BF31: 27
A32: =IF(J$2="","",IF($E32="","",IF($E32=MAX($E$5:$E$54),1,IF($E32=$E31,$A31,COUNT($E$5:$E32))))) -> 11 | E32: 0 | G32: 0 | H32: 0 | J32: 0 | BF32: 28
A33: =IF(J$2="","",IF($E33="","",IF($E33=MAX($E$5:$E$54),1,IF($E33=$E32,$A32,COUNT($E$5:$E33))))) -> 11 | E33: 0 | G33: 0 | H33: 0 | J33: 0 | BF33: 29
A34: =IF(J$2="","",IF($E34="","",IF($E34=MAX($E$5:$E$54),1,IF($E34=$E33,$A33,COUNT($E$5:$E34))))) -> 11 | E34: 0 | G34: 0 | H34: 0 | J34: 0 | BF34: 30
A35: =IF(J$2="","",IF($E35="","",IF($E35=MAX($E$5:$E$54),1,IF($E35=$E34,$A34,COUNT($E$5:$E35))))) -> 11 | E35: 0 | G35: 0 | H35: 0 | J35: 0 | BF35: 31
A36: =IF(J$2="","",IF($E36="","",IF($E36=MAX($E$5:$E$54),1,IF($E36=$E35,$A35,COUNT($E$5:$E36))))) -> 11 | E36: 0 | G36: 0 | H36: 0 | J36: 0 | BF36: 32
A37: =IF(J$2="","",IF($E37="","",IF($E37=MAX($E$5:$E$54),1,IF($E37=$E36,$A36,COUNT($E$5:$E37))))) -> 11 | E37: =IF(J$2="","",IF(G37=0,0,F37+G37)) -> 0 | G37: =IF(J$2="","",IF($J37=0,0,(H37*$C$3/$J$3)*50)) -> 0 | H37: =IF(J$2="","",IF(SUM($K37:$AX37)=0,0,SUM($K37:$AX37)+$I37)) -> 0 | J37: =IF(B37="",0,IF(SUM($K37:$AX37)=0,0,SUM($K37:$AX37))) -> 0 | BF37: 33
A38: =IF(J$2="","",IF($E38="","",IF($E38=MAX($E$5:$E$54),1,IF($E38=$E37,$A37,COUNT($E$5:$E38))))) -> 11 | E38: 0 | G38: 0 | H38: 0 | J38: 0 | BF38: 34
A39: =IF(J$2="","",IF($E39="","",IF($E39=MAX($E$5:$E$54),1,IF($E39=$E38,$A38,COUNT($E$5:$E39))))) -> 11 | E39: 0 | G39: 0 | H39: 0 | J39: 0 | BF39: 35
A40: =IF(J$2="","",IF($E40="","",IF($E40=MAX($E$5:$E$54),1,IF($E40=$E39,$A39,COUNT($E$5:$E40))))) -> 11 | E40: 0 | G40: 0 | H40: 0 | J40: 0 | BF40: 36
A41: =IF(J$2="","",IF($E41="","",IF($E41=MAX($E$5:$E$54),1,IF($E41=$E40,$A40,COUNT($E$5:$E41))))) -> 11 | E41: 0 | G41: 0 | H41: 0 | J41: 0 | BF41: 37
A42: =IF(J$2="","",IF($E42="","",IF($E42=MAX($E$5:$E$54),1,IF($E42=$E41,$A41,COUNT($E$5:$E42))))) -> 11 | E42: 0 | G42: 0 | H42: 0 | J42: 0 | BF42: 38
A43: =IF(J$2="","",IF($E43="","",IF($E43=MAX($E$5:$E$54),1,IF($E43=$E42,$A42,COUNT($E$5:$E43))))) -> 11 | E43: 0 | G43: 0 | H43: 0 | J43: 0 | BF43: 39
A44: =IF(J$2="","",IF($E44="","",IF($E44=MAX($E$5:$E$54),1,IF($E44=$E43,$A43,COUNT($E$5:$E44))))) -> 11 | E44: 0 | G44: 0 | H44: 0 | J44: 0 | BF44: 40
A45: =IF(J$2="","",IF($E45="","",IF($E45=MAX($E$5:$E$54),1,IF($E45=$E44,$A44,COUNT($E$5:$E45))))) -> 11 | E45: 0 | G45: 0 | H45: 0 | J45: 0 | BF45: 41
A46: =IF(J$2="","",IF($E46="","",IF($E46=MAX($E$5:$E$54),1,IF($E46=$E45,$A45,COUNT($E$5:$E46))))) -> 11 | E46: 0 | G46: 0 | H46: 0 | J46: 0 | BF46: 42
A47: =IF(J$2="","",IF($E47="","",IF($E47=MAX($E$5:$E$54),1,IF($E47=$E46,$A46,COUNT($E$5:$E47))))) -> 11 | E47: 0 | G47: 0 | H47: 0 | J47: 0 | BF47: 43
A48: =IF(J$2="","",IF($E48="","",IF($E48=MAX($E$5:$E$54),1,IF($E48=$E47,$A47,COUNT($E$5:$E48))))) -> 11 | E48: 0 | G48: 0 | H48: 0 | J48: 0 | BF48: 44
A49: =IF(J$2="","",IF($E49="","",IF($E49=MAX($E$5:$E$54),1,IF($E49=$E48,$A48,COUNT($E$5:$E49))))) -> 11 | E49: 0 | G49: 0 | H49: 0 | J49: 0 | BF49: 45
A50: =IF(J$2="","",IF($E50="","",IF($E50=MAX($E$5:$E$54),1,IF($E50=$E49,$A49,COUNT($E$5:$E50))))) -> 11 | E50: 0 | G50: 0 | H50: 0 | J50: 0 | BF50: 46
A51: =IF(J$2="","",IF($E51="","",IF($E51=MAX($E$5:$E$54),1,IF($E51=$E50,$A50,COUNT($E$5:$E51))))) -> 11 | E51: 0 | G51: 0 | H51: 0 | J51: 0 | BF51: 47
A52: =IF(J$2="","",IF($E52="","",IF($E52=MAX($E$5:$E$54),1,IF($E52=$E51,$A51,COUNT($E$5:$E52))))) -> 11 | E52: 0 | G52: 0 | H52: 0 | J52: 0 | BF52: 48
A53: =IF(J$2="","",IF($E53="","",IF($E53=MAX($E$5:$E$54),1,IF($E53=$E52,$A52,COUNT($E$5:$E53))))) -> 11 | E53: 0 | G53: 0 | H53: 0 | J53: 0 | BF53: 49
A54: =IF(J$2="","",IF($E54="","",IF($E54=MAX($E$5:$E$54),1,IF($E54=$E53,$A53,COUNT($E$5:$E54))))) -> 11 | E54: 0 | G54: 0 | H54: 0 | J54: 0 | BF54: 50
D59: punteggi torneo ordinati per # di coppia
B60: # coppia | E60: con zeri | F60: senza zeri | G60: senza zeri
B61: 1 | E61: 29.86111111 | F61: =IF(E61=0,"",E61) -> 29.86111111 | G61: 29.86111111 | BF61: 8
B62: 2 | E62: 74.30555556 | F62: 74.30555556 | G62: 74.30555556 | BF62: 7
B63: 3 | E63: 47.22222222 | F63: 47.22222222 | G63: 47.22222222 | I63: =IF(H63=0,"",H63) ->  | BF63: 3
B64: 4 | E64: 56.25 | F64: 56.25 | G64: 56.25 | BF64: 4
B65: 5 | E65: 35.41666667 | F65: 35.41666667 | G65: 35.41666667 | I65: =IF(H65=0,"",H65) ->  | BF65: 1
B66: 6 | E66: 53.47222222 | F66: 53.47222222 | G66: 53.47222222 | I66: =IF(H66=0,"",H66) ->  | BF66: 11
B67: 7 | E67: 44.44444444 | F67: 44.44444444 | G67: 44.44444444 | BF67: 6
B68: 8 | E68: 54.86111111 | F68: 54.86111111 | G68: 54.86111111 | I68: =IF(H68=0,"",H68) ->  | BF68: 2
B69: 9 | E69: 55.55555556 | F69: 55.55555556 | G69: 55.55555556 | BF69: 10
B70: 10 | E70: 48.61111111 | F70: 48.61111111 | G70: 48.61111111 | BF70: 9
E71: 0 | I71: =IF(H71=0,"",H71) ->  | BF71: 5
E72: 0 | BF72: 12
E73: 0 | I73: =IF(H73=0,"",H73) ->  | BF73: 13
E74: 0 | I74: =IF(H74=0,"",H74) ->  | BF74: 14
E75: 0 | I75: =IF(H75=0,"",H75) ->  | BF75: 15
E76: 0 | I76: =IF(H76=0,"",H76) ->  | BF76: 16
E77: 0 | BF77: 17
E78: 0 | BF78: 18
E79: 0 | I79: =IF(H79=0,"",H79) ->  | BF79: 19
E80: 0 | I80: =IF(H80=0,"",H80) ->  | BF80: 20
E81: 0 | BF81: 21
E82: 0 | BF82: 22
E83: 0 | BF83: 23
E84: 0 | BF84: 24
E85: 0 | BF85: 25
E86: 0 | BF86: 26
E87: 0 | BF87: 27
E88: 0 | BF88: 28
E89: 0 | BF89: 29
E90: 0 | BF90: 30
E91: 0 | BF91: 31
E92: 0 | BF92: 32
E93: 0 | F93: =IF(E93=0,"",E93) ->  | BF93: 33
E94: 0 | BF94: 34
E95: 0 | BF95: 35
E96: 0 | BF96: 36
E97: 0 | BF97: 37
E98: 0 | BF98: 38
E99: 0 | BF99: 39
E100: 0 | BF100: 40
E101: 0 | BF101: 41
E102: 0 | BF102: 42
E103: 0 | BF103: 43
E104: 0 | BF104: 44
E105: 0 | BF105: 45
E106: 0 | BF106: 46
E107: 0 | BF107: 47
E108: 0 | BF108: 48
E109: 0 | BF109: 49
E110: 0 | BF110: 50
A119: punteggi torneo ordinati per numero standard di coppia base
B120: # coppia | E120: con zeri | F120: senza zeri | G120: senza zeri
B121: 5 | E121: 35.41666667 | F121: =IF(E121=0,"",E121) -> 35.41666667 | G121: 35.41666667 | I121: =IF(H121=0,"",H121) ->  | BF121: 1
B122: 8 | E122: 54.86111111 | F122: 54.86111111 | G122: 54.86111111 | I122: =IF(H122=0,"",H122) ->  | BF122: 2
B123: 3 | E123: 47.22222222 | F123: 47.22222222 | G123: 47.22222222 | I123: =IF(H123=0,"",H123) ->  | BF123: 3
B124: 4 | E124: 56.25 | F124: 56.25 | G124: 56.25 | BF124: 4
E125: 0 | I125: =IF(H125=0,"",H125) ->  | BF125: 5
B126: 7 | E126: 44.44444444 | F126: 44.44444444 | G126: 44.44444444 | BF126: 6
B127: 2 | E127: 74.30555556 | F127: 74.30555556 | G127: 74.30555556 | BF127: 7
B128: 1 | E128: 29.86111111 | F128: 29.86111111 | G128: 29.86111111 | BF128: 8
B129: 10 | E129: 48.61111111 | F129: 48.61111111 | G129: 48.61111111 | BF129: 9
B130: 9 | E130: 55.55555556 | F130: 55.55555556 | G130: 55.55555556 | BF130: 10
B131: 6 | E131: 53.47222222 | F131: 53.47222222 | G131: 53.47222222 | I131: =IF(H131=0,"",H131) ->  | BF131: 11

Sheet 17mar
A1: Data | C1: 2018-03-17 | D1: BridgeMania 2017-18 - Torneo Howell
A2: luogo | C2: Malerba | D2: Coppie Ctrl+e | E2: Calcola Ctr+f | F2: Duplica Ctrl+g | G2: Clear Ctrl+h | J2: &
A3: # coppie | C3: =IF(B5="","",COUNT(B5:B25)) -> 8 | E3: =IF(E5="","",SUMIF(E5:E25,">0")) -> 400 | F3: =IF(F5="","",SUMIF(F5:F24,">0")) ->  | G3: =IF(G5="","",SUM(G5:G25)) -> 400 | H3: =IF(H5="","",SUM(H5:H25)) -> 504 | I3: =SUM(I5:I25) -> 0 | J3: =SUM(J5:J25) -> 504 | K3: =SUM(K5:K25) -> 24 | L3: =SUM(L5:L25) -> 24 | M3: 24 | N3: 24 | O3: 24 | P3: 24 | Q3: 24 | R3: 24 | S3: 24 | T3: 24 | U3: 24 | V3: 24 | W3: 24 | X3: 24 | Y3: 24 | Z3: 24 | AA3: 24 | AB3: 24 | AC3: 24 | AD3: 24 | AE3: 24 | AF3: 0 | AG3: 0 | AH3: 0 | AI3: 0 | AJ3: 0 | AK3: 0 | AL3: 0 | AM3: 0 | AN3: 0 | AO3: 0 | AP3: 0 | AQ3: 0 | AR3: 0 | AS3: 0 | AT3: 0 | AU3: 0 | AV3: 0 | AW3: 0 | AX3: 0
A4: Class. | B4: # | C4: Coppie | E4: Punteggio Serata | G4: Punteggio % | H4: Punteggio Torneo | I4: Penalità (-) | J4: Totale punti mano | K4: 1 | L4: 2 | M4: 3 | N4: 4 | O4: 5 | P4: 6 | Q4: 7 | R4: 8 | S4: 9 | T4: 10 | U4: 11 | V4: 12 | W4: 13 | X4: 14 | Y4: 15 | Z4: 16 | AA4: 17 | AB4: 18 | AC4: 19 | AD4: 20 | AE4: 21 | AF4: 22 | AG4: 23 | AH4: 24 | AI4: 25 | AJ4: 26 | AK4: 27 | AL4: 28 | AM4: 29 | AN4: 30 | AO4: 31 | AP4: 32 | AQ4: 33 | AR4: 34 | AS4: 35 | AT4: 36 | AU4: 37 | AV4: 38 | AW4: 39 | AX4: 40
A5: =IF(J$2="","",IF($E5="","",IF($E5=MAX($E$5:$E$54),1,IF($E5=$E4,$A4,COUNT($E$5:$E5))))) -> 1 | B5: 8 | C5: Olimpia | D5: Sauro | E5: =IF(J$2="","",IF(G5=0,0,F5+G5)) -> 65.07936508 | G5: =IF(J$2="","",IF($J5=0,0,(H5*$C$3/$J$3)*50)) -> 65.07936508 | H5: =IF(J$2="","",IF(SUM($K5:$AX5)=0,0,SUM($K5:$AX5)+$I5)) -> 82 | J5: =IF(B5="",0,IF(SUM($K5:$AX5)=0,0,SUM($K5:$AX5))) -> 82 | K5: 2 | L5: 1 | M5: 4 | N5: 6 | O5: 3 | P5: 3 | Q5: 6 | R5: 3 | S5: 2 | T5: 4 | U5: 5 | V5: 6 | W5: 5 | X5: 4 | Y5: 6 | Z5: 4 | AA5: 0 | AB5: 6 | AC5: 5 | AD5: 2 | AE5: 5 | BF5: 8
A6: =IF(J$2="","",IF($E6="","",IF($E6=MAX($E$5:$E$54),1,IF($E6=$E5,$A5,COUNT($E$5:$E6))))) -> 2 | B6: 1 | C6: Isolde | D6: Cristina | E6: 57.14285714 | G6: 57.14285714 | H6: 72 | J6: 72 | K6: 4 | L6: 5 | M6: 2 | N6: 4 | O6: 3 | P6: 3 | Q6: 0 | R6: 3 | S6: 5 | T6: 2 | U6: 4 | V6: 4 | W6: 5 | X6: 6 | Y6: 2 | Z6: 2 | AA6: 6 | AB6: 3 | AC6: 2 | AD6: 2 | AE6: 5 | BF6: 5
A7: =IF(J$2="","",IF($E7="","",IF($E7=MAX($E$5:$E$54),1,IF($E7=$E6,$A6,COUNT($E$5:$E7))))) -> 3 | B7: 3 | C7: Stefania | D7: Massimo | E7: 56.34920635 | G7: 56.34920635 | H7: 71 | J7: 71 | K7: 6 | L7: 5 | M7: 0 | N7: 0 | O7: 0 | P7: 6 | Q7: 0 | R7: 3 | S7: 4 | T7: 6 | U7: 6 | V7: 2 | W7: 5 | X7: 4 | Y7: 0 | Z7: 6 | AA7: 3 | AB7: 6 | AC7: 4 | AD7: 4 | AE7: 1 | BF7: 10
A8: =IF(J$2="","",IF($E8="","",IF($E8=MAX($E$5:$E$54),1,IF($E8=$E7,$A7,COUNT($E$5:$E8))))) -> 4 | B8: 7 | C8: Renata | D8: Sandro | E8: 48.41269841 | G8: 48.41269841 | H8: 61 | J8: 61 | K8: 0 | L8: 1 | M8: 6 | N8: 4 | O8: 6 | P8: 0 | Q8: 6 | R8: 3 | S8: 1 | T8: 2 | U8: 1 | V8: 6 | W8: 1 | X8: 4 | Y8: 2 | Z8: 6 | AA8: 3 | AB8: 3 | AC8: 1 | AD8: 4 | AE8: 1 | BF8: 9
A9: =IF(J$2="","",IF($E9="","",IF($E9=MAX($E$5:$E$54),1,IF($E9=$E8,$A8,COUNT($E$5:$E9))))) -> 5 | B9: 2 | C9: Tatiana | D9: Julio | E9: 45.23809524 | G9: 45.23809524 | H9: 57 | J9: 57 | K9: 4 | L9: 1 | M9: 4 | N9: 0 | O9: 3 | P9: 3 | Q9: 3 | R9: 3 | S9: 6 | T9: 4 | U9: 2 | V9: 2 | W9: 1 | X9: 2 | Y9: 6 | Z9: 0 | AA9: 3 | AB9: 3 | AC9: 5 | AD9: 2 | AE9: 0 | BF9: 11
A10: =IF(J$2="","",IF($E10="","",IF($E10=MAX($E$5:$E$54),1,IF($E10=$E9,$A9,COUNT($E$5:$E10))))) -> 6 | B10: 4 | C10: Lilli | D10: Gianni | E10: 43.65079365 | G10: 43.65079365 | H10: 55 | J10: 55 | K10: 2 | L10: 5 | M10: 2 | N10: 2 | O10: 3 | P10: 3 | Q10: 3 | R10: 3 | S10: 5 | T10: 2 | U10: 1 | V10: 0 | W10: 5 | X10: 2 | Y10: 4 | Z10: 0 | AA10: 3 | AB10: 0 | AC10: 6 | AD10: 0 | AE10: 4 | BF10: 6
A11: =IF(J$2="","",IF($E11="","",IF($E11=MAX($E$5:$E$54),1,IF($E11=$E10,$A10,COUNT($E$5:$E11))))) -> 7 | B11: 5 | C11: Cesarina | D11: Gaetano | E11: 42.85714286 | G11: 42.85714286 | H11: 54 | J11: 54 | K11: 6 | L11: 1 | M11: 2 | N11: 6 | O11: 6 | P11: 0 | Q11: 3 | R11: 3 | S11: 0 | T11: 4 | U11: 5 | V11: 0 | W11: 1 | X11: 2 | Y11: 0 | Z11: 4 | AA11: 0 | AB11: 3 | AC11: 0 | AD11: 6 | AE11: 2 | BF11: 3
A12: =IF(J$2="","",IF($E12="","",IF($E12=MAX($E$5:$E$54),1,IF($E12=$E11,$A11,COUNT($E$5:$E12))))) -> 8 | B12: 6 | C12: Antonella | D12: Dino | E12: 41.26984127 | G12: 41.26984127 | H12: 52 | J12: 52 | K12: 0 | L12: 5 | M12: 4 | N12: 2 | O12: 0 | P12: 6 | Q12: 3 | R12: 3 | S12: 1 | T12: 0 | U12: 0 | V12: 4 | W12: 1 | X12: 0 | Y12: 4 | Z12: 2 | AA12: 6 | AB12: 0 | AC12: 1 | AD12: 4 | AE12: 6 | BF12: 1
A13: =IF(J$2="","",IF($E13="","",IF($E13=MAX($E$5:$E$54),1,IF($E13=$E12,$A12,COUNT($E$5:$E13))))) -> 9 | E13: 0 | G13: 0 | H13: 0 | J13: 0 | BF13: 2
A14: =IF(J$2="","",IF($E14="","",IF($E14=MAX($E$5:$E$54),1,IF($E14=$E13,$A13,COUNT($E$5:$E14))))) -> 9 | E14: 0 | G14: 0 | H14: 0 | J14: 0 | BF14: 4
A15: =IF(J$2="","",IF($E15="","",IF($E15=MAX($E$5:$E$54),1,IF($E15=$E14,$A14,COUNT($E$5:$E15))))) -> 9 | E15: 0 | G15: 0 | H15: 0 | J15: 0 | BF15: 7
A16: =IF(J$2="","",IF($E16="","",IF($E16=MAX($E$5:$E$54),1,IF($E16=$E15,$A15,COUNT($E$5:$E16))))) -> 9 | E16: 0 | G16: 0 | H16: 0 | J16: 0 | BF16: 12
A17: =IF(J$2="","",IF($E17="","",IF($E17=MAX($E$5:$E$54),1,IF($E17=$E16,$A16,COUNT($E$5:$E17))))) -> 9 | E17: 0 | G17: 0 | H17: 0 | J17: 0 | BF17: 13
A18: =IF(J$2="","",IF($E18="","",IF($E18=MAX($E$5:$E$54),1,IF($E18=$E17,$A17,COUNT($E$5:$E18))))) -> 9 | E18: 0 | G18: 0 | H18: 0 | J18: 0 | BF18: 14
A19: =IF(J$2="","",IF($E19="","",IF($E19=MAX($E$5:$E$54),1,IF($E19=$E18,$A18,COUNT($E$5:$E19))))) -> 9 | E19: 0 | G19: 0 | H19: 0 | J19: 0 | BF19: 15
A20: =IF(J$2="","",IF($E20="","",IF($E20=MAX($E$5:$E$54),1,IF($E20=$E19,$A19,COUNT($E$5:$E20))))) -> 9 | E20: 0 | G20: 0 | H20: 0 | J20: 0 | BF20: 16
A21: =IF(J$2="","",IF($E21="","",IF($E21=MAX($E$5:$E$54),1,IF($E21=$E20,$A20,COUNT($E$5:$E21))))) -> 9 | E21: 0 | G21: 0 | H21: 0 | J21: 0 | BF21: 17
A22: =IF(J$2="","",IF($E22="","",IF($E22=MAX($E$5:$E$54),1,IF($E22=$E21,$A21,COUNT($E$5:$E22))))) -> 9 | E22: 0 | G22: 0 | H22: 0 | J22: 0 | BF22: 18
A23: =IF(J$2="","",IF($E23="","",IF($E23=MAX($E$5:$E$54),1,IF($E23=$E22,$A22,COUNT($E$5:$E23))))) -> 9 | E23: 0 | G23: 0 | H23: 0 | J23: 0 | BF23: 19
A24: =IF(J$2="","",IF($E24="","",IF($E24=MAX($E$5:$E$54),1,IF($E24=$E23,$A23,COUNT($E$5:$E24))))) -> 9 | E24: 0 | G24: 0 | H24: 0 | J24: 0 | BF24: 20
A25: =IF(J$2="","",IF($E25="","",IF($E25=MAX($E$5:$E$54),1,IF($E25=$E24,$A24,COUNT($E$5:$E25))))) -> 9 | E25: 0 | G25: 0 | H25: 0 | J25: 0 | BF25: 21
A26: =IF(J$2="","",IF($E26="","",IF($E26=MAX($E$5:$E$54),1,IF($E26=$E25,$A25,COUNT($E$5:$E26))))) -> 9 | E26: 0 | G26: 0 | H26: 0 | J26: 0 | BF26: 22
A27: =IF(J$2="","",IF($E27="","",IF($E27=MAX($E$5:$E$54),1,IF($E27=$E26,$A26,COUNT($E$5:$E27))))) -> 9 | E27: 0 | G27: 0 | H27: 0 | J27: 0 | BF27: 23
A28: =IF(J$2="","",IF($E28="","",IF($E28=MAX($E$5:$E$54),1,IF($E28=$E27,$A27,COUNT($E$5:$E28))))) -> 9 | E28: 0 | G28: 0 | H28: 0 | J28: 0 | BF28: 24
A29: =IF(J$2="","",IF($E29="","",IF($E29=MAX($E$5:$E$54),1,IF($E29=$E28,$A28,COUNT($E$5:$E29))))) -> 9 | E29: 0 | G29: 0 | H29: 0 | J29: 0 | BF29: 25
A30: =IF(J$2="","",IF($E30="","",IF($E30=MAX($E$5:$E$54),1,IF($E30=$E29,$A29,COUNT($E$5:$E30))))) -> 9 | E30: 0 | G30: 0 | H30: 0 | J30: 0 | BF30: 26
A31: =IF(J$2="","",IF($E31="","",IF($E31=MAX($E$5:$E$54),1,IF($E31=$E30,$A30,COUNT($E$5:$E31))))) -> 9 | E31: 0 | G31: 0 | H31: 0 | J31: 0 | BF31: 27
A32: =IF(J$2="","",IF($E32="","",IF($E32=MAX($E$5:$E$54),1,IF($E32=$E31,$A31,COUNT($E$5:$E32))))) -> 9 | E32: 0 | G32: 0 | H32: 0 | J32: 0 | BF32: 28
A33: =IF(J$2="","",IF($E33="","",IF($E33=MAX($E$5:$E$54),1,IF($E33=$E32,$A32,COUNT($E$5:$E33))))) -> 9 | E33: 0 | G33: 0 | H33: 0 | J33: 0 | BF33: 29
A34: =IF(J$2="","",IF($E34="","",IF($E34=MAX($E$5:$E$54),1,IF($E34=$E33,$A33,COUNT($E$5:$E34))))) -> 9 | E34: 0 | G34: 0 | H34: 0 | J34: 0 | BF34: 30
A35: =IF(J$2="","",IF($E35="","",IF($E35=MAX($E$5:$E$54),1,IF($E35=$E34,$A34,COUNT($E$5:$E35))))) -> 9 | E35: 0 | G35: 0 | H35: 0 | J35: 0 | BF35: 31
A36: =IF(J$2="","",IF($E36="","",IF($E36=MAX($E$5:$E$54),1,IF($E36=$E35,$A35,COUNT($E$5:$E36))))) -> 9 | E36: 0 | G36: 0 | H36: 0 | J36: 0 | BF36: 32
A37: =IF(J$2="","",IF($E37="","",IF($E37=MAX($E$5:$E$54),1,IF($E37=$E36,$A36,COUNT($E$5:$E37))))) -> 9 | E37: =IF(J$2="","",IF(G37=0,0,F37+G37)) -> 0 | G37: =IF(J$2="","",IF($J37=0,0,(H37*$C$3/$J$3)*50)) -> 0 | H37: =IF(J$2="","",IF(SUM($K37:$AX37)=0,0,SUM($K37:$AX37)+$I37)) -> 0 | J37: =IF(B37="",0,IF(SUM($K37:$AX37)=0,0,SUM($K37:$AX37))) -> 0 | BF37: 33
A38: =IF(J$2="","",IF($E38="","",IF($E38=MAX($E$5:$E$54),1,IF($E38=$E37,$A37,COUNT($E$5:$E38))))) -> 9 | E38: 0 | G38: 0 | H38: 0 | J38: 0 | BF38: 34
A39: =IF(J$2="","",IF($E39="","",IF($E39=MAX($E$5:$E$54),1,IF($E39=$E38,$A38,COUNT($E$5:$E39))))) -> 9 | E39: 0 | G39: 0 | H39: 0 | J39: 0 | BF39: 35
A40: =IF(J$2="","",IF($E40="","",IF($E40=MAX($E$5:$E$54),1,IF($E40=$E39,$A39,COUNT($E$5:$E40))))) -> 9 | E40: 0 | G40: 0 | H40: 0 | J40: 0 | BF40: 36
A41: =IF(J$2="","",IF($E41="","",IF($E41=MAX($E$5:$E$54),1,IF($E41=$E40,$A40,COUNT($E$5:$E41))))) -> 9 | E41: 0 | G41: 0 | H41: 0 | J41: 0 | BF41: 37
A42: =IF(J$2="","",IF($E42="","",IF($E42=MAX($E$5:$E$54),1,IF($E42=$E41,$A41,COUNT($E$5:$E42))))) -> 9 | E42: 0 | G42: 0 | H42: 0 | J42: 0 | BF42: 38
A43: =IF(J$2="","",IF($E43="","",IF($E43=MAX($E$5:$E$54),1,IF($E43=$E42,$A42,COUNT($E$5:$E43))))) -> 9 | E43: 0 | G43: 0 | H43: 0 | J43: 0 | BF43: 39
A44: =IF(J$2="","",IF($E44="","",IF($E44=MAX($E$5:$E$54),1,IF($E44=$E43,$A43,COUNT($E$5:$E44))))) -> 9 | E44: 0 | G44: 0 | H44: 0 | J44: 0 | BF44: 40
A45: =IF(J$2="","",IF($E45="","",IF($E45=MAX($E$5:$E$54),1,IF($E45=$E44,$A44,COUNT($E$5:$E45))))) -> 9 | E45: 0 | G45: 0 | H45: 0 | J45: 0 | BF45: 41
A46: =IF(J$2="","",IF($E46="","",IF($E46=MAX($E$5:$E$54),1,IF($E46=$E45,$A45,COUNT($E$5:$E46))))) -> 9 | E46: 0 | G46: 0 | H46: 0 | J46: 0 | BF46: 42
A47: =IF(J$2="","",IF($E47="","",IF($E47=MAX($E$5:$E$54),1,IF($E47=$E46,$A46,COUNT($E$5:$E47))))) -> 9 | E47: 0 | G47: 0 | H47: 0 | J47: 0 | BF47: 43
A48: =IF(J$2="","",IF($E48="","",IF($E48=MAX($E$5:$E$54),1,IF($E48=$E47,$A47,COUNT($E$5:$E48))))) -> 9 | E48: 0 | G48: 0 | H48: 0 | J48: 0 | BF48: 44
A49: =IF(J$2="","",IF($E49="","",IF($E49=MAX($E$5:$E$54),1,IF($E49=$E48,$A48,COUNT($E$5:$E49))))) -> 9 | E49: 0 | G49: 0 | H49: 0 | J49: 0 | BF49: 45
A50: =IF(J$2="","",IF($E50="","",IF($E50=MAX($E$5:$E$54),1,IF($E50=$E49,$A49,COUNT($E$5:$E50))))) -> 9 | E50: 0 | G50: 0 | H50: 0 | J50: 0 | BF50: 46
A51: =IF(J$2="","",IF($E51="","",IF($E51=MAX($E$5:$E$54),1,IF($E51=$E50,$A50,COUNT($E$5:$E51))))) -> 9 | E51: 0 | G51: 0 | H51: 0 | J51: 0 | BF51: 47
A52: =IF(J$2="","",IF($E52="","",IF($E52=MAX($E$5:$E$54),1,IF($E52=$E51,$A51,COUNT($E$5:$E52))))) -> 9 | E52: 0 | G52: 0 | H52: 0 | J52: 0 | BF52: 48
A53: =IF(J$2="","",IF($E53="","",IF($E53=MAX($E$5:$E$54),1,IF($E53=$E52,$A52,COUNT($E$5:$E53))))) -> 9 | E53: 0 | G53: 0 | H53: 0 | J53: 0 | BF53: 49
A54: =IF(J$2="","",IF($E54="","",IF($E54=MAX($E$5:$E$54),1,IF($E54=$E53,$A53,COUNT($E$5:$E54))))) -> 9 | E54: 0 | G54: 0 | H54: 0 | J54: 0 | BF54: 50
D59: punteggi torneo ordinati per # di coppia
B60: # coppia | E60: con zeri | F60: senza zeri | G60: senza zeri
B61: 1 | E61: 57.14285714 | F61: =IF(E61=0,"",E61) -> 57.14285714 | G61: 57.14285714 | BF61: 5
B62: 2 | E62: 45.23809524 | F62: 45.23809524 | G62: 45.23809524 | BF62: 11
B63: 3 | E63: 56.34920635 | F63: 56.34920635 | G63: 56.34920635 | I63: =IF(H63=0,"",H63) ->  | BF63: 10
B64: 4 | E64: 43.65079365 | F64: 43.65079365 | G64: 43.65079365 | BF64: 6
B65: 5 | E65: 42.85714286 | F65: 42.85714286 | G65: 42.85714286 | I65: =IF(H65=0,"",H65) ->  | BF65: 3
B66: 6 | E66: 41.26984127 | F66: 41.26984127 | G66: 41.26984127 | I66: =IF(H66=0,"",H66) ->  | BF66: 1
B67: 7 | E67: 48.41269841 | F67: 48.41269841 | G67: 48.41269841 | BF67: 9
B68: 8 | E68: 65.07936508 | F68: 65.07936508 | G68: 65.07936508 | I68: =IF(H68=0,"",H68) ->  | BF68: 8
E69: 0 | BF69: 2
E70: 0 | BF70: 4
E71: 0 | I71: =IF(H71=0,"",H71) ->  | BF71: 7
E72: 0 | BF72: 12
E73: 0 | I73: =IF(H73=0,"",H73) ->  | BF73: 13
E74: 0 | I74: =IF(H74=0,"",H74) ->  | BF74: 14
E75: 0 | I75: =IF(H75=0,"",H75) ->  | BF75: 15
E76: 0 | I76: =IF(H76=0,"",H76) ->  | BF76: 16
E77: 0 | BF77: 17
E78: 0 | BF78: 18
E79: 0 | I79: =IF(H79=0,"",H79) ->  | BF79: 19
E80: 0 | I80: =IF(H80=0,"",H80) ->  | BF80: 20
E81: 0 | BF81: 21
E82: 0 | BF82: 22
E83: 0 | BF83: 23
E84: 0 | BF84: 24
E85: 0 | BF85: 25
E86: 0 | BF86: 26
E87: 0 | BF87: 27
E88: 0 | BF88: 28
E89: 0 | BF89: 29
E90: 0 | BF90: 30
E91: 0 | BF91: 31
E92: 0 | BF92: 32
E93: 0 | F93: =IF(E93=0,"",E93) ->  | BF93: 33
E94: 0 | BF94: 34
E95: 0 | BF95: 35
E96: 0 | BF96: 36
E97: 0 | BF97: 37
E98: 0 | BF98: 38
E99: 0 | BF99: 39
E100: 0 | BF100: 40
E101: 0 | BF101: 41
E102: 0 | BF102: 42
E103: 0 | BF103: 43
E104: 0 | BF104: 44
E105: 0 | BF105: 45
E106: 0 | BF106: 46
E107: 0 | BF107: 47
E108: 0 | BF108: 48
E109: 0 | BF109: 49
E110: 0 | BF110: 50
A119: punteggi torneo ordinati per numero standard di coppia base
B120: # coppia | E120: con zeri | F120: senza zeri | G120: senza zeri
B121: 6 | E121: 41.26984127 | F121: =IF(E121=0,"",E121) -> 41.26984127 | G121: 41.26984127 | I121: =IF(H121=0,"",H121) ->  | BF121: 1
E122: 0 | BF122: 2
B123: 5 | E123: 42.85714286 | F123: 42.85714286 | G123: 42.85714286 | I123: =IF(H123=0,"",H123) ->  | BF123: 3
E124: 0 | BF124: 4
B125: 1 | E125: 57.14285714 | F125: 57.14285714 | G125: 57.14285714 | BF125: 5
B126: 4 | E126: 43.65079365 | F126: 43.65079365 | G126: 43.65079365 | BF126: 6
E127: 0 | I127: =IF(H127=0,"",H127) ->  | BF127: 7
B128: 8 | E128: 65.07936508 | F128: 65.07936508 | G128: 65.07936508 | I128: =IF(H128=0,"",H128) ->  | BF128: 8
B129: 7 | E129: 48.41269841 | F129: 48.41269841 | G129: 48.41269841 | BF129: 9
B130: 3 | E130: 56.34920635 | F130: 56.34920635 | G130: 56.34920635 | I130: =IF(H130=0,"",H130) ->  | BF130: 10
B131: 2 | E131: 45.23809524 | F131: 45.23809524 | G131: 45.23809524 | BF131: 11

Sheet 24feb
A1: Data | C1: 2018-02-24 | D1: BridgeMania 2017-18 - Torneo Howell
A2: luogo | C2: Cataldo | D2: Coppie Ctrl+e | E2: Calcola Ctr+f | F2: Duplica Ctrl+g | G2: Clear Ctrl+h | J2: &
A3: # coppie | C3: =IF(B5="","",COUNT(B5:B25)) -> 9 | E3: =IF(E5="","",SUMIF(E5:E25,">0")) -> 450 | F3: =IF(F5="","",SUMIF(F5:F24,">0")) ->  | G3: =IF(G5="","",SUM(G5:G25)) -> 450 | H3: =IF(H5="","",SUM(H5:H25)) -> 486 | I3: =SUM(I5:I25) -> 0 | J3: =SUM(J5:J25) -> 486 | K3: =SUM(K5:K25) -> 27 | L3: =SUM(L5:L25) -> 27 | M3: 27 | N3: 27 | O3: 27 | P3: 27 | Q3: 27 | R3: 27 | S3: 27 | T3: 27 | U3: 27 | V3: 27 | W3: 27 | X3: 27 | Y3: 27 | Z3: 27 | AA3: 27 | AB3: 27 | AC3: 0 | AD3: 0 | AE3: 0 | AF3: 0 | AG3: 0 | AH3: 0 | AI3: 0 | AJ3: 0 | AK3: 0 | AL3: 0 | AM3: 0 | AN3: 0 | AO3: 0 | AP3: 0 | AQ3: 0 | AR3: 0 | AS3: 0 | AT3: 0 | AU3: 0 | AV3: 0 | AW3: 0 | AX3: 0
A4: Class. | B4: # | C4: Coppie | E4: Punteggio Serata | G4: Punteggio % | H4: Punteggio Torneo | I4: Penalità (-) | J4: Totale punti mano | K4: 1 | L4: 2 | M4: 3 | N4: 4 | O4: 5 | P4: 6 | Q4: 7 | R4: 8 | S4: 9 | T4: 10 | U4: 11 | V4: 12 | W4: 13 | X4: 14 | Y4: 15 | Z4: 16 | AA4: 17 | AB4: 18 | AC4: 19 | AD4: 20 | AE4: 21 | AF4: 22 | AG4: 23 | AH4: 24 | AI4: 25 | AJ4: 26 | AK4: 27 | AL4: 28 | AM4: 29 | AN4: 30 | AO4: 31 | AP4: 32 | AQ4: 33 | AR4: 34 | AS4: 35 | AT4: 36 | AU4: 37 | AV4: 38 | AW4: 39 | AX4: 40
A5: =IF(J$2="","",IF($E5="","",IF($E5=MAX($E$5:$E$54),1,IF($E5=$E4,$A4,COUNT($E$5:$E5))))) -> 1 | B5: 7 | C5: Tatiana | D5: Julio | E5: =IF(J$2="","",IF(G5=0,0,F5+G5)) -> 58.33333333 | G5: =IF(J$2="","",IF($J5=0,0,(H5*$C$3/$J$3)*50)) -> 58.33333333 | H5: =IF(J$2="","",IF(SUM($K5:$AX5)=0,0,SUM($K5:$AX5)+$I5)) -> 63 | J5: =IF(B5="",0,IF(SUM($K5:$AX5)=0,0,SUM($K5:$AX5))) -> 63 | K5: 6 | L5: 4 | M5: 6 | N5: 2 | O5: 3 | P5: 5 | Q5: 2 | R5: 6 | S5: 1 | T5: 2 | U5: 2 | V5: 4 | W5: 3 | X5: 3 | Y5: 3 | Z5: 2 | AA5: 3 | AB5: 6 | BF5: 11
A6: =IF(J$2="","",IF($E6="","",IF($E6=MAX($E$5:$E$54),1,IF($E6=$E5,$A5,COUNT($E$5:$E6))))) -> 2 | B6: 9 | C6: Cesarina | D6: Gaetano | E6: 56.48148148 | G6: 56.48148148 | H6: 61 | J6: 61 | K6: 3 | L6: 0 | M6: 0 | N6: 4 | O6: 6 | P6: 6 | Q6: 4 | R6: 6 | S6: 1 | T6: 6 | U6: 0 | V6: 4 | W6: 6 | X6: 2 | Y6: 3 | Z6: 4 | AA6: 3 | AB6: 3 | BF6: 3
A7: =IF(J$2="","",IF($E7="","",IF($E7=MAX($E$5:$E$54),1,IF($E7=$E6,$A6,COUNT($E$5:$E7))))) -> 3 | B7: 1 | C7: Barbara | D7: Elio | E7: 53.7037037 | G7: 53.7037037 | H7: 58 | J7: 58 | K7: 3 | L7: 3 | M7: 3 | N7: 4 | O7: 0 | P7: 4 | Q7: 2 | R7: 3 | S7: 5 | T7: 2 | U7: 6 | V7: 2 | W7: 4 | X7: 2 | Y7: 3 | Z7: 4 | AA7: 3 | AB7: 5 | BF7: 2
A8: =IF(J$2="","",IF($E8="","",IF($E8=MAX($E$5:$E$54),1,IF($E8=$E7,$A7,COUNT($E$5:$E8))))) -> 4 | B8: 5 | C8: Lilli | D8: Gianni | E8: 52.77777778 | G8: 52.77777778 | H8: 57 | J8: 57 | K8: 3 | L8: 4 | M8: 3 | N8: 0 | O8: 3 | P8: 5 | Q8: 4 | R8: 3 | S8: 3 | T8: 3 | U8: 4 | V8: 6 | W8: 2 | X8: 6 | Y8: 3 | Z8: 2 | AA8: 3 | AB8: 0 | BF8: 6
A9: =IF(J$2="","",IF($E9="","",IF($E9=MAX($E$5:$E$54),1,IF($E9=$E8,$A8,COUNT($E$5:$E9))))) -> 5 | B9: 3 | C9: Olimpia | D9: Sauro | E9: 47.22222222 | G9: 47.22222222 | H9: 51 | J9: 51 | K9: 3 | L9: 6 | M9: 0 | N9: 2 | O9: 3 | P9: 3 | Q9: 6 | R9: 3 | S9: 1 | T9: 4 | U9: 4 | V9: 2 | W9: 4 | X9: 0 | Y9: 3 | Z9: 0 | AA9: 3 | AB9: 4 | BF9: 8
A10: =IF(J$2="","",IF($E10="","",IF($E10=MAX($E$5:$E$54),1,IF($E10=$E9,$A9,COUNT($E$5:$E10))))) -> 5 | B10: 8 | C10: Antonella | D10: Dino | E10: 47.22222222 | G10: 47.22222222 | H10: 51 | J10: 51 | K10: 0 | L10: 6 | M10: 6 | N10: 4 | O10: 6 | P10: 2 | Q10: 4 | R10: 0 | S10: 5 | T10: 0 | U10: 2 | V10: 0 | W10: 0 | X10: 6 | Y10: 3 | Z10: 3 | AA10: 3 | AB10: 1 | BF10: 1
A11: =IF(J$2="","",IF($E11="","",IF($E11=MAX($E$5:$E$54),1,IF($E11=$E10,$A10,COUNT($E$5:$E11))))) -> 7 | B11: 2 | C11: Manuela | D11: Roberto | E11: 46.2962963 | G11: 46.2962963 | H11: 50 | J11: 50 | K11: 0 | L11: 2 | M11: 3 | N11: 3 | O11: 3 | P11: 1 | Q11: 2 | R11: 0 | S11: 1 | T11: 4 | U11: 2 | V11: 6 | W11: 2 | X11: 4 | Y11: 3 | Z11: 6 | AA11: 3 | AB11: 5 | BF11: 7
A12: =IF(J$2="","",IF($E12="","",IF($E12=MAX($E$5:$E$54),1,IF($E12=$E11,$A11,COUNT($E$5:$E12))))) -> 8 | B12: 6 | C12: Elena | D12: Stefano | E12: 44.44444444 | G12: 44.44444444 | H12: 48 | J12: 48 | K12: 6 | L12: 0 | M12: 3 | N12: 6 | O12: 3 | P12: 1 | Q12: 0 | R12: 3 | S12: 5 | T12: 2 | U12: 3 | V12: 3 | W12: 0 | X12: 4 | Y12: 3 | Z12: 2 | AA12: 3 | AB12: 1 | BF12: 4
A13: =IF(J$2="","",IF($E13="","",IF($E13=MAX($E$5:$E$54),1,IF($E13=$E12,$A12,COUNT($E$5:$E13))))) -> 9 | B13: 4 | C13: Renata | D13: Sandro | E13: 43.51851852 | G13: 43.51851852 | H13: 47 | J13: 47 | K13: 3 | L13: 2 | M13: 3 | N13: 2 | O13: 0 | P13: 0 | Q13: 3 | R13: 3 | S13: 5 | T13: 4 | U13: 4 | V13: 0 | W13: 6 | X13: 0 | Y13: 3 | Z13: 4 | AA13: 3 | AB13: 2 | BF13: 9
A14: =IF(J$2="","",IF($E14="","",IF($E14=MAX($E$5:$E$54),1,IF($E14=$E13,$A13,COUNT($E$5:$E14))))) -> 10 | E14: 0 | G14: 0 | H14: 0 | J14: 0 | BF14: 5
A15: =IF(J$2="","",IF($E15="","",IF($E15=MAX($E$5:$E$54),1,IF($E15=$E14,$A14,COUNT($E$5:$E15))))) -> 10 | E15: 0 | G15: 0 | H15: 0 | J15: 0 | BF15: 10
A16: =IF(J$2="","",IF($E16="","",IF($E16=MAX($E$5:$E$54),1,IF($E16=$E15,$A15,COUNT($E$5:$E16))))) -> 10 | E16: 0 | G16: 0 | H16: 0 | J16: 0 | BF16: 12
A17: =IF(J$2="","",IF($E17="","",IF($E17=MAX($E$5:$E$54),1,IF($E17=$E16,$A16,COUNT($E$5:$E17))))) -> 10 | E17: 0 | G17: 0 | H17: 0 | J17: 0 | BF17: 13
A18: =IF(J$2="","",IF($E18="","",IF($E18=MAX($E$5:$E$54),1,IF($E18=$E17,$A17,COUNT($E$5:$E18))))) -> 10 | E18: 0 | G18: 0 | H18: 0 | J18: 0 | BF18: 14
A19: =IF(J$2="","",IF($E19="","",IF($E19=MAX($E$5:$E$54),1,IF($E19=$E18,$A18,COUNT($E$5:$E19))))) -> 10 | E19: 0 | G19: 0 | H19: 0 | J19: 0 | BF19: 15
A20: =IF(J$2="","",IF($E20="","",IF($E20=MAX($E$5:$E$54),1,IF($E20=$E19,$A19,COUNT($E$5:$E20))))) -> 10 | E20: 0 | G20: 0 | H20: 0 | J20: 0 | BF20: 16
A21: =IF(J$2="","",IF($E21="","",IF($E21=MAX($E$5:$E$54),1,IF($E21=$E20,$A20,COUNT($E$5:$E21))))) -> 10 | E21: 0 | G21: 0 | H21: 0 | J21: 0 | BF21: 17
A22: =IF(J$2="","",IF($E22="","",IF($E22=MAX($E$5:$E$54),1,IF($E22=$E21,$A21,COUNT($E$5:$E22))))) -> 10 | E22: 0 | G22: 0 | H22: 0 | J22: 0 | BF22: 18
A23: =IF(J$2="","",IF($E23="","",IF($E23=MAX($E$5:$E$54),1,IF($E23=$E22,$A22,COUNT($E$5:$E23))))) -> 10 | E23: 0 | G23: 0 | H23: 0 | J23: 0 | BF23: 19
A24: =IF(J$2="","",IF($E24="","",IF($E24=MAX($E$5:$E$54),1,IF($E24=$E23,$A23,COUNT($E$5:$E24))))) -> 10 | E24: 0 | G24: 0 | H24: 0 | J24: 0 | BF24: 20
A25: =IF(J$2="","",IF($E25="","",IF($E25=MAX($E$5:$E$54),1,IF($E25=$E24,$A24,COUNT($E$5:$E25))))) -> 10 | E25: 0 | G25: 0 | H25: 0 | J25: 0 | BF25: 21
A26: =IF(J$2="","",IF($E26="","",IF($E26=MAX($E$5:$E$54),1,IF($E26=$E25,$A25,COUNT($E$5:$E26))))) -> 10 | E26: 0 | G26: 0 | H26: 0 | J26: 0 | BF26: 22
A27: =IF(J$2="","",IF($E27="","",IF($E27=MAX($E$5:$E$54),1,IF($E27=$E26,$A26,COUNT($E$5:$E27))))) -> 10 | E27: 0 | G27: 0 | H27: 0 | J27: 0 | BF27: 23
A28: =IF(J$2="","",IF($E28="","",IF($E28=MAX($E$5:$E$54),1,IF($E28=$E27,$A27,COUNT($E$5:$E28))))) -> 10 | E28: 0 | G28: 0 | H28: 0 | J28: 0 | BF28: 24
A29: =IF(J$2="","",IF($E29="","",IF($E29=MAX($E$5:$E$54),1,IF($E29=$E28,$A28,COUNT($E$5:$E29))))) -> 10 | E29: 0 | G29: 0 | H29: 0 | J29: 0 | BF29: 25
A30: =IF(J$2="","",IF($E30="","",IF($E30=MAX($E$5:$E$54),1,IF($E30=$E29,$A29,COUNT($E$5:$E30))))) -> 10 | E30: 0 | G30: 0 | H30: 0 | J30: 0 | BF30: 26
A31: =IF(J$2="","",IF($E31="","",IF($E31=MAX($E$5:$E$54),1,IF($E31=$E30,$A30,COUNT($E$5:$E31))))) -> 10 | E31: 0 | G31: 0 | H31: 0 | J31: 0 | BF31: 27
A32: =IF(J$2="","",IF($E32="","",IF($E32=MAX($E$5:$E$54),1,IF($E32=$E31,$A31,COUNT($E$5:$E32))))) -> 10 | E32: 0 | G32: 0 | H32: 0 | J32: 0 | BF32: 28
A33: =IF(J$2="","",IF($E33="","",IF($E33=MAX($E$5:$E$54),1,IF($E33=$E32,$A32,COUNT($E$5:$E33))))) -> 10 | E33: 0 | G33: 0 | H33: 0 | J33: 0 | BF33: 29
A34: =IF(J$2="","",IF($E34="","",IF($E34=MAX($E$5:$E$54),1,IF($E34=$E33,$A33,COUNT($E$5:$E34))))) -> 10 | E34: 0 | G34: 0 | H34: 0 | J34: 0 | BF34: 30
A35: =IF(J$2="","",IF($E35="","",IF($E35=MAX($E$5:$E$54),1,IF($E35=$E34,$A34,COUNT($E$5:$E35))))) -> 10 | E35: 0 | G35: 0 | H35: 0 | J35: 0 | BF35: 31
A36: =IF(J$2="","",IF($E36="","",IF($E36=MAX($E$5:$E$54),1,IF($E36=$E35,$A35,COUNT($E$5:$E36))))) -> 10 | E36: 0 | G36: 0 | H36: 0 | J36: 0 | BF36: 32
A37: =IF(J$2="","",IF($E37="","",IF($E37=MAX($E$5:$E$54),1,IF($E37=$E36,$A36,COUNT($E$5:$E37))))) -> 10 | E37: =IF(J$2="","",IF(G37=0,0,F37+G37)) -> 0 | G37: =IF(J$2="","",IF($J37=0,0,(H37*$C$3/$J$3)*50)) -> 0 | H37: =IF(J$2="","",IF(SUM($K37:$AX37)=0,0,SUM($K37:$AX37)+$I37)) -> 0 | J37: =IF(B37="",0,IF(SUM($K37:$AX37)=0,0,SUM($K37:$AX37))) -> 0 | BF37: 33
A38: =IF(J$2="","",IF($E38="","",IF($E38=MAX($E$5:$E$54),1,IF($E38=$E37,$A37,COUNT($E$5:$E38))))) -> 10 | E38: 0 | G38: 0 | H38: 0 | J38: 0 | BF38: 34
A39: =IF(J$2="","",IF($E39="","",IF($E39=MAX($E$5:$E$54),1,IF($E39=$E38,$A38,COUNT($E$5:$E39))))) -> 10 | E39: 0 | G39: 0 | H39: 0 | J39: 0 | BF39: 35
A40: =IF(J$2="","",IF($E40="","",IF($E40=MAX($E$5:$E$54),1,IF($E40=$E39,$A39,COUNT($E$5:$E40))))) -> 10 | E40: 0 | G40: 0 | H40: 0 | J40: 0 | BF40: 36
A41: =IF(J$2="","",IF($E41="","",IF($E41=MAX($E$5:$E$54),1,IF($E41=$E40,$A40,COUNT($E$5:$E41))))) -> 10 | E41: 0 | G41: 0 | H41: 0 | J41: 0 | BF41: 37
A42: =IF(J$2="","",IF($E42="","",IF($E42=MAX($E$5:$E$54),1,IF($E42=$E41,$A41,COUNT($E$5:$E42))))) -> 10 | E42: 0 | G42: 0 | H42: 0 | J42: 0 | BF42: 38
A43: =IF(J$2="","",IF($E43="","",IF($E43=MAX($E$5:$E$54),1,IF($E43=$E42,$A42,COUNT($E$5:$E43))))) -> 10 | E43: 0 | G43: 0 | H43: 0 | J43: 0 | BF43: 39
A44: =IF(J$2="","",IF($E44="","",IF($E44=MAX($E$5:$E$54),1,IF($E44=$E43,$A43,COUNT($E$5:$E44))))) -> 10 | E44: 0 | G44: 0 | H44: 0 | J44: 0 | BF44: 40
A45: =IF(J$2="","",IF($E45="","",IF($E45=MAX($E$5:$E$54),1,IF($E45=$E44,$A44,COUNT($E$5:$E45))))) -> 10 | E45: 0 | G45: 0 | H45: 0 | J45: 0 | BF45: 41
A46: =IF(J$2="","",IF($E46="","",IF($E46=MAX($E$5:$E$54),1,IF($E46=$E45,$A45,COUNT($E$5:$E46))))) -> 10 | E46: 0 | G46: 0 | H46: 0 | J46: 0 | BF46: 42
A47: =IF(J$2="","",IF($E47="","",IF($E47=MAX($E$5:$E$54),1,IF($E47=$E46,$A46,COUNT($E$5:$E47))))) -> 10 | E47: 0 | G47: 0 | H47: 0 | J47: 0 | BF47: 43
A48: =IF(J$2="","",IF($E48="","",IF($E48=MAX($E$5:$E$54),1,IF($E48=$E47,$A47,COUNT($E$5:$E48))))) -> 10 | E48: 0 | G48: 0 | H48: 0 | J48: 0 | BF48: 44
A49: =IF(J$2="","",IF($E49="","",IF($E49=MAX($E$5:$E$54),1,IF($E49=$E48,$A48,COUNT($E$5:$E49))))) -> 10 | E49: 0 | G49: 0 | H49: 0 | J49: 0 | BF49: 45
A50: =IF(J$2="","",IF($E50="","",IF($E50=MAX($E$5:$E$54),1,IF($E50=$E49,$A49,COUNT($E$5:$E50))))) -> 10 | E50: 0 | G50: 0 | H50: 0 | J50: 0 | BF50: 46
A51: =IF(J$2="","",IF($E51="","",IF($E51=MAX($E$5:$E$54),1,IF($E51=$E50,$A50,COUNT($E$5:$E51))))) -> 10 | E51: 0 | G51: 0 | H51: 0 | J51: 0 | BF51: 47
A52: =IF(J$2="","",IF($E52="","",IF($E52=MAX($E$5:$E$54),1,IF($E52=$E51,$A51,COUNT($E$5:$E52))))) -> 10 | E52: 0 | G52: 0 | H52: 0 | J52: 0 | BF52: 48
A53: =IF(J$2="","",IF($E53="","",IF($E53=MAX($E$5:$E$54),1,IF($E53=$E52,$A52,COUNT($E$5:$E53))))) -> 10 | E53: 0 | G53: 0 | H53: 0 | J53: 0 | BF53: 49
A54: =IF(J$2="","",IF($E54="","",IF($E54=MAX($E$5:$E$54),1,IF($E54=$E53,$A53,COUNT($E$5:$E54))))) -> 10 | E54: 0 | G54: 0 | H54: 0 | J54: 0 | BF54: 50
D59: punteggi torneo ordinati per # di coppia
B60: # coppia | E60: con zeri | F60: senza zeri | G60: senza zeri
B61: 1 | E61: 53.7037037 | F61: =IF(E61=0,"",E61) -> 53.7037037 | G61: 53.7037037 | BF61: 2
B62: 2 | E62: 46.2962963 | F62: 46.2962963 | G62: 46.2962963 | BF62: 7
B63: 3 | E63: 47.22222222 | F63: 47.22222222 | G63: 47.22222222 | I63: =IF(H63=0,"",H63) ->  | BF63: 8
B64: 4 | E64: 43.51851852 | F64: 43.51851852 | G64: 43.51851852 | BF64: 9
B65: 5 | E65: 52.77777778 | F65: 52.77777778 | G65: 52.77777778 | I65: =IF(H65=0,"",H65) ->  | BF65: 6
B66: 6 | E66: 44.44444444 | F66: 44.44444444 | G66: 44.44444444 | I66: =IF(H66=0,"",H66) ->  | BF66: 4
B67: 7 | E67: 58.33333333 | F67: 58.33333333 | G67: 58.33333333 | BF67: 11
B68: 8 | E68: 47.22222222 | F68: 47.22222222 | G68: 47.22222222 | I68: =IF(H68=0,"",H68) ->  | BF68: 1
B69: 9 | E69: 56.48148148 | F69: 56.48148148 | G69: 56.48148148 | BF69: 3
E70: 0 | BF70: 5
E71: 0 | I71: =IF(H71=0,"",H71) ->  | BF71: 10
E72: 0 | BF72: 12
E73: 0 | I73: =IF(H73=0,"",H73) ->  | BF73: 13
E74: 0 | I74: =IF(H74=0,"",H74) ->  | BF74: 14
E75: 0 | I75: =IF(H75=0,"",H75) ->  | BF75: 15
E76: 0 | I76: =IF(H76=0,"",H76) ->  | BF76: 16
E77: 0 | BF77: 17
E78: 0 | BF78: 18
E79: 0 | I79: =IF(H79=0,"",H79) ->  | BF79: 19
E80: 0 | I80: =IF(H80=0,"",H80) ->  | BF80: 20
E81: 0 | BF81: 21
E82: 0 | BF82: 22
E83: 0 | BF83: 23
E84: 0 | BF84: 24
E85: 0 | BF85: 25
E86: 0 | BF86: 26
E87: 0 | BF87: 27
E88: 0 | BF88: 28
E89: 0 | BF89: 29
E90: 0 | BF90: 30
E91: 0 | BF91: 31
E92: 0 | BF92: 32
E93: 0 | F93: =IF(E93=0,"",E93) ->  | BF93: 33
E94: 0 | BF94: 34
E95: 0 | BF95: 35
E96: 0 | BF96: 36
E97: 0 | BF97: 37
E98: 0 | BF98: 38
E99: 0 | BF99: 39
E100: 0 | BF100: 40
E101: 0 | BF101: 41
E102: 0 | BF102: 42
E103: 0 | BF103: 43
E104: 0 | BF104: 44
E105: 0 | BF105: 45
E106: 0 | BF106: 46
E107: 0 | BF107: 47
E108: 0 | BF108: 48
E109: 0 | BF109: 49
E110: 0 | BF110: 50
A119: punteggi torneo ordinati per numero standard di coppia base
B120: # coppia | E120: con zeri | F120: senza zeri | G120: senza zeri
B121: 8 | E121: 47.22222222 | F121: =IF(E121=0,"",E121) -> 47.22222222 | G121: 47.22222222 | I121: =IF(H121=0,"",H121) ->  | BF121: 1
B122: 1 | E122: 53.7037037 | F122: 53.7037037 | G122: 53.7037037 | BF122: 2
B123: 9 | E123: 56.48148148 | F123: 56.48148148 | G123: 56.48148148 | BF123: 3
B124: 6 | E124: 44.44444444 | F124: 44.44444444 | G124: 44.44444444 | I124: =IF(H124=0,"",H124) ->  | BF124: 4
E125: 0 | BF125: 5
B126: 5 | E126: 52.77777778 | F126: 52.77777778 | G126: 52.77777778 | I126: =IF(H126=0,"",H126) ->  | BF126: 6
B127: 2 | E127: 46.2962963 | F127: 46.2962963 | G127: 46.2962963 | BF127: 7
B128: 3 | E128: 47.22222222 | F128: 47.22222222 | G128: 47.22222222 | I128: =IF(H128=0,"",H128) ->  | BF128: 8
B129: 4 | E129: 43.51851852 | F129: 43.51851852 | G129: 43.51851852 | BF129: 9
E130: 0 | I130: =IF(H130=0,"",H130) ->  | BF130: 10
B131: 7 | E131: 58.33333333 | F131: 58.33333333 | G131: 58.33333333 | BF131: 11

Sheet 17feb
A1: Data | C1: 2018-02-17 | D1: BridgeMania 2017-18 - Torneo Howell
A2: luogo | C2: Torgovnick | D2: Coppie Ctrl+e | E2: Calcola Ctr+f | F2: Duplica Ctrl+g | G2: Clear Ctrl+h | J2: &
A3: # coppie | C3: =IF(B5="","",COUNT(B5:B25)) -> 8 | E3: =IF(E5="","",SUMIF(E5:E25,">0")) -> 390.4761905 | F3: =IF(F5="","",SUMIF(F5:F24,">0")) ->  | G3: =IF(G5="","",SUM(G5:G25)) -> 390.4761905 | H3: =IF(H5="","",SUM(H5:H25)) -> 492 | I3: =SUM(I5:I25) -> -12 | J3: =SUM(J5:J25) -> 504 | K3: =SUM(K5:K25) -> 24 | L3: =SUM(L5:L25) -> 24 | M3: 24 | N3: 24 | O3: 24 | P3: 24 | Q3: 24 | R3: 24 | S3: 24 | T3: 24 | U3: 24 | V3: 24 | W3: 24 | X3: 24 | Y3: 24 | Z3: 24 | AA3: 24 | AB3: 24 | AC3: 24 | AD3: 24 | AE3: 24 | AF3: 0 | AG3: 0 | AH3: 0 | AI3: 0 | AJ3: 0 | AK3: 0 | AL3: 0 | AM3: 0 | AN3: 0 | AO3: 0 | AP3: 0 | AQ3: 0 | AR3: 0 | AS3: 0 | AT3: 0 | AU3: 0 | AV3: 0 | AW3: 0 | AX3: 0
A4: Class. | B4: # | C4: Coppie | E4: Punteggio Serata | G4: Punteggio % | H4: Punteggio Torneo | I4: Penalità (-) | J4: Totale punti mano | K4: 1 | L4: 2 | M4: 3 | N4: 4 | O4: 5 | P4: 6 | Q4: 7 | R4: 8 | S4: 9 | T4: 10 | U4: 11 | V4: 12 | W4: 13 | X4: 14 | Y4: 15 | Z4: 16 | AA4: 17 | AB4: 18 | AC4: 19 | AD4: 20 | AE4: 21 | AF4: 22 | AG4: 23 | AH4: 24 | AI4: 25 | AJ4: 26 | AK4: 27 | AL4: 28 | AM4: 29 | AN4: 30 | AO4: 31 | AP4: 32 | AQ4: 33 | AR4: 34 | AS4: 35 | AT4: 36 | AU4: 37 | AV4: 38 | AW4: 39 | AX4: 40
A5: =IF(J$2="","",IF($E5="","",IF($E5=MAX($E$5:$E$54),1,IF($E5=$E4,$A4,COUNT($E$5:$E5))))) -> 1 | B5: 7 | C5: Olimpia | D5: Sauro | E5: =IF(J$2="","",IF(G5=0,0,F5+G5)) -> 66.66666667 | G5: =IF(J$2="","",IF($J5=0,0,(H5*$C$3/$J$3)*50)) -> 66.66666667 | H5: =IF(J$2="","",IF(SUM($K5:$AX5)=0,0,SUM($K5:$AX5)+$I5)) -> 84 | J5: =IF(B5="",0,IF(SUM($K5:$AX5)=0,0,SUM($K5:$AX5))) -> 84 | K5: 4 | L5: 3 | M5: 4 | N5: 5 | O5: 3 | P5: 4 | Q5: 2 | R5: 2 | S5: 6 | T5: 6 | U5: 2 | V5: 6 | W5: 4 | X5: 0 | Y5: 6 | Z5: 5 | AA5: 5 | AB5: 5 | AC5: 3 | AD5: 6 | AE5: 3 | BF5: 8
A6: =IF(J$2="","",IF($E6="","",IF($E6=MAX($E$5:$E$54),1,IF($E6=$E5,$A5,COUNT($E$5:$E6))))) -> 2 | B6: 1 | C6: Renata | D6: Sandro | E6: 56.34920635 | G6: 56.34920635 | H6: 71 | J6: 71 | K6: 6 | L6: 0 | M6: 6 | N6: 3 | O6: 5 | P6: 5 | Q6: 4 | R6: 4 | S6: 0 | T6: 0 | U6: 6 | V6: 0 | W6: 6 | X6: 1 | Y6: 3 | Z6: 5 | AA6: 1 | AB6: 2 | AC6: 3 | AD6: 5 | AE6: 6 | BF6: 9
A7: =IF(J$2="","",IF($E7="","",IF($E7=MAX($E$5:$E$54),1,IF($E7=$E6,$A6,COUNT($E$5:$E7))))) -> 3 | B7: 6 | C7: Antonella | D7: Dino | E7: 50 | G7: 50 | H7: 63 | J7: 63 | K7: 5 | L7: 0 | M7: 6 | N7: 1 | O7: 3 | P7: 2 | Q7: 0 | R7: 2 | S7: 4 | T7: 3 | U7: 2 | V7: 3 | W7: 0 | X7: 5 | Y7: 3 | Z7: 5 | AA7: 5 | AB7: 1 | AC7: 6 | AD7: 4 | AE7: 3 | BF7: 1
A8: =IF(J$2="","",IF($E8="","",IF($E8=MAX($E$5:$E$54),1,IF($E8=$E7,$A7,COUNT($E$5:$E8))))) -> 4 | B8: 2 | C8: Isolde | D8: Cristina | E8: 46.03174603 | G8: 46.03174603 | H8: 58 | I8: -6 | J8: 64 | K8: 5 | L8: 3 | M8: 4 | N8: 3 | O8: 3 | P8: 3 | Q8: 5 | R8: 6 | S8: 1 | T8: 6 | U8: 0 | V8: 6 | W8: 4 | X8: 4 | Y8: 3 | Z8: 1 | AA8: 1 | AB8: 1 | AC8: 0 | AD8: 2 | AE8: 3 | BF8: 5
A9: =IF(J$2="","",IF($E9="","",IF($E9=MAX($E$5:$E$54),1,IF($E9=$E8,$A8,COUNT($E$5:$E9))))) -> 4 | B9: 3 | C9: Manuela | D9: Roberto | E9: 46.03174603 | G9: 46.03174603 | H9: 58 | J9: 58 | K9: 2 | L9: 3 | M9: 2 | N9: 1 | O9: 5 | P9: 4 | Q9: 5 | R9: 2 | S9: 1 | T9: 3 | U9: 4 | V9: 3 | W9: 2 | X9: 2 | Y9: 3 | Z9: 5 | AA9: 1 | AB9: 6 | AC9: 3 | AD9: 1 | AE9: 0 | BF9: 7
A10: =IF(J$2="","",IF($E10="","",IF($E10=MAX($E$5:$E$54),1,IF($E10=$E9,$A9,COUNT($E$5:$E10))))) -> 6 | B10: 8 | C10: Tatiana | D10: Julio | E10: 43.65079365 | G10: 43.65079365 | H10: 55 | I10: -6 | J10: 61 | K10: 0 | L10: 6 | M10: 0 | N10: 3 | O10: 3 | P10: 3 | Q10: 1 | R10: 4 | S10: 5 | T10: 3 | U10: 6 | V10: 3 | W10: 6 | X10: 5 | Y10: 0 | Z10: 1 | AA10: 1 | AB10: 5 | AC10: 3 | AD10: 0 | AE10: 3 | BF10: 11
A11: =IF(J$2="","",IF($E11="","",IF($E11=MAX($E$5:$E$54),1,IF($E11=$E10,$A10,COUNT($E$5:$E11))))) -> 7 | B11: 5 | C11: Cesarina | D11: Gaetano | E11: 42.06349206 | G11: 42.06349206 | H11: 53 | J11: 53 | K11: 1 | L11: 6 | M11: 0 | N11: 5 | O11: 1 | P11: 2 | Q11: 1 | R11: 0 | S11: 5 | T11: 0 | U11: 4 | V11: 0 | W11: 0 | X11: 1 | Y11: 6 | Z11: 1 | AA11: 5 | AB11: 4 | AC11: 6 | AD11: 5 | AE11: 0 | BF11: 3
A12: =IF(J$2="","",IF($E12="","",IF($E12=MAX($E$5:$E$54),1,IF($E12=$E11,$A11,COUNT($E$5:$E12))))) -> 8 | B12: 4 | C12: Lilli | D12: Gianni | E12: 39.68253968 | G12: 39.68253968 | H12: 50 | J12: 50 | K12: 1 | L12: 3 | M12: 2 | N12: 3 | O12: 1 | P12: 1 | Q12: 6 | R12: 4 | S12: 2 | T12: 3 | U12: 0 | V12: 3 | W12: 2 | X12: 6 | Y12: 0 | Z12: 1 | AA12: 5 | AB12: 0 | AC12: 0 | AD12: 1 | AE12: 6 | BF12: 6
A13: =IF(J$2="","",IF($E13="","",IF($E13=MAX($E$5:$E$54),1,IF($E13=$E12,$A12,COUNT($E$5:$E13))))) -> 9 | E13: 0 | G13: 0 | H13: 0 | J13: 0 | BF13: 2
A14: =IF(J$2="","",IF($E14="","",IF($E14=MAX($E$5:$E$54),1,IF($E14=$E13,$A13,COUNT($E$5:$E14))))) -> 9 | E14: 0 | G14: 0 | H14: 0 | J14: 0 | BF14: 4
A15: =IF(J$2="","",IF($E15="","",IF($E15=MAX($E$5:$E$54),1,IF($E15=$E14,$A14,COUNT($E$5:$E15))))) -> 9 | E15: 0 | G15: 0 | H15: 0 | J15: 0 | BF15: 10
A16: =IF(J$2="","",IF($E16="","",IF($E16=MAX($E$5:$E$54),1,IF($E16=$E15,$A15,COUNT($E$5:$E16))))) -> 9 | E16: 0 | G16: 0 | H16: 0 | J16: 0 | BF16: 12
A17: =IF(J$2="","",IF($E17="","",IF($E17=MAX($E$5:$E$54),1,IF($E17=$E16,$A16,COUNT($E$5:$E17))))) -> 9 | E17: 0 | G17: 0 | H17: 0 | J17: 0 | BF17: 13
A18: =IF(J$2="","",IF($E18="","",IF($E18=MAX($E$5:$E$54),1,IF($E18=$E17,$A17,COUNT($E$5:$E18))))) -> 9 | E18: 0 | G18: 0 | H18: 0 | J18: 0 | BF18: 14
A19: =IF(J$2="","",IF($E19="","",IF($E19=MAX($E$5:$E$54),1,IF($E19=$E18,$A18,COUNT($E$5:$E19))))) -> 9 | E19: 0 | G19: 0 | H19: 0 | J19: 0 | BF19: 15
A20: =IF(J$2="","",IF($E20="","",IF($E20=MAX($E$5:$E$54),1,IF($E20=$E19,$A19,COUNT($E$5:$E20))))) -> 9 | E20: 0 | G20: 0 | H20: 0 | J20: 0 | BF20: 16
A21: =IF(J$2="","",IF($E21="","",IF($E21=MAX($E$5:$E$54),1,IF($E21=$E20,$A20,COUNT($E$5:$E21))))) -> 9 | E21: 0 | G21: 0 | H21: 0 | J21: 0 | BF21: 17
A22: =IF(J$2="","",IF($E22="","",IF($E22=MAX($E$5:$E$54),1,IF($E22=$E21,$A21,COUNT($E$5:$E22))))) -> 9 | E22: 0 | G22: 0 | H22: 0 | J22: 0 | BF22: 18
A23: =IF(J$2="","",IF($E23="","",IF($E23=MAX($E$5:$E$54),1,IF($E23=$E22,$A22,COUNT($E$5:$E23))))) -> 9 | E23: 0 | G23: 0 | H23: 0 | J23: 0 | BF23: 19
A24: =IF(J$2="","",IF($E24="","",IF($E24=MAX($E$5:$E$54),1,IF($E24=$E23,$A23,COUNT($E$5:$E24))))) -> 9 | E24: 0 | G24: 0 | H24: 0 | J24: 0 | BF24: 20
A25: =IF(J$2="","",IF($E25="","",IF($E25=MAX($E$5:$E$54),1,IF($E25=$E24,$A24,COUNT($E$5:$E25))))) -> 9 | E25: 0 | G25: 0 | H25: 0 | J25: 0 | BF25: 21
A26: =IF(J$2="","",IF($E26="","",IF($E26=MAX($E$5:$E$54),1,IF($E26=$E25,$A25,COUNT($E$5:$E26))))) -> 9 | E26: 0 | G26: 0 | H26: 0 | J26: 0 | BF26: 22
A27: =IF(J$2="","",IF($E27="","",IF($E27=MAX($E$5:$E$54),1,IF($E27=$E26,$A26,COUNT($E$5:$E27))))) -> 9 | E27: 0 | G27: 0 | H27: 0 | J27: 0 | BF27: 23
A28: =IF(J$2="","",IF($E28="","",IF($E28=MAX($E$5:$E$54),1,IF($E28=$E27,$A27,COUNT($E$5:$E28))))) -> 9 | E28: 0 | G28: 0 | H28: 0 | J28: 0 | BF28: 24
A29: =IF(J$2="","",IF($E29="","",IF($E29=MAX($E$5:$E$54),1,IF($E29=$E28,$A28,COUNT($E$5:$E29))))) -> 9 | E29: 0 | G29: 0 | H29: 0 | J29: 0 | BF29: 25
A30: =IF(J$2="","",IF($E30="","",IF($E30=MAX($E$5:$E$54),1,IF($E30=$E29,$A29,COUNT($E$5:$E30))))) -> 9 | E30: 0 | G30: 0 | H30: 0 | J30: 0 | BF30: 26
A31: =IF(J$2="","",IF($E31="","",IF($E31=MAX($E$5:$E$54),1,IF($E31=$E30,$A30,COUNT($E$5:$E31))))) -> 9 | E31: 0 | G31: 0 | H31: 0 | J31: 0 | BF31: 27
A32: =IF(J$2="","",IF($E32="","",IF($E32=MAX($E$5:$E$54),1,IF($E32=$E31,$A31,COUNT($E$5:$E32))))) -> 9 | E32: 0 | G32: 0 | H32: 0 | J32: 0 | BF32: 28
A33: =IF(J$2="","",IF($E33="","",IF($E33=MAX($E$5:$E$54),1,IF($E33=$E32,$A32,COUNT($E$5:$E33))))) -> 9 | E33: 0 | G33: 0 | H33: 0 | J33: 0 | BF33: 29
A34: =IF(J$2="","",IF($E34="","",IF($E34=MAX($E$5:$E$54),1,IF($E34=$E33,$A33,COUNT($E$5:$E34))))) -> 9 | E34: 0 | G34: 0 | H34: 0 | J34: 0 | BF34: 30
A35: =IF(J$2="","",IF($E35="","",IF($E35=MAX($E$5:$E$54),1,IF($E35=$E34,$A34,COUNT($E$5:$E35))))) -> 9 | E35: 0 | G35: 0 | H35: 0 | J35: 0 | BF35: 31
A36: =IF(J$2="","",IF($E36="","",IF($E36=MAX($E$5:$E$54),1,IF($E36=$E35,$A35,COUNT($E$5:$E36))))) -> 9 | E36: 0 | G36: 0 | H36: 0 | J36: 0 | BF36: 32
A37: =IF(J$2="","",IF($E37="","",IF($E37=MAX($E$5:$E$54),1,IF($E37=$E36,$A36,COUNT($E$5:$E37))))) -> 9 | E37: =IF(J$2="","",IF(G37=0,0,F37+G37)) -> 0 | G37: =IF(J$2="","",IF($J37=0,0,(H37*$C$3/$J$3)*50)) -> 0 | H37: =IF(J$2="","",IF(SUM($K37:$AX37)=0,0,SUM($K37:$AX37)+$I37)) -> 0 | J37: =IF(B37="",0,IF(SUM($K37:$AX37)=0,0,SUM($K37:$AX37))) -> 0 | BF37: 33
A38: =IF(J$2="","",IF($E38="","",IF($E38=MAX($E$5:$E$54),1,IF($E38=$E37,$A37,COUNT($E$5:$E38))))) -> 9 | E38: 0 | G38: 0 | H38: 0 | J38: 0 | BF38: 34
A39: =IF(J$2="","",IF($E39="","",IF($E39=MAX($E$5:$E$54),1,IF($E39=$E38,$A38,COUNT($E$5:$E39))))) -> 9 | E39: 0 | G39: 0 | H39: 0 | J39: 0 | BF39: 35
A40: =IF(J$2="","",IF($E40="","",IF($E40=MAX($E$5:$E$54),1,IF($E40=$E39,$A39,COUNT($E$5:$E40))))) -> 9 | E40: 0 | G40: 0 | H40: 0 | J40: 0 | BF40: 36
A41: =IF(J$2="","",IF($E41="","",IF($E41=MAX($E$5:$E$54),1,IF($E41=$E40,$A40,COUNT($E$5:$E41))))) -> 9 | E41: 0 | G41: 0 | H41: 0 | J41: 0 | BF41: 37
A42: =IF(J$2="","",IF($E42="","",IF($E42=MAX($E$5:$E$54),1,IF($E42=$E41,$A41,COUNT($E$5:$E42))))) -> 9 | E42: 0 | G42: 0 | H42: 0 | J42: 0 | BF42: 38
A43: =IF(J$2="","",IF($E43="","",IF($E43=MAX($E$5:$E$54),1,IF($E43=$E42,$A42,COUNT($E$5:$E43))))) -> 9 | E43: 0 | G43: 0 | H43: 0 | J43: 0 | BF43: 39
A44: =IF(J$2="","",IF($E44="","",IF($E44=MAX($E$5:$E$54),1,IF($E44=$E43,$A43,COUNT($E$5:$E44))))) -> 9 | E44: 0 | G44: 0 | H44: 0 | J44: 0 | BF44: 40
A45: =IF(J$2="","",IF($E45="","",IF($E45=MAX($E$5:$E$54),1,IF($E45=$E44,$A44,COUNT($E$5:$E45))))) -> 9 | E45: 0 | G45: 0 | H45: 0 | J45: 0 | BF45: 41
A46: =IF(J$2="","",IF($E46="","",IF($E46=MAX($E$5:$E$54),1,IF($E46=$E45,$A45,COUNT($E$5:$E46))))) -> 9 | E46: 0 | G46: 0 | H46: 0 | J46: 0 | BF46: 42
A47: =IF(J$2="","",IF($E47="","",IF($E47=MAX($E$5:$E$54),1,IF($E47=$E46,$A46,COUNT($E$5:$E47))))) -> 9 | E47: 0 | G47: 0 | H47: 0 | J47: 0 | BF47: 43
A48: =IF(J$2="","",IF($E48="","",IF($E48=MAX($E$5:$E$54),1,IF($E48=$E47,$A47,COUNT($E$5:$E48))))) -> 9 | E48: 0 | G48: 0 | H48: 0 | J48: 0 | BF48: 44
A49: =IF(J$2="","",IF($E49="","",IF($E49=MAX($E$5:$E$54),1,IF($E49=$E48,$A48,COUNT($E$5:$E49))))) -> 9 | E49: 0 | G49: 0 | H49: 0 | J49: 0 | BF49: 45
A50: =IF(J$2="","",IF($E50="","",IF($E50=MAX($E$5:$E$54),1,IF($E50=$E49,$A49,COUNT($E$5:$E50))))) -> 9 | E50: 0 | G50: 0 | H50: 0 | J50: 0 | BF50: 46
A51: =IF(J$2="","",IF($E51="","",IF($E51=MAX($E$5:$E$54),1,IF($E51=$E50,$A50,COUNT($E$5:$E51))))) -> 9 | E51: 0 | G51: 0 | H51: 0 | J51: 0 | BF51: 47
A52: =IF(J$2="","",IF($E52="","",IF($E52=MAX($E$5:$E$54),1,IF($E52=$E51,$A51,COUNT($E$5:$E52))))) -> 9 | E52: 0 | G52: 0 | H52: 0 | J52: 0 | BF52: 48
A53: =IF(J$2="","",IF($E53="","",IF($E53=MAX($E$5:$E$54),1,IF($E53=$E52,$A52,COUNT($E$5:$E53))))) -> 9 | E53: 0 | G53: 0 | H53: 0 | J53: 0 | BF53: 49
A54: =IF(J$2="","",IF($E54="","",IF($E54=MAX($E$5:$E$54),1,IF($E54=$E53,$A53,COUNT($E$5:$E54))))) -> 9 | E54: 0 | G54: 0 | H54: 0 | J54: 0 | BF54: 50
D59: punteggi torneo ordinati per # di coppia
B60: # coppia | E60: con zeri | F60: senza zeri | G60: senza zeri
B61: 1 | E61: 56.34920635 | F61: =IF(E61=0,"",E61) -> 56.34920635 | G61: 56.34920635 | BF61: 9
B62: 2 | E62: 46.03174603 | F62: 46.03174603 | G62: 46.03174603 | BF62: 5
B63: 3 | E63: 46.03174603 | F63: 46.03174603 | G63: 46.03174603 | I63: =IF(H63=0,"",H63) ->  | BF63: 7
B64: 4 | E64: 39.68253968 | F64: 39.68253968 | G64: 39.68253968 | BF64: 6
B65: 5 | E65: 42.06349206 | F65: 42.06349206 | G65: 42.06349206 | I65: =IF(H65=0,"",H65) ->  | BF65: 3
B66: 6 | E66: 50 | F66: 50 | G66: 50 | I66: =IF(H66=0,"",H66) ->  | BF66: 1
B67: 7 | E67: 66.66666667 | F67: 66.66666667 | G67: 66.66666667 | BF67: 8
B68: 8 | E68: 43.65079365 | F68: 43.65079365 | G68: 43.65079365 | I68: =IF(H68=0,"",H68) ->  | BF68: 11
E69: 0 | BF69: 2
E70: 0 | BF70: 4
E71: 0 | I71: =IF(H71=0,"",H71) ->  | BF71: 10
E72: 0 | BF72: 12
E73: 0 | I73: =IF(H73=0,"",H73) ->  | BF73: 13
E74: 0 | I74: =IF(H74=0,"",H74) ->  | BF74: 14
E75: 0 | I75: =IF(H75=0,"",H75) ->  | BF75: 15
E76: 0 | I76: =IF(H76=0,"",H76) ->  | BF76: 16
E77: 0 | BF77: 17
E78: 0 | BF78: 18
E79: 0 | I79: =IF(H79=0,"",H79) ->  | BF79: 19
E80: 0 | I80: =IF(H80=0,"",H80) ->  | BF80: 20
E81: 0 | BF81: 21
E82: 0 | BF82: 22
E83: 0 | BF83: 23
E84: 0 | BF84: 24
E85: 0 | BF85: 25
E86: 0 | BF86: 26
E87: 0 | BF87: 27
E88: 0 | BF88: 28
E89: 0 | BF89: 29
E90: 0 | BF90: 30
E91: 0 | BF91: 31
E92: 0 | BF92: 32
E93: 0 | F93: =IF(E93=0,"",E93) ->  | BF93: 33
E94: 0 | BF94: 34
E95: 0 | BF95: 35
E96: 0 | BF96: 36
E97: 0 | BF97: 37
E98: 0 | BF98: 38
E99: 0 | BF99: 39
E100: 0 | BF100: 40
E101: 0 | BF101: 41
E102: 0 | BF102: 42
E103: 0 | BF103: 43
E104: 0 | BF104: 44
E105: 0 | BF105: 45
E106: 0 | BF106: 46
E107: 0 | BF107: 47
E108: 0 | BF108: 48
E109: 0 | BF109: 49
E110: 0 | BF110: 50
A119: punteggi torneo ordinati per numero standard di coppia base
B120: # coppia | E120: con zeri | F120: senza zeri | G120: senza zeri
B121: 6 | E121: 50 | F121: =IF(E121=0,"",E121) -> 50 | G121: 50 | I121: =IF(H121=0,"",H121) ->  | BF121: 1
E122: 0 | BF122: 2
B123: 5 | E123: 42.06349206 | F123: 42.06349206 | G123: 42.06349206 | I123: =IF(H123=0,"",H123) ->  | BF123: 3
E124: 0 | BF124: 4
B125: 2 | E125: 46.03174603 | F125: 46.03174603 | G125: 46.03174603 | BF125: 5
B126: 4 | E126: 39.68253968 | F126: 39.68253968 | G126: 39.68253968 | BF126: 6
B127: 3 | E127: 46.03174603 | F127: 46.03174603 | G127: 46.03174603 | I127: =IF(H127=0,"",H127) ->  | BF127: 7
B128: 7 | E128: 66.66666667 | F128: 66.66666667 | G128: 66.66666667 | BF128: 8
B129: 1 | E129: 56.34920635 | F129: 56.34920635 | G129: 56.34920635 | BF129: 9
E130: 0 | I130: =IF(H130=0,"",H130) ->  | BF130: 10
B131: 8 | E131: 43.65079365 | F131: 43.65079365 | G131: 43.65079365 | I131: =IF(H131=0,"",H131) ->  | BF131: 11

Sheet 27gen
A1: Data | C1: 2018-01-27 | D1: BridgeMania 2017-18 - Torneo Howell
A2: luogo | C2: Polichetti | D2: Coppie Ctrl+e | E2: Calcola Ctr+f | F2: Duplica Ctrl+g | G2: Clear Ctrl+h | J2: &
A3: # coppie | C3: =IF(B5="","",COUNT(B5:B25)) -> 10 | E3: =IF(E5="","",SUMIF(E5:E25,">0")) -> 497.2222222 | F3: =IF(F5="","",SUMIF(F5:F24,">0")) ->  | G3: =IF(G5="","",SUM(G5:G25)) -> 497.2222222 | H3: =IF(H5="","",SUM(H5:H25)) -> 716 | I3: =SUM(I5:I25) -> -4 | J3: =SUM(J5:J25) -> 720 | K3: =SUM(K5:K25) -> 40 | L3: =SUM(L5:L25) -> 40 | M3: 40 | N3: 40 | O3: 40 | P3: 40 | Q3: 40 | R3: 40 | S3: 40 | T3: 40 | U3: 40 | V3: 40 | W3: 40 | X3: 40 | Y3: 40 | Z3: 40 | AA3: 40 | AB3: 40 | AC3: 0 | AD3: 0 | AE3: 0 | AF3: 0 | AG3: 0 | AH3: 0 | AI3: 0 | AJ3: 0 | AK3: 0 | AL3: 0 | AM3: 0 | AN3: 0 | AO3: 0 | AP3: 0 | AQ3: 0 | AR3: 0 | AS3: 0 | AT3: 0 | AU3: 0 | AV3: 0 | AW3: 0 | AX3: 0
A4: Class. | B4: # | C4: Coppie | E4: Punteggio Serata | G4: Punteggio % | H4: Punteggio Torneo | I4: Penalità (-) | J4: Totale punti mano | K4: 1 | L4: 2 | M4: 3 | N4: 4 | O4: 5 | P4: 6 | Q4: 7 | R4: 8 | S4: 9 | T4: 10 | U4: 11 | V4: 12 | W4: 13 | X4: 14 | Y4: 15 | Z4: 16 | AA4: 17 | AB4: 18 | AC4: 19 | AD4: 20 | AE4: 21 | AF4: 22 | AG4: 23 | AH4: 24 | AI4: 25 | AJ4: 26 | AK4: 27 | AL4: 28 | AM4: 29 | AN4: 30 | AO4: 31 | AP4: 32 | AQ4: 33 | AR4: 34 | AS4: 35 | AT4: 36 | AU4: 37 | AV4: 38 | AW4: 39 | AX4: 40
A5: =IF(J$2="","",IF($E5="","",IF($E5=MAX($E$5:$E$54),1,IF($E5=$E4,$A4,COUNT($E$5:$E5))))) -> 1 | B5: 7 | C5: Renata | D5: Sandro | E5: =IF(J$2="","",IF(G5=0,0,F5+G5)) -> 65.97222222 | G5: =IF(J$2="","",IF($J5=0,0,(H5*$C$3/$J$3)*50)) -> 65.97222222 | H5: =IF(J$2="","",IF(SUM($K5:$AX5)=0,0,SUM($K5:$AX5)+$I5)) -> 95 | J5: =IF(B5="",0,IF(SUM($K5:$AX5)=0,0,SUM($K5:$AX5))) -> 95 | K5: 2 | L5: 4 | M5: 6 | N5: 8 | O5: 5 | P5: 6 | Q5: 5 | R5: 8 | S5: 2 | T5: 4 | U5: 8 | V5: 8 | W5: 4 | X5: 1 | Y5: 8 | Z5: 5 | AA5: 3 | AB5: 8 | BF5: 9
A6: =IF(J$2="","",IF($E6="","",IF($E6=MAX($E$5:$E$54),1,IF($E6=$E5,$A5,COUNT($E$5:$E6))))) -> 2 | B6: 5 | C6: Lilli | D6: Gianni | E6: 62.5 | G6: 62.5 | H6: 90 | J6: 90 | K6: 4 | L6: 2 | M6: 0 | N6: 8 | O6: 8 | P6: 8 | Q6: 8 | R6: 7 | S6: 1 | T6: 6 | U6: 6 | V6: 8 | W6: 4 | X6: 6 | Y6: 1 | Z6: 8 | AA6: 5 | AB6: 0 | BF6: 6
A7: =IF(J$2="","",IF($E7="","",IF($E7=MAX($E$5:$E$54),1,IF($E7=$E6,$A6,COUNT($E$5:$E7))))) -> 3 | B7: 4 | C7: Elena | D7: Stefano | E7: 55.55555556 | G7: 55.55555556 | H7: 80 | J7: 80 | K7: 4 | L7: 6 | M7: 2 | N7: 4 | O7: 0 | P7: 3 | Q7: 8 | R7: 4 | S7: 6 | T7: 4 | U7: 6 | V7: 4 | W7: 4 | X7: 6 | Y7: 3 | Z7: 8 | AA7: 0 | AB7: 8 | BF7: 4
A8: =IF(J$2="","",IF($E8="","",IF($E8=MAX($E$5:$E$54),1,IF($E8=$E7,$A7,COUNT($E$5:$E8))))) -> 4 | B8: 1 | C8: Tatiana | D8: Julio | E8: 52.08333333 | G8: 52.08333333 | H8: 75 | J8: 75 | K8: 7 | L8: 8 | M8: 6 | N8: 4 | O8: 6 | P8: 5 | Q8: 0 | R8: 1 | S8: 2 | T8: 7 | U8: 6 | V8: 6 | W8: 4 | X8: 1 | Y8: 0 | Z8: 3 | AA8: 5 | AB8: 4 | BF8: 11
A9: =IF(J$2="","",IF($E9="","",IF($E9=MAX($E$5:$E$54),1,IF($E9=$E8,$A8,COUNT($E$5:$E9))))) -> 5 | B9: 6 | C9: Barbara | D9: Elio | E9: 50 | G9: 50 | H9: 72 | I9: -2 | J9: 74 | K9: 1 | L9: 7 | M9: 8 | N9: 0 | O9: 3 | P9: 2 | Q9: 3 | R9: 7 | S9: 2 | T9: 7 | U9: 6 | V9: 6 | W9: 4 | X9: 6 | Y9: 5 | Z9: 0 | AA9: 3 | AB9: 4 | BF9: 2
A10: =IF(J$2="","",IF($E10="","",IF($E10=MAX($E$5:$E$54),1,IF($E10=$E9,$A9,COUNT($E$5:$E10))))) -> 6 | B10: 2 | C10: Cesarina | D10: Gaetano | E10: 47.22222222 | G10: 47.22222222 | H10: 68 | J10: 68 | K10: 6 | L10: 4 | M10: 6 | N10: 2 | O10: 0 | P10: 0 | Q10: 2 | R10: 6 | S10: 6 | T10: 1 | U10: 2 | V10: 4 | W10: 4 | X10: 7 | Y10: 1 | Z10: 5 | AA10: 8 | AB10: 4 | BF10: 3
A11: =IF(J$2="","",IF($E11="","",IF($E11=MAX($E$5:$E$54),1,IF($E11=$E10,$A10,COUNT($E$5:$E11))))) -> 7 | B11: 3 | C11: Manuela | D11: Roberto | E11: 45.13888889 | G11: 45.13888889 | H11: 65 | I11: -2 | J11: 67 | K11: 8 | L11: 7 | M11: 2 | N11: 2 | O11: 3 | P11: 8 | Q11: 5 | R11: 1 | S11: 6 | T11: 1 | U11: 0 | V11: 0 | W11: 4 | X11: 2 | Y11: 7 | Z11: 3 | AA11: 8 | AB11: 0 | BF11: 7
A12: =IF(J$2="","",IF($E12="","",IF($E12=MAX($E$5:$E$54),1,IF($E12=$E11,$A11,COUNT($E$5:$E12))))) -> 8 | B12: 9 | C12: Isolde | D12: Cristina | E12: 40.27777778 | G12: 40.27777778 | H12: 58 | J12: 58 | K12: 0 | L12: 1 | M12: 2 | N12: 0 | O12: 8 | P12: 5 | Q12: 6 | R12: 2 | S12: 7 | T12: 0 | U12: 2 | V12: 2 | W12: 4 | X12: 2 | Y12: 7 | Z12: 0 | AA12: 6 | AB12: 4 | BF12: 5
A13: =IF(J$2="","",IF($E13="","",IF($E13=MAX($E$5:$E$54),1,IF($E13=$E12,$A12,COUNT($E$5:$E13))))) -> 9 | B13: 10 | C13: Antonella | D13: Dino | E13: 39.58333333 | G13: 39.58333333 | H13: 57 | J13: 57 | K13: 1 | L13: 0 | M13: 2 | N13: 6 | O13: 5 | P13: 0 | Q13: 0 | R13: 4 | S13: 7 | T13: 2 | U13: 2 | V13: 2 | W13: 4 | X13: 7 | Y13: 3 | Z13: 6 | AA13: 2 | AB13: 4 | BF13: 1
A14: =IF(J$2="","",IF($E14="","",IF($E14=MAX($E$5:$E$54),1,IF($E14=$E13,$A13,COUNT($E$5:$E14))))) -> 10 | B14: 8 | C14: Olimpia | D14: Sauro | E14: 38.88888889 | G14: 38.88888889 | H14: 56 | J14: 56 | K14: 7 | L14: 1 | M14: 6 | N14: 6 | O14: 2 | P14: 3 | Q14: 3 | R14: 0 | S14: 1 | T14: 8 | U14: 2 | V14: 0 | W14: 4 | X14: 2 | Y14: 5 | Z14: 2 | AA14: 0 | AB14: 4 | BF14: 8
A15: =IF(J$2="","",IF($E15="","",IF($E15=MAX($E$5:$E$54),1,IF($E15=$E14,$A14,COUNT($E$5:$E15))))) -> 11 | E15: 0 | G15: 0 | H15: 0 | J15: 0 | BF15: 10
A16: =IF(J$2="","",IF($E16="","",IF($E16=MAX($E$5:$E$54),1,IF($E16=$E15,$A15,COUNT($E$5:$E16))))) -> 11 | E16: 0 | G16: 0 | H16: 0 | J16: 0 | BF16: 12
A17: =IF(J$2="","",IF($E17="","",IF($E17=MAX($E$5:$E$54),1,IF($E17=$E16,$A16,COUNT($E$5:$E17))))) -> 11 | E17: 0 | G17: 0 | H17: 0 | J17: 0 | BF17: 13
A18: =IF(J$2="","",IF($E18="","",IF($E18=MAX($E$5:$E$54),1,IF($E18=$E17,$A17,COUNT($E$5:$E18))))) -> 11 | E18: 0 | G18: 0 | H18: 0 | J18: 0 | BF18: 14
A19: =IF(J$2="","",IF($E19="","",IF($E19=MAX($E$5:$E$54),1,IF($E19=$E18,$A18,COUNT($E$5:$E19))))) -> 11 | E19: 0 | G19: 0 | H19: 0 | J19: 0 | BF19: 15
A20: =IF(J$2="","",IF($E20="","",IF($E20=MAX($E$5:$E$54),1,IF($E20=$E19,$A19,COUNT($E$5:$E20))))) -> 11 | E20: 0 | G20: 0 | H20: 0 | J20: 0 | BF20: 16
A21: =IF(J$2="","",IF($E21="","",IF($E21=MAX($E$5:$E$54),1,IF($E21=$E20,$A20,COUNT($E$5:$E21))))) -> 11 | E21: 0 | G21: 0 | H21: 0 | J21: 0 | BF21: 17
A22: =IF(J$2="","",IF($E22="","",IF($E22=MAX($E$5:$E$54),1,IF($E22=$E21,$A21,COUNT($E$5:$E22))))) -> 11 | E22: 0 | G22: 0 | H22: 0 | J22: 0 | BF22: 18
A23: =IF(J$2="","",IF($E23="","",IF($E23=MAX($E$5:$E$54),1,IF($E23=$E22,$A22,COUNT($E$5:$E23))))) -> 11 | E23: 0 | G23: 0 | H23: 0 | J23: 0 | BF23: 19
A24: =IF(J$2="","",IF($E24="","",IF($E24=MAX($E$5:$E$54),1,IF($E24=$E23,$A23,COUNT($E$5:$E24))))) -> 11 | E24: 0 | G24: 0 | H24: 0 | J24: 0 | BF24: 20
A25: =IF(J$2="","",IF($E25="","",IF($E25=MAX($E$5:$E$54),1,IF($E25=$E24,$A24,COUNT($E$5:$E25))))) -> 11 | E25: 0 | G25: 0 | H25: 0 | J25: 0 | BF25: 21
A26: =IF(J$2="","",IF($E26="","",IF($E26=MAX($E$5:$E$54),1,IF($E26=$E25,$A25,COUNT($E$5:$E26))))) -> 11 | E26: 0 | G26: 0 | H26: 0 | J26: 0 | BF26: 22
A27: =IF(J$2="","",IF($E27="","",IF($E27=MAX($E$5:$E$54),1,IF($E27=$E26,$A26,COUNT($E$5:$E27))))) -> 11 | E27: 0 | G27: 0 | H27: 0 | J27: 0 | BF27: 23
A28: =IF(J$2="","",IF($E28="","",IF($E28=MAX($E$5:$E$54),1,IF($E28=$E27,$A27,COUNT($E$5:$E28))))) -> 11 | E28: 0 | G28: 0 | H28: 0 | J28: 0 | BF28: 24
A29: =IF(J$2="","",IF($E29="","",IF($E29=MAX($E$5:$E$54),1,IF($E29=$E28,$A28,COUNT($E$5:$E29))))) -> 11 | E29: 0 | G29: 0 | H29: 0 | J29: 0 | BF29: 25
A30: =IF(J$2="","",IF($E30="","",IF($E30=MAX($E$5:$E$54),1,IF($E30=$E29,$A29,COUNT($E$5:$E30))))) -> 11 | E30: 0 | G30: 0 | H30: 0 | J30: 0 | BF30: 26
A31: =IF(J$2="","",IF($E31="","",IF($E31=MAX($E$5:$E$54),1,IF($E31=$E30,$A30,COUNT($E$5:$E31))))) -> 11 | E31: 0 | G31: 0 | H31: 0 | J31: 0 | BF31: 27
A32: =IF(J$2="","",IF($E32="","",IF($E32=MAX($E$5:$E$54),1,IF($E32=$E31,$A31,COUNT($E$5:$E32))))) -> 11 | E32: 0 | G32: 0 | H32: 0 | J32: 0 | BF32: 28
A33: =IF(J$2="","",IF($E33="","",IF($E33=MAX($E$5:$E$54),1,IF($E33=$E32,$A32,COUNT($E$5:$E33))))) -> 11 | E33: 0 | G33: 0 | H33: 0 | J33: 0 | BF33: 29
A34: =IF(J$2="","",IF($E34="","",IF($E34=MAX($E$5:$E$54),1,IF($E34=$E33,$A33,COUNT($E$5:$E34))))) -> 11 | E34: 0 | G34: 0 | H34: 0 | J34: 0 | BF34: 30
A35: =IF(J$2="","",IF($E35="","",IF($E35=MAX($E$5:$E$54),1,IF($E35=$E34,$A34,COUNT($E$5:$E35))))) -> 11 | E35: 0 | G35: 0 | H35: 0 | J35: 0 | BF35: 31
A36: =IF(J$2="","",IF($E36="","",IF($E36=MAX($E$5:$E$54),1,IF($E36=$E35,$A35,COUNT($E$5:$E36))))) -> 11 | E36: 0 | G36: 0 | H36: 0 | J36: 0 | BF36: 32
A37: =IF(J$2="","",IF($E37="","",IF($E37=MAX($E$5:$E$54),1,IF($E37=$E36,$A36,COUNT($E$5:$E37))))) -> 11 | E37: =IF(J$2="","",IF(G37=0,0,F37+G37)) -> 0 | G37: =IF(J$2="","",IF($J37=0,0,(H37*$C$3/$J$3)*50)) -> 0 | H37: =IF(J$2="","",IF(SUM($K37:$AX37)=0,0,SUM($K37:$AX37)+$I37)) -> 0 | J37: =IF(B37="",0,IF(SUM($K37:$AX37)=0,0,SUM($K37:$AX37))) -> 0 | BF37: 33
A38: =IF(J$2="","",IF($E38="","",IF($E38=MAX($E$5:$E$54),1,IF($E38=$E37,$A37,COUNT($E$5:$E38))))) -> 11 | E38: 0 | G38: 0 | H38: 0 | J38: 0 | BF38: 34
A39: =IF(J$2="","",IF($E39="","",IF($E39=MAX($E$5:$E$54),1,IF($E39=$E38,$A38,COUNT($E$5:$E39))))) -> 11 | E39: 0 | G39: 0 | H39: 0 | J39: 0 | BF39: 35
A40: =IF(J$2="","",IF($E40="","",IF($E40=MAX($E$5:$E$54),1,IF($E40=$E39,$A39,COUNT($E$5:$E40))))) -> 11 | E40: 0 | G40: 0 | H40: 0 | J40: 0 | BF40: 36
A41: =IF(J$2="","",IF($E41="","",IF($E41=MAX($E$5:$E$54),1,IF($E41=$E40,$A40,COUNT($E$5:$E41))))) -> 11 | E41: 0 | G41: 0 | H41: 0 | J41: 0 | BF41: 37
A42: =IF(J$2="","",IF($E42="","",IF($E42=MAX($E$5:$E$54),1,IF($E42=$E41,$A41,COUNT($E$5:$E42))))) -> 11 | E42: 0 | G42: 0 | H42: 0 | J42: 0 | BF42: 38
A43: =IF(J$2="","",IF($E43="","",IF($E43=MAX($E$5:$E$54),1,IF($E43=$E42,$A42,COUNT($E$5:$E43))))) -> 11 | E43: 0 | G43: 0 | H43: 0 | J43: 0 | BF43: 39
A44: =IF(J$2="","",IF($E44="","",IF($E44=MAX($E$5:$E$54),1,IF($E44=$E43,$A43,COUNT($E$5:$E44))))) -> 11 | E44: 0 | G44: 0 | H44: 0 | J44: 0 | BF44: 40
A45: =IF(J$2="","",IF($E45="","",IF($E45=MAX($E$5:$E$54),1,IF($E45=$E44,$A44,COUNT($E$5:$E45))))) -> 11 | E45: 0 | G45: 0 | H45: 0 | J45: 0 | BF45: 41
A46: =IF(J$2="","",IF($E46="","",IF($E46=MAX($E$5:$E$54),1,IF($E46=$E45,$A45,COUNT($E$5:$E46))))) -> 11 | E46: 0 | G46: 0 | H46: 0 | J46: 0 | BF46: 42
A47: =IF(J$2="","",IF($E47="","",IF($E47=MAX($E$5:$E$54),1,IF($E47=$E46,$A46,COUNT($E$5:$E47))))) -> 11 | E47: 0 | G47: 0 | H47: 0 | J47: 0 | BF47: 43
A48: =IF(J$2="","",IF($E48="","",IF($E48=MAX($E$5:$E$54),1,IF($E48=$E47,$A47,COUNT($E$5:$E48))))) -> 11 | E48: 0 | G48: 0 | H48: 0 | J48: 0 | BF48: 44
A49: =IF(J$2="","",IF($E49="","",IF($E49=MAX($E$5:$E$54),1,IF($E49=$E48,$A48,COUNT($E$5:$E49))))) -> 11 | E49: 0 | G49: 0 | H49: 0 | J49: 0 | BF49: 45
A50: =IF(J$2="","",IF($E50="","",IF($E50=MAX($E$5:$E$54),1,IF($E50=$E49,$A49,COUNT($E$5:$E50))))) -> 11 | E50: 0 | G50: 0 | H50: 0 | J50: 0 | BF50: 46
A51: =IF(J$2="","",IF($E51="","",IF($E51=MAX($E$5:$E$54),1,IF($E51=$E50,$A50,COUNT($E$5:$E51))))) -> 11 | E51: 0 | G51: 0 | H51: 0 | J51: 0 | BF51: 47
A52: =IF(J$2="","",IF($E52="","",IF($E52=MAX($E$5:$E$54),1,IF($E52=$E51,$A51,COUNT($E$5:$E52))))) -> 11 | E52: 0 | G52: 0 | H52: 0 | J52: 0 | BF52: 48
A53: =IF(J$2="","",IF($E53="","",IF($E53=MAX($E$5:$E$54),1,IF($E53=$E52,$A52,COUNT($E$5:$E53))))) -> 11 | E53: 0 | G53: 0 | H53: 0 | J53: 0 | BF53: 49
A54: =IF(J$2="","",IF($E54="","",IF($E54=MAX($E$5:$E$54),1,IF($E54=$E53,$A53,COUNT($E$5:$E54))))) -> 11 | E54: 0 | G54: 0 | H54: 0 | J54: 0 | BF54: 50
D59: punteggi torneo ordinati per # di coppia
B60: # coppia | E60: con zeri | F60: senza zeri | G60: senza zeri
B61: 1 | E61: 52.08333333 | F61: =IF(E61=0,"",E61) -> 52.08333333 | G61: 52.08333333 | BF61: 11
B62: 2 | E62: 47.22222222 | F62: 47.22222222 | G62: 47.22222222 | BF62: 3
B63: 3 | E63: 45.13888889 | F63: 45.13888889 | G63: 45.13888889 | I63: =IF(H63=0,"",H63) ->  | BF63: 7
B64: 4 | E64: 55.55555556 | F64: 55.55555556 | G64: 55.55555556 | BF64: 4
B65: 5 | E65: 62.5 | F65: 62.5 | G65: 62.5 | I65: =IF(H65=0,"",H65) ->  | BF65: 6
B66: 6 | E66: 50 | F66: 50 | G66: 50 | I66: =IF(H66=0,"",H66) ->  | BF66: 2
B67: 7 | E67: 65.97222222 | F67: 65.97222222 | G67: 65.97222222 | BF67: 9
B68: 8 | E68: 38.88888889 | F68: 38.88888889 | G68: 38.88888889 | I68: =IF(H68=0,"",H68) ->  | BF68: 8
B69: 9 | E69: 40.27777778 | F69: 40.27777778 | G69: 40.27777778 | BF69: 5
B70: 10 | E70: 39.58333333 | F70: 39.58333333 | G70: 39.58333333 | BF70: 1
E71: 0 | I71: =IF(H71=0,"",H71) ->  | BF71: 10
E72: 0 | BF72: 12
E73: 0 | I73: =IF(H73=0,"",H73) ->  | BF73: 13
E74: 0 | I74: =IF(H74=0,"",H74) ->  | BF74: 14
E75: 0 | I75: =IF(H75=0,"",H75) ->  | BF75: 15
E76: 0 | I76: =IF(H76=0,"",H76) ->  | BF76: 16
E77: 0 | BF77: 17
E78: 0 | BF78: 18
E79: 0 | I79: =IF(H79=0,"",H79) ->  | BF79: 19
E80: 0 | I80: =IF(H80=0,"",H80) ->  | BF80: 20
E81: 0 | BF81: 21
E82: 0 | BF82: 22
E83: 0 | BF83: 23
E84: 0 | BF84: 24
E85: 0 | BF85: 25
E86: 0 | BF86: 26
E87: 0 | BF87: 27
E88: 0 | BF88: 28
E89: 0 | BF89: 29
E90: 0 | BF90: 30
E91: 0 | BF91: 31
E92: 0 | BF92: 32
E93: 0 | F93: =IF(E93=0,"",E93) ->  | BF93: 33
E94: 0 | BF94: 34
E95: 0 | BF95: 35
E96: 0 | BF96: 36
E97: 0 | BF97: 37
E98: 0 | BF98: 38
E99: 0 | BF99: 39
E100: 0 | BF100: 40
E101: 0 | BF101: 41
E102: 0 | BF102: 42
E103: 0 | BF103: 43
E104: 0 | BF104: 44
E105: 0 | BF105: 45
E106: 0 | BF106: 46
E107: 0 | BF107: 47
E108: 0 | BF108: 48
E109: 0 | BF109: 49
E110: 0 | BF110: 50
A119: punteggi torneo ordinati per numero standard di coppia base
B120: # coppia | E120: con zeri | F120: senza zeri | G120: senza zeri
B121: 10 | E121: 39.58333333 | F121: =IF(E121=0,"",E121) -> 39.58333333 | G121: 39.58333333 | BF121: 1
B122: 6 | E122: 50 | F122: 50 | G122: 50 | I122: =IF(H122=0,"",H122) ->  | BF122: 2
B123: 2 | E123: 47.22222222 | F123: 47.22222222 | G123: 47.22222222 | BF123: 3
B124: 4 | E124: 55.55555556 | F124: 55.55555556 | G124: 55.55555556 | BF124: 4
B125: 9 | E125: 40.27777778 | F125: 40.27777778 | G125: 40.27777778 | BF125: 5
B126: 5 | E126: 62.5 | F126: 62.5 | G126: 62.5 | I126: =IF(H126=0,"",H126) ->  | BF126: 6
B127: 3 | E127: 45.13888889 | F127: 45.13888889 | G127: 45.13888889 | I127: =IF(H127=0,"",H127) ->  | BF127: 7
B128: 8 | E128: 38.88888889 | F128: 38.88888889 | G128: 38.88888889 | I128: =IF(H128=0,"",H128) ->  | BF128: 8
B129: 7 | E129: 65.97222222 | F129: 65.97222222 | G129: 65.97222222 | BF129: 9
E130: 0 | I130: =IF(H130=0,"",H130) ->  | BF130: 10
B131: 1 | E131: 52.08333333 | F131: 52.08333333 | G131: 52.08333333 | BF131: 11

Sheet 20gen
A1: Data | C1: 2018-01-20 | D1: BridgeMania 2017-18 - Torneo Howell
A2: luogo | C2: Presezzi | D2: Coppie Ctrl+e | E2: Calcola Ctr+f | F2: Duplica Ctrl+g | G2: Clear Ctrl+h | J2: &
A3: # coppie | C3: =IF(B5="","",COUNT(B5:B25)) -> 11 | E3: =IF(E5="","",SUMIF(E5:E25,">0")) -> 550 | F3: =IF(F5="","",SUMIF(F5:F24,">0")) ->  | G3: =IF(G5="","",SUM(G5:G25)) -> 550 | H3: =IF(H5="","",SUM(H5:H25)) -> 968 | I3: =SUM(I5:I25) -> 0 | J3: =SUM(J5:J25) -> 968 | K3: =SUM(K5:K25) -> 44 | L3: =SUM(L5:L25) -> 44 | M3: 44 | N3: 44 | O3: 44 | P3: 44 | Q3: 44 | R3: 44 | S3: 44 | T3: 44 | U3: 44 | V3: 44 | W3: 44 | X3: 44 | Y3: 44 | Z3: 44 | AA3: 44 | AB3: 44 | AC3: 44 | AD3: 44 | AE3: 44 | AF3: 44 | AG3: 0 | AH3: 0 | AI3: 0 | AJ3: 0 | AK3: 0 | AL3: 0 | AM3: 0 | AN3: 0 | AO3: 0 | AP3: 0 | AQ3: 0 | AR3: 0 | AS3: 0 | AT3: 0 | AU3: 0 | AV3: 0 | AW3: 0 | AX3: 0
A4: Class. | B4: # | C4: Coppie | E4: Punteggio Serata | G4: Punteggio % | H4: Punteggio Torneo | I4: Penalità (-) | J4: Totale punti mano | K4: 1 | L4: 2 | M4: 3 | N4: 4 | O4: 5 | P4: 6 | Q4: 7 | R4: 8 | S4: 9 | T4: 10 | U4: 11 | V4: 12 | W4: 13 | X4: 14 | Y4: 15 | Z4: 16 | AA4: 17 | AB4: 18 | AC4: 19 | AD4: 20 | AE4: 21 | AF4: 22 | AG4: 23 | AH4: 24 | AI4: 25 | AJ4: 26 | AK4: 27 | AL4: 28 | AM4: 29 | AN4: 30 | AO4: 31 | AP4: 32 | AQ4: 33 | AR4: 34 | AS4: 35 | AT4: 36 | AU4: 37 | AV4: 38 | AW4: 39 | AX4: 40
A5: =IF(J$2="","",IF($E5="","",IF($E5=MAX($E$5:$E$54),1,IF($E5=$E4,$A4,COUNT($E$5:$E5))))) -> 1 | B5: 3 | C5: Stefania | D5: Massimo | E5: =IF(J$2="","",IF(G5=0,0,F5+G5)) -> 59.09090909 | G5: =IF(J$2="","",IF($J5=0,0,(H5*$C$3/$J$3)*50)) -> 59.09090909 | H5: =IF(J$2="","",IF(SUM($K5:$AX5)=0,0,SUM($K5:$AX5)+$I5)) -> 104 | J5: =IF(B5="",0,IF(SUM($K5:$AX5)=0,0,SUM($K5:$AX5))) -> 104 | K5: 0 | L5: 0 | M5: 8 | N5: 3 | O5: 4 | P5: 4 | Q5: 7 | R5: 6 | S5: 0 | T5: 8 | U5: 3 | V5: 2 | W5: 7 | X5: 7 | Y5: 7 | Z5: 7 | AA5: 8 | AB5: 7 | AC5: 3 | AD5: 6 | AE5: 4 | AF5: 3 | BF5: 10
A6: =IF(J$2="","",IF($E6="","",IF($E6=MAX($E$5:$E$54),1,IF($E6=$E5,$A5,COUNT($E$5:$E6))))) -> 2 | B6: 9 | C6: Barbara | D6: Elio | E6: 55.11363636 | G6: 55.11363636 | H6: 97 | J6: 97 | K6: 5 | L6: 6 | M6: 8 | N6: 1 | O6: 6 | P6: 4 | Q6: 4 | R6: 2 | S6: 7 | T6: 0 | U6: 5 | V6: 6 | W6: 1 | X6: 2 | Y6: 7 | Z6: 6 | AA6: 4 | AB6: 4 | AC6: 8 | AD6: 2 | AE6: 1 | AF6: 8 | BF6: 2
A7: =IF(J$2="","",IF($E7="","",IF($E7=MAX($E$5:$E$54),1,IF($E7=$E6,$A6,COUNT($E$5:$E7))))) -> 3 | B7: 7 | C7: Cesarina | D7: Gaetano | E7: 52.84090909 | G7: 52.84090909 | H7: 93 | J7: 93 | K7: 5 | L7: 6 | M7: 4 | N7: 7 | O7: 4 | P7: 4 | Q7: 8 | R7: 6 | S7: 8 | T7: 0 | U7: 8 | V7: 2 | W7: 4 | X7: 4 | Y7: 1 | Z7: 2 | AA7: 4 | AB7: 7 | AC7: 2 | AD7: 2 | AE7: 0 | AF7: 5 | BF7: 3
A8: =IF(J$2="","",IF($E8="","",IF($E8=MAX($E$5:$E$54),1,IF($E8=$E7,$A7,COUNT($E$5:$E8))))) -> 4 | B8: 4 | C8: Manuela | D8: Roberto | E8: 51.70454545 | G8: 51.70454545 | H8: 91 | J8: 91 | K8: 3 | L8: 2 | M8: 6 | N8: 8 | O8: 8 | P8: 4 | Q8: 4 | R8: 4 | S8: 1 | T8: 3 | U8: 0 | V8: 6 | W8: 4 | X8: 4 | Y8: 7 | Z8: 7 | AA8: 0 | AB8: 1 | AC8: 8 | AD8: 0 | AE8: 8 | AF8: 3 | BF8: 7
A9: =IF(J$2="","",IF($E9="","",IF($E9=MAX($E$5:$E$54),1,IF($E9=$E8,$A8,COUNT($E$5:$E9))))) -> 4 | B9: 6 | C9: Antonella | D9: Dino | E9: 51.70454545 | G9: 51.70454545 | H9: 91 | J9: 91 | K9: 3 | L9: 2 | M9: 0 | N9: 7 | O9: 6 | P9: 4 | Q9: 2 | R9: 0 | S9: 7 | T9: 5 | U9: 4 | V9: 4 | W9: 7 | X9: 7 | Y9: 4 | Z9: 6 | AA9: 4 | AB9: 5 | AC9: 5 | AD9: 2 | AE9: 2 | AF9: 5 | BF9: 1
A10: =IF(J$2="","",IF($E10="","",IF($E10=MAX($E$5:$E$54),1,IF($E10=$E9,$A9,COUNT($E$5:$E10))))) -> 4 | B10: 10 | C10: Elena | D10: Stefano | E10: 51.70454545 | G10: 51.70454545 | H10: 91 | J10: 91 | K10: 8 | L10: 8 | M10: 2 | N10: 5 | O10: 4 | P10: 4 | Q10: 4 | R10: 6 | S10: 3 | T10: 5 | U10: 2 | V10: 6 | W10: 4 | X10: 4 | Y10: 4 | Z10: 2 | AA10: 0 | AB10: 0 | AC10: 4 | AD10: 4 | AE10: 7 | AF10: 5 | BF10: 4
A11: =IF(J$2="","",IF($E11="","",IF($E11=MAX($E$5:$E$54),1,IF($E11=$E10,$A10,COUNT($E$5:$E11))))) -> 7 | B11: 2 | C11: Renata | D11: Sandro | E11: 48.86363636 | G11: 48.86363636 | H11: 86 | J11: 86 | K11: 6 | L11: 6 | M11: 4 | N11: 4 | O11: 0 | P11: 4 | Q11: 6 | R11: 8 | S11: 5 | T11: 6 | U11: 6 | V11: 2 | W11: 1 | X11: 0 | Y11: 1 | Z11: 1 | AA11: 4 | AB11: 3 | AC11: 6 | AD11: 6 | AE11: 7 | AF11: 0 | BF11: 9
A12: =IF(J$2="","",IF($E12="","",IF($E12=MAX($E$5:$E$54),1,IF($E12=$E11,$A11,COUNT($E$5:$E12))))) -> 8 | B12: 8 | C12: Lilli | D12: Gianni | E12: 47.15909091 | G12: 47.15909091 | H12: 83 | J12: 83 | K12: 8 | L12: 6 | M12: 4 | N12: 1 | O12: 2 | P12: 4 | Q12: 1 | R12: 2 | S12: 3 | T12: 2 | U12: 8 | V12: 2 | W12: 1 | X12: 1 | Y12: 4 | Z12: 4 | AA12: 8 | AB12: 8 | AC12: 3 | AD12: 2 | AE12: 4 | AF12: 5 | BF12: 6
A13: =IF(J$2="","",IF($E13="","",IF($E13=MAX($E$5:$E$54),1,IF($E13=$E12,$A12,COUNT($E$5:$E13))))) -> 9 | B13: 5 | C13: Tatiana | D13: Julio | E13: 46.59090909 | G13: 46.59090909 | H13: 82 | J13: 82 | K13: 0 | L13: 2 | M13: 6 | N13: 3 | O13: 8 | P13: 4 | Q13: 1 | R13: 2 | S13: 4 | T13: 4 | U13: 0 | V13: 6 | W13: 7 | X13: 6 | Y13: 1 | Z13: 2 | AA13: 4 | AB13: 5 | AC13: 0 | AD13: 8 | AE13: 6 | AF13: 3 | BF13: 11
A14: =IF(J$2="","",IF($E14="","",IF($E14=MAX($E$5:$E$54),1,IF($E14=$E13,$A13,COUNT($E$5:$E14))))) -> 10 | B14: 1 | C14: Olimpia | D14: Sauro | E14: 44.31818182 | G14: 44.31818182 | H14: 78 | J14: 78 | K14: 4 | L14: 4 | M14: 0 | N14: 5 | O14: 0 | P14: 4 | Q14: 0 | R14: 2 | S14: 1 | T14: 8 | U14: 3 | V14: 8 | W14: 7 | X14: 8 | Y14: 1 | Z14: 1 | AA14: 4 | AB14: 3 | AC14: 5 | AD14: 6 | AE14: 1 | AF14: 3 | BF14: 8
A15: =IF(J$2="","",IF($E15="","",IF($E15=MAX($E$5:$E$54),1,IF($E15=$E14,$A14,COUNT($E$5:$E15))))) -> 11 | B15: 11 | C15: Isolde | D15: Cristina | E15: 40.90909091 | G15: 40.90909091 | H15: 72 | J15: 72 | K15: 2 | L15: 2 | M15: 2 | N15: 0 | O15: 2 | P15: 4 | Q15: 7 | R15: 6 | S15: 5 | T15: 3 | U15: 5 | V15: 0 | W15: 1 | X15: 1 | Y15: 7 | Z15: 6 | AA15: 4 | AB15: 1 | AC15: 0 | AD15: 6 | AE15: 4 | AF15: 4 | BF15: 5
A16: =IF(J$2="","",IF($E16="","",IF($E16=MAX($E$5:$E$54),1,IF($E16=$E15,$A15,COUNT($E$5:$E16))))) -> 12 | E16: 0 | G16: 0 | H16: 0 | J16: 0 | BF16: 12
A17: =IF(J$2="","",IF($E17="","",IF($E17=MAX($E$5:$E$54),1,IF($E17=$E16,$A16,COUNT($E$5:$E17))))) -> 12 | E17: 0 | G17: 0 | H17: 0 | J17: 0 | BF17: 13
A18: =IF(J$2="","",IF($E18="","",IF($E18=MAX($E$5:$E$54),1,IF($E18=$E17,$A17,COUNT($E$5:$E18))))) -> 12 | E18: 0 | G18: 0 | H18: 0 | J18: 0 | BF18: 14
A19: =IF(J$2="","",IF($E19="","",IF($E19=MAX($E$5:$E$54),1,IF($E19=$E18,$A18,COUNT($E$5:$E19))))) -> 12 | E19: 0 | G19: 0 | H19: 0 | J19: 0 | BF19: 15
A20: =IF(J$2="","",IF($E20="","",IF($E20=MAX($E$5:$E$54),1,IF($E20=$E19,$A19,COUNT($E$5:$E20))))) -> 12 | E20: 0 | G20: 0 | H20: 0 | J20: 0 | BF20: 16
A21: =IF(J$2="","",IF($E21="","",IF($E21=MAX($E$5:$E$54),1,IF($E21=$E20,$A20,COUNT($E$5:$E21))))) -> 12 | E21: 0 | G21: 0 | H21: 0 | J21: 0 | BF21: 17
A22: =IF(J$2="","",IF($E22="","",IF($E22=MAX($E$5:$E$54),1,IF($E22=$E21,$A21,COUNT($E$5:$E22))))) -> 12 | E22: 0 | G22: 0 | H22: 0 | J22: 0 | BF22: 18
A23: =IF(J$2="","",IF($E23="","",IF($E23=MAX($E$5:$E$54),1,IF($E23=$E22,$A22,COUNT($E$5:$E23))))) -> 12 | E23: 0 | G23: 0 | H23: 0 | J23: 0 | BF23: 19
A24: =IF(J$2="","",IF($E24="","",IF($E24=MAX($E$5:$E$54),1,IF($E24=$E23,$A23,COUNT($E$5:$E24))))) -> 12 | E24: 0 | G24: 0 | H24: 0 | J24: 0 | BF24: 20
A25: =IF(J$2="","",IF($E25="","",IF($E25=MAX($E$5:$E$54),1,IF($E25=$E24,$A24,COUNT($E$5:$E25))))) -> 12 | E25: 0 | G25: 0 | H25: 0 | J25: 0 | BF25: 21
A26: =IF(J$2="","",IF($E26="","",IF($E26=MAX($E$5:$E$54),1,IF($E26=$E25,$A25,COUNT($E$5:$E26))))) -> 12 | E26: 0 | G26: 0 | H26: 0 | J26: 0 | BF26: 22
A27: =IF(J$2="","",IF($E27="","",IF($E27=MAX($E$5:$E$54),1,IF($E27=$E26,$A26,COUNT($E$5:$E27))))) -> 12 | E27: 0 | G27: 0 | H27: 0 | J27: 0 | BF27: 23
A28: =IF(J$2="","",IF($E28="","",IF($E28=MAX($E$5:$E$54),1,IF($E28=$E27,$A27,COUNT($E$5:$E28))))) -> 12 | E28: 0 | G28: 0 | H28: 0 | J28: 0 | BF28: 24
A29: =IF(J$2="","",IF($E29="","",IF($E29=MAX($E$5:$E$54),1,IF($E29=$E28,$A28,COUNT($E$5:$E29))))) -> 12 | E29: 0 | G29: 0 | H29: 0 | J29: 0 | BF29: 25
A30: =IF(J$2="","",IF($E30="","",IF($E30=MAX($E$5:$E$54),1,IF($E30=$E29,$A29,COUNT($E$5:$E30))))) -> 12 | E30: 0 | G30: 0 | H30: 0 | J30: 0 | BF30: 26
A31: =IF(J$2="","",IF($E31="","",IF($E31=MAX($E$5:$E$54),1,IF($E31=$E30,$A30,COUNT($E$5:$E31))))) -> 12 | E31: 0 | G31: 0 | H31: 0 | J31: 0 | BF31: 27
A32: =IF(J$2="","",IF($E32="","",IF($E32=MAX($E$5:$E$54),1,IF($E32=$E31,$A31,COUNT($E$5:$E32))))) -> 12 | E32: 0 | G32: 0 | H32: 0 | J32: 0 | BF32: 28
A33: =IF(J$2="","",IF($E33="","",IF($E33=MAX($E$5:$E$54),1,IF($E33=$E32,$A32,COUNT($E$5:$E33))))) -> 12 | E33: 0 | G33: 0 | H33: 0 | J33: 0 | BF33: 29
A34: =IF(J$2="","",IF($E34="","",IF($E34=MAX($E$5:$E$54),1,IF($E34=$E33,$A33,COUNT($E$5:$E34))))) -> 12 | E34: 0 | G34: 0 | H34: 0 | J34: 0 | BF34: 30
A35: =IF(J$2="","",IF($E35="","",IF($E35=MAX($E$5:$E$54),1,IF($E35=$E34,$A34,COUNT($E$5:$E35))))) -> 12 | E35: 0 | G35: 0 | H35: 0 | J35: 0 | BF35: 31
A36: =IF(J$2="","",IF($E36="","",IF($E36=MAX($E$5:$E$54),1,IF($E36=$E35,$A35,COUNT($E$5:$E36))))) -> 12 | E36: 0 | G36: 0 | H36: 0 | J36: 0 | BF36: 32
A37: =IF(J$2="","",IF($E37="","",IF($E37=MAX($E$5:$E$54),1,IF($E37=$E36,$A36,COUNT($E$5:$E37))))) -> 12 | E37: =IF(J$2="","",IF(G37=0,0,F37+G37)) -> 0 | G37: =IF(J$2="","",IF($J37=0,0,(H37*$C$3/$J$3)*50)) -> 0 | H37: =IF(J$2="","",IF(SUM($K37:$AX37)=0,0,SUM($K37:$AX37)+$I37)) -> 0 | J37: =IF(B37="",0,IF(SUM($K37:$AX37)=0,0,SUM($K37:$AX37))) -> 0 | BF37: 33
A38: =IF(J$2="","",IF($E38="","",IF($E38=MAX($E$5:$E$54),1,IF($E38=$E37,$A37,COUNT($E$5:$E38))))) -> 12 | E38: 0 | G38: 0 | H38: 0 | J38: 0 | BF38: 34
A39: =IF(J$2="","",IF($E39="","",IF($E39=MAX($E$5:$E$54),1,IF($E39=$E38,$A38,COUNT($E$5:$E39))))) -> 12 | E39: 0 | G39: 0 | H39: 0 | J39: 0 | BF39: 35
A40: =IF(J$2="","",IF($E40="","",IF($E40=MAX($E$5:$E$54),1,IF($E40=$E39,$A39,COUNT($E$5:$E40))))) -> 12 | E40: 0 | G40: 0 | H40: 0 | J40: 0 | BF40: 36
A41: =IF(J$2="","",IF($E41="","",IF($E41=MAX($E$5:$E$54),1,IF($E41=$E40,$A40,COUNT($E$5:$E41))))) -> 12 | E41: 0 | G41: 0 | H41: 0 | J41: 0 | BF41: 37
A42: =IF(J$2="","",IF($E42="","",IF($E42=MAX($E$5:$E$54),1,IF($E42=$E41,$A41,COUNT($E$5:$E42))))) -> 12 | E42: 0 | G42: 0 | H42: 0 | J42: 0 | BF42: 38
A43: =IF(J$2="","",IF($E43="","",IF($E43=MAX($E$5:$E$54),1,IF($E43=$E42,$A42,COUNT($E$5:$E43))))) -> 12 | E43: 0 | G43: 0 | H43: 0 | J43: 0 | BF43: 39
A44: =IF(J$2="","",IF($E44="","",IF($E44=MAX($E$5:$E$54),1,IF($E44=$E43,$A43,COUNT($E$5:$E44))))) -> 12 | E44: 0 | G44: 0 | H44: 0 | J44: 0 | BF44: 40
A45: =IF(J$2="","",IF($E45="","",IF($E45=MAX($E$5:$E$54),1,IF($E45=$E44,$A44,COUNT($E$5:$E45))))) -> 12 | E45: 0 | G45: 0 | H45: 0 | J45: 0 | BF45: 41
A46: =IF(J$2="","",IF($E46="","",IF($E46=MAX($E$5:$E$54),1,IF($E46=$E45,$A45,COUNT($E$5:$E46))))) -> 12 | E46: 0 | G46: 0 | H46: 0 | J46: 0 | BF46: 42
A47: =IF(J$2="","",IF($E47="","",IF($E47=MAX($E$5:$E$54),1,IF($E47=$E46,$A46,COUNT($E$5:$E47))))) -> 12 | E47: 0 | G47: 0 | H47: 0 | J47: 0 | BF47: 43
A48: =IF(J$2="","",IF($E48="","",IF($E48=MAX($E$5:$E$54),1,IF($E48=$E47,$A47,COUNT($E$5:$E48))))) -> 12 | E48: 0 | G48: 0 | H48: 0 | J48: 0 | BF48: 44
A49: =IF(J$2="","",IF($E49="","",IF($E49=MAX($E$5:$E$54),1,IF($E49=$E48,$A48,COUNT($E$5:$E49))))) -> 12 | E49: 0 | G49: 0 | H49: 0 | J49: 0 | BF49: 45
A50: =IF(J$2="","",IF($E50="","",IF($E50=MAX($E$5:$E$54),1,IF($E50=$E49,$A49,COUNT($E$5:$E50))))) -> 12 | E50: 0 | G50: 0 | H50: 0 | J50: 0 | BF50: 46
A51: =IF(J$2="","",IF($E51="","",IF($E51=MAX($E$5:$E$54),1,IF($E51=$E50,$A50,COUNT($E$5:$E51))))) -> 12 | E51: 0 | G51: 0 | H51: 0 | J51: 0 | BF51: 47
A52: =IF(J$2="","",IF($E52="","",IF($E52=MAX($E$5:$E$54),1,IF($E52=$E51,$A51,COUNT($E$5:$E52))))) -> 12 | E52: 0 | G52: 0 | H52: 0 | J52: 0 | BF52: 48
A53: =IF(J$2="","",IF($E53="","",IF($E53=MAX($E$5:$E$54),1,IF($E53=$E52,$A52,COUNT($E$5:$E53))))) -> 12 | E53: 0 | G53: 0 | H53: 0 | J53: 0 | BF53: 49
A54: =IF(J$2="","",IF($E54="","",IF($E54=MAX($E$5:$E$54),1,IF($E54=$E53,$A53,COUNT($E$5:$E54))))) -> 12 | E54: 0 | G54: 0 | H54: 0 | J54: 0 | BF54: 50
D59: punteggi torneo ordinati per # di coppia
B60: # coppia | E60: con zeri | F60: senza zeri | G60: senza zeri
B61: 1 | E61: 44.31818182 | F61: =IF(E61=0,"",E61) -> 44.31818182 | G61: 44.31818182 | BF61: 8
B62: 2 | E62: 48.86363636 | F62: 48.86363636 | G62: 48.86363636 | I62: =IF(H62=0,"",H62) ->  | BF62: 9
B63: 3 | E63: 59.09090909 | F63: 59.09090909 | G63: 59.09090909 | BF63: 10
B64: 4 | E64: 51.70454545 | F64: 51.70454545 | G64: 51.70454545 | BF64: 7
B65: 5 | E65: 46.59090909 | F65: 46.59090909 | G65: 46.59090909 | I65: =IF(H65=0,"",H65) ->  | BF65: 11
B66: 6 | E66: 51.70454545 | F66: 51.70454545 | G66: 51.70454545 | BF66: 1
B67: 7 | E67: 52.84090909 | F67: 52.84090909 | G67: 52.84090909 | I67: =IF(H67=0,"",H67) ->  | BF67: 3
B68: 8 | E68: 47.15909091 | F68: 47.15909091 | G68: 47.15909091 | BF68: 6
B69: 9 | E69: 55.11363636 | F69: 55.11363636 | G69: 55.11363636 | BF69: 2
B70: 10 | E70: 51.70454545 | F70: 51.70454545 | G70: 51.70454545 | I70: =IF(H70=0,"",H70) ->  | BF70: 4
B71: 11 | E71: 40.90909091 | F71: 40.90909091 | G71: 40.90909091 | I71: =IF(H71=0,"",H71) ->  | BF71: 5
E72: 0 | BF72: 12
E73: 0 | I73: =IF(H73=0,"",H73) ->  | BF73: 13
E74: 0 | I74: =IF(H74=0,"",H74) ->  | BF74: 14
E75: 0 | I75: =IF(H75=0,"",H75) ->  | BF75: 15
E76: 0 | I76: =IF(H76=0,"",H76) ->  | BF76: 16
E77: 0 | BF77: 17
E78: 0 | BF78: 18
E79: 0 | I79: =IF(H79=0,"",H79) ->  | BF79: 19
E80: 0 | I80: =IF(H80=0,"",H80) ->  | BF80: 20
E81: 0 | BF81: 21
E82: 0 | BF82: 22
E83: 0 | BF83: 23
E84: 0 | BF84: 24
E85: 0 | BF85: 25
E86: 0 | BF86: 26
E87: 0 | BF87: 27
E88: 0 | BF88: 28
E89: 0 | BF89: 29
E90: 0 | BF90: 30
E91: 0 | BF91: 31
E92: 0 | BF92: 32
E93: 0 | F93: =IF(E93=0,"",E93) ->  | BF93: 33
E94: 0 | BF94: 34
E95: 0 | BF95: 35
E96: 0 | BF96: 36
E97: 0 | BF97: 37
E98: 0 | BF98: 38
E99: 0 | BF99: 39
E100: 0 | BF100: 40
E101: 0 | BF101: 41
E102: 0 | BF102: 42
E103: 0 | BF103: 43
E104: 0 | BF104: 44
E105: 0 | BF105: 45
E106: 0 | BF106: 46
E107: 0 | BF107: 47
E108: 0 | BF108: 48
E109: 0 | BF109: 49
E110: 0 | BF110: 50
A119: punteggi torneo ordinati per numero standard di coppia base
B120: # coppia | E120: con zeri | F120: senza zeri | G120: senza zeri
B121: 6 | E121: 51.70454545 | F121: =IF(E121=0,"",E121) -> 51.70454545 | G121: 51.70454545 | BF121: 1
B122: 9 | E122: 55.11363636 | F122: 55.11363636 | G122: 55.11363636 | BF122: 2
B123: 7 | E123: 52.84090909 | F123: 52.84090909 | G123: 52.84090909 | I123: =IF(H123=0,"",H123) ->  | BF123: 3
B124: 10 | E124: 51.70454545 | F124: 51.70454545 | G124: 51.70454545 | I124: =IF(H124=0,"",H124) ->  | BF124: 4
B125: 11 | E125: 40.90909091 | F125: 40.90909091 | G125: 40.90909091 | I125: =IF(H125=0,"",H125) ->  | BF125: 5
B126: 8 | E126: 47.15909091 | F126: 47.15909091 | G126: 47.15909091 | BF126: 6
B127: 4 | E127: 51.70454545 | F127: 51.70454545 | G127: 51.70454545 | BF127: 7
B128: 1 | E128: 44.31818182 | F128: 44.31818182 | G128: 44.31818182 | BF128: 8
B129: 2 | E129: 48.86363636 | F129: 48.86363636 | G129: 48.86363636 | I129: =IF(H129=0,"",H129) ->  | BF129: 9
B130: 3 | E130: 59.09090909 | F130: 59.09090909 | G130: 59.09090909 | BF130: 10
B131: 5 | E131: 46.59090909 | F131: 46.59090909 | G131: 46.59090909 | I131: =IF(H131=0,"",H131) ->  | BF131: 11

Sheet 6gen
A1: Data | C1: 2018-01-06 | D1: BridgeMania 2017-18 - Torneo Howell
A2: luogo | C2: De Sanctis | D2: Coppie Ctrl+e | E2: Calcola Ctr+f | F2: Duplica Ctrl+g | G2: Clear Ctrl+h | J2: &
A3: # coppie | C3: =IF(B5="","",COUNT(B5:B25)) -> 8 | E3: =IF(E5="","",SUMIF(E5:E25,">0")) -> 400 | F3: =IF(F5="","",SUMIF(F5:F24,">0")) ->  | G3: =IF(G5="","",SUM(G5:G25)) -> 400 | H3: =IF(H5="","",SUM(H5:H25)) -> 504 | I3: =SUM(I5:I25) -> 0 | J3: =SUM(J5:J25) -> 504 | K3: =SUM(K5:K25) -> 24 | L3: =SUM(L5:L25) -> 24 | M3: 24 | N3: 24 | O3: 24 | P3: 24 | Q3: 24 | R3: 24 | S3: 24 | T3: 24 | U3: 24 | V3: 24 | W3: 24 | X3: 24 | Y3: 24 | Z3: 24 | AA3: 24 | AB3: 24 | AC3: 24 | AD3: 24 | AE3: 24 | AF3: 0 | AG3: 0 | AH3: 0 | AI3: 0 | AJ3: 0 | AK3: 0 | AL3: 0 | AM3: 0 | AN3: 0 | AO3: 0 | AP3: 0 | AQ3: 0 | AR3: 0 | AS3: 0 | AT3: 0 | AU3: 0 | AV3: 0 | AW3: 0 | AX3: 0
A4: Class. | B4: # | C4: Coppie | E4: Punteggio Serata | G4: Punteggio % | H4: Punteggio Torneo | I4: Penalità (-) | J4: Totale punti mano | K4: 1 | L4: 2 | M4: 3 | N4: 4 | O4: 5 | P4: 6 | Q4: 7 | R4: 8 | S4: 9 | T4: 10 | U4: 11 | V4: 12 | W4: 13 | X4: 14 | Y4: 15 | Z4: 16 | AA4: 17 | AB4: 18 | AC4: 19 | AD4: 20 | AE4: 21 | AF4: 22 | AG4: 23 | AH4: 24 | AI4: 25 | AJ4: 26 | AK4: 27 | AL4: 28 | AM4: 29 | AN4: 30 | AO4: 31 | AP4: 32 | AQ4: 33 | AR4: 34 | AS4: 35 | AT4: 36 | AU4: 37 | AV4: 38 | AW4: 39 | AX4: 40
A5: =IF(J$2="","",IF($E5="","",IF($E5=MAX($E$5:$E$54),1,IF($E5=$E4,$A4,COUNT($E$5:$E5))))) -> 1 | B5: 1 | C5: Renata | D5: Sandro | E5: =IF(J$2="","",IF(G5=0,0,F5+G5)) -> 65.87301587 | G5: =IF(J$2="","",IF($J5=0,0,(H5*$C$3/$J$3)*50)) -> 65.87301587 | H5: =IF(J$2="","",IF(SUM($K5:$AX5)=0,0,SUM($K5:$AX5)+$I5)) -> 83 | J5: =IF(B5="",0,IF(SUM($K5:$AX5)=0,0,SUM($K5:$AX5))) -> 83 | K5: 3 | L5: 3 | M5: 5 | N5: 5 | O5: 5 | P5: 1 | Q5: 1 | R5: 3 | S5: 2 | T5: 6 | U5: 2 | V5: 6 | W5: 6 | X5: 3 | Y5: 2 | Z5: 5 | AA5: 4 | AB5: 6 | AC5: 4 | AD5: 6 | AE5: 5 | BF5: 9
A6: =IF(J$2="","",IF($E6="","",IF($E6=MAX($E$5:$E$54),1,IF($E6=$E5,$A5,COUNT($E$5:$E6))))) -> 2 | B6: 2 | C6: Cesarina | D6: Gaetano | E6: 53.17460317 | G6: 53.17460317 | H6: 67 | J6: 67 | K6: 6 | L6: 0 | M6: 4 | N6: 1 | O6: 5 | P6: 1 | Q6: 5 | R6: 0 | S6: 6 | T6: 0 | U6: 4 | V6: 0 | W6: 4 | X6: 3 | Y6: 4 | Z6: 6 | AA6: 6 | AB6: 2 | AC6: 4 | AD6: 4 | AE6: 2 | BF6: 3
A7: =IF(J$2="","",IF($E7="","",IF($E7=MAX($E$5:$E$54),1,IF($E7=$E6,$A6,COUNT($E$5:$E7))))) -> 2 | B7: 7 | C7: Stefania | D7: Massimo | E7: 53.17460317 | G7: 53.17460317 | H7: 67 | J7: 67 | K7: 3 | L7: 0 | M7: 5 | N7: 5 | O7: 4 | P7: 1 | Q7: 5 | R7: 3 | S7: 4 | T7: 4 | U7: 2 | V7: 1 | W7: 5 | X7: 3 | Y7: 6 | Z7: 0 | AA7: 0 | AB7: 4 | AC7: 2 | AD7: 4 | AE7: 6 | BF7: 10
A8: =IF(J$2="","",IF($E8="","",IF($E8=MAX($E$5:$E$54),1,IF($E8=$E7,$A7,COUNT($E$5:$E8))))) -> 2 | B8: 8 | C8: Antonella | D8: Dino | E8: 53.17460317 | G8: 53.17460317 | H8: 67 | J8: 67 | K8: 3 | L8: 3 | M8: 1 | N8: 5 | O8: 1 | P8: 5 | Q8: 4 | R8: 3 | S8: 5 | T8: 4 | U8: 4 | V8: 5 | W8: 5 | X8: 3 | Y8: 0 | Z8: 5 | AA8: 4 | AB8: 1 | AC8: 4 | AD8: 2 | AE8: 0 | BF8: 1
A9: =IF(J$2="","",IF($E9="","",IF($E9=MAX($E$5:$E$54),1,IF($E9=$E8,$A8,COUNT($E$5:$E9))))) -> 5 | B9: 3 | C9: Barbara | D9: Elio | E9: 43.65079365 | G9: 43.65079365 | H9: 55 | J9: 55 | K9: 3 | L9: 6 | M9: 1 | N9: 1 | O9: 6 | P9: 1 | Q9: 2 | R9: 3 | S9: 1 | T9: 0 | U9: 6 | V9: 4 | W9: 2 | X9: 3 | Y9: 2 | Z9: 4 | AA9: 2 | AB9: 5 | AC9: 2 | AD9: 0 | AE9: 1 | BF9: 2
A10: =IF(J$2="","",IF($E10="","",IF($E10=MAX($E$5:$E$54),1,IF($E10=$E9,$A9,COUNT($E$5:$E10))))) -> 5 | B10: 4 | C10: Tatiana | D10: Julio | E10: 43.65079365 | G10: 43.65079365 | H10: 55 | J10: 55 | K10: 0 | L10: 6 | M10: 2 | N10: 1 | O10: 1 | P10: 5 | Q10: 6 | R10: 0 | S10: 5 | T10: 2 | U10: 2 | V10: 1 | W10: 1 | X10: 3 | Y10: 0 | Z10: 2 | AA10: 4 | AB10: 1 | AC10: 6 | AD10: 6 | AE10: 1 | BF10: 11
A11: =IF(J$2="","",IF($E11="","",IF($E11=MAX($E$5:$E$54),1,IF($E11=$E10,$A10,COUNT($E$5:$E11))))) -> 5 | B11: 5 | C11: Manuela | D11: Roberto | E11: 43.65079365 | G11: 43.65079365 | H11: 55 | J11: 55 | K11: 6 | L11: 3 | M11: 0 | N11: 5 | O11: 0 | P11: 5 | Q11: 1 | R11: 6 | S11: 0 | T11: 2 | U11: 4 | V11: 5 | W11: 1 | X11: 3 | Y11: 6 | Z11: 1 | AA11: 2 | AB11: 0 | AC11: 0 | AD11: 0 | AE11: 5 | BF11: 7
A12: =IF(J$2="","",IF($E12="","",IF($E12=MAX($E$5:$E$54),1,IF($E12=$E11,$A11,COUNT($E$5:$E12))))) -> 5 | B12: 6 | C12: Olimpia | D12: Sauro | E12: 43.65079365 | G12: 43.65079365 | H12: 55 | J12: 55 | K12: 0 | L12: 3 | M12: 6 | N12: 1 | O12: 2 | P12: 5 | Q12: 0 | R12: 6 | S12: 1 | T12: 6 | U12: 0 | V12: 2 | W12: 0 | X12: 3 | Y12: 4 | Z12: 1 | AA12: 2 | AB12: 5 | AC12: 2 | AD12: 2 | AE12: 4 | BF12: 8
A13: =IF(J$2="","",IF($E13="","",IF($E13=MAX($E$5:$E$54),1,IF($E13=$E12,$A12,COUNT($E$5:$E13))))) -> 9 | E13: 0 | G13: 0 | H13: 0 | J13: 0 | BF13: 4
A14: =IF(J$2="","",IF($E14="","",IF($E14=MAX($E$5:$E$54),1,IF($E14=$E13,$A13,COUNT($E$5:$E14))))) -> 9 | E14: 0 | G14: 0 | H14: 0 | J14: 0 | BF14: 5
A15: =IF(J$2="","",IF($E15="","",IF($E15=MAX($E$5:$E$54),1,IF($E15=$E14,$A14,COUNT($E$5:$E15))))) -> 9 | E15: 0 | G15: 0 | H15: 0 | J15: 0 | BF15: 6
A16: =IF(J$2="","",IF($E16="","",IF($E16=MAX($E$5:$E$54),1,IF($E16=$E15,$A15,COUNT($E$5:$E16))))) -> 9 | E16: 0 | G16: 0 | H16: 0 | J16: 0 | BF16: 12
A17: =IF(J$2="","",IF($E17="","",IF($E17=MAX($E$5:$E$54),1,IF($E17=$E16,$A16,COUNT($E$5:$E17))))) -> 9 | E17: 0 | G17: 0 | H17: 0 | J17: 0 | BF17: 13
A18: =IF(J$2="","",IF($E18="","",IF($E18=MAX($E$5:$E$54),1,IF($E18=$E17,$A17,COUNT($E$5:$E18))))) -> 9 | E18: 0 | G18: 0 | H18: 0 | J18: 0 | BF18: 14
A19: =IF(J$2="","",IF($E19="","",IF($E19=MAX($E$5:$E$54),1,IF($E19=$E18,$A18,COUNT($E$5:$E19))))) -> 9 | E19: 0 | G19: 0 | H19: 0 | J19: 0 | BF19: 15
A20: =IF(J$2="","",IF($E20="","",IF($E20=MAX($E$5:$E$54),1,IF($E20=$E19,$A19,COUNT($E$5:$E20))))) -> 9 | E20: 0 | G20: 0 | H20: 0 | J20: 0 | BF20: 16
A21: =IF(J$2="","",IF($E21="","",IF($E21=MAX($E$5:$E$54),1,IF($E21=$E20,$A20,COUNT($E$5:$E21))))) -> 9 | E21: 0 | G21: 0 | H21: 0 | J21: 0 | BF21: 17
A22: =IF(J$2="","",IF($E22="","",IF($E22=MAX($E$5:$E$54),1,IF($E22=$E21,$A21,COUNT($E$5:$E22))))) -> 9 | E22: 0 | G22: 0 | H22: 0 | J22: 0 | BF22: 18
